Workbook

Sheet WB! Status
A1: What'sBest!® 13.0.2.0 (Mar 18, 2016) - Lib. 9.0.2217.270 - 64-bit - Status Report -
A3: DATE GENERATED: | B3: 2020-12-07T19:32:16 | C3: 44172.81407
A6: MODEL INFORMATION:
A8: CLASSIFICATION DATA Current Capacity Limits
A9: --------------------------------------------------------
A10: Total Cells 4645873
A11: Numerics 4629409
A12: Adjustables 15663 Unlimited
A13: Continuous 3599
A14: Free 0
A15: Integers/Binaries 312/11752 Unlimited
A16: Constants 3949192
A17: Formulas 664554
A18: Strings 0
A19: Constraints 16464 Unlimited
A20: Nonlinears 0 Unlimited
A21: Coefficients 2981656
A23: Minimum coefficient value: 8.1168318348026e-021 on EE_Selection!M1246
A24: Minimum coefficient in formula: EE_Selection!P1246
A25: Maximum coefficient value: 948935.7401148 on Selection!AA143
A26: Maximum coefficient in formula: New_Resource_Annual_Cost!Z61
A28: MODEL TYPE: | B28: Mixed Integer / Linear (Mixed Integer Linear Program)
A30: SOLUTION STATUS: | B30: GLOBALLY OPTIMAL TO TOLERANCES
A32: OBJECTIVE VALUE: | B32: 4798.113298
A34: BEST OBJECTIVE BOUND: | B34: 4798.113211
A36: OPTIMALITY TOLERANCES: | B36: 1e-05
A38: INFEASIBILITY: | B38: 0
A40: DIRECTION: | B40: Minimize
A42: SOLVER TYPE: | B42: Branch-and-Bound
A44: ITERATIONS: | B44: 7185473
A46: STEPS: | B46: 551733
A48: ACTIVE: | B48: 0
A50: SOLUTION TIME: | B50: 0 Hours 45 Minutes 57 Seconds
A52: NON-DEFAULT SETTINGS:
A54: General Options / Solver / Feasibility Tolerance: 1.000000e-005
A55: General Options / Limits / Iteration Limit: 40000000
A56: General Options / Limits / Runtime Limit: 3500
A57: General Options / Limits / Number of Threads: 4
A58: General Options / Reports Warnings / Warning Reference to Blank Cell: On
A59: General Options / Reports Warnings / Warning Infeasible Constraint: On
A60: General Options / Reports Warnings / Warning Unbounded Variable: On
A61: General Options / Reports Warnings / Warning Edit Links: On
A62: Linear Solver Options / Solver Method: Barrier
A63: Integer Solver Options / Integrality / Absolute: 1.000000e-005
A64: Integer Solver Options / Integrality / Relative: 1.000000e-005
A65: Integer Solver Options / Optimality / Absolute: 1.000000e-005
A66: Integer Solver Options / Optimality / Time to Relative: 3500
A67: The above option has been turned on : None
A68: WBOMIT Range: Detected
A69: Parameters / WBLS_DPARAM_MIP_RELOPTTOL: 1.000000e-007
A70: Parameters / WBLS_IPARAM_SPLEX_USE_EXTERNAL: 4
A71: WBXSOLVERNAME: gurobi90.dll
A73: End of Report

Sheet README
B2: Notice
B3: This Model is Provided “As Is”
B4: For Informational Purposes Only
B5: Inputs are Subject to Change at Any Time and May Impact Results
B8: Version
B9: PRiSM version 7.0
B11: Model Design Date
B12: 2020-12-07
B14: Scenario
B15: 2027 Clean Resource Plan
B16: Add clean energy resources to = 100% retail sales
B17: Deterministic Scenario

Sheet Selection_Summary
A2: Nameplate MW | B2: 2022 | C2: 2023 | D2: 2024 | E2: 2025 | F2: 2026 | G2: 2027 | H2: 2028 | I2: 2029 | J2: 2030 | K2: 2031 | L2: 2032 | M2: 2033 | N2: 2034 | O2: 2035 | P2: 2036 | Q2: 2037 | R2: 2038 | S2: 2039 | T2: 2040 | U2: 2041 | V2: 2042 | W2: 2043 | X2: 2044 | Y2: 2045 | AA2: 2022 | AB2: 2023 | AC2: 2024 | AD2: 2025 | AE2: 2026 | AF2: 2027 | AG2: 2028 | AH2: 2029 | AI2: 2030 | AJ2: 2031 | AK2: 2032 | AL2: 2033 | AM2: 2034 | AN2: 2035 | AO2: 2036 | AP2: 2037 | AQ2: 2038 | AR2: 2039 | AS2: 2040 | AT2: 2041 | AU2: 2042 | AV2: 2043 | AW2: 2044 | AX2: 2045
A3: Coyote Springs 2 | B3: =Selection!BB4 -> 1 | C3: =Selection!BC4 -> 1 | D3: =Selection!BD4 -> 1 | E3: =Selection!BE4 -> 1 | F3: =Selection!BF4 -> 1 | G3: =Selection!BG4 -> 1 | H3: =Selection!BH4 -> 1 | I3: =Selection!BI4 -> 1 | J3: =Selection!BJ4 -> 1 | K3: =Selection!BK4 -> 1 | L3: =Selection!BL4 -> 1 | M3: =Selection!BM4 -> 1 | N3: =Selection!BN4 -> 1 | O3: =Selection!BO4 -> 1 | P3: =Selection!BP4 -> 1 | Q3: =Selection!BQ4 -> 1 | R3: =Selection!BR4 -> 1 | S3: =Selection!BS4 -> 1 | T3: =Selection!BT4 -> 1 | U3: =Selection!BU4 -> 1 | V3: =Selection!BV4 -> 1 | W3: =Selection!BW4 -> 1 | X3: =Selection!BX4 -> 1 | Y3: =Selection!BY4 -> 1
A4: Lancaster | B4: =Selection!BB5 -> 1 | C4: =Selection!BC5 -> 1 | D4: =Selection!BD5 -> 1 | E4: =Selection!BE5 -> 1 | F4: =Selection!BF5 -> 1 | G4: =Selection!BG5 -> 0 | H4: =Selection!BH5 -> 0 | I4: =Selection!BI5 -> 0 | J4: =Selection!BJ5 -> 0 | K4: =Selection!BK5 -> 0 | L4: =Selection!BL5 -> 0 | M4: =Selection!BM5 -> 0 | N4: =Selection!BN5 -> 0 | O4: =Selection!BO5 -> 0 | P4: =Selection!BP5 -> 0 | Q4: =Selection!BQ5 -> 0 | R4: =Selection!BR5 -> 0 | S4: =Selection!BS5 -> 0 | T4: =Selection!BT5 -> 0 | U4: =Selection!BU5 -> 0 | V4: =Selection!BV5 -> 0 | W4: =Selection!BW5 -> 0 | X4: =Selection!BX5 -> 0 | Y4: =Selection!BY5 -> 0
A5: Colstrip (3) | B5: =Selection!BB6 -> 0 | C5: =Selection!BC6 -> 0 | D5: =Selection!BD6 -> 0 | E5: =Selection!BE6 -> 0 | F5: =Selection!BF6 -> 0 | G5: =Selection!BG6 -> 0 | H5: =Selection!BH6 -> 0 | I5: =Selection!BI6 -> 0 | J5: =Selection!BJ6 -> 0 | K5: =Selection!BK6 -> 0 | L5: =Selection!BL6 -> 0 | M5: =Selection!BM6 -> 0 | N5: =Selection!BN6 -> 0 | O5: =Selection!BO6 -> 0 | P5: =Selection!BP6 -> 0 | Q5: =Selection!BQ6 -> 0 | R5: =Selection!BR6 -> 0 | S5: =Selection!BS6 -> 0 | T5: =Selection!BT6 -> 0 | U5: =Selection!BU6 -> 0 | V5: =Selection!BV6 -> 0 | W5: =Selection!BW6 -> 0 | X5: =Selection!BX6 -> 0 | Y5: =Selection!BY6 -> 0
A6: Colstrip (4) | B6: =Selection!BB7 -> 0 | C6: =Selection!BC7 -> 0 | D6: =Selection!BD7 -> 0 | E6: =Selection!BE7 -> 0 | F6: =Selection!BF7 -> 0 | G6: =Selection!BG7 -> 0 | H6: =Selection!BH7 -> 0 | I6: =Selection!BI7 -> 0 | J6: =Selection!BJ7 -> 0 | K6: =Selection!BK7 -> 0 | L6: =Selection!BL7 -> 0 | M6: =Selection!BM7 -> 0 | N6: =Selection!BN7 -> 0 | O6: =Selection!BO7 -> 0 | P6: =Selection!BP7 -> 0 | Q6: =Selection!BQ7 -> 0 | R6: =Selection!BR7 -> 0 | S6: =Selection!BS7 -> 0 | T6: =Selection!BT7 -> 0 | U6: =Selection!BU7 -> 0 | V6: =Selection!BV7 -> 0 | W6: =Selection!BW7 -> 0 | X6: =Selection!BX7 -> 0 | Y6: =Selection!BY7 -> 0
A7: Kettle Falls | B7: =Selection!BB8 -> 1 | C7: =Selection!BC8 -> 1 | D7: =Selection!BD8 -> 1 | E7: =Selection!BE8 -> 1 | F7: =Selection!BF8 -> 1 | G7: =Selection!BG8 -> 1 | H7: =Selection!BH8 -> 1 | I7: =Selection!BI8 -> 1 | J7: =Selection!BJ8 -> 1 | K7: =Selection!BK8 -> 1 | L7: =Selection!BL8 -> 1 | M7: =Selection!BM8 -> 1 | N7: =Selection!BN8 -> 1 | O7: =Selection!BO8 -> 1 | P7: =Selection!BP8 -> 1 | Q7: =Selection!BQ8 -> 1 | R7: =Selection!BR8 -> 1 | S7: =Selection!BS8 -> 1 | T7: =Selection!BT8 -> 1 | U7: =Selection!BU8 -> 1 | V7: =Selection!BV8 -> 1 | W7: =Selection!BW8 -> 1 | X7: =Selection!BX8 -> 1 | Y7: =Selection!BY8 -> 1
A8: Kettle Falls CT | B8: =Selection!BB9 -> 1 | C8: =Selection!BC9 -> 1 | D8: =Selection!BD9 -> 1 | E8: =Selection!BE9 -> 1 | F8: =Selection!BF9 -> 1 | G8: =Selection!BG9 -> 1 | H8: =Selection!BH9 -> 1 | I8: =Selection!BI9 -> 1 | J8: =Selection!BJ9 -> 1 | K8: =Selection!BK9 -> 1 | L8: =Selection!BL9 -> 1 | M8: =Selection!BM9 -> 1 | N8: =Selection!BN9 -> 1 | O8: =Selection!BO9 -> 1 | P8: =Selection!BP9 -> 1 | Q8: =Selection!BQ9 -> 1 | R8: =Selection!BR9 -> 1 | S8: =Selection!BS9 -> 1 | T8: =Selection!BT9 -> 1 | U8: =Selection!BU9 -> 1 | V8: =Selection!BV9 -> 1 | W8: =Selection!BW9 -> 1 | X8: =Selection!BX9 -> 1 | Y8: =Selection!BY9 -> 1
A9: Boulder Park 1-6 | B9: =Selection!BB10 -> 1 | C9: =Selection!BC10 -> 1 | D9: =Selection!BD10 -> 1 | E9: =Selection!BE10 -> 1 | F9: =Selection!BF10 -> 1 | G9: =Selection!BG10 -> 1 | H9: =Selection!BH10 -> 1 | I9: =Selection!BI10 -> 1 | J9: =Selection!BJ10 -> 1 | K9: =Selection!BK10 -> 1 | L9: =Selection!BL10 -> 1 | M9: =Selection!BM10 -> 1 | N9: =Selection!BN10 -> 1 | O9: =Selection!BO10 -> 1 | P9: =Selection!BP10 -> 1 | Q9: =Selection!BQ10 -> 1 | R9: =Selection!BR10 -> 1 | S9: =Selection!BS10 -> 1 | T9: =Selection!BT10 -> 1 | U9: =Selection!BU10 -> 0 | V9: =Selection!BV10 -> 0 | W9: =Selection!BW10 -> 0 | X9: =Selection!BX10 -> 0 | Y9: =Selection!BY10 -> 0
A10: Rathdrum 1 | B10: =Selection!BB11 -> 1 | C10: =Selection!BC11 -> 1 | D10: =Selection!BD11 -> 1 | E10: =Selection!BE11 -> 1 | F10: =Selection!BF11 -> 1 | G10: =Selection!BG11 -> 1 | H10: =Selection!BH11 -> 1 | I10: =Selection!BI11 -> 1 | J10: =Selection!BJ11 -> 1 | K10: =Selection!BK11 -> 1 | L10: =Selection!BL11 -> 1 | M10: =Selection!BM11 -> 1 | N10: =Selection!BN11 -> 1 | O10: =Selection!BO11 -> 1 | P10: =Selection!BP11 -> 1 | Q10: =Selection!BQ11 -> 1 | R10: =Selection!BR11 -> 1 | S10: =Selection!BS11 -> 1 | T10: =Selection!BT11 -> 1 | U10: =Selection!BU11 -> 1 | V10: =Selection!BV11 -> 1 | W10: =Selection!BW11 -> 1 | X10: =Selection!BX11 -> 1 | Y10: =Selection!BY11 -> 1
A11: Rathdrum 2 | B11: =Selection!BB12 -> 1 | C11: =Selection!BC12 -> 1 | D11: =Selection!BD12 -> 1 | E11: =Selection!BE12 -> 1 | F11: =Selection!BF12 -> 1 | G11: =Selection!BG12 -> 1 | H11: =Selection!BH12 -> 1 | I11: =Selection!BI12 -> 1 | J11: =Selection!BJ12 -> 1 | K11: =Selection!BK12 -> 1 | L11: =Selection!BL12 -> 1 | M11: =Selection!BM12 -> 1 | N11: =Selection!BN12 -> 1 | O11: =Selection!BO12 -> 1 | P11: =Selection!BP12 -> 1 | Q11: =Selection!BQ12 -> 1 | R11: =Selection!BR12 -> 1 | S11: =Selection!BS12 -> 1 | T11: =Selection!BT12 -> 1 | U11: =Selection!BU12 -> 1 | V11: =Selection!BV12 -> 1 | W11: =Selection!BW12 -> 1 | X11: =Selection!BX12 -> 1 | Y11: =Selection!BY12 -> 1
A12: Northeast A&B | B12: =Selection!BB13 -> 1 | C12: =Selection!BC13 -> 1 | D12: =Selection!BD13 -> 1 | E12: =Selection!BE13 -> 1 | F12: =Selection!BF13 -> 1 | G12: =Selection!BG13 -> 1 | H12: =Selection!BH13 -> 1 | I12: =Selection!BI13 -> 1 | J12: =Selection!BJ13 -> 1 | K12: =Selection!BK13 -> 1 | L12: =Selection!BL13 -> 1 | M12: =Selection!BM13 -> 1 | N12: =Selection!BN13 -> 1 | O12: =Selection!BO13 -> 1 | P12: =Selection!BP13 -> 0 | Q12: =Selection!BQ13 -> 0 | R12: =Selection!BR13 -> 0 | S12: =Selection!BS13 -> 0 | T12: =Selection!BT13 -> 0 | U12: =Selection!BU13 -> 0 | V12: =Selection!BV13 -> 0 | W12: =Selection!BW13 -> 0 | X12: =Selection!BX13 -> 0 | Y12: =Selection!BY13 -> 0
A14: Shared System Resource
A15: NG CT | B15: =SUM(Selection!BB97:BB114) -> 0 | C15: =SUM(Selection!BC97:BC114) -> 0 | D15: =SUM(Selection!BD97:BD114) -> 0 | E15: =SUM(Selection!BE97:BE114) -> 0 | F15: =SUM(Selection!BF97:BF114) -> 0 | G15: =SUM(Selection!BG97:BG114) -> 0 | H15: =SUM(Selection!BH97:BH114) -> 0 | I15: =SUM(Selection!BI97:BI114) -> 0 | J15: =SUM(Selection!BJ97:BJ114) -> 0 | K15: =SUM(Selection!BK97:BK114) -> 0 | L15: =SUM(Selection!BL97:BL114) -> 0 | M15: =SUM(Selection!BM97:BM114) -> 0 | N15: =SUM(Selection!BN97:BN114) -> 0 | O15: =SUM(Selection!BO97:BO114) -> 0 | P15: =SUM(Selection!BP97:BP114) -> 84 | Q15: =SUM(Selection!BQ97:BQ114) -> 0 | R15: =SUM(Selection!BR97:BR114) -> 0 | S15: =SUM(Selection!BS97:BS114) -> 0 | T15: =SUM(Selection!BT97:BT114) -> 0 | U15: =SUM(Selection!BU97:BU114) -> 0 | V15: =SUM(Selection!BV97:BV114) -> 0 | W15: =SUM(Selection!BW97:BW114) -> 0 | X15: =SUM(Selection!BX97:BX114) -> 0 | Y15: =SUM(Selection!BY97:BY114) -> 0
A16: Solar | B16: =SUM(Selection!BB115:BB117) -> 0 | C16: =SUM(Selection!BC115:BC117) -> 0 | D16: =SUM(Selection!BD115:BD117) -> 0 | E16: =SUM(Selection!BE115:BE117) -> 0 | F16: =SUM(Selection!BF115:BF117) -> 0 | G16: =SUM(Selection!BG115:BG117) -> 0 | H16: =SUM(Selection!BH115:BH117) -> 0 | I16: =SUM(Selection!BI115:BI117) -> 0 | J16: =SUM(Selection!BJ115:BJ117) -> 0 | K16: =SUM(Selection!BK115:BK117) -> 100 | L16: =SUM(Selection!BL115:BL117) -> 0 | M16: =SUM(Selection!BM115:BM117) -> 0 | N16: =SUM(Selection!BN115:BN117) -> 0 | O16: =SUM(Selection!BO115:BO117) -> 0 | P16: =SUM(Selection!BP115:BP117) -> 0 | Q16: =SUM(Selection!BQ115:BQ117) -> 0 | R16: =SUM(Selection!BR115:BR117) -> 100 | S16: =SUM(Selection!BS115:BS117) -> 0 | T16: =SUM(Selection!BT115:BT117) -> 0 | U16: =SUM(Selection!BU115:BU117) -> 145.5029729 | V16: =SUM(Selection!BV115:BV117) -> 100 | W16: =SUM(Selection!BW115:BW117) -> 103.7298691 | X16: =SUM(Selection!BX115:BX117) -> 0 | Y16: =SUM(Selection!BY115:BY117) -> 0
A17: Storage Added to Solar | B17: =SUM(Selection!BB118:BB120) -> 0 | C17: =SUM(Selection!BC118:BC120) -> 0 | D17: =SUM(Selection!BD118:BD120) -> 0 | E17: =SUM(Selection!BE118:BE120) -> 0 | F17: =SUM(Selection!BF118:BF120) -> 0 | G17: =SUM(Selection!BG118:BG120) -> 0 | H17: =SUM(Selection!BH118:BH120) -> 0 | I17: =SUM(Selection!BI118:BI120) -> 0 | J17: =SUM(Selection!BJ118:BJ120) -> 0 | K17: =SUM(Selection!BK118:BK120) -> 50 | L17: =SUM(Selection!BL118:BL120) -> 0 | M17: =SUM(Selection!BM118:BM120) -> 0 | N17: =SUM(Selection!BN118:BN120) -> 0 | O17: =SUM(Selection!BO118:BO120) -> 0 | P17: =SUM(Selection!BP118:BP120) -> 0 | Q17: =SUM(Selection!BQ118:BQ120) -> 0 | R17: =SUM(Selection!BR118:BR120) -> 50 | S17: =SUM(Selection!BS118:BS120) -> 0 | T17: =SUM(Selection!BT118:BT120) -> 0 | U17: =SUM(Selection!BU118:BU120) -> 72.75148645 | V17: =SUM(Selection!BV118:BV120) -> 50 | W17: =SUM(Selection!BW118:BW120) -> 51.86493454 | X17: =SUM(Selection!BX118:BX120) -> 0 | Y17: =SUM(Selection!BY118:BY120) -> 0
A18: Wind | B18: =SUM(Selection!BB121:BB125) -> 0 | C18: =SUM(Selection!BC121:BC125) -> 0 | D18: =SUM(Selection!BD121:BD125) -> 0 | E18: =SUM(Selection!BE121:BE125) -> 0 | F18: =SUM(Selection!BF121:BF125) -> 0 | G18: =SUM(Selection!BG121:BG125) -> 0 | H18: =SUM(Selection!BH121:BH125) -> 0 | I18: =SUM(Selection!BI121:BI125) -> 0 | J18: =SUM(Selection!BJ121:BJ125) -> 0 | K18: =SUM(Selection!BK121:BK125) -> 0 | L18: =SUM(Selection!BL121:BL125) -> 0 | M18: =SUM(Selection!BM121:BM125) -> 0 | N18: =SUM(Selection!BN121:BN125) -> 0 | O18: =SUM(Selection!BO121:BO125) -> 0 | P18: =SUM(Selection!BP121:BP125) -> 0 | Q18: =SUM(Selection!BQ121:BQ125) -> 0 | R18: =SUM(Selection!BR121:BR125) -> 0 | S18: =SUM(Selection!BS121:BS125) -> 0 | T18: =SUM(Selection!BT121:BT125) -> 0 | U18: =SUM(Selection!BU121:BU125) -> 0 | V18: =SUM(Selection!BV121:BV125) -> 0 | W18: =SUM(Selection!BW121:BW125) -> 0 | X18: =SUM(Selection!BX121:BX125) -> 0 | Y18: =SUM(Selection!BY121:BY125) -> 0
A19: Storage | B19: =SUM(Selection!BB126:BB138,Selection!BB141) -> 0 | C19: =SUM(Selection!BC126:BC138,Selection!BC141) -> 0 | D19: =SUM(Selection!BD126:BD138,Selection!BD141) -> 0 | E19: =SUM(Selection!BE126:BE138,Selection!BE141) -> 0 | F19: =SUM(Selection!BF126:BF138,Selection!BF141) -> 0 | G19: =SUM(Selection!BG126:BG138,Selection!BG141) -> 0 | H19: =SUM(Selection!BH126:BH138,Selection!BH141) -> 0 | I19: =SUM(Selection!BI126:BI138,Selection!BI141) -> 0 | J19: =SUM(Selection!BJ126:BJ138,Selection!BJ141) -> 0 | K19: =SUM(Selection!BK126:BK138,Selection!BK141) -> 0 | L19: =SUM(Selection!BL126:BL138,Selection!BL141) -> 0 | M19: =SUM(Selection!BM126:BM138,Selection!BM141) -> 0 | N19: =SUM(Selection!BN126:BN138,Selection!BN141) -> 0 | O19: =SUM(Selection!BO126:BO138,Selection!BO141) -> 0 | P19: =SUM(Selection!BP126:BP138,Selection!BP141) -> 0 | Q19: =SUM(Selection!BQ126:BQ138,Selection!BQ141) -> 0 | R19: =SUM(Selection!BR126:BR138,Selection!BR141) -> 0 | S19: =SUM(Selection!BS126:BS138,Selection!BS141) -> 0 | T19: =SUM(Selection!BT126:BT138,Selection!BT141) -> 0 | U19: =SUM(Selection!BU126:BU138,Selection!BU141) -> 0 | V19: =SUM(Selection!BV126:BV138,Selection!BV141) -> 0 | W19: =SUM(Selection!BW126:BW138,Selection!BW141) -> 0 | X19: =SUM(Selection!BX126:BX138,Selection!BX141) -> 0 | Y19: =SUM(Selection!BY126:BY138,Selection!BY141) -> 0
A20: Hydrogen | B20: =SUM(Selection!BB139:BB140) -> 0 | C20: =SUM(Selection!BC139:BC140) -> 0 | D20: =SUM(Selection!BD139:BD140) -> 0 | E20: =SUM(Selection!BE139:BE140) -> 0 | F20: =SUM(Selection!BF139:BF140) -> 0 | G20: =SUM(Selection!BG139:BG140) -> 0 | H20: =SUM(Selection!BH139:BH140) -> 0 | I20: =SUM(Selection!BI139:BI140) -> 0 | J20: =SUM(Selection!BJ139:BJ140) -> 0 | K20: =SUM(Selection!BK139:BK140) -> 0 | L20: =SUM(Selection!BL139:BL140) -> 0 | M20: =SUM(Selection!BM139:BM140) -> 0 | N20: =SUM(Selection!BN139:BN140) -> 0 | O20: =SUM(Selection!BO139:BO140) -> 0 | P20: =SUM(Selection!BP139:BP140) -> 0 | Q20: =SUM(Selection!BQ139:BQ140) -> 0 | R20: =SUM(Selection!BR139:BR140) -> 0 | S20: =SUM(Selection!BS139:BS140) -> 0 | T20: =SUM(Selection!BT139:BT140) -> 0 | U20: =SUM(Selection!BU139:BU140) -> 0 | V20: =SUM(Selection!BV139:BV140) -> 0 | W20: =SUM(Selection!BW139:BW140) -> 0 | X20: =SUM(Selection!BX139:BX140) -> 0 | Y20: =SUM(Selection!BY139:BY140) -> 0
A21: Other- (Clean Capacity) | B21: =SUM(Selection!BB142:BB144) -> 0 | C21: =SUM(Selection!BC142:BC144) -> 0 | D21: =SUM(Selection!BD142:BD144) -> 0 | E21: =SUM(Selection!BE142:BE144) -> 0 | F21: =SUM(Selection!BF142:BF144) -> 0 | G21: =SUM(Selection!BG142:BG144) -> 0 | H21: =SUM(Selection!BH142:BH144) -> 0 | I21: =SUM(Selection!BI142:BI144) -> 0 | J21: =SUM(Selection!BJ142:BJ144) -> 0 | K21: =SUM(Selection!BK142:BK144) -> 0 | L21: =SUM(Selection!BL142:BL144) -> 0 | M21: =SUM(Selection!BM142:BM144) -> 0 | N21: =SUM(Selection!BN142:BN144) -> 0 | O21: =SUM(Selection!BO142:BO144) -> 0 | P21: =SUM(Selection!BP142:BP144) -> 0 | Q21: =SUM(Selection!BQ142:BQ144) -> 0 | R21: =SUM(Selection!BR142:BR144) -> 0 | S21: =SUM(Selection!BS142:BS144) -> 0 | T21: =SUM(Selection!BT142:BT144) -> 0 | U21: =SUM(Selection!BU142:BU144) -> 20 | V21: =SUM(Selection!BV142:BV144) -> 0 | W21: =SUM(Selection!BW142:BW144) -> 0 | X21: =SUM(Selection!BX142:BX144) -> 0 | Y21: =SUM(Selection!BY142:BY144) -> 0
A22: Thermal Upgrade | B22: =SUM(Selection!BB145:BB148) -> 0 | C22: =SUM(Selection!BC145:BC148) -> 0 | D22: =SUM(Selection!BD145:BD148) -> 0 | E22: =SUM(Selection!BE145:BE148) -> 0 | F22: =SUM(Selection!BF145:BF148) -> 12 | G22: =SUM(Selection!BG145:BG148) -> 0 | H22: =SUM(Selection!BH145:BH148) -> 0 | I22: =SUM(Selection!BI145:BI148) -> 0 | J22: =SUM(Selection!BJ145:BJ148) -> 0 | K22: =SUM(Selection!BK145:BK148) -> 0 | L22: =SUM(Selection!BL145:BL148) -> 0 | M22: =SUM(Selection!BM145:BM148) -> 0 | N22: =SUM(Selection!BN145:BN148) -> 0 | O22: =SUM(Selection!BO145:BO148) -> 5 | P22: =SUM(Selection!BP145:BP148) -> 0 | Q22: =SUM(Selection!BQ145:BQ148) -> 0 | R22: =SUM(Selection!BR145:BR148) -> 0 | S22: =SUM(Selection!BS145:BS148) -> 0 | T22: =SUM(Selection!BT145:BT148) -> 0 | U22: =SUM(Selection!BU145:BU148) -> 0 | V22: =SUM(Selection!BV145:BV148) -> 0 | W22: =SUM(Selection!BW145:BW148) -> 0 | X22: =SUM(Selection!BX145:BX148) -> 0 | Y22: =SUM(Selection!BY145:BY148) -> 0
A23: Hydro | B23: =SUM(Selection!BB149:BB151) -> 0 | C23: =SUM(Selection!BC149:BC151) -> 0 | D23: =SUM(Selection!BD149:BD151) -> 0 | E23: =SUM(Selection!BE149:BE151) -> 0 | F23: =SUM(Selection!BF149:BF151) -> 0 | G23: =SUM(Selection!BG149:BG151) -> 0 | H23: =SUM(Selection!BH149:BH151) -> 0 | I23: =SUM(Selection!BI149:BI151) -> 0 | J23: =SUM(Selection!BJ149:BJ151) -> 0 | K23: =SUM(Selection!BK149:BK151) -> 0 | L23: =SUM(Selection!BL149:BL151) -> 0 | M23: =SUM(Selection!BM149:BM151) -> 0 | N23: =SUM(Selection!BN149:BN151) -> 0 | O23: =SUM(Selection!BO149:BO151) -> 0 | P23: =SUM(Selection!BP149:BP151) -> 0 | Q23: =SUM(Selection!BQ149:BQ151) -> 0 | R23: =SUM(Selection!BR149:BR151) -> 0 | S23: =SUM(Selection!BS149:BS151) -> 0 | T23: =SUM(Selection!BT149:BT151) -> 0 | U23: =SUM(Selection!BU149:BU151) -> 0 | V23: =SUM(Selection!BV149:BV151) -> 0 | W23: =SUM(Selection!BW149:BW151) -> 0 | X23: =SUM(Selection!BX149:BX151) -> 0 | Y23: =SUM(Selection!BY149:BY151) -> 0
A25: Washington
A26: NG CT | B26: =SUM(Selection!D97:D114) -> 0 | C26: =SUM(Selection!E97:E114) -> 0 | D26: =SUM(Selection!F97:F114) -> 0 | E26: =SUM(Selection!G97:G114) -> 0 | F26: =SUM(Selection!H97:H114) -> 0 | G26: =SUM(Selection!I97:I114) -> 47.91344655 | H26: =SUM(Selection!J97:J114) -> 0 | I26: =SUM(Selection!K97:K114) -> 0 | J26: =SUM(Selection!L97:L114) -> 0 | K26: =SUM(Selection!M97:M114) -> 0 | L26: =SUM(Selection!N97:N114) -> 0 | M26: =SUM(Selection!O97:O114) -> 0 | N26: =SUM(Selection!P97:P114) -> 0 | O26: =SUM(Selection!Q97:Q114) -> 0 | P26: =SUM(Selection!R97:R114) -> 7.105427358e-15 | Q26: =SUM(Selection!S97:S114) -> 0 | R26: =SUM(Selection!T97:T114) -> 0 | S26: =SUM(Selection!U97:U114) -> 0 | T26: =SUM(Selection!V97:V114) -> 0 | U26: =SUM(Selection!W97:W114) -> 0 | V26: =SUM(Selection!X97:X114) -> 0 | W26: =SUM(Selection!Y97:Y114) -> 0 | X26: =SUM(Selection!Z97:Z114) -> 0 | Y26: =SUM(Selection!AA97:AA114) -> 0 | AA26: =B26+(B15*G_A!P$9) -> 0 | AB26: =C26+(C15*G_A!Q$9) -> 0 | AC26: =D26+(D15*G_A!R$9) -> 0 | AD26: =E26+(E15*G_A!S$9) -> 0 | AE26: =F26+(F15*G_A!T$9) -> 0 | AF26: =G26+(G15*G_A!U$9) -> 47.91344655 | AG26: =H26+(H15*G_A!V$9) -> 0 | AH26: =I26+(I15*G_A!W$9) -> 0 | AI26: =J26+(J15*G_A!X$9) -> 0 | AJ26: =K26+(K15*G_A!Y$9) -> 0 | AK26: =L26+(L15*G_A!Z$9) -> 0 | AL26: =M26+(M15*G_A!AA$9) -> 0 | AM26: =N26+(N15*G_A!AB$9) -> 0 | AN26: =O26+(O15*G_A!AC$9) -> 0 | AO26: =P26+(P15*G_A!AD$9) -> 55.146 | AP26: =Q26+(Q15*G_A!AE$9) -> 0 | AQ26: =R26+(R15*G_A!AF$9) -> 0 | AR26: =S26+(S15*G_A!AG$9) -> 0 | AS26: =T26+(T15*G_A!AH$9) -> 0 | AT26: =U26+(U15*G_A!AI$9) -> 0 | AU26: =V26+(V15*G_A!AJ$9) -> 0 | AV26: =W26+(W15*G_A!AK$9) -> 0 | AW26: =X26+(X15*G_A!AL$9) -> 0 | AX26: =Y26+(Y15*G_A!AM$9) -> 0
A27: Solar | B27: =SUM(Selection!D115:D117) -> 0 | C27: =SUM(Selection!E115:E117) -> 0 | D27: =SUM(Selection!F115:F117) -> 0 | E27: =SUM(Selection!G115:G117) -> 0 | F27: =SUM(Selection!H115:H117) -> 0 | G27: =SUM(Selection!I115:I117) -> 0 | H27: =SUM(Selection!J115:J117) -> 0 | I27: =SUM(Selection!K115:K117) -> 0 | J27: =SUM(Selection!L115:L117) -> 0 | K27: =SUM(Selection!M115:M117) -> 0 | L27: =SUM(Selection!N115:N117) -> 0 | M27: =SUM(Selection!O115:O117) -> 0 | N27: =SUM(Selection!P115:P117) -> 0 | O27: =SUM(Selection!Q115:Q117) -> 0 | P27: =SUM(Selection!R115:R117) -> 0 | Q27: =SUM(Selection!S115:S117) -> 0 | R27: =SUM(Selection!T115:T117) -> 0 | S27: =SUM(Selection!U115:U117) -> 0 | T27: =SUM(Selection!V115:V117) -> 0 | U27: =SUM(Selection!W115:W117) -> 0 | V27: =SUM(Selection!X115:X117) -> 0 | W27: =SUM(Selection!Y115:Y117) -> 0 | X27: =SUM(Selection!Z115:Z117) -> 0 | Y27: =SUM(Selection!AA115:AA117) -> 25.52607188 | AA27: =B27+(B16*G_A!P$9) -> 0 | AB27: =C27+(C16*G_A!Q$9) -> 0 | AC27: =D27+(D16*G_A!R$9) -> 0 | AD27: =E27+(E16*G_A!S$9) -> 0 | AE27: =F27+(F16*G_A!T$9) -> 0 | AF27: =G27+(G16*G_A!U$9) -> 0 | AG27: =H27+(H16*G_A!V$9) -> 0 | AH27: =I27+(I16*G_A!W$9) -> 0 | AI27: =J27+(J16*G_A!X$9) -> 0 | AJ27: =K27+(K16*G_A!Y$9) -> 65.65 | AK27: =L27+(L16*G_A!Z$9) -> 0 | AL27: =M27+(M16*G_A!AA$9) -> 0 | AM27: =N27+(N16*G_A!AB$9) -> 0 | AN27: =O27+(O16*G_A!AC$9) -> 0 | AO27: =P27+(P16*G_A!AD$9) -> 0 | AP27: =Q27+(Q16*G_A!AE$9) -> 0 | AQ27: =R27+(R16*G_A!AF$9) -> 65.65 | AR27: =S27+(S16*G_A!AG$9) -> 0 | AS27: =T27+(T16*G_A!AH$9) -> 0 | AT27: =U27+(U16*G_A!AI$9) -> 95.52270171 | AU27: =V27+(V16*G_A!AJ$9) -> 65.65 | AV27: =W27+(W16*G_A!AK$9) -> 68.09865906 | AW27: =X27+(X16*G_A!AL$9) -> 0 | AX27: =Y27+(Y16*G_A!AM$9) -> 25.52607188
A28: Storage Added to Solar | B28: =SUM(Selection!D118:D120) -> 0 | C28: =SUM(Selection!E118:E120) -> 0 | D28: =SUM(Selection!F118:F120) -> 0 | E28: =SUM(Selection!G118:G120) -> 0 | F28: =SUM(Selection!H118:H120) -> 0 | G28: =SUM(Selection!I118:I120) -> 0 | H28: =SUM(Selection!J118:J120) -> 0 | I28: =SUM(Selection!K118:K120) -> 0 | J28: =SUM(Selection!L118:L120) -> 0 | K28: =SUM(Selection!M118:M120) -> 0 | L28: =SUM(Selection!N118:N120) -> 0 | M28: =SUM(Selection!O118:O120) -> 0 | N28: =SUM(Selection!P118:P120) -> 0 | O28: =SUM(Selection!Q118:Q120) -> 0 | P28: =SUM(Selection!R118:R120) -> 0 | Q28: =SUM(Selection!S118:S120) -> 0 | R28: =SUM(Selection!T118:T120) -> 0 | S28: =SUM(Selection!U118:U120) -> 0 | T28: =SUM(Selection!V118:V120) -> 0 | U28: =SUM(Selection!W118:W120) -> 0 | V28: =SUM(Selection!X118:X120) -> 0 | W28: =SUM(Selection!Y118:Y120) -> 0 | X28: =SUM(Selection!Z118:Z120) -> 0 | Y28: =SUM(Selection!AA118:AA120) -> 2.842170943e-14 | AA28: =B28+(B17*G_A!P$9) -> 0 | AB28: =C28+(C17*G_A!Q$9) -> 0 | AC28: =D28+(D17*G_A!R$9) -> 0 | AD28: =E28+(E17*G_A!S$9) -> 0 | AE28: =F28+(F17*G_A!T$9) -> 0 | AF28: =G28+(G17*G_A!U$9) -> 0 | AG28: =H28+(H17*G_A!V$9) -> 0 | AH28: =I28+(I17*G_A!W$9) -> 0 | AI28: =J28+(J17*G_A!X$9) -> 0 | AJ28: =K28+(K17*G_A!Y$9) -> 32.825 | AK28: =L28+(L17*G_A!Z$9) -> 0 | AL28: =M28+(M17*G_A!AA$9) -> 0 | AM28: =N28+(N17*G_A!AB$9) -> 0 | AN28: =O28+(O17*G_A!AC$9) -> 0 | AO28: =P28+(P17*G_A!AD$9) -> 0 | AP28: =Q28+(Q17*G_A!AE$9) -> 0 | AQ28: =R28+(R17*G_A!AF$9) -> 32.825 | AR28: =S28+(S17*G_A!AG$9) -> 0 | AS28: =T28+(T17*G_A!AH$9) -> 0 | AT28: =U28+(U17*G_A!AI$9) -> 47.76135086 | AU28: =V28+(V17*G_A!AJ$9) -> 32.825 | AV28: =W28+(W17*G_A!AK$9) -> 34.04932953 | AW28: =X28+(X17*G_A!AL$9) -> 0 | AX28: =Y28+(Y17*G_A!AM$9) -> 2.842170943e-14
A29: Wind | B29: =SUM(Selection!D121:D125) -> 0 | C29: =SUM(Selection!E121:E125) -> 100 | D29: =SUM(Selection!F121:F125) -> 0 | E29: =SUM(Selection!G121:G125) -> 100 | F29: =SUM(Selection!H121:H125) -> 0 | G29: =SUM(Selection!I121:I125) -> 200 | H29: =SUM(Selection!J121:J125) -> 0 | I29: =SUM(Selection!K121:K125) -> 0 | J29: =SUM(Selection!L121:L125) -> 0 | K29: =SUM(Selection!M121:M125) -> 0 | L29: =SUM(Selection!N121:N125) -> 0 | M29: =SUM(Selection!O121:O125) -> 0 | N29: =SUM(Selection!P121:P125) -> 0 | O29: =SUM(Selection!Q121:Q125) -> 0 | P29: =SUM(Selection!R121:R125) -> 0 | Q29: =SUM(Selection!S121:S125) -> 0 | R29: =SUM(Selection!T121:T125) -> 0 | S29: =SUM(Selection!U121:U125) -> 0 | T29: =SUM(Selection!V121:V125) -> 0 | U29: =SUM(Selection!W121:W125) -> 0 | V29: =SUM(Selection!X121:X125) -> 0 | W29: =SUM(Selection!Y121:Y125) -> 0 | X29: =SUM(Selection!Z121:Z125) -> 0 | Y29: =SUM(Selection!AA121:AA125) -> 0 | AA29: =B29+(B18*G_A!P$9) -> 0 | AB29: =C29+(C18*G_A!Q$9) -> 100 | AC29: =D29+(D18*G_A!R$9) -> 0 | AD29: =E29+(E18*G_A!S$9) -> 100 | AE29: =F29+(F18*G_A!T$9) -> 0 | AF29: =G29+(G18*G_A!U$9) -> 200 | AG29: =H29+(H18*G_A!V$9) -> 0 | AH29: =I29+(I18*G_A!W$9) -> 0 | AI29: =J29+(J18*G_A!X$9) -> 0 | AJ29: =K29+(K18*G_A!Y$9) -> 0 | AK29: =L29+(L18*G_A!Z$9) -> 0 | AL29: =M29+(M18*G_A!AA$9) -> 0 | AM29: =N29+(N18*G_A!AB$9) -> 0 | AN29: =O29+(O18*G_A!AC$9) -> 0 | AO29: =P29+(P18*G_A!AD$9) -> 0 | AP29: =Q29+(Q18*G_A!AE$9) -> 0 | AQ29: =R29+(R18*G_A!AF$9) -> 0 | AR29: =S29+(S18*G_A!AG$9) -> 0 | AS29: =T29+(T18*G_A!AH$9) -> 0 | AT29: =U29+(U18*G_A!AI$9) -> 0 | AU29: =V29+(V18*G_A!AJ$9) -> 0 | AV29: =W29+(W18*G_A!AK$9) -> 0 | AW29: =X29+(X18*G_A!AL$9) -> 0 | AX29: =Y29+(Y18*G_A!AM$9) -> 0
A30: Storage | B30: =SUM(Selection!D126:D138,Selection!D141) -> 0 | C30: =SUM(Selection!E126:E138,Selection!E141) -> 0 | D30: =SUM(Selection!F126:F138,Selection!F141) -> 0 | E30: =SUM(Selection!G126:G138,Selection!G141) -> 0 | F30: =SUM(Selection!H126:H138,Selection!H141) -> 0 | G30: =SUM(Selection!I126:I138,Selection!I141) -> 0 | H30: =SUM(Selection!J126:J138,Selection!J141) -> 0 | I30: =SUM(Selection!K126:K138,Selection!K141) -> 0 | J30: =SUM(Selection!L126:L138,Selection!L141) -> 0 | K30: =SUM(Selection!M126:M138,Selection!M141) -> 0 | L30: =SUM(Selection!N126:N138,Selection!N141) -> 0 | M30: =SUM(Selection!O126:O138,Selection!O141) -> 0 | N30: =SUM(Selection!P126:P138,Selection!P141) -> 0 | O30: =SUM(Selection!Q126:Q138,Selection!Q141) -> 0 | P30: =SUM(Selection!R126:R138,Selection!R141) -> 0 | Q30: =SUM(Selection!S126:S138,Selection!S141) -> 0 | R30: =SUM(Selection!T126:T138,Selection!T141) -> 0 | S30: =SUM(Selection!U126:U138,Selection!U141) -> 0 | T30: =SUM(Selection!V126:V138,Selection!V141) -> 0 | U30: =SUM(Selection!W126:W138,Selection!W141) -> 0 | V30: =SUM(Selection!X126:X138,Selection!X141) -> 0 | W30: =SUM(Selection!Y126:Y138,Selection!Y141) -> 0 | X30: =SUM(Selection!Z126:Z138,Selection!Z141) -> 11.71110942 | Y30: =SUM(Selection!AA126:AA138,Selection!AA141) -> 12.57046761 | AA30: =B30+(B19*G_A!P$9) -> 0 | AB30: =C30+(C19*G_A!Q$9) -> 0 | AC30: =D30+(D19*G_A!R$9) -> 0 | AD30: =E30+(E19*G_A!S$9) -> 0 | AE30: =F30+(F19*G_A!T$9) -> 0 | AF30: =G30+(G19*G_A!U$9) -> 0 | AG30: =H30+(H19*G_A!V$9) -> 0 | AH30: =I30+(I19*G_A!W$9) -> 0 | AI30: =J30+(J19*G_A!X$9) -> 0 | AJ30: =K30+(K19*G_A!Y$9) -> 0 | AK30: =L30+(L19*G_A!Z$9) -> 0 | AL30: =M30+(M19*G_A!AA$9) -> 0 | AM30: =N30+(N19*G_A!AB$9) -> 0 | AN30: =O30+(O19*G_A!AC$9) -> 0 | AO30: =P30+(P19*G_A!AD$9) -> 0 | AP30: =Q30+(Q19*G_A!AE$9) -> 0 | AQ30: =R30+(R19*G_A!AF$9) -> 0 | AR30: =S30+(S19*G_A!AG$9) -> 0 | AS30: =T30+(T19*G_A!AH$9) -> 0 | AT30: =U30+(U19*G_A!AI$9) -> 0 | AU30: =V30+(V19*G_A!AJ$9) -> 0 | AV30: =W30+(W19*G_A!AK$9) -> 0 | AW30: =X30+(X19*G_A!AL$9) -> 11.71110942 | AX30: =Y30+(Y19*G_A!AM$9) -> 12.57046761
A31: Hydrogen | B31: =SUM(Selection!D139:D140) -> 0 | C31: =SUM(Selection!E139:E140) -> 0 | D31: =SUM(Selection!F139:F140) -> 0 | E31: =SUM(Selection!G139:G140) -> 0 | F31: =SUM(Selection!H139:H140) -> 0 | G31: =SUM(Selection!I139:I140) -> 0 | H31: =SUM(Selection!J139:J140) -> 0 | I31: =SUM(Selection!K139:K140) -> 0 | J31: =SUM(Selection!L139:L140) -> 0 | K31: =SUM(Selection!M139:M140) -> 0 | L31: =SUM(Selection!N139:N140) -> 0 | M31: =SUM(Selection!O139:O140) -> 0 | N31: =SUM(Selection!P139:P140) -> 0 | O31: =SUM(Selection!Q139:Q140) -> 0 | P31: =SUM(Selection!R139:R140) -> 0 | Q31: =SUM(Selection!S139:S140) -> 0 | R31: =SUM(Selection!T139:T140) -> 0 | S31: =SUM(Selection!U139:U140) -> 0 | T31: =SUM(Selection!V139:V140) -> 0 | U31: =SUM(Selection!W139:W140) -> 0 | V31: =SUM(Selection!X139:X140) -> 0 | W31: =SUM(Selection!Y139:Y140) -> 0 | X31: =SUM(Selection!Z139:Z140) -> 0 | Y31: =SUM(Selection!AA139:AA140) -> 0 | AA31: =B31+(B20*G_A!P$9) -> 0 | AB31: =C31+(C20*G_A!Q$9) -> 0 | AC31: =D31+(D20*G_A!R$9) -> 0 | AD31: =E31+(E20*G_A!S$9) -> 0 | AE31: =F31+(F20*G_A!T$9) -> 0 | AF31: =G31+(G20*G_A!U$9) -> 0 | AG31: =H31+(H20*G_A!V$9) -> 0 | AH31: =I31+(I20*G_A!W$9) -> 0 | AI31: =J31+(J20*G_A!X$9) -> 0 | AJ31: =K31+(K20*G_A!Y$9) -> 0 | AK31: =L31+(L20*G_A!Z$9) -> 0 | AL31: =M31+(M20*G_A!AA$9) -> 0 | AM31: =N31+(N20*G_A!AB$9) -> 0 | AN31: =O31+(O20*G_A!AC$9) -> 0 | AO31: =P31+(P20*G_A!AD$9) -> 0 | AP31: =Q31+(Q20*G_A!AE$9) -> 0 | AQ31: =R31+(R20*G_A!AF$9) -> 0 | AR31: =S31+(S20*G_A!AG$9) -> 0 | AS31: =T31+(T20*G_A!AH$9) -> 0 | AT31: =U31+(U20*G_A!AI$9) -> 0 | AU31: =V31+(V20*G_A!AJ$9) -> 0 | AV31: =W31+(W20*G_A!AK$9) -> 0 | AW31: =X31+(X20*G_A!AL$9) -> 0 | AX31: =Y31+(Y20*G_A!AM$9) -> 0
A32: Other- (Clean Capacity) | B32: =SUM(Selection!D142:D144) -> 0 | C32: =SUM(Selection!E142:E144) -> 0 | D32: =SUM(Selection!F142:F144) -> 0 | E32: =SUM(Selection!G142:G144) -> 0 | F32: =SUM(Selection!H142:H144) -> 0 | G32: =SUM(Selection!I142:I144) -> 0 | H32: =SUM(Selection!J142:J144) -> 0 | I32: =SUM(Selection!K142:K144) -> 0 | J32: =SUM(Selection!L142:L144) -> 0 | K32: =SUM(Selection!M142:M144) -> 0 | L32: =SUM(Selection!N142:N144) -> 0 | M32: =SUM(Selection!O142:O144) -> 0 | N32: =SUM(Selection!P142:P144) -> 0 | O32: =SUM(Selection!Q142:Q144) -> 0 | P32: =SUM(Selection!R142:R144) -> 0 | Q32: =SUM(Selection!S142:S144) -> 0 | R32: =SUM(Selection!T142:T144) -> 0 | S32: =SUM(Selection!U142:U144) -> 0 | T32: =SUM(Selection!V142:V144) -> 0 | U32: =SUM(Selection!W142:W144) -> 0 | V32: =SUM(Selection!X142:X144) -> 0 | W32: =SUM(Selection!Y142:Y144) -> 0 | X32: =SUM(Selection!Z142:Z144) -> 0 | Y32: =SUM(Selection!AA142:AA144) -> 0 | AA32: =B32+(B21*G_A!P$9) -> 0 | AB32: =C32+(C21*G_A!Q$9) -> 0 | AC32: =D32+(D21*G_A!R$9) -> 0 | AD32: =E32+(E21*G_A!S$9) -> 0 | AE32: =F32+(F21*G_A!T$9) -> 0 | AF32: =G32+(G21*G_A!U$9) -> 0 | AG32: =H32+(H21*G_A!V$9) -> 0 | AH32: =I32+(I21*G_A!W$9) -> 0 | AI32: =J32+(J21*G_A!X$9) -> 0 | AJ32: =K32+(K21*G_A!Y$9) -> 0 | AK32: =L32+(L21*G_A!Z$9) -> 0 | AL32: =M32+(M21*G_A!AA$9) -> 0 | AM32: =N32+(N21*G_A!AB$9) -> 0 | AN32: =O32+(O21*G_A!AC$9) -> 0 | AO32: =P32+(P21*G_A!AD$9) -> 0 | AP32: =Q32+(Q21*G_A!AE$9) -> 0 | AQ32: =R32+(R21*G_A!AF$9) -> 0 | AR32: =S32+(S21*G_A!AG$9) -> 0 | AS32: =T32+(T21*G_A!AH$9) -> 0 | AT32: =U32+(U21*G_A!AI$9) -> 13.13 | AU32: =V32+(V21*G_A!AJ$9) -> 0 | AV32: =W32+(W21*G_A!AK$9) -> 0 | AW32: =X32+(X21*G_A!AL$9) -> 0 | AX32: =Y32+(Y21*G_A!AM$9) -> 0
A33: Thermal Upgrade | B33: =SUM(Selection!D$145:D$148) -> 0 | C33: =SUM(Selection!E$145:E$148) -> 0 | D33: =SUM(Selection!F$145:F$148) -> 0 | E33: =SUM(Selection!G$145:G$148) -> 0 | F33: =SUM(Selection!H$145:H$148) -> 0 | G33: =SUM(Selection!I$145:I$148) -> 0 | H33: =SUM(Selection!J$145:J$148) -> 0 | I33: =SUM(Selection!K$145:K$148) -> 0 | J33: =SUM(Selection!L$145:L$148) -> 0 | K33: =SUM(Selection!M$145:M$148) -> 0 | L33: =SUM(Selection!N$145:N$148) -> 0 | M33: =SUM(Selection!O$145:O$148) -> 0 | N33: =SUM(Selection!P$145:P$148) -> 0 | O33: =SUM(Selection!Q$145:Q$148) -> 0 | P33: =SUM(Selection!R$145:R$148) -> 0 | Q33: =SUM(Selection!S$145:S$148) -> 0 | R33: =SUM(Selection!T$145:T$148) -> 0 | S33: =SUM(Selection!U$145:U$148) -> 0 | T33: =SUM(Selection!V$145:V$148) -> 0 | U33: =SUM(Selection!W$145:W$148) -> 0 | V33: =SUM(Selection!X$145:X$148) -> 0 | W33: =SUM(Selection!Y$145:Y$148) -> 0 | X33: =SUM(Selection!Z$145:Z$148) -> 0 | Y33: =SUM(Selection!AA$145:AA$148) -> 0 | AA33: =B33+(B22*G_A!P$9) -> 0 | AB33: =C33+(C22*G_A!Q$9) -> 0 | AC33: =D33+(D22*G_A!R$9) -> 0 | AD33: =E33+(E22*G_A!S$9) -> 0 | AE33: =F33+(F22*G_A!T$9) -> 7.878 | AF33: =G33+(G22*G_A!U$9) -> 0 | AG33: =H33+(H22*G_A!V$9) -> 0 | AH33: =I33+(I22*G_A!W$9) -> 0 | AI33: =J33+(J22*G_A!X$9) -> 0 | AJ33: =K33+(K22*G_A!Y$9) -> 0 | AK33: =L33+(L22*G_A!Z$9) -> 0 | AL33: =M33+(M22*G_A!AA$9) -> 0 | AM33: =N33+(N22*G_A!AB$9) -> 0 | AN33: =O33+(O22*G_A!AC$9) -> 3.2825 | AO33: =P33+(P22*G_A!AD$9) -> 0 | AP33: =Q33+(Q22*G_A!AE$9) -> 0 | AQ33: =R33+(R22*G_A!AF$9) -> 0 | AR33: =S33+(S22*G_A!AG$9) -> 0 | AS33: =T33+(T22*G_A!AH$9) -> 0 | AT33: =U33+(U22*G_A!AI$9) -> 0 | AU33: =V33+(V22*G_A!AJ$9) -> 0 | AV33: =W33+(W22*G_A!AK$9) -> 0 | AW33: =X33+(X22*G_A!AL$9) -> 0 | AX33: =Y33+(Y22*G_A!AM$9) -> 0
A34: Hydro | B34: =SUM(Selection!D149:D151) -> 0 | C34: =SUM(Selection!E149:E151) -> 0 | D34: =SUM(Selection!F149:F151) -> 0 | E34: =SUM(Selection!G149:G151) -> 0 | F34: =SUM(Selection!H149:H151) -> 0 | G34: =SUM(Selection!I149:I151) -> 0 | H34: =SUM(Selection!J149:J151) -> 0 | I34: =SUM(Selection!K149:K151) -> 0 | J34: =SUM(Selection!L149:L151) -> 0 | K34: =SUM(Selection!M149:M151) -> 75 | L34: =SUM(Selection!N149:N151) -> 0 | M34: =SUM(Selection!O149:O151) -> 0 | N34: =SUM(Selection!P149:P151) -> 0 | O34: =SUM(Selection!Q149:Q151) -> 0 | P34: =SUM(Selection!R149:R151) -> 0 | Q34: =SUM(Selection!S149:S151) -> 0 | R34: =SUM(Selection!T149:T151) -> 0 | S34: =SUM(Selection!U149:U151) -> 0 | T34: =SUM(Selection!V149:V151) -> 0 | U34: =SUM(Selection!W149:W151) -> 0 | V34: =SUM(Selection!X149:X151) -> 0 | W34: =SUM(Selection!Y149:Y151) -> 0 | X34: =SUM(Selection!Z149:Z151) -> 0 | Y34: =SUM(Selection!AA149:AA151) -> 0 | AA34: =B34+(B23*G_A!P$9) -> 0 | AB34: =C34+(C23*G_A!Q$9) -> 0 | AC34: =D34+(D23*G_A!R$9) -> 0 | AD34: =E34+(E23*G_A!S$9) -> 0 | AE34: =F34+(F23*G_A!T$9) -> 0 | AF34: =G34+(G23*G_A!U$9) -> 0 | AG34: =H34+(H23*G_A!V$9) -> 0 | AH34: =I34+(I23*G_A!W$9) -> 0 | AI34: =J34+(J23*G_A!X$9) -> 0 | AJ34: =K34+(K23*G_A!Y$9) -> 75 | AK34: =L34+(L23*G_A!Z$9) -> 0 | AL34: =M34+(M23*G_A!AA$9) -> 0 | AM34: =N34+(N23*G_A!AB$9) -> 0 | AN34: =O34+(O23*G_A!AC$9) -> 0 | AO34: =P34+(P23*G_A!AD$9) -> 0 | AP34: =Q34+(Q23*G_A!AE$9) -> 0 | AQ34: =R34+(R23*G_A!AF$9) -> 0 | AR34: =S34+(S23*G_A!AG$9) -> 0 | AS34: =T34+(T23*G_A!AH$9) -> 0 | AT34: =U34+(U23*G_A!AI$9) -> 0 | AU34: =V34+(V23*G_A!AJ$9) -> 0 | AV34: =W34+(W23*G_A!AK$9) -> 0 | AW34: =X34+(X23*G_A!AL$9) -> 0 | AX34: =Y34+(Y23*G_A!AM$9) -> 0
A35: DR Capability | B35: =SUM(Selection!D233:D248) -> 0 | C35: =SUM(Selection!E233:E248) -> 0 | D35: =SUM(Selection!F233:F248) -> 0 | E35: =SUM(Selection!G233:G248) -> 0 | F35: =SUM(Selection!H233:H248) -> 0.2892 | G35: =SUM(Selection!I233:I248) -> 26.9555 | H35: =SUM(Selection!J233:J248) -> 30.1339 | I35: =SUM(Selection!K233:K248) -> 35.8224 | J35: =SUM(Selection!L233:L248) -> 38.5156 | K35: =SUM(Selection!M233:M248) -> 41.3894 | L35: =SUM(Selection!N233:N248) -> 45.4165 | M35: =SUM(Selection!O233:O248) -> 49.4349 | N35: =SUM(Selection!P233:P248) -> 54.875 | O35: =SUM(Selection!Q233:Q248) -> 56.9048 | P35: =SUM(Selection!R233:R248) -> 56.7431 | Q35: =SUM(Selection!S233:S248) -> 56.6955 | R35: =SUM(Selection!T233:T248) -> 56.5788 | S35: =SUM(Selection!U233:U248) -> 56.4621 | T35: =SUM(Selection!V233:V248) -> 56.3454 | U35: =SUM(Selection!W233:W248) -> 56.159 | V35: =SUM(Selection!X233:X248) -> 56.0423 | W35: =SUM(Selection!Y233:Y248) -> 55.9256 | X35: =SUM(Selection!Z233:Z248) -> 55.7163 | Y35: =SUM(Selection!AA233:AA248) -> 55.59955 | AA35: =B35 -> 0 | AB35: =C35 -> 0 | AC35: 0 | AD35: 0 | AE35: 0.2892 | AF35: 26.9555 | AG35: 30.1339 | AH35: 35.8224 | AI35: 38.5156 | AJ35: 41.3894 | AK35: 45.4165 | AL35: 49.4349 | AM35: 54.875 | AN35: 56.9048 | AO35: 56.7431 | AP35: 56.6955 | AQ35: 56.5788 | AR35: 56.4621 | AS35: 56.3454 | AT35: 56.159 | AU35: 56.0423 | AV35: 55.9256 | AW35: 55.7163 | AX35: 55.59955
A36: EE- Winter Capacity | B36: =EE_Selection!EK4 -> 3.473981548 | C36: =EE_Selection!EL4-SUM($B36:B36) -> 4.283889369 | D36: =EE_Selection!EM4-SUM($B36:C36) -> 4.987330719 | E36: =EE_Selection!EN4-SUM($B36:D36) -> 5.875954379 | F36: =EE_Selection!EO4-SUM($B36:E36) -> 6.862873484 | G36: =EE_Selection!EP4-SUM($B36:F36) -> 7.592035046 | H36: =EE_Selection!EQ4-SUM($B36:G36) -> 7.985576542 | I36: =EE_Selection!ER4-SUM($B36:H36) -> 7.863354892 | J36: =EE_Selection!ES4-SUM($B36:I36) -> 7.393814681 | K36: =EE_Selection!ET4-SUM($B36:J36) -> 6.569035078 | L36: =EE_Selection!EU4-SUM($B36:K36) -> 5.5250907 | M36: =EE_Selection!EV4-SUM($B36:L36) -> 4.568643796 | N36: =EE_Selection!EW4-SUM($B36:M36) -> 3.753675231 | O36: =EE_Selection!EX4-SUM($B36:N36) -> 3.062681524 | P36: =EE_Selection!EY4-SUM($B36:O36) -> 2.472441756 | Q36: =EE_Selection!EZ4-SUM($B36:P36) -> 1.966563442 | R36: =EE_Selection!FA4-SUM($B36:Q36) -> 1.734345113 | S36: =EE_Selection!FB4-SUM($B36:R36) -> 1.443922704 | T36: =EE_Selection!FC4-SUM($B36:S36) -> 1.244734236 | U36: =EE_Selection!FD4-SUM($B36:T36) -> 0.7073480639 | V36: =EE_Selection!FE4-SUM($B36:U36) -> 0.5342533974 | W36: =EE_Selection!FF4-SUM($B36:V36) -> 0.0898475017 | X36: =EE_Selection!FG4-SUM($B36:W36) -> -0.1810733033 | Y36: =EE_Selection!FH4-SUM($B36:X36) -> -0.315454912 | AA36: =B36 -> 3.473981548 | AB36: 4.283889369 | AC36: 4.987330719 | AD36: 5.875954379 | AE36: 6.862873484 | AF36: 7.592035046 | AG36: 7.985576542 | AH36: 7.863354892 | AI36: 7.393814681 | AJ36: 6.569035078 | AK36: 5.5250907 | AL36: 4.568643796 | AM36: 3.753675231 | AN36: 3.062681524 | AO36: 2.472441756 | AP36: 1.966563442 | AQ36: 1.734345113 | AR36: 1.443922704 | AS36: 1.244734236 | AT36: 0.7073480639 | AU36: 0.5342533974 | AV36: 0.0898475017 | AW36: -0.1810733033 | AX36: -0.315454912
A37: EE- Summer Capacity | B37: =EE_Selection!DL4 -> 4.626216252 | C37: =EE_Selection!DM4-SUM($B37:B37) -> 5.413024935 | D37: =EE_Selection!DN4-SUM($B37:C37) -> 6.078253084 | E37: =EE_Selection!DO4-SUM($B37:D37) -> 7.147198744 | F37: =EE_Selection!DP4-SUM($B37:E37) -> 7.699353347 | G37: =EE_Selection!DQ4-SUM($B37:F37) -> 8.274914349 | H37: =EE_Selection!DR4-SUM($B37:G37) -> 8.561633713 | I37: =EE_Selection!DS4-SUM($B37:H37) -> 8.373498481 | J37: =EE_Selection!DT4-SUM($B37:I37) -> 8.334457226 | K37: =EE_Selection!DU4-SUM($B37:J37) -> 6.992430023 | L37: =EE_Selection!DV4-SUM($B37:K37) -> 5.883573703 | M37: =EE_Selection!DW4-SUM($B37:L37) -> 4.893769479 | N37: =EE_Selection!DX4-SUM($B37:M37) -> 4.061026735 | O37: =EE_Selection!DY4-SUM($B37:N37) -> 3.388116847 | P37: =EE_Selection!DZ4-SUM($B37:O37) -> 2.841041829 | Q37: =EE_Selection!EA4-SUM($B37:P37) -> 2.175411684 | R37: =EE_Selection!EB4-SUM($B37:Q37) -> 1.966690636 | S37: =EE_Selection!EC4-SUM($B37:R37) -> 1.697293632 | T37: =EE_Selection!ED4-SUM($B37:S37) -> 1.565189477 | U37: =EE_Selection!EE4-SUM($B37:T37) -> 0.4738361237 | V37: =EE_Selection!EF4-SUM($B37:U37) -> 0.2137607508 | W37: =EE_Selection!EG4-SUM($B37:V37) -> -0.1283869281 | X37: =EE_Selection!EH4-SUM($B37:W37) -> -0.280350757 | Y37: =EE_Selection!EI4-SUM($B37:X37) -> -0.2926352602 | AA37: =B37 -> 4.626216252 | AB37: 5.413024935 | AC37: 6.078253084 | AD37: 7.147198744 | AE37: 7.699353347 | AF37: 8.274914349 | AG37: 8.561633713 | AH37: 8.373498481 | AI37: 8.334457226 | AJ37: 6.992430023 | AK37: 5.883573703 | AL37: 4.893769479 | AM37: 4.061026735 | AN37: 3.388116847 | AO37: 2.841041829 | AP37: 2.175411684 | AQ37: 1.966690636 | AR37: 1.697293632 | AS37: 1.565189477 | AT37: 0.4738361237 | AU37: 0.2137607508 | AV37: -0.1283869281 | AW37: -0.280350757 | AX37: -0.2926352602
A39: Idaho
A40: NG CT | B40: =SUM(Selection!AC97:AC114) -> 0 | C40: =SUM(Selection!AD97:AD114) -> 0 | D40: =SUM(Selection!AE97:AE114) -> 0 | E40: =SUM(Selection!AF97:AF114) -> 0 | F40: =SUM(Selection!AG97:AG114) -> 0 | G40: =SUM(Selection!AH97:AH114) -> 111.1483761 | H40: =SUM(Selection!AI97:AI114) -> 0 | I40: =SUM(Selection!AJ97:AJ114) -> 0 | J40: =SUM(Selection!AK97:AK114) -> 0 | K40: =SUM(Selection!AL97:AL114) -> 0 | L40: =SUM(Selection!AM97:AM114) -> 0 | M40: =SUM(Selection!AN97:AN114) -> 0 | N40: =SUM(Selection!AO97:AO114) -> 0 | O40: =SUM(Selection!AP97:AP114) -> 0 | P40: =SUM(Selection!AQ97:AQ114) -> 0 | Q40: =SUM(Selection!AR97:AR114) -> 0 | R40: =SUM(Selection!AS97:AS114) -> 0 | S40: =SUM(Selection!AT97:AT114) -> 0 | T40: =SUM(Selection!AU97:AU114) -> 0 | U40: =SUM(Selection!AV97:AV114) -> 0 | V40: =SUM(Selection!AW97:AW114) -> 0 | W40: =SUM(Selection!AX97:AX114) -> 36.4 | X40: =SUM(Selection!AY97:AY114) -> 0 | Y40: =SUM(Selection!AZ97:AZ114) -> 0 | AA40: =B40+(B15*(1-G_A!P$9)) -> 0 | AB40: =C40+(C15*(1-G_A!Q$9)) -> 0 | AC40: =D40+(D15*(1-G_A!R$9)) -> 0 | AD40: =E40+(E15*(1-G_A!S$9)) -> 0 | AE40: =F40+(F15*(1-G_A!T$9)) -> 0 | AF40: =G40+(G15*(1-G_A!U$9)) -> 111.1483761 | AG40: =H40+(H15*(1-G_A!V$9)) -> 0 | AH40: =I40+(I15*(1-G_A!W$9)) -> 0 | AI40: =J40+(J15*(1-G_A!X$9)) -> 0 | AJ40: =K40+(K15*(1-G_A!Y$9)) -> 0 | AK40: =L40+(L15*(1-G_A!Z$9)) -> 0 | AL40: =M40+(M15*(1-G_A!AA$9)) -> 0 | AM40: =N40+(N15*(1-G_A!AB$9)) -> 0 | AN40: =O40+(O15*(1-G_A!AC$9)) -> 0 | AO40: =P40+(P15*(1-G_A!AD$9)) -> 28.854 | AP40: =Q40+(Q15*(1-G_A!AE$9)) -> 0 | AQ40: =R40+(R15*(1-G_A!AF$9)) -> 0 | AR40: =S40+(S15*(1-G_A!AG$9)) -> 0 | AS40: =T40+(T15*(1-G_A!AH$9)) -> 0 | AT40: =U40+(U15*(1-G_A!AI$9)) -> 0 | AU40: =V40+(V15*(1-G_A!AJ$9)) -> 0 | AV40: =W40+(W15*(1-G_A!AK$9)) -> 36.4 | AW40: =X40+(X15*(1-G_A!AL$9)) -> 0 | AX40: =Y40+(Y15*(1-G_A!AM$9)) -> 0
A41: Solar | B41: =SUM(Selection!AC115:AC117) -> 0 | C41: =SUM(Selection!AD115:AD117) -> 0 | D41: =SUM(Selection!AE115:AE117) -> 0 | E41: =SUM(Selection!AF115:AF117) -> 0 | F41: =SUM(Selection!AG115:AG117) -> 100.0854124 | G41: =SUM(Selection!AH115:AH117) -> 100 | H41: =SUM(Selection!AI115:AI117) -> 0 | I41: =SUM(Selection!AJ115:AJ117) -> 0 | J41: =SUM(Selection!AK115:AK117) -> 0 | K41: =SUM(Selection!AL115:AL117) -> 0 | L41: =SUM(Selection!AM115:AM117) -> 0 | M41: =SUM(Selection!AN115:AN117) -> 0 | N41: =SUM(Selection!AO115:AO117) -> 0 | O41: =SUM(Selection!AP115:AP117) -> 0 | P41: =SUM(Selection!AQ115:AQ117) -> 0 | Q41: =SUM(Selection!AR115:AR117) -> 0 | R41: =SUM(Selection!AS115:AS117) -> 0 | S41: =SUM(Selection!AT115:AT117) -> 0 | T41: =SUM(Selection!AU115:AU117) -> 0 | U41: =SUM(Selection!AV115:AV117) -> 0 | V41: =SUM(Selection!AW115:AW117) -> 0 | W41: =SUM(Selection!AX115:AX117) -> 0 | X41: =SUM(Selection!AY115:AY117) -> 0 | Y41: =SUM(Selection!AZ115:AZ117) -> 0 | AA41: =B41+(B16*(1-G_A!P$9)) -> 0 | AB41: =C41+(C16*(1-G_A!Q$9)) -> 0 | AC41: =D41+(D16*(1-G_A!R$9)) -> 0 | AD41: =E41+(E16*(1-G_A!S$9)) -> 0 | AE41: =F41+(F16*(1-G_A!T$9)) -> 100.0854124 | AF41: =G41+(G16*(1-G_A!U$9)) -> 100 | AG41: =H41+(H16*(1-G_A!V$9)) -> 0 | AH41: =I41+(I16*(1-G_A!W$9)) -> 0 | AI41: =J41+(J16*(1-G_A!X$9)) -> 0 | AJ41: =K41+(K16*(1-G_A!Y$9)) -> 34.35 | AK41: =L41+(L16*(1-G_A!Z$9)) -> 0 | AL41: =M41+(M16*(1-G_A!AA$9)) -> 0 | AM41: =N41+(N16*(1-G_A!AB$9)) -> 0 | AN41: =O41+(O16*(1-G_A!AC$9)) -> 0 | AO41: =P41+(P16*(1-G_A!AD$9)) -> 0 | AP41: =Q41+(Q16*(1-G_A!AE$9)) -> 0 | AQ41: =R41+(R16*(1-G_A!AF$9)) -> 34.35 | AR41: =S41+(S16*(1-G_A!AG$9)) -> 0 | AS41: =T41+(T16*(1-G_A!AH$9)) -> 0 | AT41: =U41+(U16*(1-G_A!AI$9)) -> 49.98027119 | AU41: =V41+(V16*(1-G_A!AJ$9)) -> 34.35 | AV41: =W41+(W16*(1-G_A!AK$9)) -> 35.63121003 | AW41: =X41+(X16*(1-G_A!AL$9)) -> 0 | AX41: =Y41+(Y16*(1-G_A!AM$9)) -> 0
A42: Storage Added to Solar | B42: =SUM(Selection!AC118:AC120) -> 0 | C42: =SUM(Selection!AD118:AD120) -> 0 | D42: =SUM(Selection!AE118:AE120) -> 0 | E42: =SUM(Selection!AF118:AF120) -> 0 | F42: =SUM(Selection!AG118:AG120) -> 0 | G42: =SUM(Selection!AH118:AH120) -> 0 | H42: =SUM(Selection!AI118:AI120) -> 0 | I42: =SUM(Selection!AJ118:AJ120) -> 0 | J42: =SUM(Selection!AK118:AK120) -> 0 | K42: =SUM(Selection!AL118:AL120) -> 0 | L42: =SUM(Selection!AM118:AM120) -> 0 | M42: =SUM(Selection!AN118:AN120) -> 0 | N42: =SUM(Selection!AO118:AO120) -> 0 | O42: =SUM(Selection!AP118:AP120) -> 0 | P42: =SUM(Selection!AQ118:AQ120) -> 0 | Q42: =SUM(Selection!AR118:AR120) -> 0 | R42: =SUM(Selection!AS118:AS120) -> 0 | S42: =SUM(Selection!AT118:AT120) -> 0 | T42: =SUM(Selection!AU118:AU120) -> 0 | U42: =SUM(Selection!AV118:AV120) -> 0 | V42: =SUM(Selection!AW118:AW120) -> 0 | W42: =SUM(Selection!AX118:AX120) -> 0 | X42: =SUM(Selection!AY118:AY120) -> 0 | Y42: =SUM(Selection!AZ118:AZ120) -> 0 | AA42: =B42+(B17*(1-G_A!P$9)) -> 0 | AB42: =C42+(C17*(1-G_A!Q$9)) -> 0 | AC42: =D42+(D17*(1-G_A!R$9)) -> 0 | AD42: =E42+(E17*(1-G_A!S$9)) -> 0 | AE42: =F42+(F17*(1-G_A!T$9)) -> 0 | AF42: =G42+(G17*(1-G_A!U$9)) -> 0 | AG42: =H42+(H17*(1-G_A!V$9)) -> 0 | AH42: =I42+(I17*(1-G_A!W$9)) -> 0 | AI42: =J42+(J17*(1-G_A!X$9)) -> 0 | AJ42: =K42+(K17*(1-G_A!Y$9)) -> 17.175 | AK42: =L42+(L17*(1-G_A!Z$9)) -> 0 | AL42: =M42+(M17*(1-G_A!AA$9)) -> 0 | AM42: =N42+(N17*(1-G_A!AB$9)) -> 0 | AN42: =O42+(O17*(1-G_A!AC$9)) -> 0 | AO42: =P42+(P17*(1-G_A!AD$9)) -> 0 | AP42: =Q42+(Q17*(1-G_A!AE$9)) -> 0 | AQ42: =R42+(R17*(1-G_A!AF$9)) -> 17.175 | AR42: =S42+(S17*(1-G_A!AG$9)) -> 0 | AS42: =T42+(T17*(1-G_A!AH$9)) -> 0 | AT42: =U42+(U17*(1-G_A!AI$9)) -> 24.9901356 | AU42: =V42+(V17*(1-G_A!AJ$9)) -> 17.175 | AV42: =W42+(W17*(1-G_A!AK$9)) -> 17.81560502 | AW42: =X42+(X17*(1-G_A!AL$9)) -> 0 | AX42: =Y42+(Y17*(1-G_A!AM$9)) -> 0
A43: Wind | B43: =SUM(Selection!AC121:AC125) -> 0 | C43: =SUM(Selection!AD121:AD125) -> 193.85252 | D43: =SUM(Selection!AE121:AE125) -> 0 | E43: =SUM(Selection!AF121:AF125) -> 0 | F43: =SUM(Selection!AG121:AG125) -> 0 | G43: =SUM(Selection!AH121:AH125) -> 0 | H43: =SUM(Selection!AI121:AI125) -> 0 | I43: =SUM(Selection!AJ121:AJ125) -> 0 | J43: =SUM(Selection!AK121:AK125) -> 0 | K43: =SUM(Selection!AL121:AL125) -> 0 | L43: =SUM(Selection!AM121:AM125) -> 0 | M43: =SUM(Selection!AN121:AN125) -> 0 | N43: =SUM(Selection!AO121:AO125) -> 0 | O43: =SUM(Selection!AP121:AP125) -> 0 | P43: =SUM(Selection!AQ121:AQ125) -> 0 | Q43: =SUM(Selection!AR121:AR125) -> 0 | R43: =SUM(Selection!AS121:AS125) -> 0 | S43: =SUM(Selection!AT121:AT125) -> 0 | T43: =SUM(Selection!AU121:AU125) -> 0 | U43: =SUM(Selection!AV121:AV125) -> 0 | V43: =SUM(Selection!AW121:AW125) -> 0 | W43: =SUM(Selection!AX121:AX125) -> 0 | X43: =SUM(Selection!AY121:AY125) -> 0 | Y43: =SUM(Selection!AZ121:AZ125) -> 0 | AA43: =B43+(B18*(1-G_A!P$9)) -> 0 | AB43: =C43+(C18*(1-G_A!Q$9)) -> 193.85252 | AC43: =D43+(D18*(1-G_A!R$9)) -> 0 | AD43: =E43+(E18*(1-G_A!S$9)) -> 0 | AE43: =F43+(F18*(1-G_A!T$9)) -> 0 | AF43: =G43+(G18*(1-G_A!U$9)) -> 0 | AG43: =H43+(H18*(1-G_A!V$9)) -> 0 | AH43: =I43+(I18*(1-G_A!W$9)) -> 0 | AI43: =J43+(J18*(1-G_A!X$9)) -> 0 | AJ43: =K43+(K18*(1-G_A!Y$9)) -> 0 | AK43: =L43+(L18*(1-G_A!Z$9)) -> 0 | AL43: =M43+(M18*(1-G_A!AA$9)) -> 0 | AM43: =N43+(N18*(1-G_A!AB$9)) -> 0 | AN43: =O43+(O18*(1-G_A!AC$9)) -> 0 | AO43: =P43+(P18*(1-G_A!AD$9)) -> 0 | AP43: =Q43+(Q18*(1-G_A!AE$9)) -> 0 | AQ43: =R43+(R18*(1-G_A!AF$9)) -> 0 | AR43: =S43+(S18*(1-G_A!AG$9)) -> 0 | AS43: =T43+(T18*(1-G_A!AH$9)) -> 0 | AT43: =U43+(U18*(1-G_A!AI$9)) -> 0 | AU43: =V43+(V18*(1-G_A!AJ$9)) -> 0 | AV43: =W43+(W18*(1-G_A!AK$9)) -> 0 | AW43: =X43+(X18*(1-G_A!AL$9)) -> 0 | AX43: =Y43+(Y18*(1-G_A!AM$9)) -> 0
A44: Storage | B44: =SUM(Selection!AC126:AC138,Selection!AC141) -> 0 | C44: =SUM(Selection!AD126:AD138,Selection!AD141) -> 0 | D44: =SUM(Selection!AE126:AE138,Selection!AE141) -> 0 | E44: =SUM(Selection!AF126:AF138,Selection!AF141) -> 0 | F44: =SUM(Selection!AG126:AG138,Selection!AG141) -> 0 | G44: =SUM(Selection!AH126:AH138,Selection!AH141) -> 0 | H44: =SUM(Selection!AI126:AI138,Selection!AI141) -> 0 | I44: =SUM(Selection!AJ126:AJ138,Selection!AJ141) -> 0 | J44: =SUM(Selection!AK126:AK138,Selection!AK141) -> 0 | K44: =SUM(Selection!AL126:AL138,Selection!AL141) -> 0 | L44: =SUM(Selection!AM126:AM138,Selection!AM141) -> 0 | M44: =SUM(Selection!AN126:AN138,Selection!AN141) -> 0 | N44: =SUM(Selection!AO126:AO138,Selection!AO141) -> 0 | O44: =SUM(Selection!AP126:AP138,Selection!AP141) -> 0 | P44: =SUM(Selection!AQ126:AQ138,Selection!AQ141) -> 0 | Q44: =SUM(Selection!AR126:AR138,Selection!AR141) -> 0 | R44: =SUM(Selection!AS126:AS138,Selection!AS141) -> 0 | S44: =SUM(Selection!AT126:AT138,Selection!AT141) -> 0 | T44: =SUM(Selection!AU126:AU138,Selection!AU141) -> 0 | U44: =SUM(Selection!AV126:AV138,Selection!AV141) -> 0 | V44: =SUM(Selection!AW126:AW138,Selection!AW141) -> 0 | W44: =SUM(Selection!AX126:AX138,Selection!AX141) -> 0 | X44: =SUM(Selection!AY126:AY138,Selection!AY141) -> 0 | Y44: =SUM(Selection!AZ126:AZ138,Selection!AZ141) -> 0 | AA44: =B44+(B19*(1-G_A!P$9)) -> 0 | AB44: =C44+(C19*(1-G_A!Q$9)) -> 0 | AC44: =D44+(D19*(1-G_A!R$9)) -> 0 | AD44: =E44+(E19*(1-G_A!S$9)) -> 0 | AE44: =F44+(F19*(1-G_A!T$9)) -> 0 | AF44: =G44+(G19*(1-G_A!U$9)) -> 0 | AG44: =H44+(H19*(1-G_A!V$9)) -> 0 | AH44: =I44+(I19*(1-G_A!W$9)) -> 0 | AI44: =J44+(J19*(1-G_A!X$9)) -> 0 | AJ44: =K44+(K19*(1-G_A!Y$9)) -> 0 | AK44: =L44+(L19*(1-G_A!Z$9)) -> 0 | AL44: =M44+(M19*(1-G_A!AA$9)) -> 0 | AM44: =N44+(N19*(1-G_A!AB$9)) -> 0 | AN44: =O44+(O19*(1-G_A!AC$9)) -> 0 | AO44: =P44+(P19*(1-G_A!AD$9)) -> 0 | AP44: =Q44+(Q19*(1-G_A!AE$9)) -> 0 | AQ44: =R44+(R19*(1-G_A!AF$9)) -> 0 | AR44: =S44+(S19*(1-G_A!AG$9)) -> 0 | AS44: =T44+(T19*(1-G_A!AH$9)) -> 0 | AT44: =U44+(U19*(1-G_A!AI$9)) -> 0 | AU44: =V44+(V19*(1-G_A!AJ$9)) -> 0 | AV44: =W44+(W19*(1-G_A!AK$9)) -> 0 | AW44: =X44+(X19*(1-G_A!AL$9)) -> 0 | AX44: =Y44+(Y19*(1-G_A!AM$9)) -> 0
A45: Hydrogen | B45: =SUM(Selection!AC139:AC140) -> 0 | C45: =SUM(Selection!AD139:AD140) -> 0 | D45: =SUM(Selection!AE139:AE140) -> 0 | E45: =SUM(Selection!AF139:AF140) -> 0 | F45: =SUM(Selection!AG139:AG140) -> 0 | G45: =SUM(Selection!AH139:AH140) -> 0 | H45: =SUM(Selection!AI139:AI140) -> 0 | I45: =SUM(Selection!AJ139:AJ140) -> 0 | J45: =SUM(Selection!AK139:AK140) -> 0 | K45: =SUM(Selection!AL139:AL140) -> 0 | L45: =SUM(Selection!AM139:AM140) -> 0 | M45: =SUM(Selection!AN139:AN140) -> 0 | N45: =SUM(Selection!AO139:AO140) -> 0 | O45: =SUM(Selection!AP139:AP140) -> 0 | P45: =SUM(Selection!AQ139:AQ140) -> 0 | Q45: =SUM(Selection!AR139:AR140) -> 0 | R45: =SUM(Selection!AS139:AS140) -> 0 | S45: =SUM(Selection!AT139:AT140) -> 0 | T45: =SUM(Selection!AU139:AU140) -> 0 | U45: =SUM(Selection!AV139:AV140) -> 0 | V45: =SUM(Selection!AW139:AW140) -> 0 | W45: =SUM(Selection!AX139:AX140) -> 0 | X45: =SUM(Selection!AY139:AY140) -> 0 | Y45: =SUM(Selection!AZ139:AZ140) -> 0 | AA45: =B45+(B20*(1-G_A!P$9)) -> 0 | AB45: =C45+(C20*(1-G_A!Q$9)) -> 0 | AC45: =D45+(D20*(1-G_A!R$9)) -> 0 | AD45: =E45+(E20*(1-G_A!S$9)) -> 0 | AE45: =F45+(F20*(1-G_A!T$9)) -> 0 | AF45: =G45+(G20*(1-G_A!U$9)) -> 0 | AG45: =H45+(H20*(1-G_A!V$9)) -> 0 | AH45: =I45+(I20*(1-G_A!W$9)) -> 0 | AI45: =J45+(J20*(1-G_A!X$9)) -> 0 | AJ45: =K45+(K20*(1-G_A!Y$9)) -> 0 | AK45: =L45+(L20*(1-G_A!Z$9)) -> 0 | AL45: =M45+(M20*(1-G_A!AA$9)) -> 0 | AM45: =N45+(N20*(1-G_A!AB$9)) -> 0 | AN45: =O45+(O20*(1-G_A!AC$9)) -> 0 | AO45: =P45+(P20*(1-G_A!AD$9)) -> 0 | AP45: =Q45+(Q20*(1-G_A!AE$9)) -> 0 | AQ45: =R45+(R20*(1-G_A!AF$9)) -> 0 | AR45: =S45+(S20*(1-G_A!AG$9)) -> 0 | AS45: =T45+(T20*(1-G_A!AH$9)) -> 0 | AT45: =U45+(U20*(1-G_A!AI$9)) -> 0 | AU45: =V45+(V20*(1-G_A!AJ$9)) -> 0 | AV45: =W45+(W20*(1-G_A!AK$9)) -> 0 | AW45: =X45+(X20*(1-G_A!AL$9)) -> 0 | AX45: =Y45+(Y20*(1-G_A!AM$9)) -> 0
A46: Other- (Clean Capacity) | B46: =SUM(Selection!AC142:AC144) -> 0 | C46: =SUM(Selection!AD142:AD144) -> 0 | D46: =SUM(Selection!AE142:AE144) -> 0 | E46: =SUM(Selection!AF142:AF144) -> 0 | F46: =SUM(Selection!AG142:AG144) -> 0 | G46: =SUM(Selection!AH142:AH144) -> 0 | H46: =SUM(Selection!AI142:AI144) -> 0 | I46: =SUM(Selection!AJ142:AJ144) -> 0 | J46: =SUM(Selection!AK142:AK144) -> 0 | K46: =SUM(Selection!AL142:AL144) -> 0 | L46: =SUM(Selection!AM142:AM144) -> 0 | M46: =SUM(Selection!AN142:AN144) -> 0 | N46: =SUM(Selection!AO142:AO144) -> 0 | O46: =SUM(Selection!AP142:AP144) -> 0 | P46: =SUM(Selection!AQ142:AQ144) -> 0 | Q46: =SUM(Selection!AR142:AR144) -> 0 | R46: =SUM(Selection!AS142:AS144) -> 0 | S46: =SUM(Selection!AT142:AT144) -> 0 | T46: =SUM(Selection!AU142:AU144) -> 0 | U46: =SUM(Selection!AV142:AV144) -> 0 | V46: =SUM(Selection!AW142:AW144) -> 0 | W46: =SUM(Selection!AX142:AX144) -> 0 | X46: =SUM(Selection!AY142:AY144) -> 0 | Y46: =SUM(Selection!AZ142:AZ144) -> 0 | AA46: =B46+(B21*(1-G_A!P$9)) -> 0 | AB46: =C46+(C21*(1-G_A!Q$9)) -> 0 | AC46: =D46+(D21*(1-G_A!R$9)) -> 0 | AD46: =E46+(E21*(1-G_A!S$9)) -> 0 | AE46: =F46+(F21*(1-G_A!T$9)) -> 0 | AF46: =G46+(G21*(1-G_A!U$9)) -> 0 | AG46: =H46+(H21*(1-G_A!V$9)) -> 0 | AH46: =I46+(I21*(1-G_A!W$9)) -> 0 | AI46: =J46+(J21*(1-G_A!X$9)) -> 0 | AJ46: =K46+(K21*(1-G_A!Y$9)) -> 0 | AK46: =L46+(L21*(1-G_A!Z$9)) -> 0 | AL46: =M46+(M21*(1-G_A!AA$9)) -> 0 | AM46: =N46+(N21*(1-G_A!AB$9)) -> 0 | AN46: =O46+(O21*(1-G_A!AC$9)) -> 0 | AO46: =P46+(P21*(1-G_A!AD$9)) -> 0 | AP46: =Q46+(Q21*(1-G_A!AE$9)) -> 0 | AQ46: =R46+(R21*(1-G_A!AF$9)) -> 0 | AR46: =S46+(S21*(1-G_A!AG$9)) -> 0 | AS46: =T46+(T21*(1-G_A!AH$9)) -> 0 | AT46: =U46+(U21*(1-G_A!AI$9)) -> 6.87 | AU46: =V46+(V21*(1-G_A!AJ$9)) -> 0 | AV46: =W46+(W21*(1-G_A!AK$9)) -> 0 | AW46: =X46+(X21*(1-G_A!AL$9)) -> 0 | AX46: =Y46+(Y21*(1-G_A!AM$9)) -> 0
A47: Thermal Upgrade | B47: =SUM(Selection!AC144:AC148) -> 0 | C47: =SUM(Selection!AD144:AD148) -> 0 | D47: =SUM(Selection!AE144:AE148) -> 0 | E47: =SUM(Selection!AF144:AF148) -> 0 | F47: =SUM(Selection!AG144:AG148) -> 0 | G47: =SUM(Selection!AH144:AH148) -> 0 | H47: =SUM(Selection!AI144:AI148) -> 0 | I47: =SUM(Selection!AJ144:AJ148) -> 0 | J47: =SUM(Selection!AK144:AK148) -> 0 | K47: =SUM(Selection!AL144:AL148) -> 0 | L47: =SUM(Selection!AM144:AM148) -> 0 | M47: =SUM(Selection!AN144:AN148) -> 0 | N47: =SUM(Selection!AO144:AO148) -> 0 | O47: =SUM(Selection!AP144:AP148) -> 0 | P47: =SUM(Selection!AQ144:AQ148) -> 0 | Q47: =SUM(Selection!AR144:AR148) -> 0 | R47: =SUM(Selection!AS144:AS148) -> 0 | S47: =SUM(Selection!AT144:AT148) -> 0 | T47: =SUM(Selection!AU144:AU148) -> 0 | U47: =SUM(Selection!AV144:AV148) -> 0 | V47: =SUM(Selection!AW144:AW148) -> 0 | W47: =SUM(Selection!AX144:AX148) -> 0 | X47: =SUM(Selection!AY144:AY148) -> 0 | Y47: =SUM(Selection!AZ144:AZ148) -> 0 | AA47: =B47+(B22*(1-G_A!P$9)) -> 0 | AB47: =C47+(C22*(1-G_A!Q$9)) -> 0 | AC47: =D47+(D22*(1-G_A!R$9)) -> 0 | AD47: =E47+(E22*(1-G_A!S$9)) -> 0 | AE47: =F47+(F22*(1-G_A!T$9)) -> 4.122 | AF47: =G47+(G22*(1-G_A!U$9)) -> 0 | AG47: =H47+(H22*(1-G_A!V$9)) -> 0 | AH47: =I47+(I22*(1-G_A!W$9)) -> 0 | AI47: =J47+(J22*(1-G_A!X$9)) -> 0 | AJ47: =K47+(K22*(1-G_A!Y$9)) -> 0 | AK47: =L47+(L22*(1-G_A!Z$9)) -> 0 | AL47: =M47+(M22*(1-G_A!AA$9)) -> 0 | AM47: =N47+(N22*(1-G_A!AB$9)) -> 0 | AN47: =O47+(O22*(1-G_A!AC$9)) -> 1.7175 | AO47: =P47+(P22*(1-G_A!AD$9)) -> 0 | AP47: =Q47+(Q22*(1-G_A!AE$9)) -> 0 | AQ47: =R47+(R22*(1-G_A!AF$9)) -> 0 | AR47: =S47+(S22*(1-G_A!AG$9)) -> 0 | AS47: =T47+(T22*(1-G_A!AH$9)) -> 0 | AT47: =U47+(U22*(1-G_A!AI$9)) -> 0 | AU47: =V47+(V22*(1-G_A!AJ$9)) -> 0 | AV47: =W47+(W22*(1-G_A!AK$9)) -> 0 | AW47: =X47+(X22*(1-G_A!AL$9)) -> 0 | AX47: =Y47+(Y22*(1-G_A!AM$9)) -> 0
A48: Hydro | B48: =SUM(Selection!AC149:AC151) -> 0 | C48: =SUM(Selection!AD149:AD151) -> 0 | D48: =SUM(Selection!AE149:AE151) -> 0 | E48: =SUM(Selection!AF149:AF151) -> 0 | F48: =SUM(Selection!AG149:AG151) -> 0 | G48: =SUM(Selection!AH149:AH151) -> 0 | H48: =SUM(Selection!AI149:AI151) -> 0 | I48: =SUM(Selection!AJ149:AJ151) -> 0 | J48: =SUM(Selection!AK149:AK151) -> 0 | K48: =SUM(Selection!AL149:AL151) -> 0 | L48: =SUM(Selection!AM149:AM151) -> 0 | M48: =SUM(Selection!AN149:AN151) -> 0 | N48: =SUM(Selection!AO149:AO151) -> 0 | O48: =SUM(Selection!AP149:AP151) -> 0 | P48: =SUM(Selection!AQ149:AQ151) -> 0 | Q48: =SUM(Selection!AR149:AR151) -> 0 | R48: =SUM(Selection!AS149:AS151) -> 0 | S48: =SUM(Selection!AT149:AT151) -> 0 | T48: =SUM(Selection!AU149:AU151) -> 0 | U48: =SUM(Selection!AV149:AV151) -> 0 | V48: =SUM(Selection!AW149:AW151) -> 0 | W48: =SUM(Selection!AX149:AX151) -> 0 | X48: =SUM(Selection!AY149:AY151) -> 0 | Y48: =SUM(Selection!AZ149:AZ151) -> 0 | AA48: =B48+(B23*(1-G_A!P$9)) -> 0 | AB48: =C48+(C23*(1-G_A!Q$9)) -> 0 | AC48: =D48+(D23*(1-G_A!R$9)) -> 0 | AD48: =E48+(E23*(1-G_A!S$9)) -> 0 | AE48: =F48+(F23*(1-G_A!T$9)) -> 0 | AF48: =G48+(G23*(1-G_A!U$9)) -> 0 | AG48: =H48+(H23*(1-G_A!V$9)) -> 0 | AH48: =I48+(I23*(1-G_A!W$9)) -> 0 | AI48: =J48+(J23*(1-G_A!X$9)) -> 0 | AJ48: =K48+(K23*(1-G_A!Y$9)) -> 0 | AK48: =L48+(L23*(1-G_A!Z$9)) -> 0 | AL48: =M48+(M23*(1-G_A!AA$9)) -> 0 | AM48: =N48+(N23*(1-G_A!AB$9)) -> 0 | AN48: =O48+(O23*(1-G_A!AC$9)) -> 0 | AO48: =P48+(P23*(1-G_A!AD$9)) -> 0 | AP48: =Q48+(Q23*(1-G_A!AE$9)) -> 0 | AQ48: =R48+(R23*(1-G_A!AF$9)) -> 0 | AR48: =S48+(S23*(1-G_A!AG$9)) -> 0 | AS48: =T48+(T23*(1-G_A!AH$9)) -> 0 | AT48: =U48+(U23*(1-G_A!AI$9)) -> 0 | AU48: =V48+(V23*(1-G_A!AJ$9)) -> 0 | AV48: =W48+(W23*(1-G_A!AK$9)) -> 0 | AW48: =X48+(X23*(1-G_A!AL$9)) -> 0 | AX48: =Y48+(Y23*(1-G_A!AM$9)) -> 0
A49: DR Capability | B49: =SUM(Selection!AC233:AC248) -> 0 | C49: =SUM(Selection!AD233:AD248) -> 0 | D49: =SUM(Selection!AE233:AE248) -> 0 | E49: =SUM(Selection!AF233:AF248) -> 0 | F49: =SUM(Selection!AG233:AG248) -> 0 | G49: =SUM(Selection!AH233:AH248) -> 0 | H49: =SUM(Selection!AI233:AI248) -> 0 | I49: =SUM(Selection!AJ233:AJ248) -> 0.222 | J49: =SUM(Selection!AK233:AK248) -> 0.7585 | K49: =SUM(Selection!AL233:AL248) -> 2.3338 | L49: =SUM(Selection!AM233:AM248) -> 4.7635 | M49: =SUM(Selection!AN233:AN248) -> 8.3647 | N49: =SUM(Selection!AO233:AO248) -> 9.386 | O49: =SUM(Selection!AP233:AP248) -> 9.8688 | P49: =SUM(Selection!AQ233:AQ248) -> 9.7761 | Q49: =SUM(Selection!AR233:AR248) -> 9.6092 | R49: =SUM(Selection!AS233:AS248) -> 9.4608 | S49: =SUM(Selection!AT233:AT248) -> 10.9227 | T49: =SUM(Selection!AU233:AU248) -> 12.6136 | U49: =SUM(Selection!AV233:AV248) -> 15.4771 | V49: =SUM(Selection!AW233:AW248) -> 16.4657 | W49: =SUM(Selection!AX233:AX248) -> 16.3173 | X49: =SUM(Selection!AY233:AY248) -> 16.1689 | Y49: =SUM(Selection!AZ233:AZ248) -> 16.0205 | AA49: =B49 -> 0 | AB49: =C49 -> 0 | AC49: 0 | AD49: 0 | AE49: 0 | AF49: 0 | AG49: 0 | AH49: 0.222 | AI49: 0.7585 | AJ49: 2.3338 | AK49: 4.7635 | AL49: 8.3647 | AM49: 9.386 | AN49: 9.8688 | AO49: 9.7761 | AP49: 9.6092 | AQ49: 9.4608 | AR49: 10.9227 | AS49: 12.6136 | AT49: 15.4771 | AU49: 16.4657 | AV49: 16.3173 | AW49: 16.1689 | AX49: 16.0205
A50: EE- Winter Capacity | B50: =EE_Selection!EK5 -> 1.404864291 | C50: =EE_Selection!EL5-SUM($B50:B50) -> 1.686375811 | D50: =EE_Selection!EM5-SUM($B50:C50) -> 1.89721527 | E50: =EE_Selection!EN5-SUM($B50:D50) -> 2.14537182 | F50: =EE_Selection!EO5-SUM($B50:E50) -> 2.469186517 | G50: =EE_Selection!EP5-SUM($B50:F50) -> 2.697396673 | H50: =EE_Selection!EQ5-SUM($B50:G50) -> 2.809714363 | I50: =EE_Selection!ER5-SUM($B50:H50) -> 2.74719171 | J50: =EE_Selection!ES5-SUM($B50:I50) -> 2.560779357 | K50: =EE_Selection!ET5-SUM($B50:J50) -> 2.255244877 | L50: =EE_Selection!EU5-SUM($B50:K50) -> 1.84716628 | M50: =EE_Selection!EV5-SUM($B50:L50) -> 1.521113656 | N50: =EE_Selection!EW5-SUM($B50:M50) -> 1.23970873 | O50: =EE_Selection!EX5-SUM($B50:N50) -> 1.008221126 | P50: =EE_Selection!EY5-SUM($B50:O50) -> 0.8262716657 | Q50: =EE_Selection!EZ5-SUM($B50:P50) -> 0.6458929156 | R50: =EE_Selection!FA5-SUM($B50:Q50) -> 0.5845684588 | S50: =EE_Selection!FB5-SUM($B50:R50) -> 0.4869975124 | T50: =EE_Selection!FC5-SUM($B50:S50) -> 0.4176881837 | U50: =EE_Selection!FD5-SUM($B50:T50) -> 0.1691737849 | V50: =EE_Selection!FE5-SUM($B50:U50) -> -0.01720744628 | W50: =EE_Selection!FF5-SUM($B50:V50) -> -0.04135976507 | X50: =EE_Selection!FG5-SUM($B50:W50) -> -0.09565538171 | Y50: =EE_Selection!FH5-SUM($B50:X50) -> -0.1427848469 | AA50: =B50 -> 1.404864291 | AB50: 1.686375811 | AC50: 1.89721527 | AD50: 2.14537182 | AE50: 2.469186517 | AF50: 2.697396673 | AG50: 2.809714363 | AH50: 2.74719171 | AI50: 2.560779357 | AJ50: 2.255244877 | AK50: 1.84716628 | AL50: 1.521113656 | AM50: 1.23970873 | AN50: 1.008221126 | AO50: 0.8262716657 | AP50: 0.6458929156 | AQ50: 0.5845684588 | AR50: 0.4869975124 | AS50: 0.4176881837 | AT50: 0.1691737849 | AU50: -0.01720744628 | AV50: -0.04135976507 | AW50: -0.09565538171 | AX50: -0.1427848469
A51: EE- Summer Capacity | B51: =EE_Selection!DL5 -> 1.351215931 | C51: =EE_Selection!DM5-SUM(B51:$B51) -> 1.536809159 | D51: =EE_Selection!DN5-SUM($B51:C51) -> 1.65676534 | E51: =EE_Selection!DO5-SUM($B51:D51) -> 1.88906339 | F51: =EE_Selection!DP5-SUM($B51:E51) -> 1.981328573 | G51: =EE_Selection!DQ5-SUM($B51:F51) -> 2.088953691 | H51: =EE_Selection!DR5-SUM($B51:G51) -> 2.141863204 | I51: =EE_Selection!DS5-SUM($B51:H51) -> 2.094654106 | J51: =EE_Selection!DT5-SUM($B51:I51) -> 2.130210218 | K51: =EE_Selection!DU5-SUM($B51:J51) -> 1.793181062 | L51: =EE_Selection!DV5-SUM($B51:K51) -> 1.502143881 | M51: =EE_Selection!DW5-SUM($B51:L51) -> 1.281376875 | N51: =EE_Selection!DX5-SUM($B51:M51) -> 1.090332018 | O51: =EE_Selection!DY5-SUM($B51:N51) -> 0.9220909209 | P51: =EE_Selection!DZ5-SUM($B51:O51) -> 0.7677008937 | Q51: =EE_Selection!EA5-SUM($B51:P51) -> 0.5947481502 | R51: =EE_Selection!EB5-SUM($B51:Q51) -> 0.5504010768 | S51: =EE_Selection!EC5-SUM($B51:R51) -> 0.4707284994 | T51: =EE_Selection!ED5-SUM($B51:S51) -> 0.466953167 | U51: =EE_Selection!EE5-SUM($B51:T51) -> 0.1539568535 | V51: =EE_Selection!EF5-SUM($B51:U51) -> -0.04562810692 | W51: =EE_Selection!EG5-SUM($B51:V51) -> -0.06947468026 | X51: =EE_Selection!EH5-SUM($B51:W51) -> -0.1342885668 | Y51: =EE_Selection!EI5-SUM($B51:X51) -> -0.1468334941 | AA51: =B51 -> 1.351215931 | AB51: 1.536809159 | AC51: 1.65676534 | AD51: 1.88906339 | AE51: 1.981328573 | AF51: 2.088953691 | AG51: 2.141863204 | AH51: 2.094654106 | AI51: 2.130210218 | AJ51: 1.793181062 | AK51: 1.502143881 | AL51: 1.281376875 | AM51: 1.090332018 | AN51: 0.9220909209 | AO51: 0.7677008937 | AP51: 0.5947481502 | AQ51: 0.5504010768 | AR51: 0.4707284994 | AS51: 0.466953167 | AT51: 0.1539568535 | AU51: -0.04562810692 | AV51: -0.06947468026 | AW51: -0.1342885668 | AX51: -0.1468334941
A53: Energy Efficiency Energy (GWh excludes losses)
A54: WA | B54: =EE_Selection!O4 -> 33.53368713 | C54: =EE_Selection!P4 -> 73.08658686 | D54: =EE_Selection!Q4 -> 117.1941455 | E54: =EE_Selection!R4 -> 168.773959 | F54: =EE_Selection!S4 -> 226.8809704 | G54: =EE_Selection!T4 -> 289.5229342 | H54: =EE_Selection!U4 -> 354.8132224 | I54: =EE_Selection!V4 -> 418.6543384 | J54: =EE_Selection!W4 -> 479.8399977 | K54: =EE_Selection!X4 -> 536.0736282 | L54: =EE_Selection!Y4 -> 585.7412976 | M54: =EE_Selection!Z4 -> 629.4223744 | N54: =EE_Selection!AA4 -> 667.9515933 | O54: =EE_Selection!AB4 -> 701.6610224 | P54: =EE_Selection!AC4 -> 730.975284 | Q54: =EE_Selection!AD4 -> 754.4840704 | R54: =EE_Selection!AE4 -> 777.1139194 | S54: =EE_Selection!AF4 -> 794.8351698 | T54: =EE_Selection!AG4 -> 810.0271042 | U54: =EE_Selection!AH4 -> 818.6133529 | V54: =EE_Selection!AI4 -> 825.2204724 | W54: =EE_Selection!AJ4 -> 827.4691989 | X54: =EE_Selection!AK4 -> 827.632373 | Y54: =EE_Selection!AL4 -> 825.7094428
A55: ID | B55: =EE_Selection!O5 -> 14.81488875 | C55: =EE_Selection!P5 -> 31.3669627 | D55: =EE_Selection!Q5 -> 48.26624873 | E55: =EE_Selection!R5 -> 66.72886369 | F55: =EE_Selection!S5 -> 86.65194482 | G55: =EE_Selection!T5 -> 107.5483439 | H55: =EE_Selection!U5 -> 128.9083604 | I55: =EE_Selection!V5 -> 149.5125849 | J55: =EE_Selection!W5 -> 169.4467635 | K55: =EE_Selection!X5 -> 187.7772948 | L55: =EE_Selection!Y5 -> 203.140085 | M55: =EE_Selection!Z5 -> 217.5527245 | N55: =EE_Selection!AA5 -> 230.4674106 | O55: =EE_Selection!AB5 -> 241.968953 | P55: =EE_Selection!AC5 -> 252.130236 | Q55: =EE_Selection!AD5 -> 259.6519377 | R55: =EE_Selection!AE5 -> 266.8204115 | S55: =EE_Selection!AF5 -> 273.7304798 | T55: =EE_Selection!AG5 -> 280.2138255 | U55: =EE_Selection!AH5 -> 284.0444713 | V55: =EE_Selection!AI5 -> 286.6560594 | W55: =EE_Selection!AJ5 -> 289.3313702 | X55: =EE_Selection!AK5 -> 291.6755832 | Y55: =EE_Selection!AL5 -> 293.2399108
A56: Total | B56: =SUM(B54:B55) -> 48.34857588 | C56: =SUM(C54:C55) -> 104.4535496 | D56: 165.4603943 | E56: 235.5028227 | F56: 313.5329152 | G56: 397.0712781 | H56: 483.7215828 | I56: 568.1669233 | J56: 649.2867612 | K56: 723.8509229 | L56: 788.8813826 | M56: 846.9750989 | N56: 898.4190039 | O56: 943.6299755 | P56: 983.10552 | Q56: 1014.136008 | R56: 1043.934331 | S56: 1068.56565 | T56: 1090.24093 | U56: 1102.657824 | V56: 1111.876532 | W56: 1116.800569 | X56: 1119.307956 | Y56: 1118.949354
A58: aMW w/ losses
A59: WA | B59: =EE_Selection!O13/G_A!P$6*1000 -> 4.047321316 | C59: =EE_Selection!P13/G_A!Q$6*1000 -> 8.821296667 | D59: =EE_Selection!Q13/G_A!R$6*1000 -> 14.07028004 | E59: =EE_Selection!R13/G_A!S$6*1000 -> 20.37180252 | F59: =EE_Selection!S13/G_A!T$6*1000 -> 27.38665693 | G59: =EE_Selection!T13/G_A!U$6*1000 -> 34.94880684 | H59: =EE_Selection!U13/G_A!V$6*1000 -> 42.70754963 | I59: =EE_Selection!V13/G_A!W$6*1000 -> 50.53669963 | J59: =EE_Selection!W13/G_A!X$6*1000 -> 57.92147918 | K59: =EE_Selection!X13/G_A!Y$6*1000 -> 64.70870038 | L59: =EE_Selection!Y13/G_A!Z$6*1000 -> 70.51002485 | M59: =EE_Selection!Z13/G_A!AA$6*1000 -> 75.97872793 | N59: =EE_Selection!AA13/G_A!AB$6*1000 -> 80.62416024 | O59: =EE_Selection!AB13/G_A!AC$6*1000 -> 84.69276296 | P59: =EE_Selection!AC13/G_A!AD$6*1000 -> 87.99850171 | Q59: =EE_Selection!AD13/G_A!AE$6*1000 -> 91.07469855 | R59: =EE_Selection!AE13/G_A!AF$6*1000 -> 93.80657771 | S59: =EE_Selection!AF13/G_A!AG$6*1000 -> 95.95174182 | T59: =EE_Selection!AG13/G_A!AH$6*1000 -> 97.49946496 | U59: =EE_Selection!AH13/G_A!AI$6*1000 -> 98.81051905 | V59: =EE_Selection!AI13/G_A!AJ$6*1000 -> 99.61698176 | W59: =EE_Selection!AJ13/G_A!AK$6*1000 -> 99.89075821 | X59: =EE_Selection!AK13/G_A!AL$6*1000 -> 99.63140555 | Y59: =EE_Selection!AL13/G_A!AM$6*1000 -> 99.66502421
A60: ID | B60: =EE_Selection!O14/G_A!P$6*1000 -> 1.788071046 | C60: =EE_Selection!P14/G_A!Q$6*1000 -> 3.78588323 | D60: =EE_Selection!Q14/G_A!R$6*1000 -> 5.79482561 | E60: =EE_Selection!R14/G_A!S$6*1000 -> 8.054484482 | F60: =EE_Selection!S14/G_A!T$6*1000 -> 10.45970088 | G60: =EE_Selection!T14/G_A!U$6*1000 -> 12.98234389 | H60: =EE_Selection!U14/G_A!V$6*1000 -> 15.51622052 | I60: =EE_Selection!V14/G_A!W$6*1000 -> 18.04799783 | J60: =EE_Selection!W14/G_A!X$6*1000 -> 20.45391638 | K60: =EE_Selection!X14/G_A!Y$6*1000 -> 22.66633549 | L60: =EE_Selection!Y14/G_A!Z$6*1000 -> 24.45347887 | M60: =EE_Selection!Z14/G_A!AA$6*1000 -> 26.26118793 | N60: =EE_Selection!AA14/G_A!AB$6*1000 -> 27.81824555 | O60: =EE_Selection!AB14/G_A!AC$6*1000 -> 29.20643805 | P60: =EE_Selection!AC14/G_A!AD$6*1000 -> 30.352713 | Q60: =EE_Selection!AD14/G_A!AE$6*1000 -> 31.34290422 | R60: =EE_Selection!AE14/G_A!AF$6*1000 -> 32.20828896 | S60: =EE_Selection!AF14/G_A!AG$6*1000 -> 33.04448182 | T60: =EE_Selection!AG14/G_A!AH$6*1000 -> 33.72812825 | U60: =EE_Selection!AH14/G_A!AI$6*1000 -> 34.28551653 | V60: =EE_Selection!AI14/G_A!AJ$6*1000 -> 34.60385727 | W60: =EE_Selection!AJ14/G_A!AK$6*1000 -> 34.92762024 | X60: =EE_Selection!AK14/G_A!AL$6*1000 -> 35.11226635 | Y60: =EE_Selection!AL14/G_A!AM$6*1000 -> 35.39473002
A61: Total | B61: =SUM(B59:B60) -> 5.835392363 | C61: =SUM(C59:C60) -> 12.6071799 | D61: 19.86510565 | E61: 28.426287 | F61: 37.84635781 | G61: 47.93115073 | H61: 58.22377015 | I61: 68.58469746 | J61: 78.37539555 | K61: 87.37503587 | L61: 94.96350372 | M61: 102.2399159 | N61: 108.4424058 | O61: 113.899201 | P61: 118.3512147 | Q61: 122.4176028 | R61: 126.0148667 | S61: 128.9962236 | T61: 131.2275932 | U61: 133.0960356 | V61: 134.220839 | W61: 134.8183784 | X61: 134.7436719 | Y61: 135.0597542
B66: Rev. Req. | E66: Optmized Cost | H66: Rates | J66: Stdev | L66: 95th V@R | N66: System GHG MMT | P66: Winter Capacity MW | R66: New Energy (aMW) | T66: New Dispatch GWh | V66: Sales GWh
A67: Year | B67: WA | C67: ID | D67: Total | E67: WA | F67: ID | G67: Total | H67: WA | I67: ID | J67: WA | K67: ID | L67: WA | M67: ID | N67: Net | O67: Gross | P67: WA | Q67: ID | R67: WA | S67: ID | T67: WA | U67: ID | V67: WA | W67: ID
A68: 2022 | B68: ='Financial Summary'!$E$148 -> 567.1788176 | C68: ='Financial Summary'!$AD$148 -> 306.6298296 | D68: =SUM(B68:C68) -> 873.8086472 | E68: ='Financial Summary'!$E$126 -> 245.5048446 | F68: ='Financial Summary'!$AD$126 -> 82.59405882 | G68: =SUM(E68:F68) -> 328.0989034 | H68: ='Financial Summary'!$E$150 -> 0.1001219789 | I68: ='Financial Summary'!$AD$150 -> 0.08944084753 | J68: =Risk!$B$5 -> 3.6985226e-13 | K68: =Risk!$AA$5 -> 3.058393688e-13 | L68: =Risk!$B$9 -> -3.694822226e-13 | M68: =Risk!$AA$9 -> -3.055333764e-13 | N68: ='Financial Summary'!$BC$98 -> 0.7981533016 | O68: =SUM('Financial Summary'!BC$91:BC$94) -> 1.42329705 | P68: =LR!$AB$38 -> 0 | Q68: =LR!$BA$38 -> 0 | R68: =LR!$AB$137 -> 0 | S68: =LR!$BA$137 -> 0 | T68: =SUM(Res_MWh!$AD$14:$AD$68)/1000 -> 0 | U68: =SUM(Res_MWh!BC$14:BC$68)/1000 -> 0 | V68: ='Financial Summary'!$E$9 -> 5664.878218 | W68: ='Financial Summary'!$AD$9 -> 3428.297451
A69: 2023 | B69: ='Financial Summary'!$F$148 -> 589.0115084 | C69: ='Financial Summary'!$AE$148 -> 334.9949777 | D69: =SUM(B69:C69) -> 924.0064861 | E69: ='Financial Summary'!$F$126 -> 253.556115 | F69: ='Financial Summary'!$AE$126 -> 106.1898698 | G69: =SUM(E69:F69) -> 359.7459848 | H69: ='Financial Summary'!$F$150 -> 0.1034938848 | I69: ='Financial Summary'!$AE$150 -> 0.0975141333 | J69: =Risk!$C$5 -> 8.535052153e-13 | K69: =Risk!$AB$5 -> 1.920386734e-13 | L69: =Risk!$C$9 -> 8.526512829e-13 | M69: =Risk!$AB$9 -> -1.918465387e-13 | N69: ='Financial Summary'!$BD$98 -> 0.5690871091 | O69: =SUM('Financial Summary'!BD$91:BD$94) -> 1.311096875 | P69: =LR!$AC$38 -> 33.271 | Q69: =LR!$BB$38 -> 9.401847221 | R69: =LR!$AC$137 -> 45.6288 | S69: =LR!$BB$137 -> 9.401847221 | T69: =SUM(Res_MWh!$AE$14:$AE$68)/1000 -> 424.9125 | U69: =SUM(Res_MWh!BD$14:BD$68)/1000 -> 531.4289359 | V69: ='Financial Summary'!$F$9 -> 5691.268712 | W69: ='Financial Summary'!$AE$9 -> 3435.347948
A70: 2024 | B70: ='Financial Summary'!$G$148 -> 602.9844617 | C70: ='Financial Summary'!$AF$148 -> 344.3280306 | D70: 947.3124923 | E70: ='Financial Summary'!$G$126 -> 259.6500586 | F70: ='Financial Summary'!$AF$126 -> 110.6485001 | G70: 370.2985587 | H70: ='Financial Summary'!$G$150 -> 0.1055575747 | I70: ='Financial Summary'!$AF$150 -> 0.1000673099 | J70: =Risk!$D$5 -> 6.401289115e-13 | K70: =Risk!$AC$5 -> 3.129519123e-13 | L70: =Risk!$D$9 -> 6.394884622e-13 | M70: =Risk!$AC$9 -> 3.126388037e-13 | N70: ='Financial Summary'!$BE$98 -> 0.6981491046 | O70: =SUM('Financial Summary'!BE$91:BE$94) -> 1.31490267 | P70: =LR!$AD$38 -> 33.271 | Q70: =LR!$BC$38 -> 9.401847221 | R70: =LR!$AD$137 -> 45.6288 | S70: =LR!$BC$137 -> 9.401847221 | T70: =SUM(Res_MWh!$AF$14:$AF$68)/1000 -> 425.9858887 | U70: =SUM(Res_MWh!BE$14:BE$68)/1000 -> 531.8881052 | V70: ='Financial Summary'!$G$9 -> 5712.375104 | W70: ='Financial Summary'!$AF$9 -> 3440.964196
A71: 2025 | B71: ='Financial Summary'!$H$148 -> 636.7095303 | C71: ='Financial Summary'!$AG$148 -> 353.5905264 | D71: 990.3000567 | E71: ='Financial Summary'!$H$126 -> 275.4750774 | F71: ='Financial Summary'!$AG$126 -> 114.9287054 | G71: 390.4037828 | H71: ='Financial Summary'!$H$150 -> 0.1111018619 | I71: ='Financial Summary'!$AG$150 -> 0.1026367934 | J71: =Risk!$E$5 -> 0 | K71: =Risk!$AD$5 -> 4.765404119e-13 | L71: =Risk!$E$9 -> 0 | M71: =Risk!$AD$9 -> -4.76063633e-13 | N71: ='Financial Summary'!$BF$98 -> 0.579473314 | O71: =SUM('Financial Summary'!BF$91:BF$94) -> 1.168283504 | P71: =LR!$AE$38 -> 66.542 | Q71: =LR!$BD$38 -> 9.401847221 | R71: =LR!$AE$137 -> 91.2576 | S71: =LR!$BD$137 -> 9.401847221 | T71: =SUM(Res_MWh!$AG$14:$AG$68)/1000 -> 849.825 | U71: =SUM(Res_MWh!BF$14:BF$68)/1000 -> 531.4289359 | V71: ='Financial Summary'!$H$9 -> 5730.862826 | W71: ='Financial Summary'!$AG$9 -> 3445.06599
A72: 2026 | B72: ='Financial Summary'!$I$148 -> 638.5880489 | C72: ='Financial Summary'!$AH$148 -> 365.8898119 | D72: 1004.477861 | E72: ='Financial Summary'!$I$126 -> 273.4332715 | F72: ='Financial Summary'!$AH$126 -> 122.1332748 | G72: 395.5665463 | H72: ='Financial Summary'!$I$150 -> 0.1112104842 | I72: ='Financial Summary'!$AH$150 -> 0.1062137594 | J72: =Risk!$F$5 -> 4.409776946e-13 | K72: =Risk!$AE$5 -> 2.987268254e-13 | L72: =Risk!$F$9 -> 4.405364962e-13 | M72: =Risk!$AE$9 -> -2.98427949e-13 | N72: ='Financial Summary'!$BG$98 -> 0.6050682896 | O72: =SUM('Financial Summary'!BG$91:BG$94) -> 1.241701633 | P72: =LR!$AF$38 -> 74.3607224 | Q72: =LR!$BE$38 -> 15.34184422 | R72: =LR!$AF$137 -> 97.62565 | S72: =LR!$BE$137 -> 41.85865223 | T72: =SUM(Res_MWh!$AH$14:$AH$68)/1000 -> 902.0067179 | U72: =SUM(Res_MWh!BG$14:BG$68)/1000 -> 799.9373898 | V72: ='Financial Summary'!$I$9 -> 5742.156897 | W72: ='Financial Summary'!$AH$9 -> 3444.843812
A73: 2027 | B73: ='Financial Summary'!$J$148 -> 694.8328522 | C73: ='Financial Summary'!$AI$148 -> 401.853997 | D73: 1096.686849 | E73: ='Financial Summary'!$J$126 -> 277.5976749 | F73: ='Financial Summary'!$AI$126 -> 152.8907591 | G73: 430.488434 | H73: ='Financial Summary'!$J$150 -> 0.1208126348 | I73: ='Financial Summary'!$AI$150 -> 0.1166498259 | J73: =Risk!$G$5 -> 3.6985226e-13 | K73: =Risk!$AF$5 -> 3.840773469e-13 | L73: =Risk!$G$9 -> -3.694822226e-13 | M73: =Risk!$AF$9 -> -3.836930773e-13 | N73: ='Financial Summary'!$BH$98 -> 0.06561596249 | O73: =SUM('Financial Summary'!BH$91:BH$94) -> 0.6478447533 | P73: =LR!$AG$38 -> 196.4287427 | Q73: =LR!$BF$38 -> 140.4977583 | R73: =LR!$AG$137 -> 231.2511691 | S73: =LR!$BF$137 -> 171.4028307 | T73: =SUM(Res_MWh!$AI$14:$AI$68)/1000 -> 1763.106273 | U73: =SUM(Res_MWh!BH$14:BH$68)/1000 -> 1086.106765 | V73: ='Financial Summary'!$J$9 -> 5751.326038 | W73: ='Financial Summary'!$AI$9 -> 3444.960109
A74: 2028 | B74: ='Financial Summary'!$K$148 -> 711.2302411 | C74: ='Financial Summary'!$AJ$148 -> 405.5815572 | D74: 1116.811798 | E74: ='Financial Summary'!$K$126 -> 282.8800326 | F74: ='Financial Summary'!$AJ$126 -> 151.3003321 | G74: 434.1803647 | H74: ='Financial Summary'!$K$150 -> 0.1234495466 | I74: ='Financial Summary'!$AJ$150 -> 0.1177219254 | J74: =Risk!$H$5 -> 5.40553303e-13 | K74: =Risk!$AG$5 -> 3.6985226e-13 | L74: =Risk!$H$9 -> 5.400124792e-13 | M74: =Risk!$AG$9 -> 3.694822226e-13 | N74: ='Financial Summary'!$BI$98 -> 0.1224760744 | O74: =SUM('Financial Summary'!BI$91:BI$94) -> 0.6645265647 | P74: =LR!$AH$38 -> 198.3703871 | Q74: =LR!$BG$38 -> 140.4977583 | R74: =LR!$AH$137 -> 231.2511691 | S74: =LR!$BG$137 -> 171.4028307 | T74: =SUM(Res_MWh!$AJ$14:$AJ$68)/1000 -> 1766.663451 | U74: =SUM(Res_MWh!BI$14:BI$68)/1000 -> 1091.259498 | V74: ='Financial Summary'!$K$9 -> 5761.302982 | W74: ='Financial Summary'!$AJ$9 -> 3445.250795
A75: 2029 | B75: ='Financial Summary'!$L$148 -> 726.8908634 | C75: ='Financial Summary'!$AK$148 -> 412.9158122 | D75: 1139.806676 | E75: ='Financial Summary'!$L$126 -> 281.8294115 | F75: ='Financial Summary'!$AK$126 -> 153.2074754 | G75: 435.0368868 | H75: ='Financial Summary'!$L$150 -> 0.1259509948 | I75: ='Financial Summary'!$AK$150 -> 0.1198410587 | J75: =Risk!$I$5 -> 3.55627173e-13 | K75: =Risk!$AH$5 -> 4.054149773e-13 | L75: =Risk!$I$9 -> 3.552713679e-13 | M75: =Risk!$AH$9 -> 4.050093594e-13 | N75: ='Financial Summary'!$BJ$98 -> 0.1372799833 | O75: =SUM('Financial Summary'!BJ$91:BJ$94) -> 0.6021491373 | P75: =LR!$AI$38 -> 201.8578931 | Q75: =LR!$BH$38 -> 140.6343711 | R75: =LR!$AI$137 -> 231.2511691 | S75: =LR!$BH$137 -> 171.4028307 | T75: =SUM(Res_MWh!$AK$14:$AK$68)/1000 -> 1762.702317 | U75: =SUM(Res_MWh!BJ$14:BJ$68)/1000 -> 1088.340811 | V75: ='Financial Summary'!$L$9 -> 5771.219708 | W75: ='Financial Summary'!$AK$9 -> 3445.528743
A76: 2030 | B76: ='Financial Summary'!$M$148 -> 742.3559804 | C76: ='Financial Summary'!$AL$148 -> 421.4620001 | D76: 1163.817981 | E76: ='Financial Summary'!$M$126 -> 285.0243201 | F76: ='Financial Summary'!$AL$126 -> 156.2183164 | G76: 441.2426364 | H76: ='Financial Summary'!$M$150 -> 0.1285202234 | I76: ='Financial Summary'!$AL$150 -> 0.122384555 | J76: =Risk!$J$5 -> 7.823797807e-13 | K76: =Risk!$AI$5 -> 6.116787376e-13 | L76: =Risk!$J$9 -> -7.815970093e-13 | M76: =Risk!$AI$9 -> 6.110667528e-13 | N76: ='Financial Summary'!$BK$98 -> 0.1395515221 | O76: =SUM('Financial Summary'!BK$91:BK$94) -> 0.5996136841 | P76: =LR!$AJ$38 -> 203.5306367 | Q76: =LR!$BI$38 -> 140.9645187 | R76: =LR!$AJ$137 -> 231.2511691 | S76: =LR!$BI$137 -> 171.4028307 | T76: =SUM(Res_MWh!$AL$14:$AL$68)/1000 -> 1756.557448 | U76: =SUM(Res_MWh!BK$14:BK$68)/1000 -> 1077.104507 | V76: ='Financial Summary'!$M$9 -> 5776.180282 | W76: ='Financial Summary'!$AL$9 -> 3443.751542
A77: 2031 | B77: ='Financial Summary'!$N$148 -> 765.3324844 | C77: ='Financial Summary'!$AM$148 -> 431.1082271 | D77: 1196.440711 | E77: ='Financial Summary'!$N$126 -> 291.710064 | F77: ='Financial Summary'!$AM$126 -> 160.221454 | G77: 451.9315181 | H77: ='Financial Summary'!$N$150 -> 0.1323842797 | I77: ='Financial Summary'!$AM$150 -> 0.1252400063 | J77: =Risk!$K$5 -> 2.133763038e-13 | K77: =Risk!$AJ$5 -> 3.840773469e-13 | L77: =Risk!$K$9 -> -2.131628207e-13 | M77: =Risk!$AJ$9 -> -3.836930773e-13 | N77: ='Financial Summary'!$BL$98 -> 0.1372609773 | O77: =SUM('Financial Summary'!BL$91:BL$94) -> 0.5375528425 | P77: =LR!$AK$38 -> 260.1829261 | Q77: =LR!$BJ$38 -> 145.099326 | R77: =LR!$AK$137 -> 280.2271966 | S77: =LR!$BJ$137 -> 179.8993032 | T77: =SUM(Res_MWh!$AM$14:$AM$68)/1000 -> 2168.953405 | U77: =SUM(Res_MWh!BL$14:BL$68)/1000 -> 1152.915397 | V77: ='Financial Summary'!$N$9 -> 5781.143246 | W77: ='Financial Summary'!$AM$9 -> 3442.256511
A78: 2032 | B78: ='Financial Summary'!$O$148 -> 776.0639634 | C78: ='Financial Summary'!$AN$148 -> 435.8621371 | D78: 1211.9261 | E78: ='Financial Summary'!$O$126 -> 290.6841443 | F78: ='Financial Summary'!$AN$126 -> 159.2247983 | G78: 449.9089426 | H78: ='Financial Summary'!$O$150 -> 0.1341205692 | I78: ='Financial Summary'!$AN$150 -> 0.1266570914 | J78: =Risk!$L$5 -> 2.418264777e-13 | K78: =Risk!$AK$5 -> 3.55627173e-13 | L78: =Risk!$L$9 -> 2.415845302e-13 | M78: =Risk!$AK$9 -> 3.552713679e-13 | N78: ='Financial Summary'!$BM$98 -> 0.1617668955 | O78: =SUM('Financial Summary'!BM$91:BM$94) -> 0.5486700474 | P78: =LR!$AL$38 -> 262.7465149 | Q78: =LR!$BK$38 -> 146.5946256 | R78: =LR!$AL$137 -> 280.2271966 | S78: =LR!$BK$137 -> 179.8993032 | T78: =SUM(Res_MWh!$AN$14:$AN$68)/1000 -> 2174.31706 | U78: =SUM(Res_MWh!BM$14:BM$68)/1000 -> 1153.567172 | V78: ='Financial Summary'!$O$9 -> 5786.31576 | W78: ='Financial Summary'!$AN$9 -> 3441.277012
A79: 2033 | B79: ='Financial Summary'!$P$148 -> 793.9701955 | C79: ='Financial Summary'!$AO$148 -> 445.1482891 | D79: 1239.118485 | E79: ='Financial Summary'!$P$126 -> 292.6023522 | F79: ='Financial Summary'!$AO$126 -> 162.6482551 | G79: 455.2506073 | H79: ='Financial Summary'!$P$150 -> 0.137083526 | I79: ='Financial Summary'!$AO$150 -> 0.129371569 | J79: =Risk!$M$5 -> 4.694278684e-13 | K79: =Risk!$AL$5 -> 4.48090238e-13 | L79: =Risk!$M$9 -> 4.689582056e-13 | M79: =Risk!$AL$9 -> 4.476419235e-13 | N79: ='Financial Summary'!$BN$98 -> 0.1630838656 | O79: =SUM('Financial Summary'!BN$91:BN$94) -> 0.5016381679 | P79: =LR!$AM$38 -> 265.3069237 | Q79: =LR!$BL$38 -> 148.8109584 | R79: =LR!$AM$137 -> 280.2271966 | S79: =LR!$BL$137 -> 179.8993032 | T79: =SUM(Res_MWh!$AO$14:$AO$68)/1000 -> 2165.848012 | U79: =SUM(Res_MWh!BN$14:BN$68)/1000 -> 1146.923548 | V79: ='Financial Summary'!$P$9 -> 5791.871706 | W79: ='Financial Summary'!$AO$9 -> 3440.850972
A80: 2034 | B80: ='Financial Summary'!$Q$148 -> 809.9958433 | C80: ='Financial Summary'!$AP$148 -> 453.9775944 | D80: 1263.973438 | E80: ='Financial Summary'!$Q$126 -> 296.1473745 | F80: ='Financial Summary'!$AP$126 -> 165.4991052 | G80: 461.6464797 | H80: ='Financial Summary'!$Q$150 -> 0.1397024778 | I80: ='Financial Summary'!$AP$150 -> 0.1319308812 | J80: =Risk!$N$5 -> 1.422508692e-13 | K80: =Risk!$AM$5 -> 2.418264777e-13 | L80: =Risk!$N$9 -> 1.421085472e-13 | M80: =Risk!$AM$9 -> 2.415845302e-13 | N80: ='Financial Summary'!$BO$98 -> 0.170508956 | O80: =SUM('Financial Summary'!BO$91:BO$94) -> 0.4987370095 | P80: =LR!$AN$38 -> 268.7721061 | Q80: =LR!$BM$38 -> 149.4395172 | R80: =LR!$AN$137 -> 280.2271966 | S80: =LR!$BM$137 -> 179.8993032 | T80: =SUM(Res_MWh!$AP$14:$AP$68)/1000 -> 2166.695884 | U80: =SUM(Res_MWh!BO$14:BO$68)/1000 -> 1150.45123 | V80: ='Financial Summary'!$Q$9 -> 5798.006278 | W80: ='Financial Summary'!$AP$9 -> 3441.026014
A81: 2035 | B81: ='Financial Summary'!$R$148 -> 828.1600495 | C81: ='Financial Summary'!$AQ$148 -> 463.5236556 | D81: 1291.683705 | E81: ='Financial Summary'!$R$126 -> 297.1716958 | F81: ='Financial Summary'!$AQ$126 -> 168.9471388 | G81: 466.1188346 | H81: ='Financial Summary'!$R$150 -> 0.1426648075 | I81: ='Financial Summary'!$AQ$150 -> 0.1346685953 | J81: =Risk!$O$5 -> 4.125275207e-13 | K81: =Risk!$AN$5 -> 4.62315325e-13 | L81: =Risk!$O$9 -> -4.121147867e-13 | M81: =Risk!$AN$9 -> -4.618527782e-13 | N81: ='Financial Summary'!$BP$98 -> 0.1577585086 | O81: =SUM('Financial Summary'!BP$91:BP$94) -> 0.4470855257 | P81: =LR!$AO$38 -> 273.2517903 | Q81: =LR!$BN$38 -> 151.4026314 | R81: =LR!$AO$137 -> 283.134982 | S81: =LR!$BN$137 -> 181.4207415 | T81: =SUM(Res_MWh!$AQ$14:$AQ$68)/1000 -> 2169.906347 | U81: =SUM(Res_MWh!BP$14:BP$68)/1000 -> 1157.029488 | V81: ='Financial Summary'!$R$9 -> 5804.935806 | W81: ='Financial Summary'!$AQ$9 -> 3441.958048
A82: 2036 | B82: ='Financial Summary'!$S$148 -> 851.9706008 | C82: ='Financial Summary'!$AR$148 -> 477.3270215 | D82: 1329.297622 | E82: ='Financial Summary'!$S$126 -> 312.7782581 | F82: ='Financial Summary'!$AR$126 -> 176.5292003 | G82: 489.3074584 | H82: ='Financial Summary'!$S$150 -> 0.1465669963 | I82: ='Financial Summary'!$AR$150 -> 0.1386124259 | J82: =Risk!$P$5 -> 7.25479433e-13 | K82: =Risk!$AO$5 -> 4.765404119e-13 | L82: =Risk!$P$9 -> -7.247535905e-13 | M82: =Risk!$AO$9 -> -4.76063633e-13 | N82: ='Financial Summary'!$BQ$98 -> 0.2038842163 | O82: =SUM('Financial Summary'!BQ$91:BQ$94) -> 0.4869944918 | P82: =LR!$AP$38 -> 334.2881439 | Q82: =LR!$BO$38 -> 183.3323022 | R82: =LR!$AP$137 -> 332.97012 | S82: =LR!$BO$137 -> 207.4959432 | T82: =SUM(Res_MWh!$AR$14:$AR$68)/1000 -> 2193.696256 | U82: =SUM(Res_MWh!BQ$14:BQ$68)/1000 -> 1165.681725 | V82: ='Financial Summary'!$S$9 -> 5812.840696 | W82: ='Financial Summary'!$AR$9 -> 3443.609174
A83: 2037 | B83: ='Financial Summary'!$T$148 -> 868.4889331 | C83: ='Financial Summary'!$AS$148 -> 486.0993144 | D83: 1354.588248 | E83: ='Financial Summary'!$T$126 -> 311.6720757 | F83: ='Financial Summary'!$AS$126 -> 178.9536664 | G83: 490.6257422 | H83: ='Financial Summary'!$T$150 -> 0.1491723062 | I83: ='Financial Summary'!$AS$150 -> 0.1410491373 | J83: =Risk!$Q$5 -> 7.112543461e-14 | K83: =Risk!$AP$5 -> 6.33016368e-13 | L83: =Risk!$Q$9 -> 0 | M83: =Risk!$AP$9 -> 6.323830348e-13 | N83: ='Financial Summary'!$BR$98 -> 0.2060487917 | O83: =SUM('Financial Summary'!BR$91:BR$94) -> 0.4330110084 | P83: =LR!$AQ$38 -> 334.2607959 | Q83: =LR!$BP$38 -> 183.2295882 | R83: =LR!$AQ$137 -> 332.97012 | S83: =LR!$BP$137 -> 207.4959432 | T83: =SUM(Res_MWh!$AS$14:$AS$68)/1000 -> 2184.494614 | U83: =SUM(Res_MWh!BR$14:BR$68)/1000 -> 1159.606565 | V83: ='Financial Summary'!$T$9 -> 5822.052064 | W83: ='Financial Summary'!$AS$9 -> 3446.311859
A84: 2038 | B84: ='Financial Summary'!$U$148 -> 893.9270815 | C84: ='Financial Summary'!$AT$148 -> 499.2018742 | D84: 1393.128956 | E84: ='Financial Summary'!$U$126 -> 327.6758241 | F84: ='Financial Summary'!$AT$126 -> 185.5763637 | G84: 513.2521878 | H84: ='Financial Summary'!$U$150 -> 0.1532629419 | I84: ='Financial Summary'!$AT$150 -> 0.1447229522 | J84: =Risk!$R$5 -> 7.823797807e-13 | K84: =Risk!$AQ$5 -> 5.121031292e-13 | L84: =Risk!$R$9 -> -7.815970093e-13 | M84: =Risk!$AQ$9 -> 5.115907697e-13 | N84: ='Financial Summary'!$BS$98 -> 0.2108626967 | O84: =SUM('Financial Summary'!BS$91:BS$94) -> 0.4431539288 | P84: =LR!$AR$38 -> 345.0169661 | Q84: =LR!$BQ$38 -> 186.3036111 | R84: =LR!$AR$137 -> 349.2086475 | S84: =LR!$BQ$137 -> 215.9924157 | T84: =SUM(Res_MWh!$AT$14:$AT$68)/1000 -> 2313.88567 | U84: =SUM(Res_MWh!BS$14:BS$68)/1000 -> 1225.230145 | V84: ='Financial Summary'!$U$9 -> 5832.636844 | W84: ='Financial Summary'!$AT$9 -> 3449.362155
A85: 2039 | B85: ='Financial Summary'!$V$148 -> 910.0270398 | C85: ='Financial Summary'!$AU$148 -> 509.4383063 | D85: 1419.465346 | E85: ='Financial Summary'!$V$126 -> 326.0229376 | F85: ='Financial Summary'!$AU$126 -> 189.1991545 | G85: 515.2220921 | H85: ='Financial Summary'!$V$150 -> 0.1556882636 | I85: ='Financial Summary'!$AU$150 -> 0.1475115411 | J85: =Risk!$S$5 -> 8.819553892e-13 | K85: =Risk!$AR$5 -> 1.707010431e-13 | L85: =Risk!$S$9 -> 8.810729923e-13 | M85: =Risk!$AR$9 -> -1.705302566e-13 | N85: ='Financial Summary'!$BT$98 -> 0.2051444487 | O85: =SUM('Financial Summary'!BT$91:BT$94) -> 0.4006271234 | P85: =LR!$AS$38 -> 344.9474513 | Q85: =LR!$BR$38 -> 187.2360507 | R85: =LR!$AS$137 -> 349.2086475 | S85: =LR!$BR$137 -> 215.9924157 | T85: =SUM(Res_MWh!$AU$14:$AU$68)/1000 -> 2316.367963 | U85: =SUM(Res_MWh!BT$14:BT$68)/1000 -> 1226.166466 | V85: ='Financial Summary'!$V$9 -> 5845.187162 | W85: ='Financial Summary'!$AU$9 -> 3453.548804
A86: 2040 | B86: ='Financial Summary'!$W$148 -> 923.9213894 | C86: ='Financial Summary'!$AV$148 -> 517.6141118 | D86: 1441.535501 | E86: ='Financial Summary'!$W$126 -> 326.596616 | F86: ='Financial Summary'!$AV$126 -> 190.623768 | G86: 517.220384 | H86: ='Financial Summary'!$W$150 -> 0.1576776295 | I86: ='Financial Summary'!$AV$150 -> 0.1496417892 | J86: =Risk!$T$5 -> 4.267526077e-13 | K86: =Risk!$AS$5 -> 4.836529553e-13 | L86: =Risk!$T$9 -> -4.263256415e-13 | M86: =Risk!$AS$9 -> -4.831690603e-13 | N86: ='Financial Summary'!$BU$98 -> 0.2289168065 | O86: =SUM('Financial Summary'!BU$91:BU$94) -> 0.3970199395 | P86: =LR!$AT$38 -> 345.8785276 | Q86: =LR!$BS$38 -> 188.3156607 | R86: =LR!$AT$137 -> 350.2092386 | S86: =LR!$BS$137 -> 215.9924157 | T86: =SUM(Res_MWh!$AV$14:$AV$68)/1000 -> 2324.928265 | U86: =SUM(Res_MWh!BU$14:BU$68)/1000 -> 1233.403068 | V86: ='Financial Summary'!$W$9 -> 5859.559104 | W86: ='Financial Summary'!$AV$9 -> 3459.021137
A87: 2041 | B87: ='Financial Summary'!$X$148 -> 938.3220675 | C87: ='Financial Summary'!$AW$148 -> 526.76583 | D87: 1465.087897 | E87: ='Financial Summary'!$X$126 -> 327.4442035 | F87: ='Financial Summary'!$AW$126 -> 192.8880463 | G87: 520.3322499 | H87: ='Financial Summary'!$X$150 -> 0.1596709351 | I87: ='Financial Summary'!$AW$150 -> 0.1519396228 | J87: =Risk!$U$5 -> 4.267526077e-13 | K87: =Risk!$AT$5 -> 4.125275207e-13 | L87: =Risk!$U$9 -> 4.263256415e-13 | M87: =Risk!$AT$9 -> 4.121147867e-13 | N87: ='Financial Summary'!$BV$98 -> 0.2291090039 | O87: =SUM('Financial Summary'!BV$91:BV$94) -> 0.3680628342 | P87: =LR!$AU$38 -> 373.251886 | Q87: =LR!$BT$38 -> 201.4083367 | R87: =LR!$AU$137 -> 384.3091458 | S87: =LR!$BT$137 -> 234.358023 | T87: =SUM(Res_MWh!$AW$14:$AW$68)/1000 -> 2622.334027 | U87: =SUM(Res_MWh!BV$14:BV$68)/1000 -> 1393.297072 | V87: ='Financial Summary'!$X$9 -> 5876.599063 | W87: ='Financial Summary'!$AW$9 -> 3466.941805
A88: 2042 | B88: ='Financial Summary'!$Y$148 -> 963.3330845 | C88: ='Financial Summary'!$AX$148 -> 540.7994321 | D88: 1504.132517 | E88: ='Financial Summary'!$Y$126 -> 344.0215847 | F88: ='Financial Summary'!$AX$126 -> 199.8938679 | G88: 543.9154526 | H88: ='Financial Summary'!$Y$150 -> 0.1633760578 | I88: ='Financial Summary'!$AX$150 -> 0.1555223918 | J88: =Risk!$V$5 -> 6.970292592e-13 | K88: =Risk!$AU$5 -> 1.8492613e-13 | L88: =Risk!$V$9 -> -6.96331881e-13 | M88: =Risk!$AU$9 -> -1.847411113e-13 | N88: ='Financial Summary'!$BW$98 -> 0.2358642126 | O88: =SUM('Financial Summary'!BW$91:BW$94) -> 0.3973033868 | P88: =LR!$AV$38 -> 384.0080562 | Q88: =LR!$BU$38 -> 206.3633206 | R88: =LR!$AV$137 -> 400.5476733 | S88: =LR!$BU$137 -> 244.0123245 | T88: =SUM(Res_MWh!$AX$14:$AX$68)/1000 -> 2755.851911 | U88: =SUM(Res_MWh!BW$14:BW$68)/1000 -> 1461.133702 | V88: ='Financial Summary'!$Y$9 -> 5896.415284 | W88: ='Financial Summary'!$AX$9 -> 3477.309124
A89: 2043 | B89: ='Financial Summary'!$Z$148 -> 1000.256735 | C89: ='Financial Summary'!$AY$148 -> 568.7571011 | D89: 1569.013837 | E89: ='Financial Summary'!$Z$126 -> 361.2223935 | F89: ='Financial Summary'!$AY$126 -> 220.6766101 | G89: 581.8990037 | H89: ='Financial Summary'!$Z$150 -> 0.1689752005 | I89: ='Financial Summary'!$AY$150 -> 0.1629936207 | J89: =Risk!$W$5 -> 3.129519123e-13 | K89: =Risk!$AV$5 -> 1.066881519e-13 | L89: =Risk!$W$9 -> -3.126388037e-13 | M89: =Risk!$AV$9 -> -1.065814104e-13 | N89: ='Financial Summary'!$BX$98 -> 0.2510840115 | O89: =SUM('Financial Summary'!BX$91:BX$94) -> 0.3400577825 | P89: =LR!$AW$38 -> 395.1680103 | Q89: =LR!$BV$38 -> 243.705578 | R89: =LR!$AW$137 -> 417.3918766 | S89: =LR!$BV$137 -> 284.5623558 | T89: =SUM(Res_MWh!$AY$14:$AY$68)/1000 -> 2889.82061 | U89: =SUM(Res_MWh!BX$14:BX$68)/1000 -> 1553.42633 | V89: ='Financial Summary'!$Z$9 -> 5919.547558 | W89: ='Financial Summary'!$AY$9 -> 3489.443935
A90: 2044 | B90: ='Financial Summary'!$AA$148 -> 1021.665522 | C90: ='Financial Summary'!$AZ$148 -> 579.3849893 | D90: 1601.050511 | E90: ='Financial Summary'!$AA$126 -> 379.7156287 | F90: ='Financial Summary'!$AZ$126 -> 223.9793243 | G90: 603.694953 | H90: ='Financial Summary'!$AA$150 -> 0.1718051105 | I90: ='Financial Summary'!$AZ$150 -> 0.1653490511 | J90: =Risk!$X$5 -> 1.138006954e-13 | K90: =Risk!$AW$5 -> 5.547783899e-13 | L90: =Risk!$X$9 -> 1.136868377e-13 | M90: =Risk!$AW$9 -> 5.542233339e-13 | N90: ='Financial Summary'!$BY$98 -> 0.335587464 | O90: =SUM('Financial Summary'!BY$91:BY$94) -> 0.4410625342 | P90: =LR!$AX$38 -> 406.332055 | Q90: =LR!$BW$38 -> 243.6142484 | R90: =LR!$AX$137 -> 417.0510834 | S90: =LR!$BW$137 -> 284.5623558 | T90: =SUM(Res_MWh!$AZ$14:$AZ$68)/1000 -> 2911.925277 | U90: =SUM(Res_MWh!BY$14:BY$68)/1000 -> 1589.012082 | V90: ='Financial Summary'!$AA$9 -> 5946.653847 | W90: ='Financial Summary'!$AZ$9 -> 3504.011576
A91: 2045 | B91: ='Financial Summary'!$AB$148 -> 1051.488555 | C91: ='Financial Summary'!$BA$148 -> 593.0405993 | D91: 1644.529155 | E91: ='Financial Summary'!$AB$126 -> 388.7186744 | F91: ='Financial Summary'!$BA$126 -> 230.1563388 | G91: 618.8750132 | H91: ='Financial Summary'!$AB$150 -> 0.1758779738 | I91: ='Financial Summary'!$BA$150 -> 0.1684350023 | J91: =Risk!$Y$5 -> 3.840773469e-13 | K91: =Risk!$AX$5 -> 1.707010431e-13 | L91: =Risk!$Y$9 -> 3.836930773e-13 | M91: =Risk!$AX$9 -> 1.705302566e-13 | N91: ='Financial Summary'!$BZ$98 -> 0.295196659 | O91: =SUM('Financial Summary'!BZ$91:BZ$94) -> 0.380602323 | P91: =LR!$AY$38 -> 418.9064325 | Q91: =LR!$BX$38 -> 243.5229188 | R91: =LR!$AY$137 -> 423.2467595 | S91: =LR!$BX$137 -> 284.5623558 | T91: =SUM(Res_MWh!$BA$14:$BA$68)/1000 -> 2937.305235 | U91: =SUM(Res_MWh!BZ$14:BZ$68)/1000 -> 1592.318083 | V91: ='Financial Summary'!$AB$9 -> 5978.511876 | W91: ='Financial Summary'!$BA$9 -> 3520.886937

Sheet Financial Summary
A1: Key Financial & Other Results
B2: Nominal Dollars (Millions)
A4: 0.0668 | B4: Discount Rate
A5: 0.0286282296 | B5: WA Misc Adder
A6: 0.000525708 | B6: ID Misc Adder
E7: Washington- Direct | AD7: Idaho- Direct | BC7: System/Shared Data | CC7: Sunk Costs
B8: Time | E8: 2022 | F8: 2023 | G8: 2024 | H8: 2025 | I8: 2026 | J8: 2027 | K8: 2028 | L8: 2029 | M8: 2030 | N8: 2031 | O8: 2032 | P8: 2033 | Q8: 2034 | R8: 2035 | S8: 2036 | T8: 2037 | U8: 2038 | V8: 2039 | W8: 2040 | X8: 2041 | Y8: 2042 | Z8: 2043 | AA8: 2044 | AB8: 2045 | AD8: 2022 | AE8: 2023 | AF8: 2024 | AG8: 2025 | AH8: 2026 | AI8: 2027 | AJ8: 2028 | AK8: 2029 | AL8: 2030 | AM8: 2031 | AN8: 2032 | AO8: 2033 | AP8: 2034 | AQ8: 2035 | AR8: 2036 | AS8: 2037 | AT8: 2038 | AU8: 2039 | AV8: 2040 | AW8: 2041 | AX8: 2042 | AY8: 2043 | AZ8: 2044 | BA8: 2045 | BC8: 2022 | BD8: 2023 | BE8: 2024 | BF8: 2025 | BG8: 2026 | BH8: 2027 | BI8: 2028 | BJ8: 2029 | BK8: 2030 | BL8: 2031 | BM8: 2032 | BN8: 2033 | BO8: 2034 | BP8: 2035 | BQ8: 2036 | BR8: 2037 | BS8: 2038 | BT8: 2039 | BU8: 2040 | BV8: 2041 | BW8: 2042 | BX8: 2043 | BY8: 2044 | BZ8: 2045 | CC8: 2022 | CD8: 2023 | CE8: 2024 | CF8: 2025
B9: Retail Sales (GWh) | E9: ='Clean Goals'!M7*G_A!P6/1000 -> 5664.878218 | F9: ='Clean Goals'!N7*G_A!Q6/1000 -> 5691.268712 | G9: ='Clean Goals'!O7*G_A!R6/1000 -> 5712.375104 | H9: ='Clean Goals'!P7*G_A!S6/1000 -> 5730.862826 | I9: ='Clean Goals'!Q7*G_A!T6/1000 -> 5742.156897 | J9: ='Clean Goals'!R7*G_A!U6/1000 -> 5751.326038 | K9: ='Clean Goals'!S7*G_A!V6/1000 -> 5761.302982 | L9: ='Clean Goals'!T7*G_A!W6/1000 -> 5771.219708 | M9: ='Clean Goals'!U7*G_A!X6/1000 -> 5776.180282 | N9: ='Clean Goals'!V7*G_A!Y6/1000 -> 5781.143246 | O9: ='Clean Goals'!W7*G_A!Z6/1000 -> 5786.31576 | P9: ='Clean Goals'!X7*G_A!AA6/1000 -> 5791.871706 | Q9: ='Clean Goals'!Y7*G_A!AB6/1000 -> 5798.006278 | R9: ='Clean Goals'!Z7*G_A!AC6/1000 -> 5804.935806 | S9: ='Clean Goals'!AA7*G_A!AD6/1000 -> 5812.840696 | T9: ='Clean Goals'!AB7*G_A!AE6/1000 -> 5822.052064 | U9: ='Clean Goals'!AC7*G_A!AF6/1000 -> 5832.636844 | V9: ='Clean Goals'!AD7*G_A!AG6/1000 -> 5845.187162 | W9: ='Clean Goals'!AE7*G_A!AH6/1000 -> 5859.559104 | X9: ='Clean Goals'!AF7*G_A!AI6/1000 -> 5876.599063 | Y9: ='Clean Goals'!AG7*G_A!AJ6/1000 -> 5896.415284 | Z9: ='Clean Goals'!AH7*G_A!AK6/1000 -> 5919.547558 | AA9: ='Clean Goals'!AI7*G_A!AL6/1000 -> 5946.653847 | AB9: ='Clean Goals'!AJ7*G_A!AM6/1000 -> 5978.511876 | AD9: ='Clean Goals'!AL7*G_A!P6/1000 -> 3428.297451 | AE9: ='Clean Goals'!AM7*G_A!Q6/1000 -> 3435.347948 | AF9: ='Clean Goals'!AN7*G_A!R6/1000 -> 3440.964196 | AG9: ='Clean Goals'!AO7*G_A!S6/1000 -> 3445.06599 | AH9: ='Clean Goals'!AP7*G_A!T6/1000 -> 3444.843812 | AI9: ='Clean Goals'!AQ7*G_A!U6/1000 -> 3444.960109 | AJ9: ='Clean Goals'!AR7*G_A!V6/1000 -> 3445.250795 | AK9: ='Clean Goals'!AS7*G_A!W6/1000 -> 3445.528743 | AL9: ='Clean Goals'!AT7*G_A!X6/1000 -> 3443.751542 | AM9: ='Clean Goals'!AU7*G_A!Y6/1000 -> 3442.256511 | AN9: ='Clean Goals'!AV7*G_A!Z6/1000 -> 3441.277012 | AO9: ='Clean Goals'!AW7*G_A!AA6/1000 -> 3440.850972 | AP9: ='Clean Goals'!AX7*G_A!AB6/1000 -> 3441.026014 | AQ9: ='Clean Goals'!AY7*G_A!AC6/1000 -> 3441.958048 | AR9: ='Clean Goals'!AZ7*G_A!AD6/1000 -> 3443.609174 | AS9: ='Clean Goals'!BA7*G_A!AE6/1000 -> 3446.311859 | AT9: ='Clean Goals'!BB7*G_A!AF6/1000 -> 3449.362155 | AU9: ='Clean Goals'!BC7*G_A!AG6/1000 -> 3453.548804 | AV9: ='Clean Goals'!BD7*G_A!AH6/1000 -> 3459.021137 | AW9: ='Clean Goals'!BE7*G_A!AI6/1000 -> 3466.941805 | AX9: ='Clean Goals'!BF7*G_A!AJ6/1000 -> 3477.309124 | AY9: ='Clean Goals'!BG7*G_A!AK6/1000 -> 3489.443935 | AZ9: ='Clean Goals'!BH7*G_A!AL6/1000 -> 3504.011576 | BA9: ='Clean Goals'!BI7*G_A!AM6/1000 -> 3520.886937 | BC9: =E9+AD9 -> 9093.17567 | BD9: =F9+AE9 -> 9126.61666 | BE9: 9153.3393 | BF9: 9175.928816 | BG9: 9187.000709 | BH9: 9196.286147 | BI9: 9206.553777 | BJ9: 9216.748451 | BK9: 9219.931824 | BL9: 9223.399757 | BM9: 9227.592772 | BN9: 9232.722678 | BO9: 9239.032292 | BP9: 9246.893854 | BQ9: 9256.449871 | BR9: 9268.363923 | BS9: 9281.998999 | BT9: 9298.735966 | BU9: 9318.580241 | BV9: 9343.540868 | BW9: 9373.724408 | BX9: 9408.991493 | BY9: 9450.665424 | BZ9: 9499.398813
B11: Load Cost at Market Prices (No EE) | E11: =G_A!P$32*Portfolio!CB$5 -> 131.4095085 | F11: =G_A!Q$32*Portfolio!CC$5 -> 123.5520734 | G11: =G_A!R$32*Portfolio!CD$5 -> 123.0115756 | H11: =G_A!S$32*Portfolio!CE$5 -> 131.5931726 | I11: =G_A!T$32*Portfolio!CF$5 -> 157.0486425 | J11: =G_A!U$32*Portfolio!CG$5 -> 162.9094157 | K11: =G_A!V$32*Portfolio!CH$5 -> 172.4837581 | L11: =G_A!W$32*Portfolio!CI$5 -> 178.3257048 | M11: =G_A!X$32*Portfolio!CJ$5 -> 179.5503367 | N11: =G_A!Y$32*Portfolio!CK$5 -> 187.1693611 | O11: =G_A!Z$32*Portfolio!CL$5 -> 192.72467 | P11: =G_A!AA$32*Portfolio!CM$5 -> 203.1014665 | Q11: =G_A!AB$32*Portfolio!CN$5 -> 207.5998418 | R11: =G_A!AC$32*Portfolio!CO$5 -> 217.505749 | S11: =G_A!AD$32*Portfolio!CP$5 -> 222.8153964 | T11: =G_A!AE$32*Portfolio!CQ$5 -> 227.5434652 | U11: =G_A!AF$32*Portfolio!CR$5 -> 236.2886673 | V11: =G_A!AG$32*Portfolio!CS$5 -> 244.4768422 | W11: =G_A!AH$32*Portfolio!CT$5 -> 251.1378029 | X11: =G_A!AI$32*Portfolio!CU$5 -> 261.1274493 | Y11: =G_A!AJ$32*Portfolio!CV$5 -> 271.4809285 | Z11: =G_A!AK$32*Portfolio!CW$5 -> 274.2763057 | AA11: =G_A!AL$32*Portfolio!CX$5 -> 312.4884706 | AB11: =G_A!AM$32*Portfolio!CY$5 -> 318.7718642 | AD11: =G_A!P$33*Portfolio!CB$5 -> 68.75729803 | AE11: =G_A!Q$33*Portfolio!CC$5 -> 64.64605819 | AF11: =G_A!R$33*Portfolio!CD$5 -> 64.36325396 | AG11: =G_A!S$33*Portfolio!CE$5 -> 68.85339648 | AH11: =G_A!T$33*Portfolio!CF$5 -> 82.17244279 | AI11: =G_A!U$33*Portfolio!CG$5 -> 85.23897072 | AJ11: =G_A!V$33*Portfolio!CH$5 -> 90.24854671 | AK11: =G_A!W$33*Portfolio!CI$5 -> 93.30522409 | AL11: =G_A!X$33*Portfolio!CJ$5 -> 93.94598727 | AM11: =G_A!Y$33*Portfolio!CK$5 -> 97.93248369 | AN11: =G_A!Z$33*Portfolio!CL$5 -> 100.8391838 | AO11: =G_A!AA$33*Portfolio!CM$5 -> 106.2686272 | AP11: =G_A!AB$33*Portfolio!CN$5 -> 108.6223087 | AQ11: =G_A!AC$33*Portfolio!CO$5 -> 113.805369 | AR11: =G_A!AD$33*Portfolio!CP$5 -> 116.5835318 | AS11: =G_A!AE$33*Portfolio!CQ$5 -> 119.0573957 | AT11: =G_A!AF$33*Portfolio!CR$5 -> 123.6331413 | AU11: =G_A!AG$33*Portfolio!CS$5 -> 127.9174338 | AV11: =G_A!AH$33*Portfolio!CT$5 -> 131.4026433 | AW11: =G_A!AI$33*Portfolio!CU$5 -> 136.6295184 | AX11: =G_A!AJ$33*Portfolio!CV$5 -> 142.0467615 | AY11: =G_A!AK$33*Portfolio!CW$5 -> 143.5093847 | AZ11: =G_A!AL$33*Portfolio!CX$5 -> 163.5031068 | BA11: =G_A!AM$33*Portfolio!CY$5 -> 166.7907621
B13: Energy Efficiency
B14: Optimization Cost | E14: =EE_Selection!BM4 -> 0.6687923165 | F14: =EE_Selection!BN4 -> 1.507239366 | G14: =EE_Selection!BO4 -> 2.564198236 | H14: =EE_Selection!BP4 -> 2.682043523 | I14: =EE_Selection!BQ4 -> 3.963496876 | J14: =EE_Selection!BR4 -> 5.49929592 | K14: =EE_Selection!BS4 -> 7.351647051 | L14: =EE_Selection!BT4 -> 9.475343475 | M14: =EE_Selection!BU4 -> 11.26178635 | N14: =EE_Selection!BV4 -> 13.70686742 | O14: =EE_Selection!BW4 -> 16.30739027 | P14: =EE_Selection!BX4 -> 18.92901864 | Q14: =EE_Selection!BY4 -> 21.49126965 | R14: =EE_Selection!BZ4 -> 23.99408314 | S14: =EE_Selection!CA4 -> 26.24028953 | T14: =EE_Selection!CB4 -> 28.3233722 | U14: =EE_Selection!CC4 -> 31.75779431 | V14: =EE_Selection!CD4 -> 33.85603666 | W14: =EE_Selection!CE4 -> 35.32935719 | X14: =EE_Selection!CF4 -> 36.1759281 | Y14: =EE_Selection!CG4 -> 39.60435209 | Z14: =EE_Selection!CH4 -> 40.07575679 | AA14: =EE_Selection!CI4 -> 40.23040937 | AB14: =EE_Selection!CJ4 -> 40.15180099 | AD14: =EE_Selection!CL5 -> 0.2194227127 | AE14: =EE_Selection!CM5 -> 0.4798776938 | AF14: =EE_Selection!CN5 -> 0.754124143 | AG14: =EE_Selection!CO5 -> 0.5307883313 | AH14: =EE_Selection!CP5 -> 0.7399794227 | AI14: =EE_Selection!CQ5 -> 0.9848608353 | AJ14: =EE_Selection!CR5 -> 1.270714476 | AK14: =EE_Selection!CS5 -> 1.594563074 | AL14: =EE_Selection!CT5 -> 1.776223295 | AM14: =EE_Selection!CU5 -> 2.136808537 | AN14: =EE_Selection!CV5 -> 2.514421408 | AO14: =EE_Selection!CW5 -> 2.901758304 | AP14: =EE_Selection!CX5 -> 3.285724453 | AQ14: =EE_Selection!CY5 -> 3.645302705 | AR14: =EE_Selection!CZ5 -> 3.976129358 | AS14: =EE_Selection!DA5 -> 4.260084034 | AT14: =EE_Selection!DB5 -> 4.537547816 | AU14: =EE_Selection!DC5 -> 4.779294049 | AV14: =EE_Selection!DD5 -> 5.009028861 | AW14: =EE_Selection!DE5 -> 6.084045898 | AX14: =EE_Selection!DF5 -> 6.117637852 | AY14: =EE_Selection!DG5 -> 6.123214139 | AZ14: =EE_Selection!DH5 -> 6.056449718 | BA14: =EE_Selection!DI5 -> 5.979232943
B15: Market Value | E15: =-EE_Mrkt_Value!AE4 -> -0.6867663811 | F15: =-EE_Mrkt_Value!AF4 -> -1.392926488 | G15: =-EE_Mrkt_Value!AG4 -> -2.209738559 | H15: =-EE_Mrkt_Value!AH4 -> -3.378961396 | I15: =-EE_Mrkt_Value!AI4 -> -5.355965961 | J15: =-EE_Mrkt_Value!AJ4 -> -7.040027335 | K15: =-EE_Mrkt_Value!AK4 -> -8.99774117 | L15: =-EE_Mrkt_Value!AL4 -> -10.88592222 | M15: =-EE_Mrkt_Value!AM4 -> -12.50765377 | N15: =-EE_Mrkt_Value!AN4 -> -14.44350845 | O15: =-EE_Mrkt_Value!AO4 -> -16.10004277 | P15: =-EE_Mrkt_Value!AP4 -> -18.19825929 | Q15: =-EE_Mrkt_Value!AQ4 -> -19.59882545 | R15: =-EE_Mrkt_Value!AR4 -> -21.37963493 | S15: =-EE_Mrkt_Value!AS4 -> -22.65915791 | T15: =-EE_Mrkt_Value!AT4 -> -23.8700412 | U15: =-EE_Mrkt_Value!AU4 -> -25.40559188 | V15: =-EE_Mrkt_Value!AV4 -> -26.69375544 | W15: =-EE_Mrkt_Value!AW4 -> -27.77526412 | X15: =-EE_Mrkt_Value!AX4 -> -29.06046147 | Y15: =-EE_Mrkt_Value!AY4 -> -30.24966068 | Z15: =-EE_Mrkt_Value!AZ4 -> -30.45237608 | AA15: =-EE_Mrkt_Value!BA4 -> -34.32706774 | AB15: =-EE_Mrkt_Value!BB4 -> -34.75733918 | AD15: =-EE_Mrkt_Value!BD4 -> -0.3036280271 | AE15: =-EE_Mrkt_Value!BE4 -> -0.5978331281 | AF15: =-EE_Mrkt_Value!BF4 -> -0.9089041448 | AG15: =-EE_Mrkt_Value!BG4 -> -1.331589667 | AH15: =-EE_Mrkt_Value!BH4 -> -2.038413289 | AI15: =-EE_Mrkt_Value!BI4 -> -2.601832698 | AJ15: =-EE_Mrkt_Value!BJ4 -> -3.250414837 | AK15: =-EE_Mrkt_Value!BK4 -> -3.863830657 | AL15: =-EE_Mrkt_Value!BL4 -> -4.384259131 | AM15: =-EE_Mrkt_Value!BM4 -> -5.018025274 | AN15: =-EE_Mrkt_Value!BN4 -> -5.539360908 | AO15: =-EE_Mrkt_Value!BO4 -> -6.236249704 | AP15: =-EE_Mrkt_Value!BP4 -> -6.698963688 | AQ15: =-EE_Mrkt_Value!BQ4 -> -7.303577074 | AR15: =-EE_Mrkt_Value!BR4 -> -7.737142432 | AS15: =-EE_Mrkt_Value!BS4 -> -8.126643219 | AT15: =-EE_Mrkt_Value!BT4 -> -8.623336234 | AU15: =-EE_Mrkt_Value!BU4 -> -9.084203766 | AV15: =-EE_Mrkt_Value!BV4 -> -9.481643401 | AW15: =-EE_Mrkt_Value!BW4 -> -9.956149997 | AX15: =-EE_Mrkt_Value!BX4 -> -10.36486995 | AY15: =-EE_Mrkt_Value!BY4 -> -10.47890008 | AZ15: =-EE_Mrkt_Value!BZ4 -> -11.9105623 | BA15: =-EE_Mrkt_Value!CA4 -> -12.1348786
B16: T&D Adjustment | E16: =-(G_A!P$18*EE_Selection!EK4*1000)/1000000 -> -0.08816965168 | F16: =-(G_A!Q$18*EE_Selection!EL4*1000)/1000000 -> -0.1968947638 | G16: =-(G_A!R$18*EE_Selection!EM4*1000)/1000000 -> -0.3234732175 | H16: =-(G_A!S$18*EE_Selection!EN4*1000)/1000000 -> -0.4726049396 | I16: =-(G_A!T$18*EE_Selection!EO4*1000)/1000000 -> -0.6467846687 | J16: =-(G_A!U$18*EE_Selection!EP4*1000)/1000000 -> -0.8394705181 | K16: =-(G_A!V$18*EE_Selection!EQ4*1000)/1000000 -> -1.042144451 | L16: =-(G_A!W$18*EE_Selection!ER4*1000)/1000000 -> -1.241716398 | M16: =-(G_A!X$18*EE_Selection!ES4*1000)/1000000 -> -1.429371415 | N16: =-(G_A!Y$18*EE_Selection!ET4*1000)/1000000 -> -1.596093525 | O16: =-(G_A!Z$18*EE_Selection!EU4*1000)/1000000 -> -1.736320327 | P16: =-(G_A!AA$18*EE_Selection!EV4*1000)/1000000 -> -1.852272506 | Q16: =-(G_A!AB$18*EE_Selection!EW4*1000)/1000000 -> -1.947540784 | R16: =-(G_A!AC$18*EE_Selection!EX4*1000)/1000000 -> -2.025271641 | S16: =-(G_A!AD$18*EE_Selection!EY4*1000)/1000000 -> -2.088022213 | T16: =-(G_A!AE$18*EE_Selection!EZ4*1000)/1000000 -> -2.137933593 | U16: =-(G_A!AF$18*EE_Selection!FA4*1000)/1000000 -> -2.181951272 | V16: =-(G_A!AG$18*EE_Selection!FB4*1000)/1000000 -> -2.21859803 | W16: =-(G_A!AH$18*EE_Selection!FC4*1000)/1000000 -> -2.250189385 | X16: =-(G_A!AI$18*EE_Selection!FD4*1000)/1000000 -> -2.268141879 | Y16: =-(G_A!AJ$18*EE_Selection!FE4*1000)/1000000 -> -2.28170123 | Z16: =-(G_A!AK$18*EE_Selection!FF4*1000)/1000000 -> -2.283981559 | AA16: =-(G_A!AL$18*EE_Selection!FG4*1000)/1000000 -> -2.279385919 | AB16: =-(G_A!AM$18*EE_Selection!FH4*1000)/1000000 -> -2.271379673 | AD16: =-(G_A!P$18*EE_Selection!EK5*1000)/1000000 -> -0.03565545572 | AE16: =-(G_A!Q$18*EE_Selection!EL5*1000)/1000000 -> -0.07845567379 | AF16: =-(G_A!R$18*EE_Selection!EM5*1000)/1000000 -> -0.1266069974 | AG16: =-(G_A!S$18*EE_Selection!EN5*1000)/1000000 -> -0.1810565341 | AH16: =-(G_A!T$18*EE_Selection!EO5*1000)/1000000 -> -0.2437244879 | AI16: =-(G_A!U$18*EE_Selection!EP5*1000)/1000000 -> -0.3121844155 | AJ16: =-(G_A!V$18*EE_Selection!EQ5*1000)/1000000 -> -0.3834949661 | AK16: =-(G_A!W$18*EE_Selection!ER5*1000)/1000000 -> -0.4532186917 | AL16: =-(G_A!X$18*EE_Selection!ES5*1000)/1000000 -> -0.5182112717 | AM16: =-(G_A!Y$18*EE_Selection!ET5*1000)/1000000 -> -0.5754493867 | AN16: =-(G_A!Z$18*EE_Selection!EU5*1000)/1000000 -> -0.6223304669 | AO16: =-(G_A!AA$18*EE_Selection!EV5*1000)/1000000 -> -0.6609363315 | AP16: =-(G_A!AB$18*EE_Selection!EW5*1000)/1000000 -> -0.6924001391 | AQ16: =-(G_A!AC$18*EE_Selection!EX5*1000)/1000000 -> -0.7179887912 | AR16: =-(G_A!AD$18*EE_Selection!EY5*1000)/1000000 -> -0.7389595661 | AS16: =-(G_A!AE$18*EE_Selection!EZ5*1000)/1000000 -> -0.7553523283 | AT16: =-(G_A!AF$18*EE_Selection!FA5*1000)/1000000 -> -0.7701886758 | AU16: =-(G_A!AG$18*EE_Selection!FB5*1000)/1000000 -> -0.7825486727 | AV16: =-(G_A!AH$18*EE_Selection!FC5*1000)/1000000 -> -0.7931495988 | AW16: =-(G_A!AI$18*EE_Selection!FD5*1000)/1000000 -> -0.7974432294 | AX16: =-(G_A!AJ$18*EE_Selection!FE5*1000)/1000000 -> -0.7970065044 | AY16: =-(G_A!AK$18*EE_Selection!FF5*1000)/1000000 -> -0.7959567936 | AZ16: =-(G_A!AL$18*EE_Selection!FG5*1000)/1000000 -> -0.79352906 | BA16: =-(G_A!AM$18*EE_Selection!FH5*1000)/1000000 -> -0.7899051806
B17: Non-Energy Benefits | E17: =EE_Selection!O4*-G_A!P$34/1000 -> -0.2984498155 | F17: =EE_Selection!P4*-G_A!Q$34/1000 -> -0.6504706231 | G17: =EE_Selection!Q4*-G_A!R$34/1000 -> -1.043027895 | H17: =EE_Selection!R4*-G_A!S$34/1000 -> -1.502088235 | I17: =EE_Selection!S4*-G_A!T$34/1000 -> -2.019240637 | J17: =EE_Selection!T4*-G_A!U$34/1000 -> -2.576754114 | K17: =EE_Selection!U4*-G_A!V$34/1000 -> -3.157837679 | L17: =EE_Selection!V4*-G_A!W$34/1000 -> -3.726023612 | M17: =EE_Selection!W4*-G_A!X$34/1000 -> -4.270575979 | N17: =EE_Selection!X4*-G_A!Y$34/1000 -> -4.771055291 | O17: =EE_Selection!Y4*-G_A!Z$34/1000 -> -5.213097548 | P17: =EE_Selection!Z4*-G_A!AA$34/1000 -> -5.601859132 | Q17: =EE_Selection!AA4*-G_A!AB$34/1000 -> -5.944769181 | R17: =EE_Selection!AB4*-G_A!AC$34/1000 -> -6.2447831 | S17: =EE_Selection!AC4*-G_A!AD$34/1000 -> -6.505680028 | T17: =EE_Selection!AD4*-G_A!AE$34/1000 -> -6.714908227 | U17: =EE_Selection!AE4*-G_A!AF$34/1000 -> -6.916313882 | V17: =EE_Selection!AF4*-G_A!AG$34/1000 -> -7.074033012 | W17: =EE_Selection!AG4*-G_A!AH$34/1000 -> -7.209241228 | X17: =EE_Selection!AH4*-G_A!AI$34/1000 -> -7.285658841 | Y17: =EE_Selection!AI4*-G_A!AJ$34/1000 -> -7.344462204 | Z17: =EE_Selection!AJ4*-G_A!AK$34/1000 -> -7.36447587 | AA17: =EE_Selection!AK4*-G_A!AL$34/1000 -> -7.365928119 | AB17: =EE_Selection!AL4*-G_A!AM$34/1000 -> -7.348814041 | AD17: 0 | AE17: 0 | AF17: 0 | AG17: 0 | AH17: 0 | AI17: 0 | AJ17: 0 | AK17: 0 | AL17: 0 | AM17: 0 | AN17: 0 | AO17: 0 | AP17: 0 | AQ17: 0 | AR17: 0 | AS17: 0 | AT17: 0 | AU17: 0 | AV17: 0 | AW17: 0 | AX17: 0 | AY17: 0 | AZ17: 0 | BA17: 0
B18: Power Act Energy/T&D- 10% Adder | E18: =SUM(E15:E16)*0.1 -> -0.07749360328 | F18: =SUM(F15:F16)*0.1 -> -0.1589821252 | G18: -0.2533211776 | H18: -0.3851566335 | I18: -0.600275063 | J18: -0.7879497854 | K18: -1.003988562 | L18: -1.212763862 | M18: -1.393702518 | N18: -1.603960198 | O18: -1.78363631 | P18: -2.00505318 | Q18: -2.154636623 | R18: -2.340490657 | S18: -2.474718012 | T18: -2.600797479 | U18: -2.758754315 | V18: -2.891235347 | W18: -3.00254535 | X18: -3.132860335 | Y18: -3.253136191 | Z18: -3.273635764 | AA18: -3.660645366 | AB18: =SUM(AB15:AB16)*0.1 -> -3.702871886 | AD18: 0 | AE18: 0 | AF18: 0 | AG18: 0 | AH18: 0 | AI18: 0 | AJ18: 0 | AK18: 0 | AL18: 0 | AM18: 0 | AN18: 0 | AO18: 0 | AP18: 0 | AQ18: 0 | AR18: 0 | AS18: 0 | AT18: 0 | AU18: 0 | AV18: 0 | AW18: 0 | AX18: 0 | AY18: 0 | AZ18: 0 | BA18: 0
B19: Capacity Power Act- 10% Adder | E19: =EE_Selection!EK4*0.1*-G_A!P20/1000 -> 0 | F19: =EE_Selection!EL4*0.1*-G_A!Q20/1000 -> 0 | G19: =EE_Selection!EM4*0.1*-G_A!R20/1000 -> 0 | H19: =EE_Selection!EN4*0.1*-G_A!S20/1000 -> 0 | I19: =EE_Selection!EO4*0.1*-G_A!T20/1000 -> -0.3220406797 | J19: =EE_Selection!EP4*0.1*-G_A!U20/1000 -> -0.4263405469 | K19: =EE_Selection!EQ4*0.1*-G_A!V20/1000 -> -0.5398576769 | L19: =EE_Selection!ER4*0.1*-G_A!W20/1000 -> -0.6561059094 | M19: =EE_Selection!ES4*0.1*-G_A!X20/1000 -> -0.7703654506 | N19: =EE_Selection!ET4*0.1*-G_A!Y20/1000 -> -0.8774254199 | O19: =EE_Selection!EU4*0.1*-G_A!Z20/1000 -> -0.9736029872 | P19: =EE_Selection!EV4*0.1*-G_A!AA20/1000 -> -1.059393004 | Q19: =EE_Selection!EW4*0.1*-G_A!AB20/1000 -> -1.136158581 | R19: =EE_Selection!EX4*0.1*-G_A!AC20/1000 -> -1.205135404 | S19: =EE_Selection!EY4*0.1*-G_A!AD20/1000 -> -1.267324555 | T19: =EE_Selection!EZ4*0.1*-G_A!AE20/1000 -> -1.32357062 | U19: =EE_Selection!FA4*0.1*-G_A!AF20/1000 -> -1.377837899 | V19: =EE_Selection!FB4*0.1*-G_A!AG20/1000 -> -1.428998831 | W19: =EE_Selection!FC4*0.1*-G_A!AH20/1000 -> -1.478333757 | X19: =EE_Selection!FD4*0.1*-G_A!AI20/1000 -> -1.519930785 | Y19: =EE_Selection!FE4*0.1*-G_A!AJ20/1000 -> -1.559597543 | Z19: =EE_Selection!FF4*0.1*-G_A!AK20/1000 -> -1.592379327 | AA19: =EE_Selection!FG4*0.1*-G_A!AL20/1000 -> -1.620958778 | AB19: =EE_Selection!FH4*0.1*-G_A!AM20/1000 -> -1.647570534 | AD19: 0 | AE19: 0 | AF19: 0 | AG19: 0 | AH19: 0 | AI19: 0 | AJ19: 0 | AK19: 0 | AL19: 0 | AM19: 0 | AN19: 0 | AO19: 0 | AP19: 0 | AQ19: 0 | AR19: 0 | AS19: 0 | AT19: 0 | AU19: 0 | AV19: 0 | AW19: 0 | AX19: 0 | AY19: 0 | AZ19: 0 | BA19: 0
B20: DR Power Act Adder- Energy | E20: =-DR!B119*0.1/1000000 -> 0 | F20: =-DR!C119*0.1/1000000 -> 0 | G20: =-DR!D119*0.1/1000000 -> 0 | H20: =-DR!E119*0.1/1000000 -> 0 | I20: =-DR!F119*0.1/1000000 -> -0.001117748632 | J20: =-DR!G119*0.1/1000000 -> -0.02860659328 | K20: =-DR!H119*0.1/1000000 -> -0.0446224054 | L20: =-DR!I119*0.1/1000000 -> -0.08059698703 | M20: =-DR!J119*0.1/1000000 -> -0.04050368344 | N20: =-DR!K119*0.1/1000000 -> -0.0500010824 | O20: =-DR!L119*0.1/1000000 -> -0.08195847725 | P20: =-DR!M119*0.1/1000000 -> -0.07691145523 | Q20: =-DR!N119*0.1/1000000 -> -0.06855347504 | R20: =-DR!O119*0.1/1000000 -> -0.06991493124 | S20: =-DR!P119*0.1/1000000 -> -0.2267723919 | T20: =-DR!Q119*0.1/1000000 -> -0.1695775868 | U20: =-DR!R119*0.1/1000000 -> -0.1057391748 | V20: =-DR!S119*0.1/1000000 -> -0.1335577145 | W20: =-DR!T119*0.1/1000000 -> -0.1390676287 | X20: =-DR!U119*0.1/1000000 -> -0.2104669034 | Y20: =-DR!V119*0.1/1000000 -> -0.1721647334 | Z20: =-DR!W119*0.1/1000000 -> -0.1983311472 | AA20: =-DR!X119*0.1/1000000 -> -0.2017373122 | AB20: =-DR!Y119*0.1/1000000 -> -0.2004596378 | AD20: 0 | AE20: 0 | AF20: 0 | AG20: 0 | AH20: 0 | AI20: 0 | AJ20: 0 | AK20: 0 | AL20: 0 | AM20: 0 | AN20: 0 | AO20: 0 | AP20: 0 | AQ20: 0 | AR20: 0 | AS20: 0 | AT20: 0 | AU20: 0 | AV20: 0 | AW20: 0 | AX20: 0 | AY20: 0 | AZ20: 0 | BA20: 0
B22: Existing/Committed Thermal Plant Capital Recovery
B23: Coyote Springs 2 | E23: 11.65927718 | F23: 11.2291082 | G23: 10.82560236 | H23: 10.44410463 | I23: 10.0753217 | J23: 9.711548966 | K23: 9.35005665 | L23: 8.991470913 | M23: 8.634095623 | N23: 8.277019217 | O23: 7.920461095 | P23: 7.564848018 | Q23: 7.209809824 | R23: 6.854887507 | S23: 6.501651659 | T23: 6.151657567 | U23: 5.803453911 | V23: 5.455517308 | W23: 1.041753933 | X23: 1.003802293 | Y23: 1.003802293 | Z23: 1.003802293 | AA23: 1.003802293 | AB23: 1.003802293 | AD23: 6.086959014 | AE23: 5.862380688 | AF23: 5.651722388 | AG23: 5.452553865 | AH23: 5.260023354 | AI23: 5.070108516 | AJ23: 4.881384217 | AK23: 4.694177357 | AL23: 4.507602433 | AM23: 4.321183548 | AN23: 4.135035244 | AO23: 3.94938032 | AP23: 3.764025525 | AQ23: 3.578731225 | AR23: 3.39431738 | AS23: 3.211595959 | AT23: 3.029809272 | AU23: 2.848162004 | AV23: 0.5438684917 | AW23: 0.5240550783 | AX23: 0.5240550783 | AY23: 0.5240550783 | AZ23: 0.5240550783 | BA23: 0.5240550783
B24: Colstrip 3 | E24: 9.620905133 | F24: 8.971126248 | G24: 8.360084369 | H24: 7.777796994 | I24: 0 | J24: 0 | K24: 0 | L24: 0 | M24: 0 | N24: 0 | O24: 0 | P24: 0 | Q24: 0 | R24: 0 | S24: 0 | T24: 0 | U24: 0 | V24: 0 | W24: 0 | X24: 0 | Y24: 0 | Z24: 0 | AA24: 0 | AB24: 0 | AD24: 4.320375981 | AE24: 4.080817483 | AF24: 3.841265223 | AG24: 3.602255072 | AH24: 3.363772374 | AI24: 3.125930291 | AJ24: 0.4814870944 | AK24: 0.2742709266 | AL24: 0.2674093006 | AM24: 0.2610524163 | AN24: 0.2556364165 | AO24: 0.2508869996 | AP24: 0.246559526 | AQ24: 0.2426999531 | AR24: 0.2391540864 | AS24: 0.2360536072 | AT24: 0.2337370148 | AU24: 0.2321331043 | AV24: 0.2309120642 | AW24: 0.2297990857 | AX24: 0.2289645389 | AY24: 0.2286864814 | AZ24: 0.2286864814 | BA24: 0.2286864814
B25: Colstrip 4 | E25: 8.352213004 | F25: 7.816380113 | G25: 7.297089812 | H25: 6.791913315 | I25: 0 | J25: 0 | K25: 0 | L25: 0 | M25: 0 | N25: 0 | O25: 0 | P25: 0 | Q25: 0 | R25: 0 | S25: 0 | T25: 0 | U25: 0 | V25: 0 | W25: 0 | X25: 0 | Y25: 0 | Z25: 0 | AA25: 0 | AB25: 0 | AD25: 3.662270436 | AE25: 3.460591658 | AF25: 3.259306512 | AG25: 3.058441632 | AH25: 2.858054917 | AI25: 2.658124438 | AJ25: 0.2771091888 | AK25: 0.2496125632 | AL25: 0.2456257586 | AM25: 0.2419343149 | AN25: 0.2384906378 | AO25: 0.2353787412 | AP25: 0.2326446906 | AQ25: 0.2301567881 | AR25: 0.227958844 | AS25: 0.2262598381 | AT25: 0.2250955515 | AU25: 0.2244612197 | AV25: 0.2242175334 | AW25: 0.2240888309 | AX25: 0.2239923256 | AY25: 0.2239601716 | AZ25: 0.2239601716 | BA25: 0.2239601716
B26: Kettle Falls | E26: 6.593646507 | F26: 6.261461249 | G26: 5.931083495 | H26: 5.616701794 | I26: 5.309061559 | J26: 5.006557311 | K26: 4.713100644 | L26: 4.424235119 | M26: 4.135905274 | N26: 3.848133779 | O26: 1.063493497 | P26: 0.2754267032 | Q26: 0.2613360567 | R26: 0.2478390191 | S26: 0.2351524403 | T26: 0.2231258947 | U26: 0.2122095611 | V26: 0.2031104319 | W26: 0.1972559274 | X26: 0.1954481284 | Y26: 0.1954481284 | Z26: 0.1954481284 | AA26: 0.1954481284 | AB26: 0.1954481284 | AD26: 3.442345132 | AE26: 3.26892117 | AF26: 3.096440851 | AG26: 2.932311591 | AH26: 2.771701849 | AI26: 2.613773451 | AJ26: 2.460568525 | AK26: 2.309760496 | AL26: 2.159232129 | AM26: 2.00899526 | AN26: 0.5552180662 | AO26: 0.1437920231 | AP26: 0.1364357191 | AQ26: 0.1293893205 | AR26: 0.1227660381 | AS26: 0.1164873392 | AT26: 0.1107882488 | AU26: 0.1060378663 | AV26: 0.102981405 | AW26: 0.1020376074 | AX26: 0.1020376074 | AY26: 0.1020376074 | AZ26: 0.1020376074 | BA26: 0.1020376074
B27: Kettle Falls CT | E27: 0.3886439418 | F27: 0.3712713868 | G27: 0.3551357366 | H27: 0.3390152195 | I27: 0.3228942439 | J27: 0.3067732683 | K27: 0.2906522927 | L27: 0.274531317 | M27: 0.2584103414 | N27: 0.2422893658 | O27: 0.2261683902 | P27: 0.02650116277 | Q27: 0.02636588138 | R27: 0.02636588138 | S27: 0.02636588138 | T27: 0.02636588138 | U27: 0.02636588138 | V27: 0.02636588138 | W27: 0.02636588138 | X27: 0.02636588138 | Y27: 0.02636588138 | Z27: 0.02636588138 | AA27: 0.02636588138 | AB27: 0.02636588138 | AD27: 0.2028993486 | AE27: 0.1938296585 | AF27: 0.1854057194 | AG27: 0.1769896808 | AH27: 0.1685734028 | AI27: 0.1601571248 | AJ27: 0.1517408469 | AK27: 0.1433245689 | AL27: 0.1349082909 | AM27: 0.1264920129 | AN27: 0.1180757349 | AO27: 0.01383546245 | AP27: 0.01376483609 | AQ27: 0.01376483609 | AR27: 0.01376483609 | AS27: 0.01376483609 | AT27: 0.01376483609 | AU27: 0.01376483609 | AV27: 0.01376483609 | AW27: 0.01376483609 | AX27: 0.01376483609 | AY27: 0.01376483609 | AZ27: 0.01376483609 | BA27: 0.01376483609
B28: Boulder Park | E28: 1.639030247 | F28: 1.587167255 | G28: 1.53586579 | H28: 1.485137123 | I28: 1.434487835 | J28: 1.383861432 | K28: 1.333258591 | L28: 1.28266939 | M28: 1.232086754 | N28: 1.181522586 | O28: 1.131022512 | P28: 1.080618204 | Q28: 1.030283278 | R28: 0.9799685121 | S28: 0.9296537459 | T28: 0.8793389797 | U28: 0.8290242135 | V28: 0.1963386975 | W28: 0.1861871254 | X28: 0.1860505695 | Y28: 0.1859481755 | Z28: 0.1859140595 | AA28: 0.1859140595 | AB28: 0.1859140595 | AD28: 0.8556885459 | AE28: 0.8286124331 | AF28: 0.8018294764 | AG28: 0.7753455605 | AH28: 0.7489030861 | AI28: 0.7224725588 | AJ28: 0.6960543331 | AK28: 0.6696432282 | AL28: 0.6432355506 | AM28: 0.6168375146 | AN28: 0.5904729401 | AO28: 0.5641583624 | AP28: 0.5378800068 | AQ28: 0.511612176 | AR28: 0.4853443453 | AS28: 0.4590765145 | AT28: 0.4328086838 | AU28: 0.1025025468 | AV28: 0.09720271541 | AW28: 0.09713142365 | AX28: 0.09707796681 | AY28: 0.09706015586 | AZ28: 0.09706015586 | BA28: 0.09706015586
B29: Rathdrum | E29: 4.107253241 | F29: 3.932641489 | G29: 3.758475328 | H29: 3.584480889 | I29: 3.41054897 | J29: 3.236627952 | K29: 3.062714493 | L29: 2.888808025 | M29: 2.714905488 | N29: 2.541061299 | O29: 0.4176143878 | P29: 0.408032236 | Q29: 0.4079132861 | R29: 0.4078315395 | S29: 0.4077497929 | T29: 0.4076680464 | U29: 0.4075862998 | V29: 0.4075045532 | W29: 0.4074228067 | X29: 0.4073410601 | Y29: 0.4072797639 | Z29: 0.407259341 | AA29: 0.407259341 | AB29: 0.407259341 | AD29: 2.144273762 | AE29: 2.053114202 | AF29: 1.962187272 | AG29: 1.871349992 | AH29: 1.780545352 | AI29: 1.689746404 | AJ29: 1.598951402 | AK29: 1.50816005 | AL29: 1.41737075 | AM29: 1.326611911 | AN29: 0.2180239498 | AO29: 0.2130213956 | AP29: 0.2129592955 | AQ29: 0.212916618 | AR29: 0.2128739406 | AS29: 0.2128312632 | AT29: 0.2127885857 | AU29: 0.2127459083 | AV29: 0.2127032309 | AW29: 0.2126605534 | AX29: 0.2126285525 | AY29: 0.2126178904 | AZ29: 0.2126178904 | BA29: 0.2126178904
B30: Northeast | E30: 0.03497215486 | F30: 0.03215062757 | G30: 0.02950274337 | H30: 0.02704352158 | I30: 0.006787105806 | J30: 0 | K30: 0 | L30: 0 | M30: 0 | N30: 0 | O30: 0 | P30: 0 | Q30: 0 | R30: 0 | S30: 0 | T30: 0 | U30: 0 | V30: 0 | W30: 0 | X30: 0 | Y30: 0 | Z30: 0 | AA30: 0 | AB30: 0 | AD30: 0.01825791342 | AE30: 0.01678487862 | AF30: 0.01540249768 | AG30: 0.01411861172 | AH30: 0.003543344431 | AI30: 0 | AJ30: 0 | AK30: 0 | AL30: 0 | AM30: 0 | AN30: 0 | AO30: 0 | AP30: 0 | AQ30: 0 | AR30: 0 | AS30: 0 | AT30: 0 | AU30: 0 | AV30: 0 | AW30: 0 | AX30: 0 | AY30: 0 | AZ30: 0 | BA30: 0
B32: Existing Thermal Plant Future Capital Recovery
B33: Coyote Springs 2 | E33: =NewCapex!B34 -> 0.1364981263 | F33: =NewCapex!C34 -> 0.2123304186 | G33: =NewCapex!D34 -> 0.2957459402 | H33: =NewCapex!E34 -> 0.5459925051 | I33: =NewCapex!F34 -> 1.137484386 | J33: =NewCapex!G34 -> 2.957459402 | K33: =NewCapex!H34 -> 3.222872426 | L33: =NewCapex!I34 -> 3.313871177 | M33: =NewCapex!J34 -> 3.594450658 | N33: =NewCapex!K34 -> 4.163192851 | O33: =NewCapex!L34 -> 4.261774831 | P33: =NewCapex!M34 -> 4.557520771 | Q33: =NewCapex!N34 -> 4.860849941 | R33: =NewCapex!O34 -> 5.17176234 | S33: =NewCapex!P34 -> 5.277927549 | T33: =NewCapex!Q34 -> 5.384092758 | U33: =NewCapex!R34 -> 5.497841197 | V33: =NewCapex!S34 -> 5.611589635 | W33: =NewCapex!T34 -> 5.725338074 | X33: =NewCapex!U34 -> 5.846669742 | Y33: =NewCapex!V34 -> 5.96800141 | Z33: =NewCapex!W34 -> 6.089333077 | AA33: =NewCapex!X34 -> 6.218247974 | AB33: =NewCapex!Y34 -> 6.218247974 | AD33: =NewCapex!AA34 -> 0.06940312701 | AE33: =NewCapex!AB34 -> 0.1079604198 | AF33: =NewCapex!AC34 -> 0.1503734419 | AG33: =NewCapex!AD34 -> 0.277612508 | AH33: =NewCapex!AE34 -> 0.5783593918 | AI33: =NewCapex!AF34 -> 1.503734419 | AJ33: =NewCapex!AG34 -> 1.638684943 | AK33: =NewCapex!AH34 -> 1.684953695 | AL33: =NewCapex!AI34 -> 1.827615678 | AM33: =NewCapex!AJ34 -> 2.116795374 | AN33: =NewCapex!AK34 -> 2.166919854 | AO33: =NewCapex!AL34 -> 2.317293296 | AP33: =NewCapex!AM34 -> 2.471522467 | AQ33: =NewCapex!AN34 -> 2.629607368 | AR33: =NewCapex!AO34 -> 2.683587578 | AS33: =NewCapex!AP34 -> 2.737567788 | AT33: =NewCapex!AQ34 -> 2.795403727 | AU33: =NewCapex!AR34 -> 2.853239666 | AV33: =NewCapex!AS34 -> 2.911075605 | AW33: =NewCapex!AT34 -> 2.972767274 | AX33: =NewCapex!AU34 -> 3.034458942 | AY33: =NewCapex!AV34 -> 3.096150611 | AZ33: =NewCapex!AW34 -> 3.161698008 | BA33: =NewCapex!AX34 -> 3.161698008
B34: Colstrip 3 | E34: =NewCapex!B35 -> 0 | F34: =NewCapex!C35 -> 0 | G34: =NewCapex!D35 -> 0 | H34: =NewCapex!E35 -> 0 | I34: =NewCapex!F35 -> 0 | J34: =NewCapex!G35 -> 0 | K34: =NewCapex!H35 -> 0 | L34: =NewCapex!I35 -> 0 | M34: =NewCapex!J35 -> 0 | N34: =NewCapex!K35 -> 0 | O34: =NewCapex!L35 -> 0 | P34: =NewCapex!M35 -> 0 | Q34: =NewCapex!N35 -> 0 | R34: =NewCapex!O35 -> 0 | S34: =NewCapex!P35 -> 0 | T34: =NewCapex!Q35 -> 0 | U34: =NewCapex!R35 -> 0 | V34: =NewCapex!S35 -> 0 | W34: =NewCapex!T35 -> 0 | X34: =NewCapex!U35 -> 0 | Y34: =NewCapex!V35 -> 0 | Z34: =NewCapex!W35 -> 0 | AA34: =NewCapex!X35 -> 0 | AB34: =NewCapex!Y35 -> 0 | AD34: =NewCapex!AA35 -> 0 | AE34: =NewCapex!AB35 -> 0 | AF34: =NewCapex!AC35 -> 0 | AG34: =NewCapex!AD35 -> 0 | AH34: =NewCapex!AE35 -> 0 | AI34: =NewCapex!AF35 -> 0 | AJ34: =NewCapex!AG35 -> 0 | AK34: =NewCapex!AH35 -> 0 | AL34: =NewCapex!AI35 -> 0 | AM34: =NewCapex!AJ35 -> 0 | AN34: =NewCapex!AK35 -> 0 | AO34: =NewCapex!AL35 -> 0 | AP34: =NewCapex!AM35 -> 0 | AQ34: =NewCapex!AN35 -> 0 | AR34: =NewCapex!AO35 -> 0 | AS34: =NewCapex!AP35 -> 0 | AT34: =NewCapex!AQ35 -> 0 | AU34: =NewCapex!AR35 -> 0 | AV34: =NewCapex!AS35 -> 0 | AW34: =NewCapex!AT35 -> 0 | AX34: =NewCapex!AU35 -> 0 | AY34: =NewCapex!AV35 -> 0 | AZ34: =NewCapex!AW35 -> 0 | BA34: =NewCapex!AX35 -> 0
B35: Colstrip 4 | E35: =NewCapex!B36 -> 0 | F35: =NewCapex!C36 -> 0 | G35: =NewCapex!D36 -> 0 | H35: =NewCapex!E36 -> 0 | I35: =NewCapex!F36 -> 0 | J35: =NewCapex!G36 -> 0 | K35: =NewCapex!H36 -> 0 | L35: =NewCapex!I36 -> 0 | M35: =NewCapex!J36 -> 0 | N35: =NewCapex!K36 -> 0 | O35: =NewCapex!L36 -> 0 | P35: =NewCapex!M36 -> 0 | Q35: =NewCapex!N36 -> 0 | R35: =NewCapex!O36 -> 0 | S35: =NewCapex!P36 -> 0 | T35: =NewCapex!Q36 -> 0 | U35: =NewCapex!R36 -> 0 | V35: =NewCapex!S36 -> 0 | W35: =NewCapex!T36 -> 0 | X35: =NewCapex!U36 -> 0 | Y35: =NewCapex!V36 -> 0 | Z35: =NewCapex!W36 -> 0 | AA35: =NewCapex!X36 -> 0 | AB35: =NewCapex!Y36 -> 0 | AD35: =NewCapex!AA36 -> 0 | AE35: =NewCapex!AB36 -> 0 | AF35: =NewCapex!AC36 -> 0 | AG35: =NewCapex!AD36 -> 0 | AH35: =NewCapex!AE36 -> 0 | AI35: =NewCapex!AF36 -> 0 | AJ35: =NewCapex!AG36 -> 0 | AK35: =NewCapex!AH36 -> 0 | AL35: =NewCapex!AI36 -> 0 | AM35: =NewCapex!AJ36 -> 0 | AN35: =NewCapex!AK36 -> 0 | AO35: =NewCapex!AL36 -> 0 | AP35: =NewCapex!AM36 -> 0 | AQ35: =NewCapex!AN36 -> 0 | AR35: =NewCapex!AO36 -> 0 | AS35: =NewCapex!AP36 -> 0 | AT35: =NewCapex!AQ36 -> 0 | AU35: =NewCapex!AR36 -> 0 | AV35: =NewCapex!AS36 -> 0 | AW35: =NewCapex!AT36 -> 0 | AX35: =NewCapex!AU36 -> 0 | AY35: =NewCapex!AV36 -> 0 | AZ35: =NewCapex!AW36 -> 0 | BA35: =NewCapex!AX36 -> 0
B36: Colstrip CCR Master Plan | E36: 0.5997666515 | F36: 0.8737132712 | G36: 1.10243687 | H36: 1.229498171 | I36: 1.197401374 | J36: 1.165976142 | K36: 1.231020387 | L36: 1.229229868 | M36: 1.20570378 | N36: 1.301539722 | O36: 1.270146531 | P36: 1.238714006 | Q36: 1.201332447 | R36: 1.16401287 | S36: 1.157669448 | T36: 1.131463806 | U36: 1.099732764 | V36: 1.161461231 | W36: 1.238063445 | X36: 1.470697494 | Y36: 1.420148669 | Z36: 1.370971725 | AA36: 1.330245804 | AB36: 1.284610215 | AD36: 0.3076529447 | AE36: 0.4480989769 | AF36: 0.5652961083 | AG36: 0.6302954498 | AH36: 0.6136160815 | AI36: 0.5972841997 | AJ36: 0.6304514483 | AK36: 0.6293199895 | AL36: 0.6170342855 | AM36: 0.6659869143 | AN36: 0.6496469932 | AO36: 0.6332842081 | AP36: 0.6138691431 | AQ36: 0.5944864563 | AR36: 0.590996285 | AS36: 0.5773112747 | AT36: 0.5607890056 | AU36: 0.5922139297 | AV36: 0.6312536178 | AW36: 0.7503283434 | AX36: 0.7240865789 | AY36: 0.6985604295 | AZ36: 0.6773875137 | BA36: 0.6537098977
B37: Kettle Falls | E37: =NewCapex!B37 -> 0.3336620864 | F37: =NewCapex!C37 -> 1.031319176 | G37: =NewCapex!D37 -> 1.175400532 | H37: =NewCapex!E37 -> 1.410480638 | I37: =NewCapex!F37 -> 1.728976266 | J37: =NewCapex!G37 -> 2.055055123 | K37: =NewCapex!H37 -> 2.570714711 | L37: =NewCapex!I37 -> 2.820961276 | M37: =NewCapex!J37 -> 3.124290446 | N37: =NewCapex!K37 -> 3.366953781 | O37: =NewCapex!L37 -> 3.715782326 | P37: =NewCapex!M37 -> 4.193525768 | Q37: =NewCapex!N37 -> 4.458938791 | R37: =NewCapex!O37 -> 4.906349316 | S37: =NewCapex!P37 -> 5.255177861 | T37: =NewCapex!Q37 -> 5.558507031 | U37: =NewCapex!R37 -> 5.922502034 | V37: =NewCapex!S37 -> 6.180331828 | W37: =NewCapex!T37 -> 7.431564652 | X37: =NewCapex!U37 -> 7.818309343 | Y37: =NewCapex!V37 -> 8.280886327 | Z37: =NewCapex!W37 -> 8.690380706 | AA37: =NewCapex!X37 -> 9.425953942 | AB37: =NewCapex!Y37 -> 9.918863842 | AD37: =NewCapex!AA37 -> 0.1696520883 | AE37: =NewCapex!AB37 -> 0.5243791819 | AF37: =NewCapex!AC37 -> 0.5976380382 | AG37: =NewCapex!AD37 -> 0.7171656458 | AH37: =NewCapex!AE37 -> 0.8791062755 | AI37: =NewCapex!AF37 -> 1.044902634 | AJ37: =NewCapex!AG37 -> 1.307092225 | AK37: =NewCapex!AH37 -> 1.434331292 | AL37: =NewCapex!AI37 -> 1.588560463 | AM37: =NewCapex!AJ37 -> 1.7119438 | AN37: =NewCapex!AK37 -> 1.889307346 | AO37: =NewCapex!AL37 -> 2.132218291 | AP37: =NewCapex!AM37 -> 2.267168816 | AQ37: =NewCapex!AN37 -> 2.494656843 | AR37: =NewCapex!AO37 -> 2.67202039 | AS37: =NewCapex!AP37 -> 2.826249561 | AT37: =NewCapex!AQ37 -> 3.011324566 | AU37: =NewCapex!AR37 -> 3.142419362 | AV37: =NewCapex!AS37 -> 3.778614693 | AW37: =NewCapex!AT37 -> 3.975256886 | AX37: =NewCapex!AU37 -> 4.210456372 | AY37: =NewCapex!AV37 -> 4.418665753 | AZ37: =NewCapex!AW37 -> 4.792671493 | BA37: =NewCapex!AX37 -> 5.043293896
B38: Kettle Falls CT | E38: =NewCapex!B38 -> 0 | F38: =NewCapex!C38 -> 0 | G38: =NewCapex!D38 -> 0 | H38: =NewCapex!E38 -> 0 | I38: =NewCapex!F38 -> 0 | J38: =NewCapex!G38 -> 0 | K38: =NewCapex!H38 -> 0 | L38: =NewCapex!I38 -> 0 | M38: =NewCapex!J38 -> 0 | N38: =NewCapex!K38 -> 0 | O38: =NewCapex!L38 -> 0 | P38: =NewCapex!M38 -> 0 | Q38: =NewCapex!N38 -> 0 | R38: =NewCapex!O38 -> 0 | S38: =NewCapex!P38 -> 0 | T38: =NewCapex!Q38 -> 0 | U38: =NewCapex!R38 -> 0 | V38: =NewCapex!S38 -> 0 | W38: =NewCapex!T38 -> 0 | X38: =NewCapex!U38 -> 0 | Y38: =NewCapex!V38 -> 0 | Z38: =NewCapex!W38 -> 0 | AA38: =NewCapex!X38 -> 0 | AB38: =NewCapex!Y38 -> 0 | AD38: =NewCapex!AA38 -> 0 | AE38: =NewCapex!AB38 -> 0 | AF38: =NewCapex!AC38 -> 0 | AG38: =NewCapex!AD38 -> 0 | AH38: =NewCapex!AE38 -> 0 | AI38: =NewCapex!AF38 -> 0 | AJ38: =NewCapex!AG38 -> 0 | AK38: =NewCapex!AH38 -> 0 | AL38: =NewCapex!AI38 -> 0 | AM38: =NewCapex!AJ38 -> 0 | AN38: =NewCapex!AK38 -> 0 | AO38: =NewCapex!AL38 -> 0 | AP38: =NewCapex!AM38 -> 0 | AQ38: =NewCapex!AN38 -> 0 | AR38: =NewCapex!AO38 -> 0 | AS38: =NewCapex!AP38 -> 0 | AT38: =NewCapex!AQ38 -> 0 | AU38: =NewCapex!AR38 -> 0 | AV38: =NewCapex!AS38 -> 0 | AW38: =NewCapex!AT38 -> 0 | AX38: =NewCapex!AU38 -> 0 | AY38: =NewCapex!AV38 -> 0 | AZ38: =NewCapex!AW38 -> 0 | BA38: =NewCapex!AX38 -> 0
B39: Boulder Park | E39: =NewCapex!B39 -> 0.02274968771 | F39: =NewCapex!C39 -> 0.04549937542 | G39: =NewCapex!D39 -> 0.06824906313 | H39: =NewCapex!E39 -> 0.09099875084 | I39: =NewCapex!F39 -> 0.2199136479 | J39: =NewCapex!G39 -> 0.4398272957 | K39: =NewCapex!H39 -> 0.7279900068 | L39: =NewCapex!I39 -> 0.7734893822 | M39: =NewCapex!J39 -> 0.8189887576 | N39: =NewCapex!K39 -> 0.864488133 | O39: =NewCapex!L39 -> 0.8872378207 | P39: =NewCapex!M39 -> 0.9099875084 | Q39: =NewCapex!N39 -> 0.9327371962 | R39: =NewCapex!O39 -> 0.9554868839 | S39: =NewCapex!P39 -> 0.9782365716 | T39: =NewCapex!Q39 -> 1.008569489 | U39: =NewCapex!R39 -> 1.038902405 | V39: =NewCapex!S39 -> 1.069235322 | W39: =NewCapex!T39 -> 1.099568239 | X39: =NewCapex!U39 -> 1.099568239 | Y39: =NewCapex!V39 -> 1.099568239 | Z39: =NewCapex!W39 -> 1.099568239 | AA39: =NewCapex!X39 -> 1.099568239 | AB39: =NewCapex!Y39 -> 1.099568239 | AD39: =NewCapex!AA39 -> 0.01156718784 | AE39: =NewCapex!AB39 -> 0.02313437567 | AF39: =NewCapex!AC39 -> 0.03470156351 | AG39: =NewCapex!AD39 -> 0.04626875134 | AH39: =NewCapex!AE39 -> 0.1118161491 | AI39: =NewCapex!AF39 -> 0.2236322982 | AJ39: =NewCapex!AG39 -> 0.3701500107 | AK39: =NewCapex!AH39 -> 0.3932843864 | AL39: =NewCapex!AI39 -> 0.4164187621 | AM39: =NewCapex!AJ39 -> 0.4395531377 | AN39: =NewCapex!AK39 -> 0.4511203256 | AO39: =NewCapex!AL39 -> 0.4626875134 | AP39: =NewCapex!AM39 -> 0.4742547013 | AQ39: =NewCapex!AN39 -> 0.4858218891 | AR39: =NewCapex!AO39 -> 0.4973890769 | AS39: =NewCapex!AP39 -> 0.512811994 | AT39: =NewCapex!AQ39 -> 0.5282349111 | AU39: =NewCapex!AR39 -> 0.5436578283 | AV39: =NewCapex!AS39 -> 0.5590807454 | AW39: =NewCapex!AT39 -> 0.5590807454 | AX39: =NewCapex!AU39 -> 0.5590807454 | AY39: =NewCapex!AV39 -> 0.5590807454 | AZ39: =NewCapex!AW39 -> 0.5590807454 | BA39: =NewCapex!AX39 -> 0.5590807454
B40: Rathdrum 1 | E40: =NewCapex!B40 -> 0.007583229237 | F40: =NewCapex!C40 -> 0.09099875084 | G40: =NewCapex!D40 -> 0.1744142725 | H40: =NewCapex!E40 -> 0.1819975017 | I40: =NewCapex!F40 -> 0.2729962525 | J40: =NewCapex!G40 -> 0.3639950034 | K40: =NewCapex!H40 -> 0.3715782326 | L40: =NewCapex!I40 -> 0.3791614618 | M40: =NewCapex!J40 -> 0.3867446911 | N40: =NewCapex!K40 -> 0.3943279203 | O40: =NewCapex!L40 -> 0.4019111496 | P40: =NewCapex!M40 -> 0.4094943788 | Q40: =NewCapex!N40 -> 0.417077608 | R40: =NewCapex!O40 -> 0.4246608373 | S40: =NewCapex!P40 -> 0.4322440665 | T40: =NewCapex!Q40 -> 0.4398272957 | U40: =NewCapex!R40 -> 0.447410525 | V40: =NewCapex!S40 -> 0.4549937542 | W40: =NewCapex!T40 -> 0.4625769835 | X40: =NewCapex!U40 -> 0.4701602127 | Y40: =NewCapex!V40 -> 0.4777434419 | Z40: =NewCapex!W40 -> 0.4853266712 | AA40: =NewCapex!X40 -> 0.4929099004 | AB40: =NewCapex!Y40 -> 0.4929099004 | AD40: =NewCapex!AA40 -> 0.003855729278 | AE40: =NewCapex!AB40 -> 0.04626875134 | AF40: =NewCapex!AC40 -> 0.0886817734 | AG40: =NewCapex!AD40 -> 0.09253750268 | AH40: =NewCapex!AE40 -> 0.138806254 | AI40: =NewCapex!AF40 -> 0.1850750054 | AJ40: =NewCapex!AG40 -> 0.1889307346 | AK40: =NewCapex!AH40 -> 0.1927864639 | AL40: =NewCapex!AI40 -> 0.1966421932 | AM40: =NewCapex!AJ40 -> 0.2004979225 | AN40: =NewCapex!AK40 -> 0.2043536518 | AO40: =NewCapex!AL40 -> 0.208209381 | AP40: =NewCapex!AM40 -> 0.2120651103 | AQ40: =NewCapex!AN40 -> 0.2159208396 | AR40: =NewCapex!AO40 -> 0.2197765689 | AS40: =NewCapex!AP40 -> 0.2236322982 | AT40: =NewCapex!AQ40 -> 0.2274880274 | AU40: =NewCapex!AR40 -> 0.2313437567 | AV40: =NewCapex!AS40 -> 0.235199486 | AW40: =NewCapex!AT40 -> 0.2390552153 | AX40: =NewCapex!AU40 -> 0.2429109445 | AY40: =NewCapex!AV40 -> 0.2467666738 | AZ40: =NewCapex!AW40 -> 0.2506224031 | BA40: =NewCapex!AX40 -> 0.2506224031
B41: Rathdrum 2 | E41: =NewCapex!B41 -> 0.007583229237 | F41: =NewCapex!C41 -> 0.09099875084 | G41: =NewCapex!D41 -> 0.1744142725 | H41: =NewCapex!E41 -> 0.1819975017 | I41: =NewCapex!F41 -> 0.2729962525 | J41: =NewCapex!G41 -> 0.3639950034 | K41: =NewCapex!H41 -> 0.3715782326 | L41: =NewCapex!I41 -> 0.3791614618 | M41: =NewCapex!J41 -> 0.3867446911 | N41: =NewCapex!K41 -> 0.3943279203 | O41: =NewCapex!L41 -> 0.4019111496 | P41: =NewCapex!M41 -> 0.4094943788 | Q41: =NewCapex!N41 -> 0.417077608 | R41: =NewCapex!O41 -> 0.4246608373 | S41: =NewCapex!P41 -> 0.4322440665 | T41: =NewCapex!Q41 -> 0.4398272957 | U41: =NewCapex!R41 -> 0.447410525 | V41: =NewCapex!S41 -> 0.4549937542 | W41: =NewCapex!T41 -> 0.4625769835 | X41: =NewCapex!U41 -> 0.4701602127 | Y41: =NewCapex!V41 -> 0.4777434419 | Z41: =NewCapex!W41 -> 0.4853266712 | AA41: =NewCapex!X41 -> 0.4929099004 | AB41: =NewCapex!Y41 -> 0.4929099004 | AD41: =NewCapex!AA41 -> 0.003855729278 | AE41: =NewCapex!AB41 -> 0.04626875134 | AF41: =NewCapex!AC41 -> 0.0886817734 | AG41: =NewCapex!AD41 -> 0.09253750268 | AH41: =NewCapex!AE41 -> 0.138806254 | AI41: =NewCapex!AF41 -> 0.1850750054 | AJ41: =NewCapex!AG41 -> 0.1889307346 | AK41: =NewCapex!AH41 -> 0.1927864639 | AL41: =NewCapex!AI41 -> 0.1966421932 | AM41: =NewCapex!AJ41 -> 0.2004979225 | AN41: =NewCapex!AK41 -> 0.2043536518 | AO41: =NewCapex!AL41 -> 0.208209381 | AP41: =NewCapex!AM41 -> 0.2120651103 | AQ41: =NewCapex!AN41 -> 0.2159208396 | AR41: =NewCapex!AO41 -> 0.2197765689 | AS41: =NewCapex!AP41 -> 0.2236322982 | AT41: =NewCapex!AQ41 -> 0.2274880274 | AU41: =NewCapex!AR41 -> 0.2313437567 | AV41: =NewCapex!AS41 -> 0.235199486 | AW41: =NewCapex!AT41 -> 0.2390552153 | AX41: =NewCapex!AU41 -> 0.2429109445 | AY41: =NewCapex!AV41 -> 0.2467666738 | AZ41: =NewCapex!AW41 -> 0.2506224031 | BA41: =NewCapex!AX41 -> 0.2506224031
B42: Northeast | E42: =NewCapex!B42 -> 0.007583229237 | F42: =NewCapex!C42 -> 0.01516645847 | G42: =NewCapex!D42 -> 0.02274968771 | H42: =NewCapex!E42 -> 0.03033291695 | I42: =NewCapex!F42 -> 0.03791614618 | J42: =NewCapex!G42 -> 0.04549937542 | K42: =NewCapex!H42 -> 0.05308260466 | L42: =NewCapex!I42 -> 0.0606658339 | M42: =NewCapex!J42 -> 0.06824906313 | N42: =NewCapex!K42 -> 0.07583229237 | O42: =NewCapex!L42 -> 0.08341552161 | P42: =NewCapex!M42 -> 0.09099875084 | Q42: =NewCapex!N42 -> 0.09858198008 | R42: =NewCapex!O42 -> 0.09858198008 | S42: =NewCapex!P42 -> 0.09858198008 | T42: =NewCapex!Q42 -> 0.09858198008 | U42: =NewCapex!R42 -> 0.09858198008 | V42: =NewCapex!S42 -> 0.09858198008 | W42: =NewCapex!T42 -> 0.09858198008 | X42: =NewCapex!U42 -> 0.09858198008 | Y42: =NewCapex!V42 -> 0.09858198008 | Z42: =NewCapex!W42 -> 0.09858198008 | AA42: =NewCapex!X42 -> 0.09858198008 | AB42: =NewCapex!Y42 -> 0.09858198008 | AD42: =NewCapex!AA42 -> 0.003855729278 | AE42: =NewCapex!AB42 -> 0.007711458557 | AF42: =NewCapex!AC42 -> 0.01156718784 | AG42: =NewCapex!AD42 -> 0.01542291711 | AH42: =NewCapex!AE42 -> 0.01927864639 | AI42: =NewCapex!AF42 -> 0.02313437567 | AJ42: =NewCapex!AG42 -> 0.02699010495 | AK42: =NewCapex!AH42 -> 0.03084583423 | AL42: =NewCapex!AI42 -> 0.03470156351 | AM42: =NewCapex!AJ42 -> 0.03855729278 | AN42: =NewCapex!AK42 -> 0.04241302206 | AO42: =NewCapex!AL42 -> 0.04626875134 | AP42: =NewCapex!AM42 -> 0.05012448062 | AQ42: =NewCapex!AN42 -> 0.05012448062 | AR42: =NewCapex!AO42 -> 0.05012448062 | AS42: =NewCapex!AP42 -> 0.05012448062 | AT42: =NewCapex!AQ42 -> 0.05012448062 | AU42: =NewCapex!AR42 -> 0.05012448062 | AV42: =NewCapex!AS42 -> 0.05012448062 | AW42: =NewCapex!AT42 -> 0.05012448062 | AX42: =NewCapex!AU42 -> 0.05012448062 | AY42: =NewCapex!AV42 -> 0.05012448062 | AZ42: =NewCapex!AW42 -> 0.05012448062 | BA42: =NewCapex!AX42 -> 0.05012448062
B44: Existing Thermal Plant Fixed O&M | BC44: (Millions $- Fixed O&M)
B45: Coyote Springs 2 | E45: =BC45*Selection!D4*G_A!P$9 -> 1.776541783 | F45: =BD45*Selection!E4*G_A!Q$9 -> 1.812072618 | G45: =BE45*Selection!F4*G_A!R$9 -> 1.848314071 | H45: =BF45*Selection!G4*G_A!S$9 -> 1.885280352 | I45: =BG45*Selection!H4*G_A!T$9 -> 1.922985959 | J45: =BH45*Selection!I4*G_A!U$9 -> 1.961445678 | K45: =BI45*Selection!J4*G_A!V$9 -> 2.000674592 | L45: =BJ45*Selection!K4*G_A!W$9 -> 2.040688084 | M45: =BK45*Selection!L4*G_A!X$9 -> 2.081501845 | N45: =BL45*Selection!M4*G_A!Y$9 -> 2.123131882 | O45: =BM45*Selection!N4*G_A!Z$9 -> 2.16559452 | P45: =BN45*Selection!O4*G_A!AA$9 -> 2.20890641 | Q45: =BO45*Selection!P4*G_A!AB$9 -> 2.253084538 | R45: =BP45*Selection!Q4*G_A!AC$9 -> 2.298146229 | S45: =BQ45*Selection!R4*G_A!AD$9 -> 2.344109154 | T45: =BR45*Selection!S4*G_A!AE$9 -> 2.390991337 | U45: =BS45*Selection!T4*G_A!AF$9 -> 2.438811164 | V45: =BT45*Selection!U4*G_A!AG$9 -> 2.487587387 | W45: =BU45*Selection!V4*G_A!AH$9 -> 2.537339135 | X45: =BV45*Selection!W4*G_A!AI$9 -> 2.588085917 | Y45: =BW45*Selection!X4*G_A!AJ$9 -> 2.639847636 | Z45: =BX45*Selection!Y4*G_A!AK$9 -> 2.692644588 | AA45: =BY45*Selection!Z4*G_A!AL$9 -> 2.74649748 | AB45: =BZ45*Selection!AA4*G_A!AM$9 -> 2.80142743 | AD45: =BC45*Selection!AC4*(1-G_A!P$9) -> 0.9295386174 | AE45: =BD45*Selection!AD4*(1-G_A!Q$9) -> 0.9481293897 | AF45: =BE45*Selection!AE4*(1-G_A!R$9) -> 0.9670919775 | AG45: =BF45*Selection!AF4*(1-G_A!S$9) -> 0.9864338171 | AH45: =BG45*Selection!AG4*(1-G_A!T$9) -> 1.006162493 | AI45: =BH45*Selection!AH4*(1-G_A!U$9) -> 1.026285743 | AJ45: =BI45*Selection!AI4*(1-G_A!V$9) -> 1.046811458 | AK45: =BJ45*Selection!AJ4*(1-G_A!W$9) -> 1.067747687 | AL45: =BK45*Selection!AK4*(1-G_A!X$9) -> 1.089102641 | AM45: =BL45*Selection!AL4*(1-G_A!Y$9) -> 1.110884694 | AN45: =BM45*Selection!AM4*(1-G_A!Z$9) -> 1.133102388 | AO45: =BN45*Selection!AN4*(1-G_A!AA$9) -> 1.155764436 | AP45: =BO45*Selection!AO4*(1-G_A!AB$9) -> 1.178879724 | AQ45: =BP45*Selection!AP4*(1-G_A!AC$9) -> 1.202457319 | AR45: =BQ45*Selection!AQ4*(1-G_A!AD$9) -> 1.226506465 | AS45: =BR45*Selection!AR4*(1-G_A!AE$9) -> 1.251036594 | AT45: =BS45*Selection!AS4*(1-G_A!AF$9) -> 1.276057326 | AU45: =BT45*Selection!AT4*(1-G_A!AG$9) -> 1.301578473 | AV45: =BU45*Selection!AU4*(1-G_A!AH$9) -> 1.327610042 | AW45: =BV45*Selection!AV4*(1-G_A!AI$9) -> 1.354162243 | AX45: =BW45*Selection!AW4*(1-G_A!AJ$9) -> 1.381245488 | AY45: =BX45*Selection!AX4*(1-G_A!AK$9) -> 1.408870398 | AZ45: =BY45*Selection!AY4*(1-G_A!AL$9) -> 1.437047806 | BA45: =BZ45*Selection!AZ4*(1-G_A!AM$9) -> 1.465788762 | BC45: 2.7060804 | BD45: 2.760202008 | BE45: 2.815406048 | BF45: 2.871714169 | BG45: 2.929148453 | BH45: 2.987731422 | BI45: 3.04748605 | BJ45: 3.108435771 | BK45: 3.170604486 | BL45: 3.234016576 | BM45: 3.298696908 | BN45: 3.364670846 | BO45: 3.431964263 | BP45: 3.500603548 | BQ45: 3.570615619 | BR45: 3.642027931 | BS45: 3.71486849 | BT45: 3.78916586 | BU45: 3.864949177 | BV45: 3.94224816 | BW45: 4.021093124 | BX45: 4.101514986 | BY45: 4.183545286 | BZ45: 4.267216192
B46: Colstrip 3 | E46: =BC46*Selection!D6*G_A!P$9 -> 0 | F46: =BD46*Selection!E6*G_A!Q$9 -> 0 | G46: =BE46*Selection!F6*G_A!R$9 -> 0 | H46: =BF46*Selection!G6*G_A!S$9 -> 0 | I46: =BG46*Selection!H6*G_A!T$9 -> 0 | J46: =BH46*Selection!I6*G_A!U$9 -> 0 | K46: =BI46*Selection!J6*G_A!V$9 -> 0 | L46: =BJ46*Selection!K6*G_A!W$9 -> 0 | M46: =BK46*Selection!L6*G_A!X$9 -> 0 | N46: =BL46*Selection!M6*G_A!Y$9 -> 0 | O46: =BM46*Selection!N6*G_A!Z$9 -> 0 | P46: =BN46*Selection!O6*G_A!AA$9 -> 0 | Q46: =BO46*Selection!P6*G_A!AB$9 -> 0 | R46: =BP46*Selection!Q6*G_A!AC$9 -> 0 | S46: =BQ46*Selection!R6*G_A!AD$9 -> 0 | T46: =BR46*Selection!S6*G_A!AE$9 -> 0 | U46: =BS46*Selection!T6*G_A!AF$9 -> 0 | V46: =BT46*Selection!U6*G_A!AG$9 -> 0 | W46: =BU46*Selection!V6*G_A!AH$9 -> 0 | X46: =BV46*Selection!W6*G_A!AI$9 -> 0 | Y46: =BW46*Selection!X6*G_A!AJ$9 -> 0 | Z46: =BX46*Selection!Y6*G_A!AK$9 -> 0 | AA46: =BY46*Selection!Z6*G_A!AL$9 -> 0 | AB46: =BZ46*Selection!AA6*G_A!AM$9 -> 0 | AD46: =BC46*Selection!AC6*(1-G_A!P$9) -> 0 | AE46: =BD46*Selection!AD6*(1-G_A!Q$9) -> 0 | AF46: =BE46*Selection!AE6*(1-G_A!R$9) -> 0 | AG46: =BF46*Selection!AF6*(1-G_A!S$9) -> 0 | AH46: =BG46*Selection!AG6*(1-G_A!T$9) -> 0 | AI46: =BH46*Selection!AH6*(1-G_A!U$9) -> 0 | AJ46: =BI46*Selection!AI6*(1-G_A!V$9) -> 0 | AK46: =BJ46*Selection!AJ6*(1-G_A!W$9) -> 0 | AL46: =BK46*Selection!AK6*(1-G_A!X$9) -> 0 | AM46: =BL46*Selection!AL6*(1-G_A!Y$9) -> 0 | AN46: =BM46*Selection!AM6*(1-G_A!Z$9) -> 0 | AO46: =BN46*Selection!AN6*(1-G_A!AA$9) -> 0 | AP46: =BO46*Selection!AO6*(1-G_A!AB$9) -> 0 | AQ46: =BP46*Selection!AP6*(1-G_A!AC$9) -> 0 | AR46: =BQ46*Selection!AQ6*(1-G_A!AD$9) -> 0 | AS46: =BR46*Selection!AR6*(1-G_A!AE$9) -> 0 | AT46: =BS46*Selection!AS6*(1-G_A!AF$9) -> 0 | AU46: =BT46*Selection!AT6*(1-G_A!AG$9) -> 0 | AV46: =BU46*Selection!AU6*(1-G_A!AH$9) -> 0 | AW46: =BV46*Selection!AV6*(1-G_A!AI$9) -> 0 | AX46: =BW46*Selection!AW6*(1-G_A!AJ$9) -> 0 | AY46: =BX46*Selection!AX6*(1-G_A!AK$9) -> 0 | AZ46: =BY46*Selection!AY6*(1-G_A!AL$9) -> 0 | BA46: =BZ46*Selection!AZ6*(1-G_A!AM$9) -> 0 | BC46: 5.80299005 | BD46: 6.01125598 | BE46: 5.970150266 | BF46: 9.170399048 | BG46: 10.25574395 | BH46: 10.44816265 | BI46: 10.69333008 | BJ46: 14.20853235 | BK46: 11.34583869 | BL46: 11.64039457 | BM46: 11.50530386 | BN46: 16.0162441 | BO46: 13.5110207 | BP46: 13.83859098 | BQ46: 13.65759943 | BR46: 18.12101299 | BS46: 14.85634667 | BT46: 15.23993625 | BU46: 15.32562267 | BV46: 20.11583231 | BW46: 16.1944525 | BX46: 16.38903802 | BY46: 15.96738215 | BZ46: 17.81310594 | CC46: 1.89781625 | CD46: 1.89781625 | CE46: 1.89781625 | CF46: 1.89781625 | CH46: 7.704328102 | CI46: 7.907657466 | CJ46: 7.870156089 | CK46: 11.07086097
B47: Colstrip 4 | E47: =BC47*Selection!D7*G_A!P$9 -> 0 | F47: =BD47*Selection!E7*G_A!Q$9 -> 0 | G47: =BE47*Selection!F7*G_A!R$9 -> 0 | H47: =BF47*Selection!G7*G_A!S$9 -> 0 | I47: =BG47*Selection!H7*G_A!T$9 -> 0 | J47: =BH47*Selection!I7*G_A!U$9 -> 0 | K47: =BI47*Selection!J7*G_A!V$9 -> 0 | L47: =BJ47*Selection!K7*G_A!W$9 -> 0 | M47: =BK47*Selection!L7*G_A!X$9 -> 0 | N47: =BL47*Selection!M7*G_A!Y$9 -> 0 | O47: =BM47*Selection!N7*G_A!Z$9 -> 0 | P47: =BN47*Selection!O7*G_A!AA$9 -> 0 | Q47: =BO47*Selection!P7*G_A!AB$9 -> 0 | R47: =BP47*Selection!Q7*G_A!AC$9 -> 0 | S47: =BQ47*Selection!R7*G_A!AD$9 -> 0 | T47: =BR47*Selection!S7*G_A!AE$9 -> 0 | U47: =BS47*Selection!T7*G_A!AF$9 -> 0 | V47: =BT47*Selection!U7*G_A!AG$9 -> 0 | W47: =BU47*Selection!V7*G_A!AH$9 -> 0 | X47: =BV47*Selection!W7*G_A!AI$9 -> 0 | Y47: =BW47*Selection!X7*G_A!AJ$9 -> 0 | Z47: =BX47*Selection!Y7*G_A!AK$9 -> 0 | AA47: =BY47*Selection!Z7*G_A!AL$9 -> 0 | AB47: =BZ47*Selection!AA7*G_A!AM$9 -> 0 | AD47: =BC47*Selection!AC7*(1-G_A!P$9) -> 0 | AE47: =BD47*Selection!AD7*(1-G_A!Q$9) -> 0 | AF47: =BE47*Selection!AE7*(1-G_A!R$9) -> 0 | AG47: =BF47*Selection!AF7*(1-G_A!S$9) -> 0 | AH47: =BG47*Selection!AG7*(1-G_A!T$9) -> 0 | AI47: =BH47*Selection!AH7*(1-G_A!U$9) -> 0 | AJ47: =BI47*Selection!AI7*(1-G_A!V$9) -> 0 | AK47: =BJ47*Selection!AJ7*(1-G_A!W$9) -> 0 | AL47: =BK47*Selection!AK7*(1-G_A!X$9) -> 0 | AM47: =BL47*Selection!AL7*(1-G_A!Y$9) -> 0 | AN47: =BM47*Selection!AM7*(1-G_A!Z$9) -> 0 | AO47: =BN47*Selection!AN7*(1-G_A!AA$9) -> 0 | AP47: =BO47*Selection!AO7*(1-G_A!AB$9) -> 0 | AQ47: =BP47*Selection!AP7*(1-G_A!AC$9) -> 0 | AR47: =BQ47*Selection!AQ7*(1-G_A!AD$9) -> 0 | AS47: =BR47*Selection!AR7*(1-G_A!AE$9) -> 0 | AT47: =BS47*Selection!AS7*(1-G_A!AF$9) -> 0 | AU47: =BT47*Selection!AT7*(1-G_A!AG$9) -> 0 | AV47: =BU47*Selection!AU7*(1-G_A!AH$9) -> 0 | AW47: =BV47*Selection!AV7*(1-G_A!AI$9) -> 0 | AX47: =BW47*Selection!AW7*(1-G_A!AJ$9) -> 0 | AY47: =BX47*Selection!AX7*(1-G_A!AK$9) -> 0 | AZ47: =BY47*Selection!AY7*(1-G_A!AL$9) -> 0 | BA47: =BZ47*Selection!AZ7*(1-G_A!AM$9) -> 0 | BC47: 5.728152397 | BD47: 5.94520408 | BE47: 8.790619924 | BF47: 6.145965639 | BG47: 10.19025253 | BH47: 10.47934219 | BI47: 13.83008832 | BJ47: 10.90441484 | BK47: 11.28472646 | BL47: 11.57788525 | BM47: 15.63063281 | BN47: 11.78941788 | BO47: 13.44664521 | BP47: 13.77701181 | BQ47: 17.66027317 | BR47: 14.16768949 | BS47: 14.78285408 | BT47: 15.17004183 | BU47: 19.60855493 | BV47: 15.6786589 | BW47: 16.12539552 | BX47: 16.31138502 | BY47: 18.62711882 | BZ47: 15.74639649 | CC47: 1.89781625 | CD47: 1.89781625 | CE47: 1.89781625 | CF47: 1.89781625 | CH47: 8.578604593 | CI47: 8.79038692 | CJ47: 11.63947541 | CK47: 8.99568069
B48: Colstrip CCR | E48: =BC48*G_A!P$9 -> 0.418932345 | F48: =BD48*G_A!Q$9 -> 0.598984035 | G48: =BE48*G_A!R$9 -> 0.60605454 | H48: =BF48*G_A!S$9 -> 0.617300385 | I48: =BG48*G_A!T$9 -> 0.617300385 | J48: =BH48*G_A!U$9 -> 0.617300385 | K48: =BI48*G_A!V$9 -> 0.617300385 | L48: =BJ48*G_A!W$9 -> 0.617300385 | M48: =BK48*G_A!X$9 -> 0.617300385 | N48: =BL48*G_A!Y$9 -> 0.617300385 | O48: =BM48*G_A!Z$9 -> 0.617300385 | P48: =BN48*G_A!AA$9 -> 0.617300385 | Q48: =BO48*G_A!AB$9 -> 0.617300385 | R48: =BP48*G_A!AC$9 -> 0.617300385 | S48: =BQ48*G_A!AD$9 -> 0.617300385 | T48: =BR48*G_A!AE$9 -> 0.617300385 | U48: =BS48*G_A!AF$9 -> 0.617300385 | V48: =BT48*G_A!AG$9 -> 0.617300385 | W48: =BU48*G_A!AH$9 -> 0.169239135 | X48: =BV48*G_A!AI$9 -> 0.19517745 | Y48: =BW48*G_A!AJ$9 -> 0.19517745 | Z48: =BX48*G_A!AK$9 -> 0.19517745 | AA48: =BY48*G_A!AL$9 -> 0.19517745 | AB48: =BZ48*G_A!AM$9 -> 0.19517745 | AD48: =BC48*(1-G_A!P$9) -> 0.219197655 | AE48: =BD48*(1-G_A!Q$9) -> 0.313405965 | AF48: =BE48*(1-G_A!R$9) -> 0.31710546 | AG48: =BF48*(1-G_A!S$9) -> 0.322989615 | AH48: =BG48*(1-G_A!T$9) -> 0.322989615 | AI48: =BH48*(1-G_A!U$9) -> 0.322989615 | AJ48: =BI48*(1-G_A!V$9) -> 0.322989615 | AK48: =BJ48*(1-G_A!W$9) -> 0.322989615 | AL48: =BK48*(1-G_A!X$9) -> 0.322989615 | AM48: =BL48*(1-G_A!Y$9) -> 0.322989615 | AN48: =BM48*(1-G_A!Z$9) -> 0.322989615 | AO48: =BN48*(1-G_A!AA$9) -> 0.322989615 | AP48: =BO48*(1-G_A!AB$9) -> 0.322989615 | AQ48: =BP48*(1-G_A!AC$9) -> 0.322989615 | AR48: =BQ48*(1-G_A!AD$9) -> 0.322989615 | AS48: =BR48*(1-G_A!AE$9) -> 0.322989615 | AT48: =BS48*(1-G_A!AF$9) -> 0.322989615 | AU48: =BT48*(1-G_A!AG$9) -> 0.322989615 | AV48: =BU48*(1-G_A!AH$9) -> 0.088550865 | AW48: =BV48*(1-G_A!AI$9) -> 0.10212255 | AX48: =BW48*(1-G_A!AJ$9) -> 0.10212255 | AY48: =BX48*(1-G_A!AK$9) -> 0.10212255 | AZ48: =BY48*(1-G_A!AL$9) -> 0.10212255 | BA48: =BZ48*(1-G_A!AM$9) -> 0.10212255 | BC48: 0.63813 | BD48: 0.91239 | BE48: 0.92316 | BF48: 0.94029 | BG48: 0.94029 | BH48: 0.94029 | BI48: 0.94029 | BJ48: 0.94029 | BK48: 0.94029 | BL48: 0.94029 | BM48: 0.94029 | BN48: 0.94029 | BO48: 0.94029 | BP48: 0.94029 | BQ48: 0.94029 | BR48: 0.94029 | BS48: 0.94029 | BT48: 0.94029 | BU48: 0.25779 | BV48: 0.2973 | BW48: 0.2973 | BX48: 0.2973 | BY48: 0.2973 | BZ48: 0.2973
B49: Kettle Falls | E49: =BC49*Selection!D8*G_A!P$9 -> 2.81842776 | F49: =BD49*Selection!E8*G_A!Q$9 -> 2.874796315 | G49: =BE49*Selection!F8*G_A!R$9 -> 2.932292242 | H49: =BF49*Selection!G8*G_A!S$9 -> 2.990938087 | I49: =BG49*Selection!H8*G_A!T$9 -> 3.050756848 | J49: =BH49*Selection!I8*G_A!U$9 -> 3.111771985 | K49: =BI49*Selection!J8*G_A!V$9 -> 3.174007425 | L49: =BJ49*Selection!K8*G_A!W$9 -> 3.237487573 | M49: =BK49*Selection!L8*G_A!X$9 -> 3.302237325 | N49: =BL49*Selection!M8*G_A!Y$9 -> 3.368282071 | O49: =BM49*Selection!N8*G_A!Z$9 -> 3.435647713 | P49: =BN49*Selection!O8*G_A!AA$9 -> 3.504360667 | Q49: =BO49*Selection!P8*G_A!AB$9 -> 3.57444788 | R49: =BP49*Selection!Q8*G_A!AC$9 -> 3.645936838 | S49: =BQ49*Selection!R8*G_A!AD$9 -> 3.718855575 | T49: =BR49*Selection!S8*G_A!AE$9 -> 3.793232686 | U49: =BS49*Selection!T8*G_A!AF$9 -> 3.86909734 | V49: =BT49*Selection!U8*G_A!AG$9 -> 3.946479287 | W49: =BU49*Selection!V8*G_A!AH$9 -> 4.025408873 | X49: =BV49*Selection!W8*G_A!AI$9 -> 4.10591705 | Y49: =BW49*Selection!X8*G_A!AJ$9 -> 4.188035391 | Z49: =BX49*Selection!Y8*G_A!AK$9 -> 4.271796099 | AA49: =BY49*Selection!Z8*G_A!AL$9 -> 4.357232021 | AB49: =BZ49*Selection!AA8*G_A!AM$9 -> 4.444376661 | AD49: =BC49*Selection!AC8*(1-G_A!P$9) -> 1.474683832 | AE49: =BD49*Selection!AD8*(1-G_A!Q$9) -> 1.504177509 | AF49: =BE49*Selection!AE8*(1-G_A!R$9) -> 1.534261059 | AG49: =BF49*Selection!AF8*(1-G_A!S$9) -> 1.56494628 | AH49: =BG49*Selection!AG8*(1-G_A!T$9) -> 1.596245205 | AI49: =BH49*Selection!AH8*(1-G_A!U$9) -> 1.62817011 | AJ49: =BI49*Selection!AI8*(1-G_A!V$9) -> 1.660733512 | AK49: =BJ49*Selection!AJ8*(1-G_A!W$9) -> 1.693948182 | AL49: =BK49*Selection!AK8*(1-G_A!X$9) -> 1.727827146 | AM49: =BL49*Selection!AL8*(1-G_A!Y$9) -> 1.762383689 | AN49: =BM49*Selection!AM8*(1-G_A!Z$9) -> 1.797631362 | AO49: =BN49*Selection!AN8*(1-G_A!AA$9) -> 1.83358399 | AP49: =BO49*Selection!AO8*(1-G_A!AB$9) -> 1.870255669 | AQ49: =BP49*Selection!AP8*(1-G_A!AC$9) -> 1.907660783 | AR49: =BQ49*Selection!AQ8*(1-G_A!AD$9) -> 1.945813998 | AS49: =BR49*Selection!AR8*(1-G_A!AE$9) -> 1.984730278 | AT49: =BS49*Selection!AS8*(1-G_A!AF$9) -> 2.024424884 | AU49: =BT49*Selection!AT8*(1-G_A!AG$9) -> 2.064913382 | AV49: =BU49*Selection!AU8*(1-G_A!AH$9) -> 2.106211649 | AW49: =BV49*Selection!AV8*(1-G_A!AI$9) -> 2.148335882 | AX49: =BW49*Selection!AW8*(1-G_A!AJ$9) -> 2.1913026 | AY49: =BX49*Selection!AX8*(1-G_A!AK$9) -> 2.235128652 | AZ49: =BY49*Selection!AY8*(1-G_A!AL$9) -> 2.279831225 | BA49: =BZ49*Selection!AZ8*(1-G_A!AM$9) -> 2.325427849 | BC49: 4.293111592 | BD49: 4.378973824 | BE49: 4.4665533 | BF49: 4.555884366 | BG49: 4.647002054 | BH49: 4.739942095 | BI49: 4.834740937 | BJ49: 4.931435755 | BK49: 5.030064471 | BL49: 5.13066576 | BM49: 5.233279075 | BN49: 5.337944657 | BO49: 5.44470355 | BP49: 5.553597621 | BQ49: 5.664669573 | BR49: 5.777962965 | BS49: 5.893522224 | BT49: 6.011392668 | BU49: 6.131620522 | BV49: 6.254252932 | BW49: 6.379337991 | BX49: 6.506924751 | BY49: 6.637063246 | BZ49: 6.769804511
B50: Kettle Falls CT | E50: =BC50*Selection!D9*G_A!P$9 -> 0.220584 | F50: =BD50*Selection!E9*G_A!Q$9 -> 0.02410668 | G50: =BE50*Selection!F9*G_A!R$9 -> 0.0245888136 | H50: =BF50*Selection!G9*G_A!S$9 -> 0.02508058987 | I50: =BG50*Selection!H9*G_A!T$9 -> 0.02558220167 | J50: =BH50*Selection!I9*G_A!U$9 -> 0.0260938457 | K50: =BI50*Selection!J9*G_A!V$9 -> 0.02661572262 | L50: =BJ50*Selection!K9*G_A!W$9 -> 0.02714803707 | M50: =BK50*Selection!L9*G_A!X$9 -> 0.02769099781 | N50: =BL50*Selection!M9*G_A!Y$9 -> 0.02824481777 | O50: =BM50*Selection!N9*G_A!Z$9 -> 0.02880971412 | P50: =BN50*Selection!O9*G_A!AA$9 -> 0.0293859084 | Q50: =BO50*Selection!P9*G_A!AB$9 -> 0.02997362657 | R50: =BP50*Selection!Q9*G_A!AC$9 -> 0.0305730991 | S50: =BQ50*Selection!R9*G_A!AD$9 -> 0.03118456109 | T50: =BR50*Selection!S9*G_A!AE$9 -> 0.03180825231 | U50: =BS50*Selection!T9*G_A!AF$9 -> 0.03244441735 | V50: =BT50*Selection!U9*G_A!AG$9 -> 0.0330933057 | W50: =BU50*Selection!V9*G_A!AH$9 -> 0.03375517182 | X50: =BV50*Selection!W9*G_A!AI$9 -> 0.03443027525 | Y50: =BW50*Selection!X9*G_A!AJ$9 -> 0.03511888076 | Z50: =BX50*Selection!Y9*G_A!AK$9 -> 0.03582125837 | AA50: =BY50*Selection!Z9*G_A!AL$9 -> 0.03653768354 | AB50: =BZ50*Selection!AA9*G_A!AM$9 -> 0.03726843721 | AD50: =BC50*Selection!AC9*(1-G_A!P$9) -> 0.115416 | AE50: =BD50*Selection!AD9*(1-G_A!Q$9) -> 0.01261332 | AF50: =BE50*Selection!AE9*(1-G_A!R$9) -> 0.0128655864 | AG50: =BF50*Selection!AF9*(1-G_A!S$9) -> 0.01312289813 | AH50: =BG50*Selection!AG9*(1-G_A!T$9) -> 0.01338535609 | AI50: =BH50*Selection!AH9*(1-G_A!U$9) -> 0.01365306321 | AJ50: =BI50*Selection!AI9*(1-G_A!V$9) -> 0.01392612448 | AK50: =BJ50*Selection!AJ9*(1-G_A!W$9) -> 0.01420464697 | AL50: =BK50*Selection!AK9*(1-G_A!X$9) -> 0.01448873991 | AM50: =BL50*Selection!AL9*(1-G_A!Y$9) -> 0.0147785147 | AN50: =BM50*Selection!AM9*(1-G_A!Z$9) -> 0.015074085 | AO50: =BN50*Selection!AN9*(1-G_A!AA$9) -> 0.0153755667 | AP50: =BO50*Selection!AO9*(1-G_A!AB$9) -> 0.01568307803 | AQ50: =BP50*Selection!AP9*(1-G_A!AC$9) -> 0.01599673959 | AR50: =BQ50*Selection!AQ9*(1-G_A!AD$9) -> 0.01631667438 | AS50: =BR50*Selection!AR9*(1-G_A!AE$9) -> 0.01664300787 | AT50: =BS50*Selection!AS9*(1-G_A!AF$9) -> 0.01697586803 | AU50: =BT50*Selection!AT9*(1-G_A!AG$9) -> 0.01731538539 | AV50: =BU50*Selection!AU9*(1-G_A!AH$9) -> 0.0176616931 | AW50: =BV50*Selection!AV9*(1-G_A!AI$9) -> 0.01801492696 | AX50: =BW50*Selection!AW9*(1-G_A!AJ$9) -> 0.0183752255 | AY50: =BX50*Selection!AX9*(1-G_A!AK$9) -> 0.01874273001 | AZ50: =BY50*Selection!AY9*(1-G_A!AL$9) -> 0.01911758461 | BA50: =BZ50*Selection!AZ9*(1-G_A!AM$9) -> 0.0194999363 | BC50: =0.336 -> 0.336 | BD50: 0.03672 | BE50: 0.0374544 | BF50: 0.038203488 | BG50: 0.03896755776 | BH50: 0.03974690892 | BI50: 0.04054184709 | BJ50: 0.04135268404 | BK50: 0.04217973772 | BL50: 0.04302333247 | BM50: 0.04388379912 | BN50: 0.0447614751 | BO50: 0.0456567046 | BP50: 0.0465698387 | BQ50: 0.04750123547 | BR50: 0.04845126018 | BS50: 0.04942028538 | BT50: 0.05040869109 | BU50: 0.05141686491 | BV50: 0.05244520221 | BW50: 0.05349410626 | BX50: 0.05456398838 | BY50: 0.05565526815 | BZ50: 0.05676837351
B51: Boulder Park | E51: =BC51*Selection!D10*G_A!P$9 -> 0.3201507837 | F51: =BD51*Selection!E10*G_A!Q$9 -> 0.3265537994 | G51: =BE51*Selection!F10*G_A!R$9 -> 0.3330848753 | H51: =BF51*Selection!G10*G_A!S$9 -> 0.3397465729 | I51: =BG51*Selection!H10*G_A!T$9 -> 0.3465415043 | J51: =BH51*Selection!I10*G_A!U$9 -> 0.3534723344 | K51: =BI51*Selection!J10*G_A!V$9 -> 0.3605417811 | L51: =BJ51*Selection!K10*G_A!W$9 -> 0.3677526167 | M51: =BK51*Selection!L10*G_A!X$9 -> 0.375107669 | N51: =BL51*Selection!M10*G_A!Y$9 -> 0.3826098224 | O51: =BM51*Selection!N10*G_A!Z$9 -> 0.3902620189 | P51: =BN51*Selection!O10*G_A!AA$9 -> 0.3980672592 | Q51: =BO51*Selection!P10*G_A!AB$9 -> 0.4060286044 | R51: =BP51*Selection!Q10*G_A!AC$9 -> 0.4141491765 | S51: =BQ51*Selection!R10*G_A!AD$9 -> 0.42243216 | T51: =BR51*Selection!S10*G_A!AE$9 -> 0.4308808032 | U51: =BS51*Selection!T10*G_A!AF$9 -> 0.4394984193 | V51: =BT51*Selection!U10*G_A!AG$9 -> 0.4482883877 | W51: =BU51*Selection!V10*G_A!AH$9 -> 0.4572541555 | X51: =BV51*Selection!W10*G_A!AI$9 -> 0 | Y51: =BW51*Selection!X10*G_A!AJ$9 -> 0 | Z51: =BX51*Selection!Y10*G_A!AK$9 -> 0 | AA51: =BY51*Selection!Z10*G_A!AL$9 -> 0 | AB51: =BZ51*Selection!AA10*G_A!AM$9 -> 0 | AD51: =BC51*Selection!AC10*(1-G_A!P$9) -> 0.1675122532 | AE51: =BD51*Selection!AD10*(1-G_A!Q$9) -> 0.1708624982 | AF51: =BE51*Selection!AE10*(1-G_A!R$9) -> 0.1742797482 | AG51: =BF51*Selection!AF10*(1-G_A!S$9) -> 0.1777653431 | AH51: =BG51*Selection!AG10*(1-G_A!T$9) -> 0.18132065 | AI51: =BH51*Selection!AH10*(1-G_A!U$9) -> 0.184947063 | AJ51: =BI51*Selection!AI10*(1-G_A!V$9) -> 0.1886460043 | AK51: =BJ51*Selection!AJ10*(1-G_A!W$9) -> 0.1924189244 | AL51: =BK51*Selection!AK10*(1-G_A!X$9) -> 0.1962673028 | AM51: =BL51*Selection!AL10*(1-G_A!Y$9) -> 0.2001926489 | AN51: =BM51*Selection!AM10*(1-G_A!Z$9) -> 0.2041965019 | AO51: =BN51*Selection!AN10*(1-G_A!AA$9) -> 0.2082804319 | AP51: =BO51*Selection!AO10*(1-G_A!AB$9) -> 0.2124460405 | AQ51: =BP51*Selection!AP10*(1-G_A!AC$9) -> 0.2166949614 | AR51: =BQ51*Selection!AQ10*(1-G_A!AD$9) -> 0.2210288606 | AS51: =BR51*Selection!AR10*(1-G_A!AE$9) -> 0.2254494378 | AT51: =BS51*Selection!AS10*(1-G_A!AF$9) -> 0.2299584266 | AU51: =BT51*Selection!AT10*(1-G_A!AG$9) -> 0.2345575951 | AV51: =BU51*Selection!AU10*(1-G_A!AH$9) -> 0.239248747 | AW51: =BV51*Selection!AV10*(1-G_A!AI$9) -> 0 | AX51: =BW51*Selection!AW10*(1-G_A!AJ$9) -> 0 | AY51: =BX51*Selection!AX10*(1-G_A!AK$9) -> 0 | AZ51: =BY51*Selection!AY10*(1-G_A!AL$9) -> 0 | BA51: =BZ51*Selection!AZ10*(1-G_A!AM$9) -> 0 | BC51: 0.4876630368 | BD51: 0.4974162976 | BE51: 0.5073646235 | BF51: 0.517511916 | BG51: 0.5278621543 | BH51: 0.5384193974 | BI51: 0.5491877853 | BJ51: 0.5601715411 | BK51: 0.5713749719 | BL51: 0.5828024713 | BM51: 0.5944585207 | BN51: 0.6063476912 | BO51: 0.618474645 | BP51: 0.6308441379 | BQ51: 0.6434610206 | BR51: 0.656330241 | BS51: 0.6694568459 | BT51: 0.6828459828 | BU51: 0.6965029024 | BV51: 0.7104329605 | BW51: 0.7246416197 | BX51: 0.7391344521 | BY51: 0.7539171411 | BZ51: 0.768995484
B52: Rathdrum 1 | E52: =BC52*Selection!D11*G_A!P$9 -> 0.03468664748 | F52: =BD52*Selection!E11*G_A!Q$9 -> 0.03538038043 | G52: =BE52*Selection!F11*G_A!R$9 -> 0.03608798804 | H52: =BF52*Selection!G11*G_A!S$9 -> 0.0368097478 | I52: =BG52*Selection!H11*G_A!T$9 -> 0.03754594275 | J52: =BH52*Selection!I11*G_A!U$9 -> 0.03829686161 | K52: =BI52*Selection!J11*G_A!V$9 -> 0.03906279884 | L52: =BJ52*Selection!K11*G_A!W$9 -> 0.03984405482 | M52: =BK52*Selection!L11*G_A!X$9 -> 0.04064093591 | N52: =BL52*Selection!M11*G_A!Y$9 -> 0.04145375463 | O52: =BM52*Selection!N11*G_A!Z$9 -> 0.04228282973 | P52: =BN52*Selection!O11*G_A!AA$9 -> 0.04312848632 | Q52: =BO52*Selection!P11*G_A!AB$9 -> 0.04399105605 | R52: =BP52*Selection!Q11*G_A!AC$9 -> 0.04487087717 | S52: =BQ52*Selection!R11*G_A!AD$9 -> 0.04576829471 | T52: =BR52*Selection!S11*G_A!AE$9 -> 0.04668366061 | U52: =BS52*Selection!T11*G_A!AF$9 -> 0.04761733382 | V52: =BT52*Selection!U11*G_A!AG$9 -> 0.04856968049 | W52: =BU52*Selection!V11*G_A!AH$9 -> 0.0495410741 | X52: =BV52*Selection!W11*G_A!AI$9 -> 0.05053189559 | Y52: =BW52*Selection!X11*G_A!AJ$9 -> 0.0515425335 | Z52: =BX52*Selection!Y11*G_A!AK$9 -> 0.05257338417 | AA52: =BY52*Selection!Z11*G_A!AL$9 -> 0.05362485185 | AB52: =BZ52*Selection!AA11*G_A!AM$9 -> 0.05469734889 | AD52: =BC52*Selection!AC11*(1-G_A!P$9) -> 0.01814906841 | AE52: =BD52*Selection!AD11*(1-G_A!Q$9) -> 0.01851204978 | AF52: =BE52*Selection!AE11*(1-G_A!R$9) -> 0.01888229077 | AG52: =BF52*Selection!AF11*(1-G_A!S$9) -> 0.01925993659 | AH52: =BG52*Selection!AG11*(1-G_A!T$9) -> 0.01964513532 | AI52: =BH52*Selection!AH11*(1-G_A!U$9) -> 0.02003803802 | AJ52: =BI52*Selection!AI11*(1-G_A!V$9) -> 0.02043879878 | AK52: =BJ52*Selection!AJ11*(1-G_A!W$9) -> 0.02084757476 | AL52: =BK52*Selection!AK11*(1-G_A!X$9) -> 0.02126452626 | AM52: =BL52*Selection!AL11*(1-G_A!Y$9) -> 0.02168981678 | AN52: =BM52*Selection!AM11*(1-G_A!Z$9) -> 0.02212361312 | AO52: =BN52*Selection!AN11*(1-G_A!AA$9) -> 0.02256608538 | AP52: =BO52*Selection!AO11*(1-G_A!AB$9) -> 0.02301740709 | AQ52: =BP52*Selection!AP11*(1-G_A!AC$9) -> 0.02347775523 | AR52: =BQ52*Selection!AQ11*(1-G_A!AD$9) -> 0.02394731033 | AS52: =BR52*Selection!AR11*(1-G_A!AE$9) -> 0.02442625654 | AT52: =BS52*Selection!AS11*(1-G_A!AF$9) -> 0.02491478167 | AU52: =BT52*Selection!AT11*(1-G_A!AG$9) -> 0.0254130773 | AV52: =BU52*Selection!AU11*(1-G_A!AH$9) -> 0.02592133885 | AW52: =BV52*Selection!AV11*(1-G_A!AI$9) -> 0.02643976563 | AX52: =BW52*Selection!AW11*(1-G_A!AJ$9) -> 0.02696856094 | AY52: =BX52*Selection!AX11*(1-G_A!AK$9) -> 0.02750793216 | AZ52: =BY52*Selection!AY11*(1-G_A!AL$9) -> 0.0280580908 | BA52: =BZ52*Selection!AZ11*(1-G_A!AM$9) -> 0.02861925262 | BC52: 0.05283571589 | BD52: 0.0538924302 | BE52: 0.05497027881 | BF52: 0.05606968438 | BG52: 0.05719107807 | BH52: 0.05833489963 | BI52: 0.05950159763 | BJ52: 0.06069162958 | BK52: 0.06190546217 | BL52: 0.06314357141 | BM52: 0.06440644284 | BN52: 0.0656945717 | BO52: 0.06700846313 | BP52: 0.0683486324 | BQ52: 0.06971560504 | BR52: 0.07110991714 | BS52: 0.07253211549 | BT52: 0.0739827578 | BU52: 0.07546241295 | BV52: 0.07697166121 | BW52: 0.07851109444 | BX52: 0.08008131632 | BY52: 0.08168294265 | BZ52: 0.0833166015
B53: Rathdrum 2 | E53: =BC53*Selection!D12*G_A!P$9 -> 0.03468664748 | F53: =BD53*Selection!E12*G_A!Q$9 -> 0.03538038043 | G53: =BE53*Selection!F12*G_A!R$9 -> 0.03608798804 | H53: =BF53*Selection!G12*G_A!S$9 -> 0.0368097478 | I53: =BG53*Selection!H12*G_A!T$9 -> 0.03754594275 | J53: =BH53*Selection!I12*G_A!U$9 -> 0.03829686161 | K53: =BI53*Selection!J12*G_A!V$9 -> 0.03906279884 | L53: =BJ53*Selection!K12*G_A!W$9 -> 0.03984405482 | M53: =BK53*Selection!L12*G_A!X$9 -> 0.04064093591 | N53: =BL53*Selection!M12*G_A!Y$9 -> 0.04145375463 | O53: =BM53*Selection!N12*G_A!Z$9 -> 0.04228282973 | P53: =BN53*Selection!O12*G_A!AA$9 -> 0.04312848632 | Q53: =BO53*Selection!P12*G_A!AB$9 -> 0.04399105605 | R53: =BP53*Selection!Q12*G_A!AC$9 -> 0.04487087717 | S53: =BQ53*Selection!R12*G_A!AD$9 -> 0.04576829471 | T53: =BR53*Selection!S12*G_A!AE$9 -> 0.04668366061 | U53: =BS53*Selection!T12*G_A!AF$9 -> 0.04761733382 | V53: =BT53*Selection!U12*G_A!AG$9 -> 0.04856968049 | W53: =BU53*Selection!V12*G_A!AH$9 -> 0.0495410741 | X53: =BV53*Selection!W12*G_A!AI$9 -> 0.05053189559 | Y53: =BW53*Selection!X12*G_A!AJ$9 -> 0.0515425335 | Z53: =BX53*Selection!Y12*G_A!AK$9 -> 0.05257338417 | AA53: =BY53*Selection!Z12*G_A!AL$9 -> 0.05362485185 | AB53: =BZ53*Selection!AA12*G_A!AM$9 -> 0.05469734889 | AD53: =BC53*Selection!AC12*(1-G_A!P$9) -> 0.01814906841 | AE53: =BD53*Selection!AD12*(1-G_A!Q$9) -> 0.01851204978 | AF53: =BE53*Selection!AE12*(1-G_A!R$9) -> 0.01888229077 | AG53: =BF53*Selection!AF12*(1-G_A!S$9) -> 0.01925993659 | AH53: =BG53*Selection!AG12*(1-G_A!T$9) -> 0.01964513532 | AI53: =BH53*Selection!AH12*(1-G_A!U$9) -> 0.02003803802 | AJ53: =BI53*Selection!AI12*(1-G_A!V$9) -> 0.02043879878 | AK53: =BJ53*Selection!AJ12*(1-G_A!W$9) -> 0.02084757476 | AL53: =BK53*Selection!AK12*(1-G_A!X$9) -> 0.02126452626 | AM53: =BL53*Selection!AL12*(1-G_A!Y$9) -> 0.02168981678 | AN53: =BM53*Selection!AM12*(1-G_A!Z$9) -> 0.02212361312 | AO53: =BN53*Selection!AN12*(1-G_A!AA$9) -> 0.02256608538 | AP53: =BO53*Selection!AO12*(1-G_A!AB$9) -> 0.02301740709 | AQ53: =BP53*Selection!AP12*(1-G_A!AC$9) -> 0.02347775523 | AR53: =BQ53*Selection!AQ12*(1-G_A!AD$9) -> 0.02394731033 | AS53: =BR53*Selection!AR12*(1-G_A!AE$9) -> 0.02442625654 | AT53: =BS53*Selection!AS12*(1-G_A!AF$9) -> 0.02491478167 | AU53: =BT53*Selection!AT12*(1-G_A!AG$9) -> 0.0254130773 | AV53: =BU53*Selection!AU12*(1-G_A!AH$9) -> 0.02592133885 | AW53: =BV53*Selection!AV12*(1-G_A!AI$9) -> 0.02643976563 | AX53: =BW53*Selection!AW12*(1-G_A!AJ$9) -> 0.02696856094 | AY53: =BX53*Selection!AX12*(1-G_A!AK$9) -> 0.02750793216 | AZ53: =BY53*Selection!AY12*(1-G_A!AL$9) -> 0.0280580908 | BA53: =BZ53*Selection!AZ12*(1-G_A!AM$9) -> 0.02861925262 | BC53: 0.05283571589 | BD53: 0.0538924302 | BE53: 0.05497027881 | BF53: 0.05606968438 | BG53: 0.05719107807 | BH53: 0.05833489963 | BI53: 0.05950159763 | BJ53: 0.06069162958 | BK53: 0.06190546217 | BL53: 0.06314357141 | BM53: 0.06440644284 | BN53: 0.0656945717 | BO53: 0.06700846313 | BP53: 0.0683486324 | BQ53: 0.06971560504 | BR53: 0.07110991714 | BS53: 0.07253211549 | BT53: 0.0739827578 | BU53: 0.07546241295 | BV53: 0.07697166121 | BW53: 0.07851109444 | BX53: 0.08008131632 | BY53: 0.08168294265 | BZ53: 0.0833166015
B54: Northeast | E54: =BC54*Selection!D13*G_A!P$9 -> 0.1648217142 | F54: =BD54*Selection!E13*G_A!Q$9 -> 0.1681181485 | G54: =BE54*Selection!F13*G_A!R$9 -> 0.1714805115 | H54: =BF54*Selection!G13*G_A!S$9 -> 0.1749101217 | I54: =BG54*Selection!H13*G_A!T$9 -> 0.1784083241 | J54: =BH54*Selection!I13*G_A!U$9 -> 0.1819764906 | K54: =BI54*Selection!J13*G_A!V$9 -> 0.1856160204 | L54: =BJ54*Selection!K13*G_A!W$9 -> 0.1893283408 | M54: =BK54*Selection!L13*G_A!X$9 -> 0.1931149077 | N54: =BL54*Selection!M13*G_A!Y$9 -> 0.1969772058 | O54: =BM54*Selection!N13*G_A!Z$9 -> 0.2009167499 | P54: =BN54*Selection!O13*G_A!AA$9 -> 0.2049350849 | Q54: =BO54*Selection!P13*G_A!AB$9 -> 0.2090337866 | R54: =BP54*Selection!Q13*G_A!AC$9 -> 0.2132144624 | S54: =BQ54*Selection!R13*G_A!AD$9 -> 0 | T54: =BR54*Selection!S13*G_A!AE$9 -> 0 | U54: =BS54*Selection!T13*G_A!AF$9 -> 0 | V54: =BT54*Selection!U13*G_A!AG$9 -> 0 | W54: =BU54*Selection!V13*G_A!AH$9 -> 0 | X54: =BV54*Selection!W13*G_A!AI$9 -> 0 | Y54: =BW54*Selection!X13*G_A!AJ$9 -> 0 | Z54: =BX54*Selection!Y13*G_A!AK$9 -> 0 | AA54: =BY54*Selection!Z13*G_A!AL$9 -> 0 | AB54: =BZ54*Selection!AA13*G_A!AM$9 -> 0 | AD54: =BC54*Selection!AC13*(1-G_A!P$9) -> 0.08623954126 | AE54: =BD54*Selection!AD13*(1-G_A!Q$9) -> 0.08796433208 | AF54: =BE54*Selection!AE13*(1-G_A!R$9) -> 0.08972361872 | AG54: =BF54*Selection!AF13*(1-G_A!S$9) -> 0.0915180911 | AH54: =BG54*Selection!AG13*(1-G_A!T$9) -> 0.09334845292 | AI54: =BH54*Selection!AH13*(1-G_A!U$9) -> 0.09521542198 | AJ54: =BI54*Selection!AI13*(1-G_A!V$9) -> 0.09711973042 | AK54: =BJ54*Selection!AJ13*(1-G_A!W$9) -> 0.09906212503 | AL54: =BK54*Selection!AK13*(1-G_A!X$9) -> 0.1010433675 | AM54: =BL54*Selection!AL13*(1-G_A!Y$9) -> 0.1030642349 | AN54: =BM54*Selection!AM13*(1-G_A!Z$9) -> 0.1051255196 | AO54: =BN54*Selection!AN13*(1-G_A!AA$9) -> 0.10722803 | AP54: =BO54*Selection!AO13*(1-G_A!AB$9) -> 0.1093725906 | AQ54: =BP54*Selection!AP13*(1-G_A!AC$9) -> 0.1115600424 | AR54: =BQ54*Selection!AQ13*(1-G_A!AD$9) -> 0 | AS54: =BR54*Selection!AR13*(1-G_A!AE$9) -> 0 | AT54: =BS54*Selection!AS13*(1-G_A!AF$9) -> 0 | AU54: =BT54*Selection!AT13*(1-G_A!AG$9) -> 0 | AV54: =BU54*Selection!AU13*(1-G_A!AH$9) -> 0 | AW54: =BV54*Selection!AV13*(1-G_A!AI$9) -> 0 | AX54: =BW54*Selection!AW13*(1-G_A!AJ$9) -> 0 | AY54: =BX54*Selection!AX13*(1-G_A!AK$9) -> 0 | AZ54: =BY54*Selection!AY13*(1-G_A!AL$9) -> 0 | BA54: =BZ54*Selection!AZ13*(1-G_A!AM$9) -> 0 | BC54: 0.2510612555 | BD54: 0.2560824806 | BE54: 0.2612041302 | BF54: 0.2664282128 | BG54: 0.2717567771 | BH54: 0.2771919126 | BI54: 0.2827357509 | BJ54: 0.2883904659 | BK54: 0.2941582752 | BL54: 0.3000414407 | BM54: 0.3060422695 | BN54: 0.3121631149 | BO54: 0.3184063772 | BP54: 0.3247745047 | BQ54: 0.3312699948 | BR54: 0.3378953947 | BS54: 0.3446533026 | BT54: 0.3515463687 | BU54: 0.3585772961 | BV54: 0.365748842 | BW54: 0.3730638188 | BX54: 0.3805250952 | BY54: 0.3881355971 | BZ54: 0.395898309
B56: Existing Natural Gas Pipeline
B57: AECO to Foothills to Kingsgate to CS2 | E57: =BC57*G_A!P$9 -> 3.5785815 | F57: =BD57*G_A!Q$9 -> 3.93643965 | G57: =BE57*G_A!R$9 -> 3.93643965 | H57: =BF57*G_A!S$9 -> 3.93643965 | I57: =BG57*G_A!T$9 -> 3.93643965 | J57: =BH57*G_A!U$9 -> 3.93643965 | K57: =BI57*G_A!V$9 -> 4.330083615 | L57: =BJ57*G_A!W$9 -> 4.330083615 | M57: =BK57*G_A!X$9 -> 4.330083615 | N57: =BL57*G_A!Y$9 -> 4.330083615 | O57: =BM57*G_A!Z$9 -> 4.330083615 | P57: =BN57*G_A!AA$9 -> 4.763091977 | Q57: =BO57*G_A!AB$9 -> 4.763091977 | R57: =BP57*G_A!AC$9 -> 4.763091977 | S57: =BQ57*G_A!AD$9 -> 4.763091977 | T57: =BR57*G_A!AE$9 -> 4.763091977 | U57: =BS57*G_A!AF$9 -> 5.239401174 | V57: =BT57*G_A!AG$9 -> 5.239401174 | W57: =BU57*G_A!AH$9 -> 5.239401174 | X57: =BV57*G_A!AI$9 -> 5.239401174 | Y57: =BW57*G_A!AJ$9 -> 5.239401174 | Z57: =BX57*G_A!AK$9 -> 5.763341292 | AA57: =BY57*G_A!AL$9 -> 5.763341292 | AB57: =BZ57*G_A!AM$9 -> 5.763341292 | AD57: =BC57*(1-G_A!P$9) -> 1.8724185 | AE57: =BD57*(1-G_A!Q$9) -> 2.05966035 | AF57: =BE57*(1-G_A!R$9) -> 2.05966035 | AG57: =BF57*(1-G_A!S$9) -> 2.05966035 | AH57: =BG57*(1-G_A!T$9) -> 2.05966035 | AI57: =BH57*(1-G_A!U$9) -> 2.05966035 | AJ57: =BI57*(1-G_A!V$9) -> 2.265626385 | AK57: =BJ57*(1-G_A!W$9) -> 2.265626385 | AL57: =BK57*(1-G_A!X$9) -> 2.265626385 | AM57: =BL57*(1-G_A!Y$9) -> 2.265626385 | AN57: =BM57*(1-G_A!Z$9) -> 2.265626385 | AO57: =BN57*(1-G_A!AA$9) -> 2.492189024 | AP57: =BO57*(1-G_A!AB$9) -> 2.492189024 | AQ57: =BP57*(1-G_A!AC$9) -> 2.492189024 | AR57: =BQ57*(1-G_A!AD$9) -> 2.492189024 | AS57: =BR57*(1-G_A!AE$9) -> 2.492189024 | AT57: =BS57*(1-G_A!AF$9) -> 2.741407926 | AU57: =BT57*(1-G_A!AG$9) -> 2.741407926 | AV57: =BU57*(1-G_A!AH$9) -> 2.741407926 | AW57: =BV57*(1-G_A!AI$9) -> 2.741407926 | AX57: =BW57*(1-G_A!AJ$9) -> 2.741407926 | AY57: =BX57*(1-G_A!AK$9) -> 3.015548718 | AZ57: =BY57*(1-G_A!AL$9) -> 3.015548718 | BA57: =BZ57*(1-G_A!AM$9) -> 3.015548718 | BC57: 5.451 | BD57: 5.9961 | BE57: 5.9961 | BF57: 5.9961 | BG57: 5.9961 | BH57: 5.9961 | BI57: 6.59571 | BJ57: 6.59571 | BK57: 6.59571 | BL57: 6.59571 | BM57: 6.59571 | BN57: 7.255281 | BO57: 7.255281 | BP57: 7.255281 | BQ57: 7.255281 | BR57: 7.255281 | BS57: 7.9808091 | BT57: 7.9808091 | BU57: 7.9808091 | BV57: 7.9808091 | BW57: 7.9808091 | BX57: 8.77889001 | BY57: 8.77889001 | BZ57: 8.77889001
B58: AECO to Foothills to Kingsgate to Lancaster to Malin | E58: =BC58*G_A!P$9 -> 3.2516445 | F58: =BD58*G_A!Q$9 -> 3.57680895 | G58: =BE58*G_A!R$9 -> 3.57680895 | H58: =BF58*G_A!S$9 -> 3.57680895 | I58: =BG58*G_A!T$9 -> 3.57680895 | J58: =BH58*G_A!U$9 -> 3.57680895 | K58: =BI58*G_A!V$9 -> 3.934489845 | L58: =BJ58*G_A!W$9 -> 3.934489845 | M58: =BK58*G_A!X$9 -> 3.934489845 | N58: =BL58*G_A!Y$9 -> 3.934489845 | O58: =BM58*G_A!Z$9 -> 3.934489845 | P58: =BN58*G_A!AA$9 -> 4.32793883 | Q58: =BO58*G_A!AB$9 -> 4.32793883 | R58: =BP58*G_A!AC$9 -> 4.32793883 | S58: =BQ58*G_A!AD$9 -> 4.32793883 | T58: =BR58*G_A!AE$9 -> 4.32793883 | U58: =BS58*G_A!AF$9 -> 4.760732712 | V58: =BT58*G_A!AG$9 -> 4.760732712 | W58: =BU58*G_A!AH$9 -> 4.760732712 | X58: =BV58*G_A!AI$9 -> 4.760732712 | Y58: =BW58*G_A!AJ$9 -> 4.760732712 | Z58: =BX58*G_A!AK$9 -> 5.236805984 | AA58: =BY58*G_A!AL$9 -> 5.236805984 | AB58: =BZ58*G_A!AM$9 -> 5.236805984 | AD58: =BC58*(1-G_A!P$9) -> 1.7013555 | AE58: =BD58*(1-G_A!Q$9) -> 1.87149105 | AF58: =BE58*(1-G_A!R$9) -> 1.87149105 | AG58: =BF58*(1-G_A!S$9) -> 1.87149105 | AH58: =BG58*(1-G_A!T$9) -> 1.87149105 | AI58: =BH58*(1-G_A!U$9) -> 1.87149105 | AJ58: =BI58*(1-G_A!V$9) -> 2.058640155 | AK58: =BJ58*(1-G_A!W$9) -> 2.058640155 | AL58: =BK58*(1-G_A!X$9) -> 2.058640155 | AM58: =BL58*(1-G_A!Y$9) -> 2.058640155 | AN58: =BM58*(1-G_A!Z$9) -> 2.058640155 | AO58: =BN58*(1-G_A!AA$9) -> 2.264504171 | AP58: =BO58*(1-G_A!AB$9) -> 2.264504171 | AQ58: =BP58*(1-G_A!AC$9) -> 2.264504171 | AR58: =BQ58*(1-G_A!AD$9) -> 2.264504171 | AS58: =BR58*(1-G_A!AE$9) -> 2.264504171 | AT58: =BS58*(1-G_A!AF$9) -> 2.490954588 | AU58: =BT58*(1-G_A!AG$9) -> 2.490954588 | AV58: =BU58*(1-G_A!AH$9) -> 2.490954588 | AW58: =BV58*(1-G_A!AI$9) -> 2.490954588 | AX58: =BW58*(1-G_A!AJ$9) -> 2.490954588 | AY58: =BX58*(1-G_A!AK$9) -> 2.740050046 | AZ58: =BY58*(1-G_A!AL$9) -> 2.740050046 | BA58: =BZ58*(1-G_A!AM$9) -> 2.740050046 | BC58: 4.953 | BD58: 5.4483 | BE58: 5.4483 | BF58: 5.4483 | BG58: 5.4483 | BH58: 5.4483 | BI58: 5.99313 | BJ58: 5.99313 | BK58: 5.99313 | BL58: 5.99313 | BM58: 5.99313 | BN58: 6.592443 | BO58: 6.592443 | BP58: 6.592443 | BQ58: 6.592443 | BR58: 6.592443 | BS58: 7.2516873 | BT58: 7.2516873 | BU58: 7.2516873 | BV58: 7.2516873 | BW58: 7.2516873 | BX58: 7.97685603 | BY58: 7.97685603 | BZ58: 7.97685603
B60: Existing Third Party Transmission
B61: Townsend to Garrison (BPA Eastern Intertie) | E61: =BC61*G_A!P$9 -> 1.029804102 | F61: =BD61*G_A!Q$9 -> 1.132784513 | G61: =BE61*G_A!R$9 -> 1.132784513 | H61: =BF61*G_A!S$9 -> 1.132784513 | I61: =BG61*G_A!T$9 -> 1.132784513 | J61: =BH61*G_A!U$9 -> 0.8495883845 | K61: =BI61*G_A!V$9 -> 0 | L61: =BJ61*G_A!W$9 -> 0 | M61: =BK61*G_A!X$9 -> 0 | N61: =BL61*G_A!Y$9 -> 0 | O61: =BM61*G_A!Z$9 -> 0 | P61: =BN61*G_A!AA$9 -> 0 | Q61: =BO61*G_A!AB$9 -> 0 | R61: =BP61*G_A!AC$9 -> 0 | S61: =BQ61*G_A!AD$9 -> 0 | T61: =BR61*G_A!AE$9 -> 0 | U61: =BS61*G_A!AF$9 -> 0 | V61: =BT61*G_A!AG$9 -> 0 | W61: =BU61*G_A!AH$9 -> 0 | X61: =BV61*G_A!AI$9 -> 0 | Y61: =BW61*G_A!AJ$9 -> 0 | Z61: =BX61*G_A!AK$9 -> 0 | AA61: =BY61*G_A!AL$9 -> 0 | AB61: =BZ61*G_A!AM$9 -> 0 | AD61: =BC61*(1-G_A!P$9) -> 0.538823624 | AE61: =BD61*(1-G_A!Q$9) -> 0.5927059864 | AF61: =BE61*(1-G_A!R$9) -> 0.5927059864 | AG61: =BF61*(1-G_A!S$9) -> 0.5927059864 | AH61: =BG61*(1-G_A!T$9) -> 0.5927059864 | AI61: =BH61*(1-G_A!U$9) -> 0.4445294898 | AJ61: =BI61*(1-G_A!V$9) -> 0 | AK61: =BJ61*(1-G_A!W$9) -> 0 | AL61: =BK61*(1-G_A!X$9) -> 0 | AM61: =BL61*(1-G_A!Y$9) -> 0 | AN61: =BM61*(1-G_A!Z$9) -> 0 | AO61: =BN61*(1-G_A!AA$9) -> 0 | AP61: =BO61*(1-G_A!AB$9) -> 0 | AQ61: =BP61*(1-G_A!AC$9) -> 0 | AR61: =BQ61*(1-G_A!AD$9) -> 0 | AS61: =BR61*(1-G_A!AE$9) -> 0 | AT61: =BS61*(1-G_A!AF$9) -> 0 | AU61: =BT61*(1-G_A!AG$9) -> 0 | AV61: =BU61*(1-G_A!AH$9) -> 0 | AW61: =BV61*(1-G_A!AI$9) -> 0 | AX61: =BW61*(1-G_A!AJ$9) -> 0 | AY61: =BX61*(1-G_A!AK$9) -> 0 | AZ61: =BY61*(1-G_A!AL$9) -> 0 | BA61: =BZ61*(1-G_A!AM$9) -> 0 | BC61: 1.568627726 | BD61: 1.725490499 | BE61: 1.725490499 | BF61: 1.725490499 | BG61: 1.725490499 | BH61: 1.294117874
B62: Garrison to Hatwai (BPA BTP) | E62: =BC62*G_A!P$9 -> 2.875579788 | F62: =BD62*G_A!Q$9 -> 3.163137767 | G62: =BE62*G_A!R$9 -> 3.163137767 | H62: =BF62*G_A!S$9 -> 3.163137767 | I62: =BG62*G_A!T$9 -> 2.108758511 | J62: =BH62*G_A!U$9 -> 0 | K62: =BI62*G_A!V$9 -> 0 | L62: =BJ62*G_A!W$9 -> 0 | M62: =BK62*G_A!X$9 -> 0 | N62: =BL62*G_A!Y$9 -> 0 | O62: =BM62*G_A!Z$9 -> 0 | P62: =BN62*G_A!AA$9 -> 0 | Q62: =BO62*G_A!AB$9 -> 0 | R62: =BP62*G_A!AC$9 -> 0 | S62: =BQ62*G_A!AD$9 -> 0 | T62: =BR62*G_A!AE$9 -> 0 | U62: =BS62*G_A!AF$9 -> 0 | V62: =BT62*G_A!AG$9 -> 0 | W62: =BU62*G_A!AH$9 -> 0 | X62: =BV62*G_A!AI$9 -> 0 | Y62: =BW62*G_A!AJ$9 -> 0 | Z62: =BX62*G_A!AK$9 -> 0 | AA62: =BY62*G_A!AL$9 -> 0 | AB62: =BZ62*G_A!AM$9 -> 0 | AD62: =BC62*(1-G_A!P$9) -> 1.504587444 | AE62: =BD62*(1-G_A!Q$9) -> 1.655046189 | AF62: =BE62*(1-G_A!R$9) -> 1.655046189 | AG62: =BF62*(1-G_A!S$9) -> 1.655046189 | AH62: =BG62*(1-G_A!T$9) -> 1.103364126 | AI62: =BH62*(1-G_A!U$9) -> 0 | AJ62: =BI62*(1-G_A!V$9) -> 0 | AK62: =BJ62*(1-G_A!W$9) -> 0 | AL62: =BK62*(1-G_A!X$9) -> 0 | AM62: =BL62*(1-G_A!Y$9) -> 0 | AN62: =BM62*(1-G_A!Z$9) -> 0 | AO62: =BN62*(1-G_A!AA$9) -> 0 | AP62: =BO62*(1-G_A!AB$9) -> 0 | AQ62: =BP62*(1-G_A!AC$9) -> 0 | AR62: =BQ62*(1-G_A!AD$9) -> 0 | AS62: =BR62*(1-G_A!AE$9) -> 0 | AT62: =BS62*(1-G_A!AF$9) -> 0 | AU62: =BT62*(1-G_A!AG$9) -> 0 | AV62: =BU62*(1-G_A!AH$9) -> 0 | AW62: =BV62*(1-G_A!AI$9) -> 0 | AX62: =BW62*(1-G_A!AJ$9) -> 0 | AY62: =BX62*(1-G_A!AK$9) -> 0 | AZ62: =BY62*(1-G_A!AL$9) -> 0 | BA62: =BZ62*(1-G_A!AM$9) -> 0 | BC62: 4.380167232 | BD62: 4.818183955 | BE62: 4.818183955 | BF62: 4.818183955 | BG62: 3.212122637
... 64 more rows

Sheet Clean Goals
A1: Clean Energy Goals
C3: Washington 4 yr Periods | J3: Washington | AL3: Idaho | BK3: System Total
B4: Year | C4: 2022-2025 | D4: 2026-2029 | E4: 2030-33 | F4: 2034-37 | G4: 2038-41 | H4: 2042-44 | J4: 2019 | K4: 2020 | L4: 2021 | M4: 2022 | N4: 2023 | O4: 2024 | P4: 2025 | Q4: 2026 | R4: 2027 | S4: 2028 | T4: 2029 | U4: 2030 | V4: 2031 | W4: 2032 | X4: 2033 | Y4: 2034 | Z4: 2035 | AA4: 2036 | AB4: 2037 | AC4: 2038 | AD4: 2039 | AE4: 2040 | AF4: 2041 | AG4: 2042 | AH4: 2043 | AI4: 2044 | AJ4: 2045 | AL4: 2022 | AM4: 2023 | AN4: 2024 | AO4: 2025 | AP4: 2026 | AQ4: 2027 | AR4: 2028 | AS4: 2029 | AT4: 2030 | AU4: 2031 | AV4: 2032 | AW4: 2033 | AX4: 2034 | AY4: 2035 | AZ4: 2036 | BA4: 2037 | BB4: 2038 | BC4: 2039 | BD4: 2040 | BE4: 2041 | BF4: 2042 | BG4: 2043 | BH4: 2044 | BI4: 2045 | BK4: 2022 | BL4: 2023 | BM4: 2024 | BN4: 2025 | BO4: 2026 | BP4: 2027 | BQ4: 2028 | BR4: 2029 | BS4: 2030 | BT4: 2031 | BU4: 2032 | BV4: 2033 | BW4: 2034 | BX4: 2035 | BY4: 2036 | BZ4: 2037 | CA4: 2038 | CB4: 2039 | CC4: 2040 | CD4: 2041 | CE4: 2042 | CF4: 2043 | CG4: 2044 | CH4: 2045
B5: Retail Sales | C5: =AVERAGE(M5:P5) -> 650.8533234 | D5: =AVERAGE(Q5:T5) -> 658.7236918 | E5: =AVERAGE(U5:X5) -> 663.466963 | F5: =AVERAGE(Y5:AB5) -> 667.6550936 | G5: =AVERAGE(AC5:AF5) -> 673.3931121 | H5: =AVERAGE(AG5:AI5) -> 681.2270673 | M5: 646.8978168 | N5: 650.1617546 | O5: 651.0706049 | P5: 655.2831172 | Q5: 656.9339867 | R5: 658.3696946 | S5: 658.1176493 | T5: 661.4734368 | U5: 662.4584786 | V5: 663.4306636 | W5: 662.5876163 | X5: 665.3910934 | Y5: 666.4132173 | Z5: 667.4896527 | AA5: 666.8165626 | AB5: 669.9009418 | AC5: 671.2923402 | AD5: 672.8525912 | AE5: 672.7790137 | AF5: 676.6485031 | AG5: 678.9864401 | AH5: 681.7003924 | AI5: 682.9943696 | AJ5: 688.5700202 | AL5: 391.6839362 | AM5: 392.873428 | AN5: 392.8952568 | AO5: 394.9688892 | AP5: 395.5446273 | AQ5: 396.2112887 | AR5: 395.8469807 | AS5: 397.6524906 | AT5: 398.1098883 | AU5: 398.5613159 | AV5: 397.92258 | AW5: 399.4716283 | AX5: 399.9462448 | AY5: 400.4460804 | AZ5: 399.886263 | BA5: 401.5657464 | BB5: 402.2118329 | BC5: 402.9363251 | BD5: 402.6548874 | BE5: 404.6989315 | BF5: 405.7845369 | BG5: 407.0447425 | BH5: 407.3983198 | BI5: 410.2346084 | BK5: =M5+AL5 -> 1038.581753 | BL5: 1043.035183 | BM5: 1043.965862 | BN5: 1050.252006 | BO5: 1052.478614 | BP5: 1054.580983 | BQ5: 1053.96463 | BR5: 1059.125927 | BS5: 1060.568367 | BT5: 1061.991979 | BU5: =W5+AV5 -> 1060.510196 | BV5: 1064.862722 | BW5: 1066.359462 | BX5: 1067.935733 | BY5: 1066.702826 | BZ5: 1071.466688 | CA5: 1073.504173 | CB5: 1075.788916 | CC5: 1075.433901 | CD5: 1081.347435 | CE5: =AG5+BF5 -> 1084.770977 | CF5: 1088.745135 | CG5: 1090.392689 | CH5: 1098.804629
B6: Conservation Adjustment | C6: =AVERAGE(M6:P6) -> -0.6313691097 | D6: =AVERAGE(Q6:T6) -> -2.038065117 | E6: =AVERAGE(U6:X6) -> -3.658133407 | F6: =AVERAGE(Y6:AB6) -> -4.928131098 | G6: =AVERAGE(AC6:AF6) -> -5.642756801 | H6: =AVERAGE(AG6:AI6) -> -5.946663949 | M6: =LR!AB106-LR!AB108 -> -0.2222211292 | N6: =LR!AC106-LR!AC108 -> -0.4735454473 | O6: =LR!AD106-LR!AD108 -> -0.7546777989 | P6: =LR!AE106-LR!AE108 -> -1.075032063 | Q6: =LR!AF106-LR!AF108 -> -1.436624017 | R6: =LR!AG106-LR!AG108 -> -1.825626361 | S6: =LR!AH106-LR!AH108 -> -2.231608494 | T6: =LR!AI106-LR!AI108 -> -2.658401597 | U6: =LR!AJ106-LR!AJ108 -> -3.077167917 | V6: =LR!AK106-LR!AK108 -> -3.482804466 | W6: =LR!AL106-LR!AL108 -> -3.854037048 | X6: =LR!AM106-LR!AM108 -> -4.218524196 | Y6: =LR!AN106-LR!AN108 -> -4.540354516 | Z6: =LR!AO106-LR!AO108 -> -4.825747922 | AA6: =LR!AP106-LR!AP108 -> -5.06329566 | AB6: =LR!AQ106-LR!AQ108 -> -5.283126295 | AC6: =LR!AR106-LR!AR108 -> -5.466216451 | AD6: =LR!AS106-LR!AS108 -> -5.593782847 | AE6: =LR!AT106-LR!AT108 -> -5.707166693 | AF6: =LR!AU106-LR!AU108 -> -5.803861215 | AG6: =LR!AV106-LR!AV108 -> -5.879672519 | AH6: =LR!AW106-LR!AW108 -> -5.952954221 | AI6: =LR!AX106-LR!AX108 -> -6.007365107 | AJ6: =LR!AY106-LR!AY108 -> -6.091495607 | AL6: =LR!BA106-LR!BA108 -> -0.3257796392 | AM6: =LR!BB106-LR!BB108 -> -0.710420254 | AN6: =LR!BC106-LR!BC108 -> -1.164360219 | AO6: =LR!BD106-LR!BD108 -> -1.696515983 | AP6: =LR!BE106-LR!BE108 -> -2.297616846 | AQ6: =LR!BF106-LR!BF108 -> -2.951002208 | AR6: =LR!BG106-LR!BG108 -> -3.628083235 | AS6: =LR!BH106-LR!BH108 -> -4.327291646 | AT6: =LR!BI106-LR!BI108 -> -4.987566062 | AU6: =LR!BJ106-LR!BJ108 -> -5.609659405 | AV6: =LR!BK106-LR!BK108 -> -6.156071414 | AW6: =LR!BL106-LR!BL108 -> -6.680421441 | AX6: =LR!BM106-LR!BM108 -> -7.135055934 | AY6: =LR!BN106-LR!BN108 -> -7.528494954 | AZ6: =LR!BO106-LR!BO108 -> -7.854253197 | BA6: =LR!BP106-LR!BP108 -> -8.151150608 | BB6: =LR!BQ106-LR!BQ108 -> -8.44902986 | BC6: =LR!BR106-LR!BR108 -> -8.695593999 | BD6: =LR!BS106-LR!BS108 -> -8.868328142 | BE6: =LR!BT106-LR!BT108 -> -8.929319021 | BF6: =LR!BU106-LR!BU108 -> -8.831440564 | BG6: =LR!BV106-LR!BV108 -> -8.7063938 | BH6: =LR!BW106-LR!BW108 -> -8.489898046 | BI6: =LR!BX106-LR!BX108 -> -8.306875901 | BK6: -0.5480007684 | BL6: -1.183965701 | BM6: -1.919038018 | BN6: -2.771548047 | BO6: -3.734240863 | BP6: -4.776628569 | BQ6: -5.859691729 | BR6: -6.985693242 | BS6: -8.064733978 | BT6: -9.092463871 | BU6: -10.01010846 | BV6: -10.89894564 | BW6: -11.67541045 | BX6: -12.35424288 | BY6: -12.91754886 | BZ6: -13.4342769 | CA6: -13.91524631 | CB6: -14.28937685 | CC6: -14.57549483 | CD6: -14.73318024 | CE6: -14.71111308 | CF6: -14.65934802 | CG6: -14.49726315 | CH6: -14.39837151
B7: Net Retail Sales | C7: =AVERAGE(M7:P7) -> 650.2219543 | D7: =AVERAGE(Q7:T7) -> 656.6856267 | E7: =AVERAGE(U7:X7) -> 659.8088296 | F7: =AVERAGE(Y7:AB7) -> 662.7269625 | G7: =AVERAGE(AC7:AF7) -> 667.7503553 | H7: =AVERAGE(AG7:AI7) -> 675.2804034 | M7: =SUM(M5:M6) -> 646.6755957 | N7: =SUM(N5:N6) -> 649.6882091 | O7: =SUM(O5:O6) -> 650.3159271 | P7: 654.2080851 | Q7: 655.4973627 | R7: 656.5440682 | S7: 655.8860408 | T7: 658.8150352 | U7: 659.3813107 | V7: 659.9478591 | W7: 658.7335792 | X7: 661.1725692 | Y7: 661.8728628 | Z7: 662.6639048 | AA7: 661.7532669 | AB7: 664.6178155 | AC7: 665.8261237 | AD7: 667.2588084 | AE7: 667.071847 | AF7: 670.8446419 | AG7: 673.1067676 | AH7: 675.7474382 | AI7: 676.9870045 | AJ7: 682.4785246 | AL7: =SUM(AL5:AL6) -> 391.3581565 | AM7: 392.1630078 | AN7: 391.7308966 | AO7: 393.2723733 | AP7: 393.2470105 | AQ7: 393.2602864 | AR7: 392.2188974 | AS7: 393.325199 | AT7: 393.1223222 | AU7: 392.9516565 | AV7: 391.7665086 | AW7: 392.7912069 | AX7: 392.8111888 | AY7: 392.9175854 | AZ7: 392.0320098 | BA7: 393.4145958 | BB7: 393.7628031 | BC7: 394.2407311 | BD7: 393.7865593 | BE7: 395.7696124 | BF7: 396.9530963 | BG7: 398.3383487 | BH7: 398.9084217 | BI7: 401.9277325 | BK7: 1038.033752 | BL7: 1041.851217 | BM7: 1042.046824 | BN7: 1047.480458 | BO7: 1048.744373 | BP7: 1049.804355 | BQ7: 1048.104938 | BR7: 1052.140234 | BS7: 1052.503633 | BT7: 1052.899516 | BU7: 1050.500088 | BV7: 1053.963776 | BW7: 1054.684052 | BX7: 1055.58149 | BY7: 1053.785277 | BZ7: 1058.032411 | CA7: 1059.588927 | CB7: 1061.499539 | CC7: 1060.858406 | CD7: 1066.614254 | CE7: 1070.059864 | CF7: 1074.085787 | CG7: 1075.895426 | CH7: 1084.406257
B9: PURPA | C9: =AVERAGE(M9:P9) -> 21.86726629 | D9: =AVERAGE(Q9:T9) -> 21.86366369 | E9: =AVERAGE(U9:X9) -> 21.83644861 | F9: =AVERAGE(Y9:AB9) -> 21.81137133 | G9: =AVERAGE(AC9:AF9) -> 21.7889158 | H9: =AVERAGE(AG9:AI9) -> 21.75900185 | M9: 21.87189351 | N9: 21.87798163 | O9: 21.87480675 | P9: 21.84438328 | Q9: 21.87020268 | R9: 21.85855278 | S9: 21.86630672 | T9: 21.85959256 | U9: 21.8302222 | V9: 21.83102828 | W9: 21.85797509 | X9: 21.82656886 | Y9: 21.80854927 | Z9: 21.83431332 | AA9: 21.81261359 | AB9: 21.79000916 | AC9: 21.81158499 | AD9: 21.76801598 | AE9: 21.77910918 | AF9: 21.79695303 | AG9: 21.72945593 | AH9: 21.71394818 | AI9: 21.83360144 | AJ9: 21.79543991 | AL9: 48.60145389 | AM9: 48.60145389 | AN9: 48.61609534 | AO9: 48.6014539 | AP9: 48.60145389 | AQ9: 48.60145389 | AR9: 48.61609534 | AS9: 48.60145389 | AT9: 48.60145389 | AU9: 48.60145389 | AV9: 48.61609534 | AW9: 48.6014539 | AX9: 48.6014539 | AY9: 48.60145389 | AZ9: 48.61609534 | BA9: 48.60145389 | BB9: 48.53556897 | BC9: 48.22798759 | BD9: 48.24292813 | BE9: 48.22798759 | BF9: 48.22798759 | BG9: 48.22798759 | BH9: 48.24292813 | BI9: 48.22798759 | BK9: =M9+AL9 -> 70.4733474 | BL9: =N9+AM9 -> 70.47943553 | BM9: 70.49090209 | BN9: 70.44583718 | BO9: 70.47165657 | BP9: 70.46000667 | BQ9: 70.48240207 | BR9: 70.46104645 | BS9: 70.4316761 | BT9: 70.43248218 | BU9: 70.47407043 | BV9: 70.42802276 | BW9: 70.41000317 | BX9: 70.43576721 | BY9: 70.42870893 | BZ9: 70.39146305 | CA9: 70.34715395 | CB9: 69.99600357 | CC9: 70.02203731 | CD9: 70.02494063 | CE9: 69.95744352 | CF9: 69.94193577 | CG9: 70.07652956 | CH9: 70.0234275
B10: Solar Select | C10: =AVERAGE(M10:P10) -> 5.560405615 | D10: =AVERAGE(Q10:T10) -> 2.780558113 | E10: =AVERAGE(U10:X10) -> 0 | F10: =AVERAGE(Y10:AB10) -> 0 | G10: =AVERAGE(AC10:AF10) -> 0 | H10: =AVERAGE(AG10:AI10) -> 0 | M10: =BK23 -> 5.566870605 | N10: 5.567302723 | O10: 5.550105133 | P10: 5.557343999 | Q10: 5.563609627 | R10: 5.558622823 | S10: 0 | T10: 0 | U10: 0 | V10: 0 | W10: 0 | X10: 0 | Y10: 0 | Z10: 0 | AA10: 0 | AB10: 0 | AC10: 0 | AD10: 0 | AE10: 0 | AF10: 0 | AG10: 0 | AH10: 0 | AI10: 0 | AJ10: 0
B11: Net Sales | C11: =C7-C9-C10 -> 622.7942824 | D11: 632.0414049 | E11: 637.972381 | F11: 640.9155912 | G11: 645.9614395 | H11: 653.5214015 | M11: =M7-M9-M10 -> 619.2368316 | N11: 622.2429248 | O11: 622.8910153 | P11: 626.8063579 | Q11: 628.0635504 | R11: 629.1268926 | S11: =S7-S9 -> 634.019734 | T11: 636.9554426 | U11: 637.5510885 | V11: 638.1168309 | W11: 636.8756041 | X11: 639.3460003 | Y11: 640.0643135 | Z11: 640.8295915 | AA11: 639.9406533 | AB11: 642.8278064 | AC11: 644.0145388 | AD11: 645.4907924 | AE11: 645.2927378 | AF11: 649.0476889 | AG11: 651.3773116 | AH11: 654.03349 | AI11: 655.153403 | AJ11: 660.6830847 | AL11: =AL7-AL9 -> 342.7567026 | AM11: 343.5615539 | AN11: 343.1148013 | AO11: 344.6709194 | AP11: 344.6455566 | AQ11: 344.6588326 | AR11: 343.6028021 | AS11: 344.7237451 | AT11: 344.5208683 | AU11: 344.3502026 | AV11: 343.1504133 | AW11: 344.189753 | AX11: 344.2097349 | AY11: 344.3161315 | AZ11: 343.4159145 | BA11: 344.8131419 | BB11: 345.2272341 | BC11: 346.0127435 | BD11: 345.5436311 | BE11: 347.5416248 | BF11: 348.7251087 | BG11: 350.1103612 | BH11: 350.6654936 | BI11: 353.6997449 | BK11: 967.5604048 | BL11: 971.3717814 | BM11: 971.5559217 | BN11: 977.0346212 | BO11: 978.2727166 | BP11: 979.344348 | BQ11: 977.6225361 | BR11: 981.6791877 | BS11: 982.0719568 | BT11: 982.4670334 | BU11: 980.0260174 | BV11: 983.5357533 | BW11: 984.2740484 | BX11: 985.145723 | BY11: =BY7-BY9 -> 983.3565678 | BZ11: 987.6409482 | CA11: 989.2417729 | CB11: 991.5035359 | CC11: 990.836369 | CD11: 996.5893137 | CE11: 1000.10242 | CF11: 1004.143851 | CG11: 1005.818897 | CH11: 1014.38283
B14: Existing Hydro | BK14: data is median of 500 simulations from Aurora
B15: Clark Fork | C15: =AVERAGE(M15:P15) -> 208.8653268 | D15: =AVERAGE(Q15:T15) -> 206.6174085 | E15: =AVERAGE(U15:X15) -> 207.5063952 | F15: =AVERAGE(Y15:AB15) -> 207.5287359 | G15: =AVERAGE(AC15:AF15) -> 207.2977287 | H15: =AVERAGE(AG15:AI15) -> 207.485052 | M15: =G_A!P$9*BK15 -> 211.223807 | N15: =G_A!Q$9*BL15 -> 207.5768221 | O15: =G_A!R$9*BM15 -> 207.3045003 | P15: =G_A!S$9*BN15 -> 209.3561778 | Q15: =G_A!T$9*BO15 -> 207.5754263 | R15: =G_A!U$9*BP15 -> 205.7996444 | S15: =G_A!V$9*BQ15 -> 207.2969938 | T15: =G_A!W$9*BR15 -> 205.7975694 | U15: =G_A!X$9*BS15 -> 207.5799509 | V15: =G_A!Y$9*BT15 -> 207.5753701 | W15: =G_A!Z$9*BU15 -> 207.2990771 | X15: =G_A!AA$9*BV15 -> 207.5711826 | Y15: =G_A!AB$9*BW15 -> 207.5841384 | Z15: =G_A!AC$9*BX15 -> 207.602312 | AA15: =G_A!AD$9*BY15 -> 205.5534436 | AB15: =G_A!AE$9*BZ15 -> 209.3750494 | AC15: =G_A!AF$9*CA15 -> 207.5711826 | AD15: =G_A!AG$9*CB15 -> 207.606921 | AE15: =G_A!AH$9*CC15 -> 207.3045003 | AF15: =G_A!AI$9*CD15 -> 206.7083109 | AG15: =G_A!AJ$9*CE15 -> 207.5740305 | AH15: =G_A!AK$9*CF15 -> 207.5834405 | AI15: =G_A!AL$9*CG15 -> 207.2976851 | AJ15: =G_A!AM$9*CH15 -> 211.219198 | AL15: =(1-G_A!$P$9)*BK15 -> 110.5184733 | AM15: =(1-G_A!$P$9)*BL15 -> 108.6102641 | AN15: =(1-G_A!$P$9)*BM15 -> 108.4677774 | AO15: =(1-G_A!$P$9)*BN15 -> 109.5412751 | AP15: =(1-G_A!$P$9)*BO15 -> 108.6095338 | AQ15: =(1-G_A!$P$9)*BP15 -> 107.6803927 | AR15: =(1-G_A!$P$9)*BQ15 -> 108.4638498 | AS15: =(1-G_A!$P$9)*BR15 -> 107.6793071 | AT15: =(1-G_A!$P$9)*BS15 -> 108.6119012 | AU15: =(1-G_A!$P$9)*BT15 -> 108.6095044 | AV15: =(1-G_A!$P$9)*BU15 -> 108.4649398 | AW15: =(1-G_A!$P$9)*BV15 -> 108.6073134 | AX15: =(1-G_A!$P$9)*BW15 -> 108.6140922 | AY15: =(1-G_A!$P$9)*BX15 -> 108.6236012 | AZ15: =(1-G_A!$P$9)*BY15 -> 107.5515733 | BA15: =(1-G_A!$P$9)*BZ15 -> 109.5511492 | BB15: =(1-G_A!$P$9)*CA15 -> 108.6073134 | BC15: =(1-G_A!$P$9)*CB15 -> 108.6260128 | BD15: =(1-G_A!$P$9)*CC15 -> 108.4677774 | BE15: =(1-G_A!$P$9)*CD15 -> 108.1558337 | BF15: =(1-G_A!$P$9)*CE15 -> 108.6088034 | BG15: =(1-G_A!$P$9)*CF15 -> 108.613727 | BH15: =(1-G_A!$P$9)*CG15 -> 108.4642115 | BI15: =(1-G_A!$P$9)*CH15 -> 110.5160617 | BK15: 321.7422803 | BL15: 316.1870862 | BM15: 315.7722777 | BN15: 318.8974529 | BO15: 316.18496 | BP15: 313.4800371 | BQ15: 315.7608436 | BR15: 313.4768764 | BS15: 316.1918522 | BT15: 316.1848744 | BU15: 315.764017 | BV15: 316.178496 | BW15: 316.1982306 | BX15: 316.2259132 | BY15: 313.1050169 | BZ15: 318.9261986 | CA15: 316.178496 | CB15: 316.2329338 | CC15: 315.7722777 | CD15: 314.8641445 | CE15: 316.1828339 | CF15: 316.1971675 | CG15: 315.7618966 | CH15: 321.7352597
B16: Spokane River | C16: =AVERAGE(M16:P16) -> 79.45891827 | D16: =AVERAGE(Q16:T16) -> 83.97322806 | E16: =AVERAGE(U16:X16) -> 83.84784582 | F16: =AVERAGE(Y16:AB16) -> 84.07331169 | G16: =AVERAGE(AC16:AF16) -> 84.32345601 | H16: =AVERAGE(AG16:AI16) -> 84.14237207 | M16: =G_A!P$9*BK16 -> 80.96478965 | N16: =G_A!Q$9*BL16 -> 80.76685924 | O16: =G_A!R$9*BM16 -> 80.91638009 | P16: =G_A!S$9*BN16 -> 75.1876441 | Q16: =G_A!T$9*BO16 -> 84.50581609 | R16: =G_A!U$9*BP16 -> 83.57340538 | S16: =G_A!V$9*BQ16 -> 84.32183838 | T16: =G_A!W$9*BR16 -> 83.4918524 | U16: =G_A!X$9*BS16 -> 83.69181563 | V16: =G_A!Y$9*BT16 -> 83.91276727 | W16: =G_A!Z$9*BU16 -> 83.93095809 | X16: =G_A!AA$9*BV16 -> 83.85584227 | Y16: =G_A!AB$9*BW16 -> 83.90703004 | Z16: =G_A!AC$9*BX16 -> 84.14458096 | AA16: =G_A!AD$9*BY16 -> 83.44689976 | AB16: =G_A!AE$9*BZ16 -> 84.79473598 | AC16: =G_A!AF$9*CA16 -> 83.90583447 | AD16: =G_A!AG$9*CB16 -> 84.31228448 | AE16: =G_A!AH$9*CC16 -> 85.15899934 | AF16: =G_A!AI$9*CD16 -> 83.91670573 | AG16: =G_A!AJ$9*CE16 -> 84.20833689 | AH16: =G_A!AK$9*CF16 -> 84.43668036 | AI16: =G_A!AL$9*CG16 -> 83.78209895 | AJ16: =G_A!AM$9*CH16 -> 84.74855534 | AL16: =(1-G_A!$P$9)*BK16 -> 42.36314584 | AM16: =(1-G_A!$P$9)*BL16 -> 42.25958286 | AN16: =(1-G_A!$P$9)*BM16 -> 42.33781655 | AO16: =(1-G_A!$P$9)*BN16 -> 39.34037433 | AP16: =(1-G_A!$P$9)*BO16 -> 44.21591443 | AQ16: =(1-G_A!$P$9)*BP16 -> 43.72804988 | AR16: =(1-G_A!$P$9)*BQ16 -> 44.11965192 | AS16: =(1-G_A!$P$9)*BR16 -> 43.68537898 | AT16: =(1-G_A!$P$9)*BS16 -> 43.79000559 | AU16: =(1-G_A!$P$9)*BT16 -> 43.90561395 | AV16: =(1-G_A!$P$9)*BU16 -> 43.91513192 | AW16: =(1-G_A!$P$9)*BV16 -> 43.87582912 | AX16: =(1-G_A!$P$9)*BW16 -> 43.90261206 | AY16: =(1-G_A!$P$9)*BX16 -> 44.02690565 | AZ16: =(1-G_A!$P$9)*BY16 -> 43.66185844 | BA16: =(1-G_A!$P$9)*BZ16 -> 44.36708577 | BB16: =(1-G_A!$P$9)*CA16 -> 43.9019865 | BC16: =(1-G_A!$P$9)*CB16 -> 44.11465304 | BD16: =(1-G_A!$P$9)*CC16 -> 44.55767902 | BE16: =(1-G_A!$P$9)*CD16 -> 43.90767467 | BF16: =(1-G_A!$P$9)*CE16 -> 44.06026462 | BG16: =(1-G_A!$P$9)*CF16 -> 44.1797406 | BH16: =(1-G_A!$P$9)*CG16 -> 43.83724446 | BI16: =(1-G_A!$P$9)*CH16 -> 44.34292271 | BK16: 123.3279355 | BL16: 123.0264421 | BM16: 123.2541966 | BN16: 114.5280184 | BO16: 128.7217305 | BP16: 127.3014553 | BQ16: 128.4414903 | BR16: 127.1772314 | BS16: 127.4818212 | BT16: 127.8183812 | BU16: 127.84609 | BV16: 127.7316714 | BW16: 127.8096421 | BX16: 128.1714866 | BY16: 127.1087582 | BZ16: 129.1618218 | CA16: 127.807821 | CB16: 128.4269375 | CC16: 129.7166784 | CD16: 127.8243804 | CE16: 128.2686015 | CF16: 128.616421 | CG16: 127.6193434 | CH16: 129.091478
B17: Mid-Columiba | C17: =AVERAGE(M17:P17) -> 80.45444022 | D17: =AVERAGE(Q17:T17) -> 62.42822231 | E17: =AVERAGE(U17:X17) -> 32.48088925 | F17: =AVERAGE(Y17:AB17) -> 23.61458926 | G17: =AVERAGE(AC17:AF17) -> 23.74763478 | H17: =AVERAGE(AG17:AI17) -> 23.76421329 | M17: =G_A!P$9*BK17 -> 96.46702266 | N17: =G_A!Q$9*BL17 -> 94.5272428 | O17: =G_A!R$9*BM17 -> 64.9510569 | P17: =G_A!S$9*BN17 -> 65.8724385 | Q17: =G_A!T$9*BO17 -> 64.91391267 | R17: =G_A!U$9*BP17 -> 63.62287797 | S17: =G_A!V$9*BQ17 -> 62.85123866 | T17: =G_A!W$9*BR17 -> 58.32485994 | U17: =G_A!X$9*BS17 -> 59.34904338 | V17: =G_A!Y$9*BT17 -> 23.41235587 | W17: =G_A!Z$9*BU17 -> 23.74980189 | X17: =G_A!AA$9*BV17 -> 23.41235587 | Y17: =G_A!AB$9*BW17 -> 23.79017212 | Z17: =G_A!AC$9*BX17 -> 23.78201183 | AA17: =G_A!AD$9*BY17 -> 23.09983797 | AB17: =G_A!AE$9*BZ17 -> 23.7863351 | AC17: =G_A!AF$9*CA17 -> 23.71233599 | AD17: =G_A!AG$9*CB17 -> 23.78538544 | AE17: =G_A!AH$9*CC17 -> 23.78048169 | AF17: =G_A!AI$9*CD17 -> 23.71233599 | AG17: =G_A!AJ$9*CE17 -> 23.78369863 | AH17: =G_A!AK$9*CF17 -> 23.78554293 | AI17: =G_A!AL$9*CG17 -> 23.7233983 | AJ17: =G_A!AM$9*CH17 -> 23.78985713 | AL17: =(1-G_A!$P$9)*BK17 -> 50.47436753 | AM17: =(1-G_A!$P$9)*BL17 -> 49.45941798 | AN17: =(1-G_A!$P$9)*BM17 -> 33.98429253 | AO17: =(1-G_A!$P$9)*BN17 -> 34.46638633 | AP17: =(1-G_A!$P$9)*BO17 -> 33.96485758 | AQ17: =(1-G_A!$P$9)*BP17 -> 33.28935047 | AR17: =(1-G_A!$P$9)*BQ17 -> 32.88560621 | AS17: =(1-G_A!$P$9)*BR17 -> 30.51727249 | AT17: =(1-G_A!$P$9)*BS17 -> 31.05315522 | AU17: =(1-G_A!$P$9)*BT17 -> 12.25002931 | AV17: =(1-G_A!$P$9)*BU17 -> 12.42659094 | AW17: =(1-G_A!$P$9)*BV17 -> 12.25002931 | AX17: =(1-G_A!$P$9)*BW17 -> 12.44771382 | AY17: =(1-G_A!$P$9)*BX17 -> 12.44344412 | AZ17: =(1-G_A!$P$9)*BY17 -> 12.08651081 | BA17: =(1-G_A!$P$9)*BZ17 -> 12.44570618 | BB17: =(1-G_A!$P$9)*CA17 -> 12.40698768 | BC17: =(1-G_A!$P$9)*CB17 -> 12.44520929 | BD17: =(1-G_A!$P$9)*CC17 -> 12.4426435 | BE17: =(1-G_A!$P$9)*CD17 -> 12.40698768 | BF17: =(1-G_A!$P$9)*CE17 -> 12.4443267 | BG17: =(1-G_A!$P$9)*CF17 -> 12.44529169 | BH17: =(1-G_A!$P$9)*CG17 -> 12.4127758 | BI17: =(1-G_A!$P$9)*CH17 -> 12.44754901 | BK17: 146.9413902 | BL17: 143.9866608 | BM17: 98.93534943 | BN17: 100.3388248 | BO17: 98.87877024 | BP17: 96.91222844 | BQ17: 95.73684487 | BR17: 88.84213243 | BS17: 90.4021986 | BT17: 35.66238518 | BU17: 36.17639282 | BV17: 35.66238518 | BW17: 36.23788594 | BX17: 36.22545595 | BY17: 35.18634878 | BZ17: 36.23204128 | CA17: 36.11932367 | CB17: 36.23059472 | CC17: 36.22312519 | CD17: 36.11932367 | CE17: 36.22802534 | CF17: 36.23083463 | CG17: 36.1361741 | CH17: 36.23740613
B19: Existing Renewables
B20: Kettle Falls | C20: =AVERAGE(M20:P20) -> 23.8285149 | D20: =AVERAGE(Q20:T20) -> 22.09604184 | E20: =AVERAGE(U20:X20) -> 21.2503233 | F20: =AVERAGE(Y20:AB20) -> 20.59171643 | G20: =AVERAGE(AC20:AF20) -> 18.95507204 | H20: =AVERAGE(AG20:AI20) -> 17.35725363 | M20: =G_A!P$9*BK20 -> 25.4716754 | N20: =G_A!Q$9*BL20 -> 24.27781591 | O20: =G_A!R$9*BM20 -> 23.51524573 | P20: =G_A!S$9*BN20 -> 22.04932254 | Q20: =G_A!T$9*BO20 -> 23.13244215 | R20: =G_A!U$9*BP20 -> 21.61374256 | S20: =G_A!V$9*BQ20 -> 22.52444661 | T20: =G_A!W$9*BR20 -> 21.11353603 | U20: =G_A!X$9*BS20 -> 21.91122615 | V20: =G_A!Y$9*BT20 -> 20.72929898 | W20: =G_A!Z$9*BU20 -> 21.87045268 | X20: =G_A!AA$9*BV20 -> 20.49031537 | Y20: =G_A!AB$9*BW20 -> 21.45478628 | Z20: =G_A!AC$9*BX20 -> 20.21032627 | AA20: =G_A!AD$9*BY20 -> 20.96217383 | AB20: =G_A!AE$9*BZ20 -> 19.73957933 | AC20: =G_A!AF$9*CA20 -> 20.48313959 | AD20: =G_A!AG$9*CB20 -> 18.66795994 | AE20: =G_A!AH$9*CC20 -> 18.91126529 | AF20: =G_A!AI$9*CD20 -> 17.75792335 | AG20: =G_A!AJ$9*CE20 -> 18.20804108 | AH20: =G_A!AK$9*CF20 -> 16.18366296 | AI20: =G_A!AL$9*CG20 -> 17.68005686 | AJ20: =G_A!AM$9*CH20 -> 15.43934976 | AL20: =(1-G_A!$P$9)*BK20 -> 13.32752551 | AM20: =(1-G_A!$P$9)*BL20 -> 12.70286331 | AN20: =(1-G_A!$P$9)*BM20 -> 12.3038643 | AO20: =(1-G_A!$P$9)*BN20 -> 11.53685041 | AP20: =(1-G_A!$P$9)*BO20 -> 12.10357026 | AQ20: =(1-G_A!$P$9)*BP20 -> 11.30894222 | AR20: =(1-G_A!$P$9)*BQ20 -> 11.78544922 | AS20: =(1-G_A!$P$9)*BR20 -> 11.04721954 | AT20: =(1-G_A!$P$9)*BS20 -> 11.46459434 | AU20: =(1-G_A!$P$9)*BT20 -> 10.84617548 | AV20: =(1-G_A!$P$9)*BU20 -> 11.44326046 | AW20: =(1-G_A!$P$9)*BV20 -> 10.72113226 | AX20: =(1-G_A!$P$9)*BW20 -> 11.22577165 | AY20: =(1-G_A!$P$9)*BX20 -> 10.57463378 | AZ20: =(1-G_A!$P$9)*BY20 -> 10.96802241 | BA20: =(1-G_A!$P$9)*BZ20 -> 10.32832521 | BB20: =(1-G_A!$P$9)*CA20 -> 10.71737768 | BC20: =(1-G_A!$P$9)*CB20 -> 9.767622605 | BD20: =(1-G_A!$P$9)*CC20 -> 9.894927078 | BE20: =(1-G_A!$P$9)*CD20 -> 9.291464846 | BF20: =(1-G_A!$P$9)*CE20 -> 9.526979607 | BG20: =(1-G_A!$P$9)*CF20 -> 8.467765767 | BH20: =(1-G_A!$P$9)*CG20 -> 9.250722822 | BI20: =(1-G_A!$P$9)*CH20 -> 8.078319333 | BK20: =Res_MWh!E8*Selection!BB8/G_A!P6 -> 38.79920091 | BL20: =Res_MWh!F8*Selection!BC8/G_A!Q6 -> 36.98067922 | BM20: =Res_MWh!G8*Selection!BD8/G_A!R6 -> 35.81911003 | BN20: =Res_MWh!H8*Selection!BE8/G_A!S6 -> 33.58617295 | BO20: =Res_MWh!I8*Selection!BF8/G_A!T6 -> 35.23601241 | BP20: =Res_MWh!J8*Selection!BG8/G_A!U6 -> 32.92268479 | BQ20: =Res_MWh!K8*Selection!BH8/G_A!V6 -> 34.30989583 | BR20: =Res_MWh!L8*Selection!BI8/G_A!W6 -> 32.16075557 | BS20: =Res_MWh!M8*Selection!BJ8/G_A!X6 -> 33.37582049 | BT20: =Res_MWh!N8*Selection!BK8/G_A!Y6 -> 31.57547446 | BU20: =Res_MWh!O8*Selection!BL8/G_A!Z6 -> 33.31371314 | BV20: =Res_MWh!P8*Selection!BM8/G_A!AA6 -> 31.21144763 | BW20: =Res_MWh!Q8*Selection!BN8/G_A!AB6 -> 32.68055793 | BX20: =Res_MWh!R8*Selection!BO8/G_A!AC6 -> 30.78496005 | BY20: =Res_MWh!S8*Selection!BP8/G_A!AD6 -> 31.93019624 | BZ20: =Res_MWh!T8*Selection!BQ8/G_A!AE6 -> 30.06790454 | CA20: =Res_MWh!U8*Selection!BR8/G_A!AF6 -> 31.20051727 | CB20: =Res_MWh!V8*Selection!BS8/G_A!AG6 -> 28.43558255 | CC20: =Res_MWh!W8*Selection!BT8/G_A!AH6 -> 28.80619237 | CD20: =Res_MWh!X8*Selection!BU8/G_A!AI6 -> 27.0493882 | CE20: =Res_MWh!Y8*Selection!BV8/G_A!AJ6 -> 27.73502069 | CF20: =Res_MWh!Z8*Selection!BW8/G_A!AK6 -> 24.65142872 | CG20: =Res_MWh!AA8*Selection!BX8/G_A!AL6 -> 26.93077968 | CH20: =Res_MWh!AB8*Selection!BY8/G_A!AM6 -> 23.51766909
B21: Palouse Wind | C21: 23.7653 | D21: 23.7653 | E21: 23.7653 | F21: 23.7653 | G21: 23.7653 | H21: 7.921766667 | M21: =G_A!P$9*BK21 -> 23.7653 | N21: =G_A!Q$9*BL21 -> 23.7653 | O21: =G_A!R$9*BM21 -> 23.7653 | P21: =G_A!S$9*BN21 -> 23.7653 | Q21: =G_A!T$9*BO21 -> 23.7653 | R21: =G_A!U$9*BP21 -> 23.7653 | S21: =G_A!V$9*BQ21 -> 23.7653 | T21: =G_A!W$9*BR21 -> 23.7653 | U21: =G_A!X$9*BS21 -> 23.7653 | V21: =G_A!Y$9*BT21 -> 23.7653 | W21: =G_A!Z$9*BU21 -> 23.7653 | X21: =G_A!AA$9*BV21 -> 23.7653 | Y21: =G_A!AB$9*BW21 -> 23.7653 | Z21: =G_A!AC$9*BX21 -> 23.7653 | AA21: =G_A!AD$9*BY21 -> 23.7653 | AB21: =G_A!AE$9*BZ21 -> 23.7653 | AC21: =G_A!AF$9*CA21 -> 23.7653 | AD21: =G_A!AG$9*CB21 -> 23.7653 | AE21: =G_A!AH$9*CC21 -> 23.7653 | AF21: =G_A!AI$9*CD21 -> 23.7653 | AG21: =G_A!AJ$9*CE21 -> 23.7653 | AH21: =G_A!AK$9*CF21 -> 0 | AI21: =G_A!AL$9*CG21 -> 0 | AJ21: =G_A!AM$9*CH21 -> 0 | AL21: =(1-G_A!$P$9)*BK21 -> 12.4347 | AM21: =(1-G_A!$P$9)*BL21 -> 12.4347 | AN21: =(1-G_A!$P$9)*BM21 -> 12.4347 | AO21: =(1-G_A!$P$9)*BN21 -> 12.4347 | AP21: =(1-G_A!$P$9)*BO21 -> 12.4347 | AQ21: =(1-G_A!$P$9)*BP21 -> 12.4347 | AR21: =(1-G_A!$P$9)*BQ21 -> 12.4347 | AS21: =(1-G_A!$P$9)*BR21 -> 12.4347 | AT21: =(1-G_A!$P$9)*BS21 -> 12.4347 | AU21: =(1-G_A!$P$9)*BT21 -> 12.4347 | AV21: =(1-G_A!$P$9)*BU21 -> 12.4347 | AW21: =(1-G_A!$P$9)*BV21 -> 12.4347 | AX21: =(1-G_A!$P$9)*BW21 -> 12.4347 | AY21: =(1-G_A!$P$9)*BX21 -> 12.4347 | AZ21: =(1-G_A!$P$9)*BY21 -> 12.4347 | BA21: =(1-G_A!$P$9)*BZ21 -> 12.4347 | BB21: =(1-G_A!$P$9)*CA21 -> 12.4347 | BC21: =(1-G_A!$P$9)*CB21 -> 12.4347 | BD21: =(1-G_A!$P$9)*CC21 -> 12.4347 | BE21: =(1-G_A!$P$9)*CD21 -> 12.4347 | BF21: =(1-G_A!$P$9)*CE21 -> 12.4347 | BG21: =(1-G_A!$P$9)*CF21 -> 0 | BH21: =(1-G_A!$P$9)*CG21 -> 0 | BI21: =(1-G_A!$P$9)*CH21 -> 0 | BK21: 36.2 | BL21: =BK21 -> 36.2 | BM21: =BL21 -> 36.2 | BN21: 36.2 | BO21: 36.2 | BP21: 36.2 | BQ21: 36.2 | BR21: 36.2 | BS21: 36.2 | BT21: 36.2 | BU21: 36.2 | BV21: 36.2 | BW21: 36.2 | BX21: 36.2 | BY21: 36.2 | BZ21: 36.2 | CA21: 36.2 | CB21: 36.2 | CC21: 36.2 | CD21: 36.2 | CE21: 36.2 | CF21: 0 | CG21: 0 | CH21: 0
B22: Rattlesnake Wind | C22: 36.13041709 | D22: 36.12215375 | E22: 35.86813957 | F22: 35.76201161 | G22: 26.76218062 | H22: 0 | M22: =G_A!P$9*BK22 -> 36.24114327 | N22: =G_A!Q$9*BL22 -> 36.1202938 | O22: =G_A!R$9*BM22 -> 36.16710296 | P22: =G_A!S$9*BN22 -> 35.99312835 | Q22: =G_A!T$9*BO22 -> 36.12179842 | R22: =G_A!U$9*BP22 -> 36.16087786 | S22: =G_A!V$9*BQ22 -> 36.0949438 | T22: =G_A!W$9*BR22 -> 36.11099494 | U22: =G_A!X$9*BS22 -> 35.87031409 | V22: =G_A!Y$9*BT22 -> 35.85585006 | W22: =G_A!Z$9*BU22 -> 36.01255088 | X22: =G_A!AA$9*BV22 -> 35.73384324 | Y22: =G_A!AB$9*BW22 -> 35.69356836 | Z22: =G_A!AC$9*BX22 -> 35.81237908 | AA22: =G_A!AD$9*BY22 -> 35.86384406 | AB22: =G_A!AE$9*BZ22 -> 35.67825495 | AC22: =G_A!AF$9*CA22 -> 35.62788441 | AD22: =G_A!AG$9*CB22 -> 35.68719777 | AE22: =G_A!AH$9*CC22 -> 35.73364029 | AF22: =G_A!AI$9*CD22 -> 0 | AG22: =G_A!AJ$9*CE22 -> 0 | AH22: =G_A!AK$9*CF22 -> 0 | AI22: =G_A!AL$9*CG22 -> 0 | AJ22: =G_A!AM$9*CH22 -> 0 | AL22: =(1-G_A!$P$9)*BK22 -> 18.96242607 | AM22: =(1-G_A!$P$9)*BL22 -> 18.89919409 | AN22: =(1-G_A!$P$9)*BM22 -> 18.92368601 | AO22: =(1-G_A!$P$9)*BN22 -> 18.83265741 | AP22: =(1-G_A!$P$9)*BO22 -> 18.89998135 | AQ22: =(1-G_A!$P$9)*BP22 -> 18.92042886 | AR22: =(1-G_A!$P$9)*BQ22 -> 18.88593023 | AS22: =(1-G_A!$P$9)*BR22 -> 18.89432865 | AT22: =(1-G_A!$P$9)*BS22 -> 18.76839739 | AU22: =(1-G_A!$P$9)*BT22 -> 18.76082939 | AV22: =(1-G_A!$P$9)*BU22 -> 18.84281984 | AW22: =(1-G_A!$P$9)*BV22 -> 18.69699186 | AX22: =(1-G_A!$P$9)*BW22 -> 18.67591886 | AY22: =(1-G_A!$P$9)*BX22 -> 18.7380841 | AZ22: =(1-G_A!$P$9)*BY22 -> 18.76501209 | BA22: =(1-G_A!$P$9)*BZ22 -> 18.66790644 | BB22: =(1-G_A!$P$9)*CA22 -> 18.6415511 | BC22: =(1-G_A!$P$9)*CB22 -> 18.67258558 | BD22: =(1-G_A!$P$9)*CC22 -> 18.69688567 | BE22: =(1-G_A!$P$9)*CD22 -> 0 | BF22: =(1-G_A!$P$9)*CE22 -> 0 | BG22: =(1-G_A!$P$9)*CF22 -> 0 | BH22: =(1-G_A!$P$9)*CG22 -> 0 | BI22: =(1-G_A!$P$9)*CH22 -> 0 | BK22: 55.20356933 | BL22: 55.01948789 | BM22: 55.09078897 | BN22: 54.82578576 | BO22: 55.02177977 | BP22: 55.08130672 | BQ22: 54.98087403 | BR22: 55.00532359 | BS22: 54.63871148 | BT22: 54.61667945 | BU22: 54.85537072 | BV22: 54.4308351 | BW22: 54.36948721 | BX22: 54.55046318 | BY22: 54.62885614 | BZ22: 54.34616139 | CA22: 54.2694355 | CB22: 54.35978335 | CC22: 54.43052596 | CD22: 0 | CE22: 0 | CF22: 0 | CG22: 0 | CH22: 0
B23: Adams Neilson Solar | C23: 0 | D23: 2.773706472 | E23: 5.538823159 | F23: 5.520249217 | G23: 1.38129199 | H23: 0 | M23: 0 | N23: 0 | O23: 0 | P23: 0 | Q23: 0 | R23: 0 | S23: =BQ23 -> 5.542351974 | T23: 5.552473914 | U23: 5.53965118 | V23: 5.541395986 | W23: 5.537573711 | X23: 5.53667176 | Y23: 5.52530796 | Z23: 5.534320255 | AA23: 5.511507726 | AB23: 5.509860927 | AC23: 5.525167958 | AD23: 0 | AE23: 0 | AF23: 0 | AG23: 0 | AH23: 0 | AI23: 0 | AJ23: 0 | AL23: 0 | AM23: 0 | AN23: 0 | AO23: 0 | AP23: 0 | AQ23: 0 | AR23: 0 | AS23: 0 | AT23: 0 | AU23: 0 | AV23: 0 | AW23: 0 | AX23: 0 | AY23: 0 | AZ23: 0 | BA23: 0 | BB23: 0 | BC23: 0 | BD23: 0 | BE23: 0 | BF23: 0 | BG23: 0 | BH23: 0 | BI23: 0 | BK23: 5.566870605 | BL23: 5.567302723 | BM23: 5.550105133 | BN23: 5.557343999 | BO23: 5.563609627 | BP23: 5.558622823 | BQ23: 5.542351974 | BR23: 5.552473914 | BS23: 5.53965118 | BT23: 5.541395986 | BU23: 5.537573711 | BV23: 5.53667176 | BW23: 5.52530796 | BX23: 5.534320255 | BY23: 5.511507726 | BZ23: 5.509860927 | CA23: 5.525167958 | CB23: 0 | CC23: 0 | CD23: 0 | CE23: 0 | CF23: 0 | CG23: 0 | CH23: 0
B24: Placeholder | C24: 0 | D24: 0 | E24: 0 | F24: 0 | G24: 0 | H24: 0 | M24: =G_A!P$9*BK24 -> 0 | N24: =G_A!Q$9*BL24 -> 0 | O24: =G_A!R$9*BM24 -> 0 | P24: =G_A!S$9*BN24 -> 0 | Q24: =G_A!T$9*BO24 -> 0 | R24: =G_A!U$9*BP24 -> 0 | S24: =G_A!V$9*BQ24 -> 0 | T24: =G_A!W$9*BR24 -> 0 | U24: =G_A!X$9*BS24 -> 0 | V24: =G_A!Y$9*BT24 -> 0 | W24: =G_A!Z$9*BU24 -> 0 | X24: =G_A!AA$9*BV24 -> 0 | Y24: =G_A!AB$9*BW24 -> 0 | Z24: =G_A!AC$9*BX24 -> 0 | AA24: =G_A!AD$9*BY24 -> 0 | AB24: =G_A!AE$9*BZ24 -> 0 | AC24: =G_A!AF$9*CA24 -> 0 | AD24: =G_A!AG$9*CB24 -> 0 | AE24: =G_A!AH$9*CC24 -> 0 | AF24: =G_A!AI$9*CD24 -> 0 | AG24: =G_A!AJ$9*CE24 -> 0 | AH24: =G_A!AK$9*CF24 -> 0 | AI24: =G_A!AL$9*CG24 -> 0 | AJ24: =G_A!AM$9*CH24 -> 0 | AL24: =(1-G_A!$P$9)*BK24 -> 0 | AM24: =(1-G_A!$P$9)*BL24 -> 0 | AN24: =(1-G_A!$P$9)*BM24 -> 0 | AO24: =(1-G_A!$P$9)*BN24 -> 0 | AP24: =(1-G_A!$P$9)*BO24 -> 0 | AQ24: =(1-G_A!$P$9)*BP24 -> 0 | AR24: =(1-G_A!$P$9)*BQ24 -> 0 | AS24: =(1-G_A!$P$9)*BR24 -> 0 | AT24: =(1-G_A!$P$9)*BS24 -> 0 | AU24: =(1-G_A!$P$9)*BT24 -> 0 | AV24: =(1-G_A!$P$9)*BU24 -> 0 | AW24: =(1-G_A!$P$9)*BV24 -> 0 | AX24: =(1-G_A!$P$9)*BW24 -> 0 | AY24: =(1-G_A!$P$9)*BX24 -> 0 | AZ24: =(1-G_A!$P$9)*BY24 -> 0 | BA24: =(1-G_A!$P$9)*BZ24 -> 0 | BB24: =(1-G_A!$P$9)*CA24 -> 0 | BC24: =(1-G_A!$P$9)*CB24 -> 0 | BD24: =(1-G_A!$P$9)*CC24 -> 0 | BE24: =(1-G_A!$P$9)*CD24 -> 0 | BF24: =(1-G_A!$P$9)*CE24 -> 0 | BG24: =(1-G_A!$P$9)*CF24 -> 0 | BH24: =(1-G_A!$P$9)*CG24 -> 0 | BI24: =(1-G_A!$P$9)*CH24 -> 0 | BK24: =LR!C124 -> 0 | BL24: =LR!D124 -> 0 | BM24: =LR!E124 -> 0 | BN24: =LR!F124 -> 0 | BO24: =LR!G124 -> 0 | BP24: =LR!H124 -> 0 | BQ24: =LR!I124 -> 0 | BR24: =LR!J124 -> 0 | BS24: =LR!K124 -> 0 | BT24: =LR!L124 -> 0 | BU24: =LR!M124 -> 0 | BV24: =LR!N124 -> 0 | BW24: =LR!O124 -> 0 | BX24: =LR!P124 -> 0 | BY24: =LR!Q124 -> 0 | BZ24: =LR!R124 -> 0 | CA24: =LR!S124 -> 0 | CB24: =LR!T124 -> 0 | CC24: =LR!U124 -> 0 | CD24: =LR!V124 -> 0 | CE24: =LR!W124 -> 0 | CF24: =LR!X124 -> 0 | CG24: =LR!Y124 -> 0 | CH24: =LR!Z124 -> 0
B25: Placeholder | C25: 0 | D25: 0 | E25: 0 | F25: 0 | G25: 0 | H25: 0 | M25: =G_A!P$9*BK25 -> 0 | N25: =G_A!Q$9*BL25 -> 0 | O25: =G_A!R$9*BM25 -> 0 | P25: =G_A!S$9*BN25 -> 0 | Q25: =G_A!T$9*BO25 -> 0 | R25: =G_A!U$9*BP25 -> 0 | S25: =G_A!V$9*BQ25 -> 0 | T25: =G_A!W$9*BR25 -> 0 | U25: =G_A!X$9*BS25 -> 0 | V25: =G_A!Y$9*BT25 -> 0 | W25: =G_A!Z$9*BU25 -> 0 | X25: =G_A!AA$9*BV25 -> 0 | Y25: =G_A!AB$9*BW25 -> 0 | Z25: =G_A!AC$9*BX25 -> 0 | AA25: =G_A!AD$9*BY25 -> 0 | AB25: =G_A!AE$9*BZ25 -> 0 | AC25: =G_A!AF$9*CA25 -> 0 | AD25: =G_A!AG$9*CB25 -> 0 | AE25: =G_A!AH$9*CC25 -> 0 | AF25: =G_A!AI$9*CD25 -> 0 | AG25: =G_A!AJ$9*CE25 -> 0 | AH25: =G_A!AK$9*CF25 -> 0 | AI25: =G_A!AL$9*CG25 -> 0 | AJ25: =G_A!AM$9*CH25 -> 0 | AL25: =(1-G_A!$P$9)*BK25 -> 0 | AM25: =(1-G_A!$P$9)*BL25 -> 0 | AN25: =(1-G_A!$P$9)*BM25 -> 0 | AO25: =(1-G_A!$P$9)*BN25 -> 0 | AP25: =(1-G_A!$P$9)*BO25 -> 0 | AQ25: =(1-G_A!$P$9)*BP25 -> 0 | AR25: =(1-G_A!$P$9)*BQ25 -> 0 | AS25: =(1-G_A!$P$9)*BR25 -> 0 | AT25: =(1-G_A!$P$9)*BS25 -> 0 | AU25: =(1-G_A!$P$9)*BT25 -> 0 | AV25: =(1-G_A!$P$9)*BU25 -> 0 | AW25: =(1-G_A!$P$9)*BV25 -> 0 | AX25: =(1-G_A!$P$9)*BW25 -> 0 | AY25: =(1-G_A!$P$9)*BX25 -> 0 | AZ25: =(1-G_A!$P$9)*BY25 -> 0 | BA25: =(1-G_A!$P$9)*BZ25 -> 0 | BB25: =(1-G_A!$P$9)*CA25 -> 0 | BC25: =(1-G_A!$P$9)*CB25 -> 0 | BD25: =(1-G_A!$P$9)*CC25 -> 0 | BE25: =(1-G_A!$P$9)*CD25 -> 0 | BF25: =(1-G_A!$P$9)*CE25 -> 0 | BG25: =(1-G_A!$P$9)*CF25 -> 0 | BH25: =(1-G_A!$P$9)*CG25 -> 0 | BI25: =(1-G_A!$P$9)*CH25 -> 0 | BK25: =LR!C125 -> 0 | BL25: =LR!D125 -> 0 | BM25: =LR!E125 -> 0 | BN25: =LR!F125 -> 0 | BO25: =LR!G125 -> 0 | BP25: =LR!H125 -> 0 | BQ25: =LR!I125 -> 0 | BR25: =LR!J125 -> 0 | BS25: =LR!K125 -> 0 | BT25: =LR!L125 -> 0 | BU25: =LR!M125 -> 0 | BV25: =LR!N125 -> 0 | BW25: =LR!O125 -> 0 | BX25: =LR!P125 -> 0 | BY25: =LR!Q125 -> 0 | BZ25: =LR!R125 -> 0 | CA25: =LR!S125 -> 0 | CB25: =LR!T125 -> 0 | CC25: =LR!U125 -> 0 | CD25: =LR!V125 -> 0 | CE25: =LR!W125 -> 0 | CF25: =LR!X125 -> 0 | CG25: =LR!Y125 -> 0 | CH25: =LR!Z125 -> 0
B27: Total Existing Clean Resources | C27: =AVERAGE(M27:P27) -> 452.5029173 | D27: =AVERAGE(Q27:T27) -> 437.7760609 | E27: =AVERAGE(U27:X27) -> 410.2577163 | F27: =AVERAGE(Y27:AB27) -> 400.8559141 | G27: =AVERAGE(AC27:AF27) -> 386.2326642 | H27: =AVERAGE(AG27:AI27) -> 340.6706577 | M27: =SUM(M20:M25,M15:M17) -> 474.133738 | N27: =SUM(N20:N25,N15:N17) -> 467.0343338 | O27: 436.619586 | P27: 432.2240113 | Q27: 440.0146956 | R27: 434.5358481 | S27: 442.3971132 | T27: 434.1565866 | U27: 437.7073014 | V27: 400.7923382 | W27: 402.1657144 | X27: 400.3655111 | Y27: 401.7203031 | Z27: 400.8512304 | AA27: 398.203007 | AB27: 402.6491157 | AC27: 400.590845 | AD27: 393.8250487 | AE27: 394.6541869 | AF27: 355.860576 | AG27: 357.5394071 | AH27: 331.9893267 | AI27: 332.4832392 | AJ27: 335.1969602 | AL27: =SUM(AL20:AL25,AL15:AL17) -> 248.0806382 | AM27: =SUM(AM20:AM25,AM15:AM17) -> 244.3660224 | AN27: 228.4521368 | AO27: 226.1522435 | AP27: 230.2285574 | AQ27: 227.3618642 | AR27: 228.5751873 | AS27: 224.2582067 | AT27: 226.1227538 | AU27: 206.8068525 | AV27: 207.527443 | AW27: 206.5859959 | AX27: 207.3008086 | AY27: 206.8413688 | AZ27: 205.4676771 | BA27: 207.7948728 | BB27: 206.7099163 | BC27: 206.0607833 | BD27: 206.4946127 | BE27: 186.1966608 | BF27: 187.0750744 | BG27: 173.7065251 | BH27: 173.9649546 | BI27: 175.3848528 | BK27: =SUM(BK20:BK23,BK15:BK17) -> 727.7812468 | BL27: =SUM(BL20:BL23,BL15:BL17) -> 716.9676589 | BM27: 670.6218279 | BN27: 663.9335989 | BO27: 675.8068626 | BP27: 667.4563351 | BQ27: 670.9723006 | BR27: 658.4147933 | BS27: 663.8300551 | BT27: 607.5991907 | BU27: 609.6931574 | BV27: 606.9515071 | BW27: 609.0211117 | BX27: 607.6925993 | BY27: 603.670684 | BZ27: 610.4439885 | CA27: 607.3007614 | CB27: 599.8858319 | CC27: 601.1487996 | CD27: 542.0572368 | CE27: 544.6144814 | CF27: 505.6958518 | CG27: 506.4481938 | CH27: 510.581813
B29: Clean Percent of Retail Sales | C29: =C27/C$11 -> 0.7265688368 | D29: 0.6926382631 | E29: 0.6430650112 | F29: 0.6254426005 | G29: 0.5979190716 | H29: 0.5212846234 | M29: =M27/M11 -> 0.7656743168 | N29: =N27/N11 -> 0.7505659209 | O29: 0.7009566286 | P29: 0.689565455 | Q29: 0.7005894472 | R29: 0.6906966674 | S29: 0.697765526 | T29: 0.6816121781 | U29: 0.6865446695 | V29: 0.6280861417 | W29: 0.631466666 | X29: 0.6262110203 | Y29: 0.6276249038 | Z29: 0.6255192266 | AA29: 0.6222498991 | AB29: 0.6263716531 | AC29: 0.6220214311 | AD29: 0.6101172213 | AE29: 0.6115893823 | AF29: 0.5482810925 | AG29: 0.5488975448 | AH29: 0.5076029467 | AI29: 0.5074891433 | AJ29: 0.5073490876 | AL29: =AL27/AL11 -> 0.7237805601 | AM29: 0.7112728988 | AN29: 0.6658183673 | AO29: 0.6561396127 | AP29: 0.6680154524 | AQ29: 0.6596722402 | AR29: 0.6652308595 | AS29: 0.650544704 | AT29: 0.6563397883 | AU29: 0.6005713107 | AV29: 0.6047710711 | AW29: 0.6002096057 | AX29: 0.6022514402 | AY29: 0.600730985 | AZ29: 0.5983056358 | BA29: 0.6026303745 | BB29: 0.5987648016 | BC29: 0.5955294628 | BD29: 0.5975934558 | BE29: 0.5357535545 | BF29: 0.5364542721 | BG29: 0.4961479133 | BH29: 0.4960994388 | BI29: 0.4958580131 | BK29: 0.7521817172 | BL29: 0.7380980925 | BM29: 0.6902555097 | BN29: 0.6795394804 | BO29: 0.6908164269 | BP29: 0.6815338614 | BQ29: 0.6863306397 | BR29: 0.6707026099 | BS29: 0.6759484888 | BT29: 0.6184423192 | BU29: 0.6221193586 | BV29: 0.6171117878 | BW29: 0.618751569 | BX29: 0.6168555424 | BY29: 0.6138878854 | BZ29: 0.6180829072 | CA29: 0.613905294 | CB29: 0.6050264172 | CC29: 0.606708452 | CD29: 0.5439123512 | CE29: 0.5445587075 | CF29: 0.5036089712 | CG29: 0.503518273 | CH29: 0.503342326
B31: Juristiction Transfers
B32: Non-Hydro | C32: =AVERAGE(M32:P32) -> 5.064496507 | D32: =AVERAGE(Q32:T32) -> 7.502901855 | E32: =AVERAGE(U32:X32) -> 0 | F32: =AVERAGE(Y32:AB32) -> 0 | G32: =AVERAGE(AC32:AF32) -> 0 | H32: =AVERAGE(AG32:AI32) -> 0 | M32: 0 | N32: 0 | O32: 14.35162214 | P32: 5.906363886 | Q32: 23.98418068 | R32: 0 | S32: 0 | T32: 6.027426737 | U32: 0 | V32: 0 | W32: 0 | X32: 0 | Y32: 0 | Z32: 0 | AA32: 0 | AB32: 0 | AC32: 0 | AD32: 0 | AE32: 0 | AF32: 0 | AG32: 0 | AH32: 0 | AI32: 0 | AJ32: 0 | AL32: =-M32 -> 0 | AM32: =-N32 -> 0 | AN32: -14.35162214 | AO32: -5.906363886 | AP32: -23.98418068 | AQ32: 0 | AR32: 0 | AS32: -6.027426737 | AT32: 0 | AU32: 0 | AV32: 0 | AW32: 0 | AX32: 0 | AY32: 0 | AZ32: 0 | BA32: 0 | BB32: 0 | BC32: 0 | BD32: 0 | BE32: 0 | BF32: 0 | BG32: 0 | BH32: 0 | BI32: 0 | BK32: =M32+AL32 -> 0 | BL32: =N32+AM32 -> 0 | BM32: 0 | BN32: 0 | BO32: 0 | BP32: 0 | BQ32: 0 | BR32: 0 | BS32: 0 | BT32: 0 | BU32: 0 | BV32: 0 | BW32: 0 | BX32: 0 | BY32: 0 | BZ32: 0 | CA32: 0 | CB32: 0 | CC32: 0 | CD32: 0 | CE32: 0 | CF32: 0 | CG32: 0 | CH32: 0
B33: Hydro | C33: =AVERAGE(M33:P33) -> 0 | D33: =AVERAGE(Q33:T33) -> 0 | E33: =AVERAGE(U33:X33) -> 1.008794956 | F33: =AVERAGE(Y33:AB33) -> 0.1647182985 | G33: =AVERAGE(AC33:AF33) -> 0.6261501674 | H33: =AVERAGE(AG33:AI33) -> 0.8575357041 | M33: 0 | N33: 0 | O33: 0 | P33: 0 | Q33: 0 | R33: 0 | S33: 0 | T33: 0 | U33: 4.035179823 | V33: 0 | W33: 0 | X33: 0 | Y33: 0 | Z33: 0 | AA33: 0.5645143118 | AB33: 0.09435888204 | AC33: 0 | AD33: 0 | AE33: 0 | AF33: 2.50460067 | AG33: 0 | AH33: 1.960238937 | AI33: 0.6123681756 | AJ33: 0 | AL33: =-M33 -> 0 | AM33: =-N33 -> 0 | AN33: 0 | AO33: 0 | AP33: 0 | AQ33: 0 | AR33: 0 | AS33: 0 | AT33: =-U33 -> -4.035179823 | AU33: 0 | AV33: 0 | AW33: 0 | AX33: 0 | AY33: 0 | AZ33: -0.5645143118 | BA33: -0.09435888204 | BB33: 0 | BC33: 0 | BD33: 0 | BE33: -2.50460067 | BF33: 0 | BG33: -1.960238937 | BH33: -0.6123681756 | BI33: 0 | BK33: =M33+AL33 -> 0 | BL33: =N33+AM33 -> 0 | BM33: 0 | BN33: 0 | BO33: 0 | BP33: 0 | BQ33: 0 | BR33: 0 | BS33: 0 | BT33: 0 | BU33: 0 | BV33: =X33+AW33 -> 0 | BW33: 0 | BX33: 0 | BY33: 0 | BZ33: 0 | CA33: 0 | CB33: 0 | CC33: 0 | CD33: 0 | CE33: 0 | CF33: =AH33+BG33 -> 0 | CG33: 0 | CH33: 0
B34: Out of Juristiction Sales | C34: =AVERAGE(M34:P34) -> 0 | D34: =AVERAGE(Q34:T34) -> 0 | E34: =AVERAGE(U34:X34) -> 0 | F34: =AVERAGE(Y34:AB34) -> 0 | G34: =AVERAGE(AC34:AF34) -> 0 | H34: =AVERAGE(AG34:AI34) -> 0 | M34: 0 | N34: 0 | O34: 0 | P34: 0 | Q34: 0 | R34: 0 | S34: 0 | T34: 0 | U34: 0 | V34: 0 | W34: 0 | X34: 0 | Y34: 0 | Z34: 0 | AA34: 0 | AB34: 0 | AC34: 0 | AD34: 0 | AE34: 0 | AF34: 0 | AG34: 0 | AH34: 0 | AI34: 0 | AJ34: 0 | AL34: 0 | AM34: 0 | AN34: 0 | AO34: 0 | AP34: 0 | AQ34: 0 | AR34: 0 | AS34: 0 | AT34: 0 | AU34: 0 | AV34: 0 | AW34: 0 | AX34: 0 | AY34: 0 | AZ34: 0 | BA34: 0 | BB34: 0 | BC34: 0 | BD34: 0 | BE34: 0 | BF34: 0 | BG34: 0 | BH34: 0 | BI34: 0 | BK34: =M34+AL34 -> 0 | BL34: 0 | BM34: 0 | BN34: 0 | BO34: 0 | BP34: 0 | BQ34: 0 | BR34: 0 | BS34: 0 | BT34: 0 | BU34: 0 | BV34: 0 | BW34: 0 | BX34: 0 | BY34: 0 | BZ34: 0 | CA34: 0 | CB34: 0 | CC34: 0 | CD34: 0 | CE34: 0 | CF34: 0 | CG34: 0 | CH34: 0
B36: Total Existing Clean Resources | C36: =AVERAGE(M36:P36) -> 457.5674138 | D36: =AVERAGE(Q36:T36) -> 445.2789627 | E36: =AVERAGE(U36:X36) -> 411.2665112 | F36: =AVERAGE(Y36:AB36) -> 401.0206324 | G36: =AVERAGE(AC36:AF36) -> 386.8588143 | H36: =AVERAGE(AG36:AI36) -> 341.5281934 | M36: =M27+M32+M33 -> 474.133738 | N36: =N27+N32+N33 -> 467.0343338 | O36: 450.9712082 | P36: 438.1303752 | Q36: 463.9988763 | R36: 434.5358481 | S36: 442.3971132 | T36: =T27+T32+T33 -> 440.1840133 | U36: 441.7424812 | V36: 400.7923382 | W36: 402.1657144 | X36: 400.3655111 | Y36: 401.7203031 | Z36: 400.8512304 | AA36: 398.7675213 | AB36: 402.7434746 | AC36: 400.590845 | AD36: 393.8250487 | AE36: 394.6541869 | AF36: 358.3651766 | AG36: 357.5394071 | AH36: 333.9495657 | AI36: 333.0956074 | AJ36: 335.1969602 | AL36: =AL27+AL32+AL33 -> 248.0806382 | AM36: =AM27+AM32+AM33 -> 244.3660224 | AN36: 214.1005146 | AO36: 220.2458797 | AP36: 206.2443767 | AQ36: 227.3618642 | AR36: 228.5751873 | AS36: 218.23078 | AT36: 222.0875739 | AU36: 206.8068525 | AV36: 207.527443 | AW36: 206.5859959 | AX36: 207.3008086 | AY36: 206.8413688 | AZ36: 204.9031627 | BA36: 207.7005139 | BB36: 206.7099163 | BC36: 206.0607833 | BD36: 206.4946127 | BE36: 183.6920602 | BF36: 187.0750744 | BG36: 171.7462862 | BH36: 173.3525864 | BI36: 175.3848528 | BK36: =BK27+BK32+BK33 -> 727.7812468 | BL36: =BL27+BL32+BL33 -> 716.9676589 | BM36: 670.6218279 | BN36: 663.9335989 | BO36: 675.8068626 | BP36: 667.4563351 | BQ36: 670.9723006 | BR36: 658.4147933 | BS36: 663.8300551 | BT36: 607.5991907 | BU36: 609.6931574 | BV36: 606.9515071 | BW36: 609.0211117 | BX36: 607.6925993 | BY36: 603.670684 | BZ36: 610.4439885 | CA36: 607.3007614 | CB36: 599.8858319 | CC36: 601.1487996 | CD36: 542.0572368 | CE36: 544.6144814 | CF36: 505.6958518 | CG36: 506.4481938 | CH36: 510.581813
B38: Clean Percent of Retail Sales | C38: =C36/C$11 -> 0.7347007298 | D38: 0.7045091655 | E38: 0.6446462629 | F38: 0.6256996052 | G38: 0.5988884021 | H38: 0.5225968003 | M38: =M36/M11 -> 0.7656743168 | N38: =N36/N11 -> 0.7505659209 | O38: =O36/O11 -> 0.7239969708 | P38: =P36/P11 -> 0.6989884032 | Q38: 0.7387769533 | R38: 0.6906966674 | S38: 0.697765526 | T38: 0.6910750484 | U38: 0.6928738562 | V38: 0.6280861417 | W38: 0.631466666 | X38: 0.6262110203 | Y38: 0.6276249038 | Z38: 0.6255192266 | AA38: 0.6231320345 | AB38: 0.6265184402 | AC38: 0.6220214311 | AD38: 0.6101172213 | AE38: 0.6115893823 | AF38: 0.552139978 | AG38: 0.5488975448 | AH38: 0.5106001004 | AI38: 0.5084238377 | AJ38: 0.5073490876 | AL38: =AL36/AL11 -> 0.7237805601 | AM38: =AM36/AM11 -> 0.7112728988 | AN38: 0.6239909029 | AO38: 0.6390033719 | AP38: 0.5984245924 | AQ38: 0.6596722402 | AR38: 0.6652308595 | AS38: 0.6330599011 | AT38: 0.6446273488 | AU38: 0.6005713107 | AV38: 0.6047710711 | AW38: 0.6002096057 | AX38: 0.6022514402 | AY38: 0.600730985 | AZ38: 0.5966618148 | BA38: 0.6023567223 | BB38: 0.5987648016 | BC38: 0.5955294628 | BD38: 0.5975934558 | BE38: 0.5285469338 | BF38: 0.5364542721 | BG38: 0.490548996 | BH38: 0.4943531359 | BI38: 0.4958580131 | BK38: =BK36/BK11 -> 0.7521817172 | BL38: =BL36/BL11 -> 0.7380980925 | BM38: 0.6902555097 | BN38: 0.6795394804 | BO38: 0.6908164269 | BP38: 0.6815338614 | BQ38: 0.6863306397 | BR38: 0.6707026099 | BS38: 0.6759484888 | BT38: 0.6184423192 | BU38: 0.6221193586 | BV38: 0.6171117878 | BW38: 0.618751569 | BX38: 0.6168555424 | BY38: 0.6138878854 | BZ38: 0.6180829072 | CA38: 0.613905294 | CB38: 0.6050264172 | CC38: 0.606708452 | CD38: 0.5439123512 | CE38: 0.5445587075 | CF38: 0.5036089712 | CG38: 0.503518273 | CH38: 0.503342326
B40: New Resource Selection
A41: 119 | B41: Solar Photovoltaic Fixed Array (5 MW AC) | C41: =AVERAGE(M41:P41) -> 0 | D41: =AVERAGE(Q41:T41) -> 0 | E41: =AVERAGE(U41:X41) -> 0 | F41: =AVERAGE(Y41:AB41) -> 0 | G41: =AVERAGE(AC41:AF41) -> 0 | H41: =AVERAGE(AG41:AI41) -> 0 | M41: =SUMIF(Res_MWh!$D$4:$D$68,$A41,Res_MWh!AD$4:AD$68)/G_A!P$6 -> 0 | N41: =SUMIF(Res_MWh!$D$4:$D$68,$A41,Res_MWh!AE$4:AE$68)/G_A!Q$6 -> 0 | O41: =SUMIF(Res_MWh!$D$4:$D$68,$A41,Res_MWh!AF$4:AF$68)/G_A!R$6 -> 0 | P41: =SUMIF(Res_MWh!$D$4:$D$68,$A41,Res_MWh!AG$4:AG$68)/G_A!S$6 -> 0 | Q41: =SUMIF(Res_MWh!$D$4:$D$68,$A41,Res_MWh!AH$4:AH$68)/G_A!T$6 -> 0 | R41: =SUMIF(Res_MWh!$D$4:$D$68,$A41,Res_MWh!AI$4:AI$68)/G_A!U$6 -> 0 | S41: =SUMIF(Res_MWh!$D$4:$D$68,$A41,Res_MWh!AJ$4:AJ$68)/G_A!V$6 -> 0 | T41: =SUMIF(Res_MWh!$D$4:$D$68,$A41,Res_MWh!AK$4:AK$68)/G_A!W$6 -> 0 | U41: =SUMIF(Res_MWh!$D$4:$D$68,$A41,Res_MWh!AL$4:AL$68)/G_A!X$6 -> 0 | V41: =SUMIF(Res_MWh!$D$4:$D$68,$A41,Res_MWh!AM$4:AM$68)/G_A!Y$6 -> 0 | W41: =SUMIF(Res_MWh!$D$4:$D$68,$A41,Res_MWh!AN$4:AN$68)/G_A!Z$6 -> 0 | X41: =SUMIF(Res_MWh!$D$4:$D$68,$A41,Res_MWh!AO$4:AO$68)/G_A!AA$6 -> 0 | Y41: =SUMIF(Res_MWh!$D$4:$D$68,$A41,Res_MWh!AP$4:AP$68)/G_A!AB$6 -> 0 | Z41: =SUMIF(Res_MWh!$D$4:$D$68,$A41,Res_MWh!AQ$4:AQ$68)/G_A!AC$6 -> 0 | AA41: =SUMIF(Res_MWh!$D$4:$D$68,$A41,Res_MWh!AR$4:AR$68)/G_A!AD$6 -> 0 | AB41: =SUMIF(Res_MWh!$D$4:$D$68,$A41,Res_MWh!AS$4:AS$68)/G_A!AE$6 -> 0 | AC41: =SUMIF(Res_MWh!$D$4:$D$68,$A41,Res_MWh!AT$4:AT$68)/G_A!AF$6 -> 0 | AD41: =SUMIF(Res_MWh!$D$4:$D$68,$A41,Res_MWh!AU$4:AU$68)/G_A!AG$6 -> 0 | AE41: =SUMIF(Res_MWh!$D$4:$D$68,$A41,Res_MWh!AV$4:AV$68)/G_A!AH$6 -> 0 | AF41: =SUMIF(Res_MWh!$D$4:$D$68,$A41,Res_MWh!AW$4:AW$68)/G_A!AI$6 -> 0 | AG41: =SUMIF(Res_MWh!$D$4:$D$68,$A41,Res_MWh!AX$4:AX$68)/G_A!AJ$6 -> 0 | AH41: =SUMIF(Res_MWh!$D$4:$D$68,$A41,Res_MWh!AY$4:AY$68)/G_A!AK$6 -> 0 | AI41: =SUMIF(Res_MWh!$D$4:$D$68,$A41,Res_MWh!AZ$4:AZ$68)/G_A!AL$6 -> 0 | AJ41: =SUMIF(Res_MWh!$D$4:$D$68,$A41,Res_MWh!BA$4:BA$68)/G_A!AM$6 -> 4.385816362 | AL41: =SUMIF(Res_MWh!$D$4:$D$68,$A41,Res_MWh!BC$4:BC$68)/G_A!AO$6 -> 0 | AM41: =SUMIF(Res_MWh!$D$4:$D$68,$A41,Res_MWh!BD$4:BD$68)/G_A!AP$6 -> 0 | AN41: =SUMIF(Res_MWh!$D$4:$D$68,$A41,Res_MWh!BE$4:BE$68)/G_A!AQ$6 -> 0 | AO41: =SUMIF(Res_MWh!$D$4:$D$68,$A41,Res_MWh!BF$4:BF$68)/G_A!AR$6 -> 0 | AP41: =SUMIF(Res_MWh!$D$4:$D$68,$A41,Res_MWh!BG$4:BG$68)/G_A!AS$6 -> 0 | AQ41: =SUMIF(Res_MWh!$D$4:$D$68,$A41,Res_MWh!BH$4:BH$68)/G_A!AT$6 -> 0 | AR41: =SUMIF(Res_MWh!$D$4:$D$68,$A41,Res_MWh!BI$4:BI$68)/G_A!AU$6 -> 0 | AS41: =SUMIF(Res_MWh!$D$4:$D$68,$A41,Res_MWh!BJ$4:BJ$68)/G_A!AV$6 -> 0 | AT41: =SUMIF(Res_MWh!$D$4:$D$68,$A41,Res_MWh!BK$4:BK$68)/G_A!AW$6 -> 0 | AU41: =SUMIF(Res_MWh!$D$4:$D$68,$A41,Res_MWh!BL$4:BL$68)/G_A!AX$6 -> 0 | AV41: =SUMIF(Res_MWh!$D$4:$D$68,$A41,Res_MWh!BM$4:BM$68)/G_A!AY$6 -> 0 | AW41: =SUMIF(Res_MWh!$D$4:$D$68,$A41,Res_MWh!BN$4:BN$68)/G_A!AZ$6 -> 0 | AX41: =SUMIF(Res_MWh!$D$4:$D$68,$A41,Res_MWh!BO$4:BO$68)/G_A!BA$6 -> 0 | AY41: =SUMIF(Res_MWh!$D$4:$D$68,$A41,Res_MWh!BP$4:BP$68)/G_A!BB$6 -> 0 | AZ41: =SUMIF(Res_MWh!$D$4:$D$68,$A41,Res_MWh!BQ$4:BQ$68)/G_A!BC$6 -> 0 | BA41: =SUMIF(Res_MWh!$D$4:$D$68,$A41,Res_MWh!BR$4:BR$68)/G_A!BD$6 -> 0 | BB41: =SUMIF(Res_MWh!$D$4:$D$68,$A41,Res_MWh!BS$4:BS$68)/G_A!BE$6 -> 0 | BC41: =SUMIF(Res_MWh!$D$4:$D$68,$A41,Res_MWh!BT$4:BT$68)/G_A!BF$6 -> 0 | BD41: =SUMIF(Res_MWh!$D$4:$D$68,$A41,Res_MWh!BU$4:BU$68)/G_A!BG$6 -> 0 | BE41: =SUMIF(Res_MWh!$D$4:$D$68,$A41,Res_MWh!BV$4:BV$68)/G_A!BH$6 -> 0 | BF41: =SUMIF(Res_MWh!$D$4:$D$68,$A41,Res_MWh!BW$4:BW$68)/G_A!BI$6 -> 0 | BG41: =SUMIF(Res_MWh!$D$4:$D$68,$A41,Res_MWh!BX$4:BX$68)/G_A!BJ$6 -> 0 | BH41: =SUMIF(Res_MWh!$D$4:$D$68,$A41,Res_MWh!BY$4:BY$68)/G_A!BK$6 -> 0 | BI41: =SUMIF(Res_MWh!$D$4:$D$68,$A41,Res_MWh!BZ$4:BZ$68)/G_A!BL$6 -> 0 | BK41: =M41+AL41 -> 0 | BL41: =N41+AM41 -> 0 | BM41: =O41+AN41 -> 0 | BN41: =P41+AO41 -> 0 | BO41: =Q41+AP41 -> 0 | BP41: =R41+AQ41 -> 0 | BQ41: =S41+AR41 -> 0 | BR41: =T41+AS41 -> 0 | BS41: =U41+AT41 -> 0 | BT41: =V41+AU41 -> 0 | BU41: =W41+AV41 -> 0 | BV41: =X41+AW41 -> 0 | BW41: =Y41+AX41 -> 0 | BX41: =Z41+AY41 -> 0 | BY41: =AA41+AZ41 -> 0 | BZ41: =AB41+BA41 -> 0 | CA41: =AC41+BB41 -> 0 | CB41: =AD41+BC41 -> 0 | CC41: =AE41+BD41 -> 0 | CD41: =AF41+BE41 -> 0 | CE41: =AG41+BF41 -> 0 | CF41: =AH41+BG41 -> 0 | CG41: =AI41+BH41 -> 0 | CH41: =AJ41+BI41 -> 4.385816362
A42: 120 | B42: Southern NW Solar Photovoltaic w/ Single Axis Tracking (100 MW AC) | C42: =AVERAGE(M42:P42) -> 0 | D42: =AVERAGE(Q42:T42) -> 0 | E42: =AVERAGE(U42:X42) -> 0 | F42: =AVERAGE(Y42:AB42) -> 0 | G42: =AVERAGE(AC42:AF42) -> 0 | H42: =AVERAGE(AG42:AI42) -> 0 | M42: =SUMIF(Res_MWh!$D$4:$D$68,$A42,Res_MWh!AD$4:AD$68)/G_A!P$6 -> 0 | N42: =SUMIF(Res_MWh!$D$4:$D$68,$A42,Res_MWh!AE$4:AE$68)/G_A!Q$6 -> 0 | O42: =SUMIF(Res_MWh!$D$4:$D$68,$A42,Res_MWh!AF$4:AF$68)/G_A!R$6 -> 0 | P42: =SUMIF(Res_MWh!$D$4:$D$68,$A42,Res_MWh!AG$4:AG$68)/G_A!S$6 -> 0 | Q42: =SUMIF(Res_MWh!$D$4:$D$68,$A42,Res_MWh!AH$4:AH$68)/G_A!T$6 -> 0 | R42: =SUMIF(Res_MWh!$D$4:$D$68,$A42,Res_MWh!AI$4:AI$68)/G_A!U$6 -> 0 | S42: =SUMIF(Res_MWh!$D$4:$D$68,$A42,Res_MWh!AJ$4:AJ$68)/G_A!V$6 -> 0 | T42: =SUMIF(Res_MWh!$D$4:$D$68,$A42,Res_MWh!AK$4:AK$68)/G_A!W$6 -> 0 | U42: =SUMIF(Res_MWh!$D$4:$D$68,$A42,Res_MWh!AL$4:AL$68)/G_A!X$6 -> 0 | V42: =SUMIF(Res_MWh!$D$4:$D$68,$A42,Res_MWh!AM$4:AM$68)/G_A!Y$6 -> 0 | W42: =SUMIF(Res_MWh!$D$4:$D$68,$A42,Res_MWh!AN$4:AN$68)/G_A!Z$6 -> 0 | X42: =SUMIF(Res_MWh!$D$4:$D$68,$A42,Res_MWh!AO$4:AO$68)/G_A!AA$6 -> 0 | Y42: =SUMIF(Res_MWh!$D$4:$D$68,$A42,Res_MWh!AP$4:AP$68)/G_A!AB$6 -> 0 | Z42: =SUMIF(Res_MWh!$D$4:$D$68,$A42,Res_MWh!AQ$4:AQ$68)/G_A!AC$6 -> 0 | AA42: =SUMIF(Res_MWh!$D$4:$D$68,$A42,Res_MWh!AR$4:AR$68)/G_A!AD$6 -> 0 | AB42: =SUMIF(Res_MWh!$D$4:$D$68,$A42,Res_MWh!AS$4:AS$68)/G_A!AE$6 -> 0 | AC42: =SUMIF(Res_MWh!$D$4:$D$68,$A42,Res_MWh!AT$4:AT$68)/G_A!AF$6 -> 0 | AD42: =SUMIF(Res_MWh!$D$4:$D$68,$A42,Res_MWh!AU$4:AU$68)/G_A!AG$6 -> 0 | AE42: =SUMIF(Res_MWh!$D$4:$D$68,$A42,Res_MWh!AV$4:AV$68)/G_A!AH$6 -> 0 | AF42: =SUMIF(Res_MWh!$D$4:$D$68,$A42,Res_MWh!AW$4:AW$68)/G_A!AI$6 -> 0 | AG42: =SUMIF(Res_MWh!$D$4:$D$68,$A42,Res_MWh!AX$4:AX$68)/G_A!AJ$6 -> 0 | AH42: =SUMIF(Res_MWh!$D$4:$D$68,$A42,Res_MWh!AY$4:AY$68)/G_A!AK$6 -> 0 | AI42: =SUMIF(Res_MWh!$D$4:$D$68,$A42,Res_MWh!AZ$4:AZ$68)/G_A!AL$6 -> 0 | AJ42: =SUMIF(Res_MWh!$D$4:$D$68,$A42,Res_MWh!BA$4:BA$68)/G_A!AM$6 -> 0 | AL42: =SUMIF(Res_MWh!$D$4:$D$68,$A42,Res_MWh!BC$4:BC$68)/G_A!AO$6 -> 0 | AM42: =SUMIF(Res_MWh!$D$4:$D$68,$A42,Res_MWh!BD$4:BD$68)/G_A!AP$6 -> 0 | AN42: =SUMIF(Res_MWh!$D$4:$D$68,$A42,Res_MWh!BE$4:BE$68)/G_A!AQ$6 -> 0 | AO42: =SUMIF(Res_MWh!$D$4:$D$68,$A42,Res_MWh!BF$4:BF$68)/G_A!AR$6 -> 0 | AP42: =SUMIF(Res_MWh!$D$4:$D$68,$A42,Res_MWh!BG$4:BG$68)/G_A!AS$6 -> 27.53486906 | AQ42: =SUMIF(Res_MWh!$D$4:$D$68,$A42,Res_MWh!BH$4:BH$68)/G_A!AT$6 -> 54.94180318 | AR42: =SUMIF(Res_MWh!$D$4:$D$68,$A42,Res_MWh!BI$4:BI$68)/G_A!AU$6 -> 55.26119222 | AS42: =SUMIF(Res_MWh!$D$4:$D$68,$A42,Res_MWh!BJ$4:BJ$68)/G_A!AV$6 -> 55.20918144 | AT42: =SUMIF(Res_MWh!$D$4:$D$68,$A42,Res_MWh!BK$4:BK$68)/G_A!AW$6 -> 55.19232966 | AU42: =SUMIF(Res_MWh!$D$4:$D$68,$A42,Res_MWh!BL$4:BL$68)/G_A!AX$6 -> 54.8654989 | AV42: =SUMIF(Res_MWh!$D$4:$D$68,$A42,Res_MWh!BM$4:BM$68)/G_A!AY$6 -> 55.19808447 | AW42: =SUMIF(Res_MWh!$D$4:$D$68,$A42,Res_MWh!BN$4:BN$68)/G_A!AZ$6 -> 55.06976111 | AX42: =SUMIF(Res_MWh!$D$4:$D$68,$A42,Res_MWh!BO$4:BO$68)/G_A!BA$6 -> 55.09949987 | AY42: =SUMIF(Res_MWh!$D$4:$D$68,$A42,Res_MWh!BP$4:BP$68)/G_A!BB$6 -> 55.05482205 | AZ42: =SUMIF(Res_MWh!$D$4:$D$68,$A42,Res_MWh!BQ$4:BQ$68)/G_A!BC$6 -> 55.12003764 | BA42: =SUMIF(Res_MWh!$D$4:$D$68,$A42,Res_MWh!BR$4:BR$68)/G_A!BD$6 -> 55.01793993 | BB42: =SUMIF(Res_MWh!$D$4:$D$68,$A42,Res_MWh!BS$4:BS$68)/G_A!BE$6 -> 55.0768654 | BC42: =SUMIF(Res_MWh!$D$4:$D$68,$A42,Res_MWh!BT$4:BT$68)/G_A!BF$6 -> 54.87807261 | BD42: =SUMIF(Res_MWh!$D$4:$D$68,$A42,Res_MWh!BU$4:BU$68)/G_A!BG$6 -> 55.31126242 | BE42: =SUMIF(Res_MWh!$D$4:$D$68,$A42,Res_MWh!BV$4:BV$68)/G_A!BH$6 -> 55.15443267 | BF42: =SUMIF(Res_MWh!$D$4:$D$68,$A42,Res_MWh!BW$4:BW$68)/G_A!BI$6 -> 55.0361858 | BG42: =SUMIF(Res_MWh!$D$4:$D$68,$A42,Res_MWh!BX$4:BX$68)/G_A!BJ$6 -> 54.89584043 | BH42: =SUMIF(Res_MWh!$D$4:$D$68,$A42,Res_MWh!BY$4:BY$68)/G_A!BK$6 -> 55.15562044 | BI42: =SUMIF(Res_MWh!$D$4:$D$68,$A42,Res_MWh!BZ$4:BZ$68)/G_A!BL$6 -> 55.11218053 | BK42: =M42+AL42 -> 0 | BL42: 0 | BM42: 0 | BN42: 0 | BO42: 27.53486906 | BP42: 54.94180318 | BQ42: 55.26119222 | BR42: 55.20918144 | BS42: 55.19232966 | BT42: 54.8654989 | BU42: 55.19808447 | BV42: 55.06976111 | BW42: 55.09949987 | BX42: 55.05482205 | BY42: 55.12003764 | BZ42: 55.01793993 | CA42: 55.0768654 | CB42: 54.87807261 | CC42: 55.31126242 | CD42: 55.15443267 | CE42: 55.0361858 | CF42: 54.89584043 | CG42: 55.15562044 | CH42: 55.11218053
A43: 121 | B43: Solar Photovoltaic w/ Single Axis Tracking (100 MW AC) | C43: 0 | D43: 0 | E43: 11.75295057 | F43: 15.70256024 | G43: 37.1443787 | H43: 80.56798611 | M43: =SUMIF(Res_MWh!$D$4:$D$68,$A43,Res_MWh!AD$4:AD$68)/G_A!P$6 -> 0 | N43: =SUMIF(Res_MWh!$D$4:$D$68,$A43,Res_MWh!AE$4:AE$68)/G_A!Q$6 -> 0 | O43: =SUMIF(Res_MWh!$D$4:$D$68,$A43,Res_MWh!AF$4:AF$68)/G_A!R$6 -> 0 | P43: =SUMIF(Res_MWh!$D$4:$D$68,$A43,Res_MWh!AG$4:AG$68)/G_A!S$6 -> 0 | Q43: =SUMIF(Res_MWh!$D$4:$D$68,$A43,Res_MWh!AH$4:AH$68)/G_A!T$6 -> 0 | R43: =SUMIF(Res_MWh!$D$4:$D$68,$A43,Res_MWh!AI$4:AI$68)/G_A!U$6 -> 0 | S43: =SUMIF(Res_MWh!$D$4:$D$68,$A43,Res_MWh!AJ$4:AJ$68)/G_A!V$6 -> 0 | T43: =SUMIF(Res_MWh!$D$4:$D$68,$A43,Res_MWh!AK$4:AK$68)/G_A!W$6 -> 0 | U43: =SUMIF(Res_MWh!$D$4:$D$68,$A43,Res_MWh!AL$4:AL$68)/G_A!X$6 -> 0 | V43: =SUMIF(Res_MWh!$D$4:$D$68,$A43,Res_MWh!AM$4:AM$68)/G_A!Y$6 -> 15.70275979 | W43: =SUMIF(Res_MWh!$D$4:$D$68,$A43,Res_MWh!AN$4:AN$68)/G_A!Z$6 -> 15.6267859 | X43: =SUMIF(Res_MWh!$D$4:$D$68,$A43,Res_MWh!AO$4:AO$68)/G_A!AA$6 -> 15.6822566 | Y43: =SUMIF(Res_MWh!$D$4:$D$68,$A43,Res_MWh!AP$4:AP$68)/G_A!AB$6 -> 15.72556102 | Z43: =SUMIF(Res_MWh!$D$4:$D$68,$A43,Res_MWh!AQ$4:AQ$68)/G_A!AC$6 -> 15.76488044 | AA43: =SUMIF(Res_MWh!$D$4:$D$68,$A43,Res_MWh!AR$4:AR$68)/G_A!AD$6 -> 15.68072656 | AB43: =SUMIF(Res_MWh!$D$4:$D$68,$A43,Res_MWh!AS$4:AS$68)/G_A!AE$6 -> 15.63907294 | AC43: =SUMIF(Res_MWh!$D$4:$D$68,$A43,Res_MWh!AT$4:AT$68)/G_A!AF$6 -> 31.29614609 | AD43: =SUMIF(Res_MWh!$D$4:$D$68,$A43,Res_MWh!AU$4:AU$68)/G_A!AG$6 -> 31.37452511 | AE43: =SUMIF(Res_MWh!$D$4:$D$68,$A43,Res_MWh!AV$4:AV$68)/G_A!AH$6 -> 31.4663128 | AF43: =SUMIF(Res_MWh!$D$4:$D$68,$A43,Res_MWh!AW$4:AW$68)/G_A!AI$6 -> 54.44053079 | AG43: =SUMIF(Res_MWh!$D$4:$D$68,$A43,Res_MWh!AX$4:AX$68)/G_A!AJ$6 -> 69.7688168 | AH43: =SUMIF(Res_MWh!$D$4:$D$68,$A43,Res_MWh!AY$4:AY$68)/G_A!AK$6 -> 85.813105 | AI43: =SUMIF(Res_MWh!$D$4:$D$68,$A43,Res_MWh!AZ$4:AZ$68)/G_A!AL$6 -> 86.12203652 | AJ43: =SUMIF(Res_MWh!$D$4:$D$68,$A43,Res_MWh!BA$4:BA$68)/G_A!AM$6 -> 86.29796403 | AL43: =SUMIF(Res_MWh!$D$4:$D$68,$A43,Res_MWh!BC$4:BC$68)/G_A!AO$6 -> 0 | AM43: =SUMIF(Res_MWh!$D$4:$D$68,$A43,Res_MWh!BD$4:BD$68)/G_A!AP$6 -> 0 | AN43: =SUMIF(Res_MWh!$D$4:$D$68,$A43,Res_MWh!BE$4:BE$68)/G_A!AQ$6 -> 0 | AO43: =SUMIF(Res_MWh!$D$4:$D$68,$A43,Res_MWh!BF$4:BF$68)/G_A!AR$6 -> 0 | AP43: =SUMIF(Res_MWh!$D$4:$D$68,$A43,Res_MWh!BG$4:BG$68)/G_A!AS$6 -> 0 | AQ43: =SUMIF(Res_MWh!$D$4:$D$68,$A43,Res_MWh!BH$4:BH$68)/G_A!AT$6 -> 0 | AR43: =SUMIF(Res_MWh!$D$4:$D$68,$A43,Res_MWh!BI$4:BI$68)/G_A!AU$6 -> 0 | AS43: =SUMIF(Res_MWh!$D$4:$D$68,$A43,Res_MWh!BJ$4:BJ$68)/G_A!AV$6 -> 0 | AT43: =SUMIF(Res_MWh!$D$4:$D$68,$A43,Res_MWh!BK$4:BK$68)/G_A!AW$6 -> 0 | AU43: =SUMIF(Res_MWh!$D$4:$D$68,$A43,Res_MWh!BL$4:BL$68)/G_A!AX$6 -> 8.193694685 | AV43: =SUMIF(Res_MWh!$D$4:$D$68,$A43,Res_MWh!BM$4:BM$68)/G_A!AY$6 -> 8.198792474 | AW43: =SUMIF(Res_MWh!$D$4:$D$68,$A43,Res_MWh!BN$4:BN$68)/G_A!AZ$6 -> 8.205415298 | AX43: =SUMIF(Res_MWh!$D$4:$D$68,$A43,Res_MWh!BO$4:BO$68)/G_A!BA$6 -> 8.228073438 | AY43: =SUMIF(Res_MWh!$D$4:$D$68,$A43,Res_MWh!BP$4:BP$68)/G_A!BB$6 -> 8.226109222 | AZ43: =SUMIF(Res_MWh!$D$4:$D$68,$A43,Res_MWh!BQ$4:BQ$68)/G_A!BC$6 -> 8.22709313 | BA43: =SUMIF(Res_MWh!$D$4:$D$68,$A43,Res_MWh!BR$4:BR$68)/G_A!BD$6 -> 8.182820343 | BB43: =SUMIF(Res_MWh!$D$4:$D$68,$A43,Res_MWh!BS$4:BS$68)/G_A!BE$6 -> 16.37505892 | BC43: =SUMIF(Res_MWh!$D$4:$D$68,$A43,Res_MWh!BT$4:BT$68)/G_A!BF$6 -> 16.37121647 | BD43: =SUMIF(Res_MWh!$D$4:$D$68,$A43,Res_MWh!BU$4:BU$68)/G_A!BG$6 -> 16.50920223 | BE43: =SUMIF(Res_MWh!$D$4:$D$68,$A43,Res_MWh!BV$4:BV$68)/G_A!BH$6 -> 28.48487788 | BF43: =SUMIF(Res_MWh!$D$4:$D$68,$A43,Res_MWh!BW$4:BW$68)/G_A!BI$6 -> 36.50508541 | BG43: =SUMIF(Res_MWh!$D$4:$D$68,$A43,Res_MWh!BX$4:BX$68)/G_A!BJ$6 -> 44.77724883 | BH43: =SUMIF(Res_MWh!$D$4:$D$68,$A43,Res_MWh!BY$4:BY$68)/G_A!BK$6 -> 45.18502458 | BI43: =SUMIF(Res_MWh!$D$4:$D$68,$A43,Res_MWh!BZ$4:BZ$68)/G_A!BL$6 -> 45.15361865 | BK43: 0 | BL43: 0 | BM43: 0 | BN43: 0 | BO43: 0 | BP43: 0 | BQ43: 0 | BR43: 0 | BS43: 0 | BT43: 23.89645447 | BU43: 23.82557837 | BV43: 23.8876719 | BW43: 23.95363446 | BX43: 23.99098967 | BY43: 23.90781969 | BZ43: 23.82189328 | CA43: 47.67120501 | CB43: 47.74574158 | CC43: 47.97551502 | CD43: 82.92540867 | CE43: 106.2739022 | CF43: 130.5903538 | CG43: 131.3070611 | CH43: 131.4515827
A44: 125 | B44: NW Wind On System | C44: 0 | D44: 0 | E44: 0 | F44: 0 | G44: 0 | H44: 0 | M44: =SUMIF(Res_MWh!$D$4:$D$68,$A44,Res_MWh!AD$4:AD$68)/G_A!P$6 -> 0 | N44: =SUMIF(Res_MWh!$D$4:$D$68,$A44,Res_MWh!AE$4:AE$68)/G_A!Q$6 -> 0 | O44: =SUMIF(Res_MWh!$D$4:$D$68,$A44,Res_MWh!AF$4:AF$68)/G_A!R$6 -> 0 | P44: =SUMIF(Res_MWh!$D$4:$D$68,$A44,Res_MWh!AG$4:AG$68)/G_A!S$6 -> 0 | Q44: =SUMIF(Res_MWh!$D$4:$D$68,$A44,Res_MWh!AH$4:AH$68)/G_A!T$6 -> 0 | R44: =SUMIF(Res_MWh!$D$4:$D$68,$A44,Res_MWh!AI$4:AI$68)/G_A!U$6 -> 0 | S44: =SUMIF(Res_MWh!$D$4:$D$68,$A44,Res_MWh!AJ$4:AJ$68)/G_A!V$6 -> 0 | T44: =SUMIF(Res_MWh!$D$4:$D$68,$A44,Res_MWh!AK$4:AK$68)/G_A!W$6 -> 0 | U44: =SUMIF(Res_MWh!$D$4:$D$68,$A44,Res_MWh!AL$4:AL$68)/G_A!X$6 -> 0 | V44: =SUMIF(Res_MWh!$D$4:$D$68,$A44,Res_MWh!AM$4:AM$68)/G_A!Y$6 -> 0 | W44: =SUMIF(Res_MWh!$D$4:$D$68,$A44,Res_MWh!AN$4:AN$68)/G_A!Z$6 -> 0 | X44: =SUMIF(Res_MWh!$D$4:$D$68,$A44,Res_MWh!AO$4:AO$68)/G_A!AA$6 -> 0 | Y44: =SUMIF(Res_MWh!$D$4:$D$68,$A44,Res_MWh!AP$4:AP$68)/G_A!AB$6 -> 0 | Z44: =SUMIF(Res_MWh!$D$4:$D$68,$A44,Res_MWh!AQ$4:AQ$68)/G_A!AC$6 -> 0 | AA44: =SUMIF(Res_MWh!$D$4:$D$68,$A44,Res_MWh!AR$4:AR$68)/G_A!AD$6 -> 0 | AB44: =SUMIF(Res_MWh!$D$4:$D$68,$A44,Res_MWh!AS$4:AS$68)/G_A!AE$6 -> 0 | AC44: =SUMIF(Res_MWh!$D$4:$D$68,$A44,Res_MWh!AT$4:AT$68)/G_A!AF$6 -> 0 | AD44: =SUMIF(Res_MWh!$D$4:$D$68,$A44,Res_MWh!AU$4:AU$68)/G_A!AG$6 -> 0 | AE44: =SUMIF(Res_MWh!$D$4:$D$68,$A44,Res_MWh!AV$4:AV$68)/G_A!AH$6 -> 0 | AF44: =SUMIF(Res_MWh!$D$4:$D$68,$A44,Res_MWh!AW$4:AW$68)/G_A!AI$6 -> 0 | AG44: =SUMIF(Res_MWh!$D$4:$D$68,$A44,Res_MWh!AX$4:AX$68)/G_A!AJ$6 -> 0 | AH44: =SUMIF(Res_MWh!$D$4:$D$68,$A44,Res_MWh!AY$4:AY$68)/G_A!AK$6 -> 0 | AI44: =SUMIF(Res_MWh!$D$4:$D$68,$A44,Res_MWh!AZ$4:AZ$68)/G_A!AL$6 -> 0 | AJ44: =SUMIF(Res_MWh!$D$4:$D$68,$A44,Res_MWh!BA$4:BA$68)/G_A!AM$6 -> 0 | AL44: =SUMIF(Res_MWh!$D$4:$D$68,$A44,Res_MWh!BC$4:BC$68)/G_A!AO$6 -> 0 | AM44: =SUMIF(Res_MWh!$D$4:$D$68,$A44,Res_MWh!BD$4:BD$68)/G_A!AP$6 -> 60.49965118 | AN44: =SUMIF(Res_MWh!$D$4:$D$68,$A44,Res_MWh!BE$4:BE$68)/G_A!AQ$6 -> 60.71782022 | AO44: =SUMIF(Res_MWh!$D$4:$D$68,$A44,Res_MWh!BF$4:BF$68)/G_A!AR$6 -> 60.66540365 | AP44: =SUMIF(Res_MWh!$D$4:$D$68,$A44,Res_MWh!BG$4:BG$68)/G_A!AS$6 -> 60.66540365 | AQ44: =SUMIF(Res_MWh!$D$4:$D$68,$A44,Res_MWh!BH$4:BH$68)/G_A!AT$6 -> 60.49965118 | AR44: =SUMIF(Res_MWh!$D$4:$D$68,$A44,Res_MWh!BI$4:BI$68)/G_A!AU$6 -> 60.71782022 | AS44: =SUMIF(Res_MWh!$D$4:$D$68,$A44,Res_MWh!BJ$4:BJ$68)/G_A!AV$6 -> 60.66540365 | AT44: =SUMIF(Res_MWh!$D$4:$D$68,$A44,Res_MWh!BK$4:BK$68)/G_A!AW$6 -> 60.66540365 | AU44: =SUMIF(Res_MWh!$D$4:$D$68,$A44,Res_MWh!BL$4:BL$68)/G_A!AX$6 -> 60.49965118 | AV44: =SUMIF(Res_MWh!$D$4:$D$68,$A44,Res_MWh!BM$4:BM$68)/G_A!AY$6 -> 60.71782022 | AW44: =SUMIF(Res_MWh!$D$4:$D$68,$A44,Res_MWh!BN$4:BN$68)/G_A!AZ$6 -> 60.65539792 | AX44: =SUMIF(Res_MWh!$D$4:$D$68,$A44,Res_MWh!BO$4:BO$68)/G_A!BA$6 -> 60.66353973 | AY44: =SUMIF(Res_MWh!$D$4:$D$68,$A44,Res_MWh!BP$4:BP$68)/G_A!BB$6 -> 60.49965118 | AZ44: =SUMIF(Res_MWh!$D$4:$D$68,$A44,Res_MWh!BQ$4:BQ$68)/G_A!BC$6 -> 60.67480967 | BA44: =SUMIF(Res_MWh!$D$4:$D$68,$A44,Res_MWh!BR$4:BR$68)/G_A!BD$6 -> 60.6278984 | BB44: =SUMIF(Res_MWh!$D$4:$D$68,$A44,Res_MWh!BS$4:BS$68)/G_A!BE$6 -> 60.64524093 | BC44: =SUMIF(Res_MWh!$D$4:$D$68,$A44,Res_MWh!BT$4:BT$68)/G_A!BF$6 -> 60.49965118 | BD44: =SUMIF(Res_MWh!$D$4:$D$68,$A44,Res_MWh!BU$4:BU$68)/G_A!BG$6 -> 60.71782022 | BE44: =SUMIF(Res_MWh!$D$4:$D$68,$A44,Res_MWh!BV$4:BV$68)/G_A!BH$6 -> 60.66540365 | BF44: =SUMIF(Res_MWh!$D$4:$D$68,$A44,Res_MWh!BW$4:BW$68)/G_A!BI$6 -> 60.64915786 | BG44: =SUMIF(Res_MWh!$D$4:$D$68,$A44,Res_MWh!BX$4:BX$68)/G_A!BJ$6 -> 60.48326659 | BH44: =SUMIF(Res_MWh!$D$4:$D$68,$A44,Res_MWh!BY$4:BY$68)/G_A!BK$6 -> 60.71782022 | BI44: =SUMIF(Res_MWh!$D$4:$D$68,$A44,Res_MWh!BZ$4:BZ$68)/G_A!BL$6 -> 60.66540365 | BK44: 0 | BL44: 60.49965118 | BM44: 60.71782022 | BN44: 60.66540365 | BO44: 60.66540365 | BP44: 60.49965118 | BQ44: 60.71782022 | BR44: 60.66540365 | BS44: 60.66540365 | BT44: 60.49965118 | BU44: 60.71782022 | BV44: 60.65539792 | BW44: 60.66353973 | BX44: 60.49965118 | BY44: 60.67480967 | BZ44: 60.6278984 | CA44: 60.64524093 | CB44: 60.49965118 | CC44: 60.71782022 | CD44: 60.66540365 | CE44: 60.64915786 | CF44: 60.48326659 | CG44: 60.71782022 | CH44: 60.66540365
A45: 126 | B45: NW Wind Off System | C45: 0 | D45: 0 | E45: 0 | F45: 0 | G45: 0 | H45: 0 | M45: =SUMIF(Res_MWh!$D$4:$D$68,$A45,Res_MWh!AD$4:AD$68)/G_A!P$6 -> 0 | N45: =SUMIF(Res_MWh!$D$4:$D$68,$A45,Res_MWh!AE$4:AE$68)/G_A!Q$6 -> 0 | O45: =SUMIF(Res_MWh!$D$4:$D$68,$A45,Res_MWh!AF$4:AF$68)/G_A!R$6 -> 0 | P45: =SUMIF(Res_MWh!$D$4:$D$68,$A45,Res_MWh!AG$4:AG$68)/G_A!S$6 -> 0 | Q45: =SUMIF(Res_MWh!$D$4:$D$68,$A45,Res_MWh!AH$4:AH$68)/G_A!T$6 -> 0 | R45: =SUMIF(Res_MWh!$D$4:$D$68,$A45,Res_MWh!AI$4:AI$68)/G_A!U$6 -> 0 | S45: =SUMIF(Res_MWh!$D$4:$D$68,$A45,Res_MWh!AJ$4:AJ$68)/G_A!V$6 -> 0 | T45: =SUMIF(Res_MWh!$D$4:$D$68,$A45,Res_MWh!AK$4:AK$68)/G_A!W$6 -> 0 | U45: =SUMIF(Res_MWh!$D$4:$D$68,$A45,Res_MWh!AL$4:AL$68)/G_A!X$6 -> 0 | V45: =SUMIF(Res_MWh!$D$4:$D$68,$A45,Res_MWh!AM$4:AM$68)/G_A!Y$6 -> 0 | W45: =SUMIF(Res_MWh!$D$4:$D$68,$A45,Res_MWh!AN$4:AN$68)/G_A!Z$6 -> 0 | X45: =SUMIF(Res_MWh!$D$4:$D$68,$A45,Res_MWh!AO$4:AO$68)/G_A!AA$6 -> 0 | Y45: =SUMIF(Res_MWh!$D$4:$D$68,$A45,Res_MWh!AP$4:AP$68)/G_A!AB$6 -> 0 | Z45: =SUMIF(Res_MWh!$D$4:$D$68,$A45,Res_MWh!AQ$4:AQ$68)/G_A!AC$6 -> 0 | AA45: =SUMIF(Res_MWh!$D$4:$D$68,$A45,Res_MWh!AR$4:AR$68)/G_A!AD$6 -> 0 | AB45: =SUMIF(Res_MWh!$D$4:$D$68,$A45,Res_MWh!AS$4:AS$68)/G_A!AE$6 -> 0 | AC45: =SUMIF(Res_MWh!$D$4:$D$68,$A45,Res_MWh!AT$4:AT$68)/G_A!AF$6 -> 0 | AD45: =SUMIF(Res_MWh!$D$4:$D$68,$A45,Res_MWh!AU$4:AU$68)/G_A!AG$6 -> 0 | AE45: =SUMIF(Res_MWh!$D$4:$D$68,$A45,Res_MWh!AV$4:AV$68)/G_A!AH$6 -> 0 | AF45: =SUMIF(Res_MWh!$D$4:$D$68,$A45,Res_MWh!AW$4:AW$68)/G_A!AI$6 -> 0 | AG45: =SUMIF(Res_MWh!$D$4:$D$68,$A45,Res_MWh!AX$4:AX$68)/G_A!AJ$6 -> 0 | AH45: =SUMIF(Res_MWh!$D$4:$D$68,$A45,Res_MWh!AY$4:AY$68)/G_A!AK$6 -> 0 | AI45: =SUMIF(Res_MWh!$D$4:$D$68,$A45,Res_MWh!AZ$4:AZ$68)/G_A!AL$6 -> 0 | AJ45: =SUMIF(Res_MWh!$D$4:$D$68,$A45,Res_MWh!BA$4:BA$68)/G_A!AM$6 -> 0 | AL45: =SUMIF(Res_MWh!$D$4:$D$68,$A45,Res_MWh!BC$4:BC$68)/G_A!AO$6 -> 0 | AM45: =SUMIF(Res_MWh!$D$4:$D$68,$A45,Res_MWh!BD$4:BD$68)/G_A!AP$6 -> 0 | AN45: =SUMIF(Res_MWh!$D$4:$D$68,$A45,Res_MWh!BE$4:BE$68)/G_A!AQ$6 -> 0 | AO45: =SUMIF(Res_MWh!$D$4:$D$68,$A45,Res_MWh!BF$4:BF$68)/G_A!AR$6 -> 0 | AP45: =SUMIF(Res_MWh!$D$4:$D$68,$A45,Res_MWh!BG$4:BG$68)/G_A!AS$6 -> 0 | AQ45: =SUMIF(Res_MWh!$D$4:$D$68,$A45,Res_MWh!BH$4:BH$68)/G_A!AT$6 -> 0 | AR45: =SUMIF(Res_MWh!$D$4:$D$68,$A45,Res_MWh!BI$4:BI$68)/G_A!AU$6 -> 0 | AS45: =SUMIF(Res_MWh!$D$4:$D$68,$A45,Res_MWh!BJ$4:BJ$68)/G_A!AV$6 -> 0 | AT45: =SUMIF(Res_MWh!$D$4:$D$68,$A45,Res_MWh!BK$4:BK$68)/G_A!AW$6 -> 0 | AU45: =SUMIF(Res_MWh!$D$4:$D$68,$A45,Res_MWh!BL$4:BL$68)/G_A!AX$6 -> 0 | AV45: =SUMIF(Res_MWh!$D$4:$D$68,$A45,Res_MWh!BM$4:BM$68)/G_A!AY$6 -> 0 | AW45: =SUMIF(Res_MWh!$D$4:$D$68,$A45,Res_MWh!BN$4:BN$68)/G_A!AZ$6 -> 0 | AX45: =SUMIF(Res_MWh!$D$4:$D$68,$A45,Res_MWh!BO$4:BO$68)/G_A!BA$6 -> 0 | AY45: =SUMIF(Res_MWh!$D$4:$D$68,$A45,Res_MWh!BP$4:BP$68)/G_A!BB$6 -> 0 | AZ45: =SUMIF(Res_MWh!$D$4:$D$68,$A45,Res_MWh!BQ$4:BQ$68)/G_A!BC$6 -> 0 | BA45: =SUMIF(Res_MWh!$D$4:$D$68,$A45,Res_MWh!BR$4:BR$68)/G_A!BD$6 -> 0 | BB45: =SUMIF(Res_MWh!$D$4:$D$68,$A45,Res_MWh!BS$4:BS$68)/G_A!BE$6 -> 0 | BC45: =SUMIF(Res_MWh!$D$4:$D$68,$A45,Res_MWh!BT$4:BT$68)/G_A!BF$6 -> 0 | BD45: =SUMIF(Res_MWh!$D$4:$D$68,$A45,Res_MWh!BU$4:BU$68)/G_A!BG$6 -> 0 | BE45: =SUMIF(Res_MWh!$D$4:$D$68,$A45,Res_MWh!BV$4:BV$68)/G_A!BH$6 -> 0 | BF45: =SUMIF(Res_MWh!$D$4:$D$68,$A45,Res_MWh!BW$4:BW$68)/G_A!BI$6 -> 0 | BG45: =SUMIF(Res_MWh!$D$4:$D$68,$A45,Res_MWh!BX$4:BX$68)/G_A!BJ$6 -> 0 | BH45: =SUMIF(Res_MWh!$D$4:$D$68,$A45,Res_MWh!BY$4:BY$68)/G_A!BK$6 -> 0 | BI45: =SUMIF(Res_MWh!$D$4:$D$68,$A45,Res_MWh!BZ$4:BZ$68)/G_A!BL$6 -> 0 | BK45: 0 | BL45: 0 | BM45: 0 | BN45: 0 | BO45: 0 | BP45: 0 | BQ45: 0 | BR45: 0 | BS45: 0 | BT45: 0 | BU45: 0 | BV45: 0 | BW45: 0 | BX45: 0 | BY45: 0 | BZ45: 0 | CA45: 0 | CB45: 0 | CC45: 0 | CD45: 0 | CE45: 0 | CF45: 0 | CG45: 0 | CH45: 0
A46: 127 | B46: Montana Wind 100-200 | C46: 48.50341018 | D46: 97.00682037 | E46: 97.00572508 | F46: 96.99799953 | G46: 96.99803855 | H46: 97.00509839 | M46: =SUMIF(Res_MWh!$D$4:$D$68,$A46,Res_MWh!AD$4:AD$68)/G_A!P$6 -> 0 | N46: =SUMIF(Res_MWh!$D$4:$D$68,$A46,Res_MWh!AE$4:AE$68)/G_A!Q$6 -> 48.50599315 | O46: =SUMIF(Res_MWh!$D$4:$D$68,$A46,Res_MWh!AF$4:AF$68)/G_A!R$6 -> 48.49566128 | P46: =SUMIF(Res_MWh!$D$4:$D$68,$A46,Res_MWh!AG$4:AG$68)/G_A!S$6 -> 97.0119863 | Q46: =SUMIF(Res_MWh!$D$4:$D$68,$A46,Res_MWh!AH$4:AH$68)/G_A!T$6 -> 97.0119863 | R46: =SUMIF(Res_MWh!$D$4:$D$68,$A46,Res_MWh!AI$4:AI$68)/G_A!U$6 -> 97.0119863 | S46: =SUMIF(Res_MWh!$D$4:$D$68,$A46,Res_MWh!AJ$4:AJ$68)/G_A!V$6 -> 96.99132256 | T46: =SUMIF(Res_MWh!$D$4:$D$68,$A46,Res_MWh!AK$4:AK$68)/G_A!W$6 -> 97.0119863 | U46: =SUMIF(Res_MWh!$D$4:$D$68,$A46,Res_MWh!AL$4:AL$68)/G_A!X$6 -> 97.0119863 | V46: =SUMIF(Res_MWh!$D$4:$D$68,$A46,Res_MWh!AM$4:AM$68)/G_A!Y$6 -> 97.0119863 | W46: =SUMIF(Res_MWh!$D$4:$D$68,$A46,Res_MWh!AN$4:AN$68)/G_A!Z$6 -> 96.99132256 | X46: =SUMIF(Res_MWh!$D$4:$D$68,$A46,Res_MWh!AO$4:AO$68)/G_A!AA$6 -> 97.00760515 | Y46: =SUMIF(Res_MWh!$D$4:$D$68,$A46,Res_MWh!AP$4:AP$68)/G_A!AB$6 -> 96.99845266 | Z46: =SUMIF(Res_MWh!$D$4:$D$68,$A46,Res_MWh!AQ$4:AQ$68)/G_A!AC$6 -> 97.01082691 | AA46: =SUMIF(Res_MWh!$D$4:$D$68,$A46,Res_MWh!AR$4:AR$68)/G_A!AD$6 -> 96.99132256 | AB46: =SUMIF(Res_MWh!$D$4:$D$68,$A46,Res_MWh!AS$4:AS$68)/G_A!AE$6 -> 96.99139599 | AC46: =SUMIF(Res_MWh!$D$4:$D$68,$A46,Res_MWh!AT$4:AT$68)/G_A!AF$6 -> 96.98214318 | AD46: =SUMIF(Res_MWh!$D$4:$D$68,$A46,Res_MWh!AU$4:AU$68)/G_A!AG$6 -> 97.0119863 | AE46: =SUMIF(Res_MWh!$D$4:$D$68,$A46,Res_MWh!AV$4:AV$68)/G_A!AH$6 -> 96.99132256 | AF46: =SUMIF(Res_MWh!$D$4:$D$68,$A46,Res_MWh!AW$4:AW$68)/G_A!AI$6 -> 97.00670216 | AG46: =SUMIF(Res_MWh!$D$4:$D$68,$A46,Res_MWh!AX$4:AX$68)/G_A!AJ$6 -> 97.0119863 | AH46: =SUMIF(Res_MWh!$D$4:$D$68,$A46,Res_MWh!AY$4:AY$68)/G_A!AK$6 -> 97.0119863 | AI46: =SUMIF(Res_MWh!$D$4:$D$68,$A46,Res_MWh!AZ$4:AZ$68)/G_A!AL$6 -> 96.99132256 | AJ46: =SUMIF(Res_MWh!$D$4:$D$68,$A46,Res_MWh!BA$4:BA$68)/G_A!AM$6 -> 96.99115074 | AL46: =SUMIF(Res_MWh!$D$4:$D$68,$A46,Res_MWh!BC$4:BC$68)/G_A!AO$6 -> 0 | AM46: =SUMIF(Res_MWh!$D$4:$D$68,$A46,Res_MWh!BD$4:BD$68)/G_A!AP$6 -> 0 | AN46: =SUMIF(Res_MWh!$D$4:$D$68,$A46,Res_MWh!BE$4:BE$68)/G_A!AQ$6 -> 0 | AO46: =SUMIF(Res_MWh!$D$4:$D$68,$A46,Res_MWh!BF$4:BF$68)/G_A!AR$6 -> 0 | AP46: =SUMIF(Res_MWh!$D$4:$D$68,$A46,Res_MWh!BG$4:BG$68)/G_A!AS$6 -> 0 | AQ46: =SUMIF(Res_MWh!$D$4:$D$68,$A46,Res_MWh!BH$4:BH$68)/G_A!AT$6 -> 0 | AR46: =SUMIF(Res_MWh!$D$4:$D$68,$A46,Res_MWh!BI$4:BI$68)/G_A!AU$6 -> 0 | AS46: =SUMIF(Res_MWh!$D$4:$D$68,$A46,Res_MWh!BJ$4:BJ$68)/G_A!AV$6 -> 0 | AT46: =SUMIF(Res_MWh!$D$4:$D$68,$A46,Res_MWh!BK$4:BK$68)/G_A!AW$6 -> 0 | AU46: =SUMIF(Res_MWh!$D$4:$D$68,$A46,Res_MWh!BL$4:BL$68)/G_A!AX$6 -> 0 | AV46: =SUMIF(Res_MWh!$D$4:$D$68,$A46,Res_MWh!BM$4:BM$68)/G_A!AY$6 -> 0 | AW46: =SUMIF(Res_MWh!$D$4:$D$68,$A46,Res_MWh!BN$4:BN$68)/G_A!AZ$6 -> 0 | AX46: =SUMIF(Res_MWh!$D$4:$D$68,$A46,Res_MWh!BO$4:BO$68)/G_A!BA$6 -> 0 | AY46: =SUMIF(Res_MWh!$D$4:$D$68,$A46,Res_MWh!BP$4:BP$68)/G_A!BB$6 -> 0 | AZ46: =SUMIF(Res_MWh!$D$4:$D$68,$A46,Res_MWh!BQ$4:BQ$68)/G_A!BC$6 -> 0 | BA46: =SUMIF(Res_MWh!$D$4:$D$68,$A46,Res_MWh!BR$4:BR$68)/G_A!BD$6 -> 0 | BB46: =SUMIF(Res_MWh!$D$4:$D$68,$A46,Res_MWh!BS$4:BS$68)/G_A!BE$6 -> 0 | BC46: =SUMIF(Res_MWh!$D$4:$D$68,$A46,Res_MWh!BT$4:BT$68)/G_A!BF$6 -> 0 | BD46: =SUMIF(Res_MWh!$D$4:$D$68,$A46,Res_MWh!BU$4:BU$68)/G_A!BG$6 -> 0 | BE46: =SUMIF(Res_MWh!$D$4:$D$68,$A46,Res_MWh!BV$4:BV$68)/G_A!BH$6 -> 0 | BF46: =SUMIF(Res_MWh!$D$4:$D$68,$A46,Res_MWh!BW$4:BW$68)/G_A!BI$6 -> 0 | BG46: =SUMIF(Res_MWh!$D$4:$D$68,$A46,Res_MWh!BX$4:BX$68)/G_A!BJ$6 -> 0 | BH46: =SUMIF(Res_MWh!$D$4:$D$68,$A46,Res_MWh!BY$4:BY$68)/G_A!BK$6 -> 0 | BI46: =SUMIF(Res_MWh!$D$4:$D$68,$A46,Res_MWh!BZ$4:BZ$68)/G_A!BL$6 -> 0 | BK46: 0 | BL46: 48.50599315 | BM46: 48.49566128 | BN46: 97.0119863 | BO46: 97.0119863 | BP46: 97.0119863 | BQ46: 96.99132256 | BR46: 97.0119863 | BS46: 97.0119863 | BT46: 97.0119863 | BU46: 96.99132256 | BV46: 97.00760515 | BW46: 96.99845266 | BX46: 97.01082691 | BY46: 96.99132256 | BZ46: 96.99139599 | CA46: 96.98214318 | CB46: 97.0119863 | CC46: 96.99132256 | CD46: 97.00670216 | CE46: 97.0119863 | CF46: 97.0119863 | CG46: 96.99132256 | CH46: 96.99115074
A47: 128 | B47: Montana Wind 300 | C47: 0 | D47: 36.3769119 | E47: 48.50286254 | F47: 48.49899977 | G47: 48.49901927 | H47: 48.50254919 | M47: =SUMIF(Res_MWh!$D$4:$D$68,$A47,Res_MWh!AD$4:AD$68)/G_A!P$6 -> 0 | N47: =SUMIF(Res_MWh!$D$4:$D$68,$A47,Res_MWh!AE$4:AE$68)/G_A!Q$6 -> 0 | O47: =SUMIF(Res_MWh!$D$4:$D$68,$A47,Res_MWh!AF$4:AF$68)/G_A!R$6 -> 0 | P47: =SUMIF(Res_MWh!$D$4:$D$68,$A47,Res_MWh!AG$4:AG$68)/G_A!S$6 -> 0 | Q47: =SUMIF(Res_MWh!$D$4:$D$68,$A47,Res_MWh!AH$4:AH$68)/G_A!T$6 -> 0 | R47: =SUMIF(Res_MWh!$D$4:$D$68,$A47,Res_MWh!AI$4:AI$68)/G_A!U$6 -> 48.50599315 | S47: =SUMIF(Res_MWh!$D$4:$D$68,$A47,Res_MWh!AJ$4:AJ$68)/G_A!V$6 -> 48.49566128 | T47: =SUMIF(Res_MWh!$D$4:$D$68,$A47,Res_MWh!AK$4:AK$68)/G_A!W$6 -> 48.50599315 | U47: =SUMIF(Res_MWh!$D$4:$D$68,$A47,Res_MWh!AL$4:AL$68)/G_A!X$6 -> 48.50599315 | V47: =SUMIF(Res_MWh!$D$4:$D$68,$A47,Res_MWh!AM$4:AM$68)/G_A!Y$6 -> 48.50599315 | W47: =SUMIF(Res_MWh!$D$4:$D$68,$A47,Res_MWh!AN$4:AN$68)/G_A!Z$6 -> 48.49566128 | X47: =SUMIF(Res_MWh!$D$4:$D$68,$A47,Res_MWh!AO$4:AO$68)/G_A!AA$6 -> 48.50380257 | Y47: =SUMIF(Res_MWh!$D$4:$D$68,$A47,Res_MWh!AP$4:AP$68)/G_A!AB$6 -> 48.49922633 | Z47: =SUMIF(Res_MWh!$D$4:$D$68,$A47,Res_MWh!AQ$4:AQ$68)/G_A!AC$6 -> 48.50541346 | AA47: =SUMIF(Res_MWh!$D$4:$D$68,$A47,Res_MWh!AR$4:AR$68)/G_A!AD$6 -> 48.49566128 | AB47: =SUMIF(Res_MWh!$D$4:$D$68,$A47,Res_MWh!AS$4:AS$68)/G_A!AE$6 -> 48.495698 | AC47: =SUMIF(Res_MWh!$D$4:$D$68,$A47,Res_MWh!AT$4:AT$68)/G_A!AF$6 -> 48.49107159 | AD47: =SUMIF(Res_MWh!$D$4:$D$68,$A47,Res_MWh!AU$4:AU$68)/G_A!AG$6 -> 48.50599315 | AE47: =SUMIF(Res_MWh!$D$4:$D$68,$A47,Res_MWh!AV$4:AV$68)/G_A!AH$6 -> 48.49566128 | AF47: =SUMIF(Res_MWh!$D$4:$D$68,$A47,Res_MWh!AW$4:AW$68)/G_A!AI$6 -> 48.50335108 | AG47: =SUMIF(Res_MWh!$D$4:$D$68,$A47,Res_MWh!AX$4:AX$68)/G_A!AJ$6 -> 48.50599315 | AH47: =SUMIF(Res_MWh!$D$4:$D$68,$A47,Res_MWh!AY$4:AY$68)/G_A!AK$6 -> 48.50599315 | AI47: =SUMIF(Res_MWh!$D$4:$D$68,$A47,Res_MWh!AZ$4:AZ$68)/G_A!AL$6 -> 48.49566128 | AJ47: =SUMIF(Res_MWh!$D$4:$D$68,$A47,Res_MWh!BA$4:BA$68)/G_A!AM$6 -> 48.49557537 | AL47: =SUMIF(Res_MWh!$D$4:$D$68,$A47,Res_MWh!BC$4:BC$68)/G_A!AO$6 -> 0 | AM47: =SUMIF(Res_MWh!$D$4:$D$68,$A47,Res_MWh!BD$4:BD$68)/G_A!AP$6 -> 0 | AN47: =SUMIF(Res_MWh!$D$4:$D$68,$A47,Res_MWh!BE$4:BE$68)/G_A!AQ$6 -> 0 | AO47: =SUMIF(Res_MWh!$D$4:$D$68,$A47,Res_MWh!BF$4:BF$68)/G_A!AR$6 -> 0 | AP47: =SUMIF(Res_MWh!$D$4:$D$68,$A47,Res_MWh!BG$4:BG$68)/G_A!AS$6 -> 0 | AQ47: =SUMIF(Res_MWh!$D$4:$D$68,$A47,Res_MWh!BH$4:BH$68)/G_A!AT$6 -> 0 | AR47: =SUMIF(Res_MWh!$D$4:$D$68,$A47,Res_MWh!BI$4:BI$68)/G_A!AU$6 -> 0 | AS47: =SUMIF(Res_MWh!$D$4:$D$68,$A47,Res_MWh!BJ$4:BJ$68)/G_A!AV$6 -> 0 | AT47: =SUMIF(Res_MWh!$D$4:$D$68,$A47,Res_MWh!BK$4:BK$68)/G_A!AW$6 -> 0 | AU47: =SUMIF(Res_MWh!$D$4:$D$68,$A47,Res_MWh!BL$4:BL$68)/G_A!AX$6 -> 0 | AV47: =SUMIF(Res_MWh!$D$4:$D$68,$A47,Res_MWh!BM$4:BM$68)/G_A!AY$6 -> 0 | AW47: =SUMIF(Res_MWh!$D$4:$D$68,$A47,Res_MWh!BN$4:BN$68)/G_A!AZ$6 -> 0 | AX47: =SUMIF(Res_MWh!$D$4:$D$68,$A47,Res_MWh!BO$4:BO$68)/G_A!BA$6 -> 0 | AY47: =SUMIF(Res_MWh!$D$4:$D$68,$A47,Res_MWh!BP$4:BP$68)/G_A!BB$6 -> 0 | AZ47: =SUMIF(Res_MWh!$D$4:$D$68,$A47,Res_MWh!BQ$4:BQ$68)/G_A!BC$6 -> 0 | BA47: =SUMIF(Res_MWh!$D$4:$D$68,$A47,Res_MWh!BR$4:BR$68)/G_A!BD$6 -> 0 | BB47: =SUMIF(Res_MWh!$D$4:$D$68,$A47,Res_MWh!BS$4:BS$68)/G_A!BE$6 -> 0 | BC47: =SUMIF(Res_MWh!$D$4:$D$68,$A47,Res_MWh!BT$4:BT$68)/G_A!BF$6 -> 0 | BD47: =SUMIF(Res_MWh!$D$4:$D$68,$A47,Res_MWh!BU$4:BU$68)/G_A!BG$6 -> 0 | BE47: =SUMIF(Res_MWh!$D$4:$D$68,$A47,Res_MWh!BV$4:BV$68)/G_A!BH$6 -> 0 | BF47: =SUMIF(Res_MWh!$D$4:$D$68,$A47,Res_MWh!BW$4:BW$68)/G_A!BI$6 -> 0 | BG47: =SUMIF(Res_MWh!$D$4:$D$68,$A47,Res_MWh!BX$4:BX$68)/G_A!BJ$6 -> 0 | BH47: =SUMIF(Res_MWh!$D$4:$D$68,$A47,Res_MWh!BY$4:BY$68)/G_A!BK$6 -> 0 | BI47: =SUMIF(Res_MWh!$D$4:$D$68,$A47,Res_MWh!BZ$4:BZ$68)/G_A!BL$6 -> 0 | BK47: 0 | BL47: 0 | BM47: 0 | BN47: 0 | BO47: 0 | BP47: 48.50599315 | BQ47: 48.49566128 | BR47: 48.50599315 | BS47: 48.50599315 | BT47: 48.50599315 | BU47: 48.49566128 | BV47: 48.50380257 | BW47: 48.49922633 | BX47: 48.50541346 | BY47: 48.49566128 | BZ47: 48.495698 | CA47: 48.49107159 | CB47: 48.50599315 | CC47: 48.49566128 | CD47: 48.50335108 | CE47: 48.50599315 | CF47: 48.50599315 | CG47: 48.49566128 | CH47: 48.49557537
A48: 129 | B48: Montana Wind 400 | C48: 0 | D48: 36.3769119 | E48: 48.50286254 | F48: 48.49899977 | G48: 48.49901927 | H48: 48.50254919 | M48: =SUMIF(Res_MWh!$D$4:$D$68,$A48,Res_MWh!AD$4:AD$68)/G_A!P$6 -> 0 | N48: =SUMIF(Res_MWh!$D$4:$D$68,$A48,Res_MWh!AE$4:AE$68)/G_A!Q$6 -> 0 | O48: =SUMIF(Res_MWh!$D$4:$D$68,$A48,Res_MWh!AF$4:AF$68)/G_A!R$6 -> 0 | P48: =SUMIF(Res_MWh!$D$4:$D$68,$A48,Res_MWh!AG$4:AG$68)/G_A!S$6 -> 0 | Q48: =SUMIF(Res_MWh!$D$4:$D$68,$A48,Res_MWh!AH$4:AH$68)/G_A!T$6 -> 0 | R48: =SUMIF(Res_MWh!$D$4:$D$68,$A48,Res_MWh!AI$4:AI$68)/G_A!U$6 -> 48.50599315 | S48: =SUMIF(Res_MWh!$D$4:$D$68,$A48,Res_MWh!AJ$4:AJ$68)/G_A!V$6 -> 48.49566128 | T48: =SUMIF(Res_MWh!$D$4:$D$68,$A48,Res_MWh!AK$4:AK$68)/G_A!W$6 -> 48.50599315 | U48: =SUMIF(Res_MWh!$D$4:$D$68,$A48,Res_MWh!AL$4:AL$68)/G_A!X$6 -> 48.50599315 | V48: =SUMIF(Res_MWh!$D$4:$D$68,$A48,Res_MWh!AM$4:AM$68)/G_A!Y$6 -> 48.50599315 | W48: =SUMIF(Res_MWh!$D$4:$D$68,$A48,Res_MWh!AN$4:AN$68)/G_A!Z$6 -> 48.49566128 | X48: =SUMIF(Res_MWh!$D$4:$D$68,$A48,Res_MWh!AO$4:AO$68)/G_A!AA$6 -> 48.50380257 | Y48: =SUMIF(Res_MWh!$D$4:$D$68,$A48,Res_MWh!AP$4:AP$68)/G_A!AB$6 -> 48.49922633 | Z48: =SUMIF(Res_MWh!$D$4:$D$68,$A48,Res_MWh!AQ$4:AQ$68)/G_A!AC$6 -> 48.50541346 | AA48: =SUMIF(Res_MWh!$D$4:$D$68,$A48,Res_MWh!AR$4:AR$68)/G_A!AD$6 -> 48.49566128 | AB48: =SUMIF(Res_MWh!$D$4:$D$68,$A48,Res_MWh!AS$4:AS$68)/G_A!AE$6 -> 48.495698 | AC48: =SUMIF(Res_MWh!$D$4:$D$68,$A48,Res_MWh!AT$4:AT$68)/G_A!AF$6 -> 48.49107159 | AD48: =SUMIF(Res_MWh!$D$4:$D$68,$A48,Res_MWh!AU$4:AU$68)/G_A!AG$6 -> 48.50599315 | AE48: =SUMIF(Res_MWh!$D$4:$D$68,$A48,Res_MWh!AV$4:AV$68)/G_A!AH$6 -> 48.49566128 | AF48: =SUMIF(Res_MWh!$D$4:$D$68,$A48,Res_MWh!AW$4:AW$68)/G_A!AI$6 -> 48.50335108 | AG48: =SUMIF(Res_MWh!$D$4:$D$68,$A48,Res_MWh!AX$4:AX$68)/G_A!AJ$6 -> 48.50599315 | AH48: =SUMIF(Res_MWh!$D$4:$D$68,$A48,Res_MWh!AY$4:AY$68)/G_A!AK$6 -> 48.50599315 | AI48: =SUMIF(Res_MWh!$D$4:$D$68,$A48,Res_MWh!AZ$4:AZ$68)/G_A!AL$6 -> 48.49566128 | AJ48: =SUMIF(Res_MWh!$D$4:$D$68,$A48,Res_MWh!BA$4:BA$68)/G_A!AM$6 -> 48.49557537 | AL48: =SUMIF(Res_MWh!$D$4:$D$68,$A48,Res_MWh!BC$4:BC$68)/G_A!AO$6 -> 0 | AM48: =SUMIF(Res_MWh!$D$4:$D$68,$A48,Res_MWh!BD$4:BD$68)/G_A!AP$6 -> 0 | AN48: =SUMIF(Res_MWh!$D$4:$D$68,$A48,Res_MWh!BE$4:BE$68)/G_A!AQ$6 -> 0 | AO48: =SUMIF(Res_MWh!$D$4:$D$68,$A48,Res_MWh!BF$4:BF$68)/G_A!AR$6 -> 0 | AP48: =SUMIF(Res_MWh!$D$4:$D$68,$A48,Res_MWh!BG$4:BG$68)/G_A!AS$6 -> 0 | AQ48: =SUMIF(Res_MWh!$D$4:$D$68,$A48,Res_MWh!BH$4:BH$68)/G_A!AT$6 -> 0 | AR48: =SUMIF(Res_MWh!$D$4:$D$68,$A48,Res_MWh!BI$4:BI$68)/G_A!AU$6 -> 0 | AS48: =SUMIF(Res_MWh!$D$4:$D$68,$A48,Res_MWh!BJ$4:BJ$68)/G_A!AV$6 -> 0 | AT48: =SUMIF(Res_MWh!$D$4:$D$68,$A48,Res_MWh!BK$4:BK$68)/G_A!AW$6 -> 0 | AU48: =SUMIF(Res_MWh!$D$4:$D$68,$A48,Res_MWh!BL$4:BL$68)/G_A!AX$6 -> 0 | AV48: =SUMIF(Res_MWh!$D$4:$D$68,$A48,Res_MWh!BM$4:BM$68)/G_A!AY$6 -> 0 | AW48: =SUMIF(Res_MWh!$D$4:$D$68,$A48,Res_MWh!BN$4:BN$68)/G_A!AZ$6 -> 0 | AX48: =SUMIF(Res_MWh!$D$4:$D$68,$A48,Res_MWh!BO$4:BO$68)/G_A!BA$6 -> 0 | AY48: =SUMIF(Res_MWh!$D$4:$D$68,$A48,Res_MWh!BP$4:BP$68)/G_A!BB$6 -> 0 | AZ48: =SUMIF(Res_MWh!$D$4:$D$68,$A48,Res_MWh!BQ$4:BQ$68)/G_A!BC$6 -> 0 | BA48: =SUMIF(Res_MWh!$D$4:$D$68,$A48,Res_MWh!BR$4:BR$68)/G_A!BD$6 -> 0 | BB48: =SUMIF(Res_MWh!$D$4:$D$68,$A48,Res_MWh!BS$4:BS$68)/G_A!BE$6 -> 0 | BC48: =SUMIF(Res_MWh!$D$4:$D$68,$A48,Res_MWh!BT$4:BT$68)/G_A!BF$6 -> 0 | BD48: =SUMIF(Res_MWh!$D$4:$D$68,$A48,Res_MWh!BU$4:BU$68)/G_A!BG$6 -> 0 | BE48: =SUMIF(Res_MWh!$D$4:$D$68,$A48,Res_MWh!BV$4:BV$68)/G_A!BH$6 -> 0 | BF48: =SUMIF(Res_MWh!$D$4:$D$68,$A48,Res_MWh!BW$4:BW$68)/G_A!BI$6 -> 0 | BG48: =SUMIF(Res_MWh!$D$4:$D$68,$A48,Res_MWh!BX$4:BX$68)/G_A!BJ$6 -> 0 | BH48: =SUMIF(Res_MWh!$D$4:$D$68,$A48,Res_MWh!BY$4:BY$68)/G_A!BK$6 -> 0 | BI48: =SUMIF(Res_MWh!$D$4:$D$68,$A48,Res_MWh!BZ$4:BZ$68)/G_A!BL$6 -> 0 | BK48: 0 | BL48: 0 | BM48: 0 | BN48: 0 | BO48: 0 | BP48: 48.50599315 | BQ48: 48.49566128 | BR48: 48.50599315 | BS48: 48.50599315 | BT48: 48.50599315 | BU48: 48.49566128 | BV48: 48.50380257 | BW48: 48.49922633 | BX48: 48.50541346 | BY48: 48.49566128 | BZ48: 48.495698 | CA48: 48.49107159 | CB48: 48.50599315 | CC48: 48.49566128 | CD48: 48.50335108 | CE48: 48.50599315 | CF48: 48.50599315 | CG48: 48.49566128 | CH48: 48.49557537
A49: 144 | B49: Hydrogen Gas Turbine with 40 Hrs Storage | C49: 0 | D49: 0 | E49: 0 | F49: 0 | G49: 0 | H49: 0 | M49: =SUMIF(Res_MWh!$D$4:$D$68,$A49,Res_MWh!AD$4:AD$68)/G_A!P$6 -> 0 | N49: =SUMIF(Res_MWh!$D$4:$D$68,$A49,Res_MWh!AE$4:AE$68)/G_A!Q$6 -> 0 | O49: =SUMIF(Res_MWh!$D$4:$D$68,$A49,Res_MWh!AF$4:AF$68)/G_A!R$6 -> 0 | P49: =SUMIF(Res_MWh!$D$4:$D$68,$A49,Res_MWh!AG$4:AG$68)/G_A!S$6 -> 0 | Q49: =SUMIF(Res_MWh!$D$4:$D$68,$A49,Res_MWh!AH$4:AH$68)/G_A!T$6 -> 0 | R49: =SUMIF(Res_MWh!$D$4:$D$68,$A49,Res_MWh!AI$4:AI$68)/G_A!U$6 -> 0 | S49: =SUMIF(Res_MWh!$D$4:$D$68,$A49,Res_MWh!AJ$4:AJ$68)/G_A!V$6 -> 0 | T49: =SUMIF(Res_MWh!$D$4:$D$68,$A49,Res_MWh!AK$4:AK$68)/G_A!W$6 -> 0 | U49: =SUMIF(Res_MWh!$D$4:$D$68,$A49,Res_MWh!AL$4:AL$68)/G_A!X$6 -> 0 | V49: =SUMIF(Res_MWh!$D$4:$D$68,$A49,Res_MWh!AM$4:AM$68)/G_A!Y$6 -> 0 | W49: =SUMIF(Res_MWh!$D$4:$D$68,$A49,Res_MWh!AN$4:AN$68)/G_A!Z$6 -> 0 | X49: =SUMIF(Res_MWh!$D$4:$D$68,$A49,Res_MWh!AO$4:AO$68)/G_A!AA$6 -> 0 | Y49: =SUMIF(Res_MWh!$D$4:$D$68,$A49,Res_MWh!AP$4:AP$68)/G_A!AB$6 -> 0 | Z49: =SUMIF(Res_MWh!$D$4:$D$68,$A49,Res_MWh!AQ$4:AQ$68)/G_A!AC$6 -> 0 | AA49: =SUMIF(Res_MWh!$D$4:$D$68,$A49,Res_MWh!AR$4:AR$68)/G_A!AD$6 -> 0 | AB49: =SUMIF(Res_MWh!$D$4:$D$68,$A49,Res_MWh!AS$4:AS$68)/G_A!AE$6 -> 0 | AC49: =SUMIF(Res_MWh!$D$4:$D$68,$A49,Res_MWh!AT$4:AT$68)/G_A!AF$6 -> 0 | AD49: =SUMIF(Res_MWh!$D$4:$D$68,$A49,Res_MWh!AU$4:AU$68)/G_A!AG$6 -> 0 | AE49: =SUMIF(Res_MWh!$D$4:$D$68,$A49,Res_MWh!AV$4:AV$68)/G_A!AH$6 -> 0 | AF49: =SUMIF(Res_MWh!$D$4:$D$68,$A49,Res_MWh!AW$4:AW$68)/G_A!AI$6 -> 0 | AG49: =SUMIF(Res_MWh!$D$4:$D$68,$A49,Res_MWh!AX$4:AX$68)/G_A!AJ$6 -> 0 | AH49: =SUMIF(Res_MWh!$D$4:$D$68,$A49,Res_MWh!AY$4:AY$68)/G_A!AK$6 -> 0 | AI49: =SUMIF(Res_MWh!$D$4:$D$68,$A49,Res_MWh!AZ$4:AZ$68)/G_A!AL$6 -> 0 | AJ49: =SUMIF(Res_MWh!$D$4:$D$68,$A49,Res_MWh!BA$4:BA$68)/G_A!AM$6 -> 0 | AL49: =SUMIF(Res_MWh!$D$4:$D$68,$A49,Res_MWh!BC$4:BC$68)/G_A!AO$6 -> 0 | AM49: =SUMIF(Res_MWh!$D$4:$D$68,$A49,Res_MWh!BD$4:BD$68)/G_A!AP$6 -> 0 | AN49: =SUMIF(Res_MWh!$D$4:$D$68,$A49,Res_MWh!BE$4:BE$68)/G_A!AQ$6 -> 0 | AO49: =SUMIF(Res_MWh!$D$4:$D$68,$A49,Res_MWh!BF$4:BF$68)/G_A!AR$6 -> 0 | AP49: =SUMIF(Res_MWh!$D$4:$D$68,$A49,Res_MWh!BG$4:BG$68)/G_A!AS$6 -> 0 | AQ49: =SUMIF(Res_MWh!$D$4:$D$68,$A49,Res_MWh!BH$4:BH$68)/G_A!AT$6 -> 0 | AR49: =SUMIF(Res_MWh!$D$4:$D$68,$A49,Res_MWh!BI$4:BI$68)/G_A!AU$6 -> 0 | AS49: =SUMIF(Res_MWh!$D$4:$D$68,$A49,Res_MWh!BJ$4:BJ$68)/G_A!AV$6 -> 0 | AT49: =SUMIF(Res_MWh!$D$4:$D$68,$A49,Res_MWh!BK$4:BK$68)/G_A!AW$6 -> 0 | AU49: =SUMIF(Res_MWh!$D$4:$D$68,$A49,Res_MWh!BL$4:BL$68)/G_A!AX$6 -> 0 | AV49: =SUMIF(Res_MWh!$D$4:$D$68,$A49,Res_MWh!BM$4:BM$68)/G_A!AY$6 -> 0 | AW49: =SUMIF(Res_MWh!$D$4:$D$68,$A49,Res_MWh!BN$4:BN$68)/G_A!AZ$6 -> 0 | AX49: =SUMIF(Res_MWh!$D$4:$D$68,$A49,Res_MWh!BO$4:BO$68)/G_A!BA$6 -> 0 | AY49: =SUMIF(Res_MWh!$D$4:$D$68,$A49,Res_MWh!BP$4:BP$68)/G_A!BB$6 -> 0 | AZ49: =SUMIF(Res_MWh!$D$4:$D$68,$A49,Res_MWh!BQ$4:BQ$68)/G_A!BC$6 -> 0 | BA49: =SUMIF(Res_MWh!$D$4:$D$68,$A49,Res_MWh!BR$4:BR$68)/G_A!BD$6 -> 0 | BB49: =SUMIF(Res_MWh!$D$4:$D$68,$A49,Res_MWh!BS$4:BS$68)/G_A!BE$6 -> 0 | BC49: =SUMIF(Res_MWh!$D$4:$D$68,$A49,Res_MWh!BT$4:BT$68)/G_A!BF$6 -> 0 | BD49: =SUMIF(Res_MWh!$D$4:$D$68,$A49,Res_MWh!BU$4:BU$68)/G_A!BG$6 -> 0 | BE49: =SUMIF(Res_MWh!$D$4:$D$68,$A49,Res_MWh!BV$4:BV$68)/G_A!BH$6 -> 0 | BF49: =SUMIF(Res_MWh!$D$4:$D$68,$A49,Res_MWh!BW$4:BW$68)/G_A!BI$6 -> 0 | BG49: =SUMIF(Res_MWh!$D$4:$D$68,$A49,Res_MWh!BX$4:BX$68)/G_A!BJ$6 -> 0 | BH49: =SUMIF(Res_MWh!$D$4:$D$68,$A49,Res_MWh!BY$4:BY$68)/G_A!BK$6 -> 0 | BI49: =SUMIF(Res_MWh!$D$4:$D$68,$A49,Res_MWh!BZ$4:BZ$68)/G_A!BL$6 -> 0 | BK49: 0 | BL49: 0 | BM49: 0 | BN49: 0 | BO49: 0 | BP49: 0 | BQ49: 0 | BR49: 0 | BS49: 0 | BT49: 0 | BU49: 0 | BV49: 0 | BW49: 0 | BX49: 0 | BY49: 0 | BZ49: 0 | CA49: 0 | CB49: 0 | CC49: 0 | CD49: 0 | CE49: 0 | CF49: 0 | CG49: 0 | CH49: 0
A50: 145 | B50: Hydrogen Fuel Cell with 40 Hrs Storage | C50: 0 | D50: 0 | E50: 0 | F50: 0 | G50: 0 | H50: 0 | M50: =SUMIF(Res_MWh!$D$4:$D$68,$A50,Res_MWh!AD$4:AD$68)/G_A!P$6 -> 0 | N50: =SUMIF(Res_MWh!$D$4:$D$68,$A50,Res_MWh!AE$4:AE$68)/G_A!Q$6 -> 0 | O50: =SUMIF(Res_MWh!$D$4:$D$68,$A50,Res_MWh!AF$4:AF$68)/G_A!R$6 -> 0 | P50: =SUMIF(Res_MWh!$D$4:$D$68,$A50,Res_MWh!AG$4:AG$68)/G_A!S$6 -> 0 | Q50: =SUMIF(Res_MWh!$D$4:$D$68,$A50,Res_MWh!AH$4:AH$68)/G_A!T$6 -> 0 | R50: =SUMIF(Res_MWh!$D$4:$D$68,$A50,Res_MWh!AI$4:AI$68)/G_A!U$6 -> 0 | S50: =SUMIF(Res_MWh!$D$4:$D$68,$A50,Res_MWh!AJ$4:AJ$68)/G_A!V$6 -> 0 | T50: =SUMIF(Res_MWh!$D$4:$D$68,$A50,Res_MWh!AK$4:AK$68)/G_A!W$6 -> 0 | U50: =SUMIF(Res_MWh!$D$4:$D$68,$A50,Res_MWh!AL$4:AL$68)/G_A!X$6 -> 0 | V50: =SUMIF(Res_MWh!$D$4:$D$68,$A50,Res_MWh!AM$4:AM$68)/G_A!Y$6 -> 0 | W50: =SUMIF(Res_MWh!$D$4:$D$68,$A50,Res_MWh!AN$4:AN$68)/G_A!Z$6 -> 0 | X50: =SUMIF(Res_MWh!$D$4:$D$68,$A50,Res_MWh!AO$4:AO$68)/G_A!AA$6 -> 0 | Y50: =SUMIF(Res_MWh!$D$4:$D$68,$A50,Res_MWh!AP$4:AP$68)/G_A!AB$6 -> 0 | Z50: =SUMIF(Res_MWh!$D$4:$D$68,$A50,Res_MWh!AQ$4:AQ$68)/G_A!AC$6 -> 0 | AA50: =SUMIF(Res_MWh!$D$4:$D$68,$A50,Res_MWh!AR$4:AR$68)/G_A!AD$6 -> 0 | AB50: =SUMIF(Res_MWh!$D$4:$D$68,$A50,Res_MWh!AS$4:AS$68)/G_A!AE$6 -> 0 | AC50: =SUMIF(Res_MWh!$D$4:$D$68,$A50,Res_MWh!AT$4:AT$68)/G_A!AF$6 -> 0 | AD50: =SUMIF(Res_MWh!$D$4:$D$68,$A50,Res_MWh!AU$4:AU$68)/G_A!AG$6 -> 0 | AE50: =SUMIF(Res_MWh!$D$4:$D$68,$A50,Res_MWh!AV$4:AV$68)/G_A!AH$6 -> 0 | AF50: =SUMIF(Res_MWh!$D$4:$D$68,$A50,Res_MWh!AW$4:AW$68)/G_A!AI$6 -> 0 | AG50: =SUMIF(Res_MWh!$D$4:$D$68,$A50,Res_MWh!AX$4:AX$68)/G_A!AJ$6 -> 0 | AH50: =SUMIF(Res_MWh!$D$4:$D$68,$A50,Res_MWh!AY$4:AY$68)/G_A!AK$6 -> 0 | AI50: =SUMIF(Res_MWh!$D$4:$D$68,$A50,Res_MWh!AZ$4:AZ$68)/G_A!AL$6 -> 0 | AJ50: =SUMIF(Res_MWh!$D$4:$D$68,$A50,Res_MWh!BA$4:BA$68)/G_A!AM$6 -> 0 | AL50: =SUMIF(Res_MWh!$D$4:$D$68,$A50,Res_MWh!BC$4:BC$68)/G_A!AO$6 -> 0 | AM50: =SUMIF(Res_MWh!$D$4:$D$68,$A50,Res_MWh!BD$4:BD$68)/G_A!AP$6 -> 0 | AN50: =SUMIF(Res_MWh!$D$4:$D$68,$A50,Res_MWh!BE$4:BE$68)/G_A!AQ$6 -> 0 | AO50: =SUMIF(Res_MWh!$D$4:$D$68,$A50,Res_MWh!BF$4:BF$68)/G_A!AR$6 -> 0 | AP50: =SUMIF(Res_MWh!$D$4:$D$68,$A50,Res_MWh!BG$4:BG$68)/G_A!AS$6 -> 0 | AQ50: =SUMIF(Res_MWh!$D$4:$D$68,$A50,Res_MWh!BH$4:BH$68)/G_A!AT$6 -> 0 | AR50: =SUMIF(Res_MWh!$D$4:$D$68,$A50,Res_MWh!BI$4:BI$68)/G_A!AU$6 -> 0 | AS50: =SUMIF(Res_MWh!$D$4:$D$68,$A50,Res_MWh!BJ$4:BJ$68)/G_A!AV$6 -> 0 | AT50: =SUMIF(Res_MWh!$D$4:$D$68,$A50,Res_MWh!BK$4:BK$68)/G_A!AW$6 -> 0 | AU50: =SUMIF(Res_MWh!$D$4:$D$68,$A50,Res_MWh!BL$4:BL$68)/G_A!AX$6 -> 0 | AV50: =SUMIF(Res_MWh!$D$4:$D$68,$A50,Res_MWh!BM$4:BM$68)/G_A!AY$6 -> 0 | AW50: =SUMIF(Res_MWh!$D$4:$D$68,$A50,Res_MWh!BN$4:BN$68)/G_A!AZ$6 -> 0 | AX50: =SUMIF(Res_MWh!$D$4:$D$68,$A50,Res_MWh!BO$4:BO$68)/G_A!BA$6 -> 0 | AY50: =SUMIF(Res_MWh!$D$4:$D$68,$A50,Res_MWh!BP$4:BP$68)/G_A!BB$6 -> 0 | AZ50: =SUMIF(Res_MWh!$D$4:$D$68,$A50,Res_MWh!BQ$4:BQ$68)/G_A!BC$6 -> 0 | BA50: =SUMIF(Res_MWh!$D$4:$D$68,$A50,Res_MWh!BR$4:BR$68)/G_A!BD$6 -> 0 | BB50: =SUMIF(Res_MWh!$D$4:$D$68,$A50,Res_MWh!BS$4:BS$68)/G_A!BE$6 -> 0 | BC50: =SUMIF(Res_MWh!$D$4:$D$68,$A50,Res_MWh!BT$4:BT$68)/G_A!BF$6 -> 0 | BD50: =SUMIF(Res_MWh!$D$4:$D$68,$A50,Res_MWh!BU$4:BU$68)/G_A!BG$6 -> 0 | BE50: =SUMIF(Res_MWh!$D$4:$D$68,$A50,Res_MWh!BV$4:BV$68)/G_A!BH$6 -> 0 | BF50: =SUMIF(Res_MWh!$D$4:$D$68,$A50,Res_MWh!BW$4:BW$68)/G_A!BI$6 -> 0 | BG50: =SUMIF(Res_MWh!$D$4:$D$68,$A50,Res_MWh!BX$4:BX$68)/G_A!BJ$6 -> 0 | BH50: =SUMIF(Res_MWh!$D$4:$D$68,$A50,Res_MWh!BY$4:BY$68)/G_A!BK$6 -> 0 | BI50: =SUMIF(Res_MWh!$D$4:$D$68,$A50,Res_MWh!BZ$4:BZ$68)/G_A!BL$6 -> 0 | BK50: 0 | BL50: 0 | BM50: 0 | BN50: 0 | BO50: 0 | BP50: 0 | BQ50: 0 | BR50: 0 | BS50: 0 | BT50: 0 | BU50: 0 | BV50: 0 | BW50: 0 | BX50: 0 | BY50: 0 | BZ50: 0 | CA50: 0 | CB50: 0 | CC50: 0 | CD50: 0 | CE50: 0 | CF50: 0 | CG50: 0 | CH50: 0
A51: 148 | B51: Small Nuclear (share) | C51: 0 | D51: 0 | E51: 0 | F51: 0 | G51: 0 | H51: 0 | M51: =SUMIF(Res_MWh!$D$4:$D$68,$A51,Res_MWh!AD$4:AD$68)/G_A!P$6 -> 0 | N51: =SUMIF(Res_MWh!$D$4:$D$68,$A51,Res_MWh!AE$4:AE$68)/G_A!Q$6 -> 0 | O51: =SUMIF(Res_MWh!$D$4:$D$68,$A51,Res_MWh!AF$4:AF$68)/G_A!R$6 -> 0 | P51: =SUMIF(Res_MWh!$D$4:$D$68,$A51,Res_MWh!AG$4:AG$68)/G_A!S$6 -> 0 | Q51: =SUMIF(Res_MWh!$D$4:$D$68,$A51,Res_MWh!AH$4:AH$68)/G_A!T$6 -> 0 | R51: =SUMIF(Res_MWh!$D$4:$D$68,$A51,Res_MWh!AI$4:AI$68)/G_A!U$6 -> 0 | S51: =SUMIF(Res_MWh!$D$4:$D$68,$A51,Res_MWh!AJ$4:AJ$68)/G_A!V$6 -> 0 | T51: =SUMIF(Res_MWh!$D$4:$D$68,$A51,Res_MWh!AK$4:AK$68)/G_A!W$6 -> 0 | U51: =SUMIF(Res_MWh!$D$4:$D$68,$A51,Res_MWh!AL$4:AL$68)/G_A!X$6 -> 0 | V51: =SUMIF(Res_MWh!$D$4:$D$68,$A51,Res_MWh!AM$4:AM$68)/G_A!Y$6 -> 0 | W51: =SUMIF(Res_MWh!$D$4:$D$68,$A51,Res_MWh!AN$4:AN$68)/G_A!Z$6 -> 0 | X51: =SUMIF(Res_MWh!$D$4:$D$68,$A51,Res_MWh!AO$4:AO$68)/G_A!AA$6 -> 0 | Y51: =SUMIF(Res_MWh!$D$4:$D$68,$A51,Res_MWh!AP$4:AP$68)/G_A!AB$6 -> 0 | Z51: =SUMIF(Res_MWh!$D$4:$D$68,$A51,Res_MWh!AQ$4:AQ$68)/G_A!AC$6 -> 0 | AA51: =SUMIF(Res_MWh!$D$4:$D$68,$A51,Res_MWh!AR$4:AR$68)/G_A!AD$6 -> 0 | AB51: =SUMIF(Res_MWh!$D$4:$D$68,$A51,Res_MWh!AS$4:AS$68)/G_A!AE$6 -> 0 | AC51: =SUMIF(Res_MWh!$D$4:$D$68,$A51,Res_MWh!AT$4:AT$68)/G_A!AF$6 -> 0 | AD51: =SUMIF(Res_MWh!$D$4:$D$68,$A51,Res_MWh!AU$4:AU$68)/G_A!AG$6 -> 0 | AE51: =SUMIF(Res_MWh!$D$4:$D$68,$A51,Res_MWh!AV$4:AV$68)/G_A!AH$6 -> 0 | AF51: =SUMIF(Res_MWh!$D$4:$D$68,$A51,Res_MWh!AW$4:AW$68)/G_A!AI$6 -> 0 | AG51: =SUMIF(Res_MWh!$D$4:$D$68,$A51,Res_MWh!AX$4:AX$68)/G_A!AJ$6 -> 0 | AH51: =SUMIF(Res_MWh!$D$4:$D$68,$A51,Res_MWh!AY$4:AY$68)/G_A!AK$6 -> 0 | AI51: =SUMIF(Res_MWh!$D$4:$D$68,$A51,Res_MWh!AZ$4:AZ$68)/G_A!AL$6 -> 0 | AJ51: =SUMIF(Res_MWh!$D$4:$D$68,$A51,Res_MWh!BA$4:BA$68)/G_A!AM$6 -> 0 | AL51: =SUMIF(Res_MWh!$D$4:$D$68,$A51,Res_MWh!BC$4:BC$68)/G_A!AO$6 -> 0 | AM51: =SUMIF(Res_MWh!$D$4:$D$68,$A51,Res_MWh!BD$4:BD$68)/G_A!AP$6 -> 0 | AN51: =SUMIF(Res_MWh!$D$4:$D$68,$A51,Res_MWh!BE$4:BE$68)/G_A!AQ$6 -> 0 | AO51: =SUMIF(Res_MWh!$D$4:$D$68,$A51,Res_MWh!BF$4:BF$68)/G_A!AR$6 -> 0 | AP51: =SUMIF(Res_MWh!$D$4:$D$68,$A51,Res_MWh!BG$4:BG$68)/G_A!AS$6 -> 0 | AQ51: =SUMIF(Res_MWh!$D$4:$D$68,$A51,Res_MWh!BH$4:BH$68)/G_A!AT$6 -> 0 | AR51: =SUMIF(Res_MWh!$D$4:$D$68,$A51,Res_MWh!BI$4:BI$68)/G_A!AU$6 -> 0 | AS51: =SUMIF(Res_MWh!$D$4:$D$68,$A51,Res_MWh!BJ$4:BJ$68)/G_A!AV$6 -> 0 | AT51: =SUMIF(Res_MWh!$D$4:$D$68,$A51,Res_MWh!BK$4:BK$68)/G_A!AW$6 -> 0 | AU51: =SUMIF(Res_MWh!$D$4:$D$68,$A51,Res_MWh!BL$4:BL$68)/G_A!AX$6 -> 0 | AV51: =SUMIF(Res_MWh!$D$4:$D$68,$A51,Res_MWh!BM$4:BM$68)/G_A!AY$6 -> 0 | AW51: =SUMIF(Res_MWh!$D$4:$D$68,$A51,Res_MWh!BN$4:BN$68)/G_A!AZ$6 -> 0 | AX51: =SUMIF(Res_MWh!$D$4:$D$68,$A51,Res_MWh!BO$4:BO$68)/G_A!BA$6 -> 0 | AY51: =SUMIF(Res_MWh!$D$4:$D$68,$A51,Res_MWh!BP$4:BP$68)/G_A!BB$6 -> 0 | AZ51: =SUMIF(Res_MWh!$D$4:$D$68,$A51,Res_MWh!BQ$4:BQ$68)/G_A!BC$6 -> 0 | BA51: =SUMIF(Res_MWh!$D$4:$D$68,$A51,Res_MWh!BR$4:BR$68)/G_A!BD$6 -> 0 | BB51: =SUMIF(Res_MWh!$D$4:$D$68,$A51,Res_MWh!BS$4:BS$68)/G_A!BE$6 -> 0 | BC51: =SUMIF(Res_MWh!$D$4:$D$68,$A51,Res_MWh!BT$4:BT$68)/G_A!BF$6 -> 0 | BD51: =SUMIF(Res_MWh!$D$4:$D$68,$A51,Res_MWh!BU$4:BU$68)/G_A!BG$6 -> 0 | BE51: =SUMIF(Res_MWh!$D$4:$D$68,$A51,Res_MWh!BV$4:BV$68)/G_A!BH$6 -> 0 | BF51: =SUMIF(Res_MWh!$D$4:$D$68,$A51,Res_MWh!BW$4:BW$68)/G_A!BI$6 -> 0 | BG51: =SUMIF(Res_MWh!$D$4:$D$68,$A51,Res_MWh!BX$4:BX$68)/G_A!BJ$6 -> 0 | BH51: =SUMIF(Res_MWh!$D$4:$D$68,$A51,Res_MWh!BY$4:BY$68)/G_A!BK$6 -> 0 | BI51: =SUMIF(Res_MWh!$D$4:$D$68,$A51,Res_MWh!BZ$4:BZ$68)/G_A!BL$6 -> 0 | BK51: 0 | BL51: 0 | BM51: 0 | BN51: 0 | BO51: 0 | BP51: 0 | BQ51: 0 | BR51: 0 | BS51: 0 | BT51: 0 | BU51: 0 | BV51: 0 | BW51: 0 | BX51: 0 | BY51: 0 | BZ51: 0 | CA51: 0 | CB51: 0 | CC51: 0 | CD51: 0 | CE51: 0 | CF51: 0 | CG51: 0 | CH51: 0
A52: 149 | B52: Geothermal (Off System) | C52: 0 | D52: 0 | E52: 0 | F52: 0 | G52: 3.019555182 | H52: 12.07857616 | M52: =SUMIF(Res_MWh!$D$4:$D$68,$A52,Res_MWh!AD$4:AD$68)/G_A!P$6 -> 0 | N52: =SUMIF(Res_MWh!$D$4:$D$68,$A52,Res_MWh!AE$4:AE$68)/G_A!Q$6 -> 0 | O52: =SUMIF(Res_MWh!$D$4:$D$68,$A52,Res_MWh!AF$4:AF$68)/G_A!R$6 -> 0 | P52: =SUMIF(Res_MWh!$D$4:$D$68,$A52,Res_MWh!AG$4:AG$68)/G_A!S$6 -> 0 | Q52: =SUMIF(Res_MWh!$D$4:$D$68,$A52,Res_MWh!AH$4:AH$68)/G_A!T$6 -> 0 | R52: =SUMIF(Res_MWh!$D$4:$D$68,$A52,Res_MWh!AI$4:AI$68)/G_A!U$6 -> 0 | S52: =SUMIF(Res_MWh!$D$4:$D$68,$A52,Res_MWh!AJ$4:AJ$68)/G_A!V$6 -> 0 | T52: =SUMIF(Res_MWh!$D$4:$D$68,$A52,Res_MWh!AK$4:AK$68)/G_A!W$6 -> 0 | U52: =SUMIF(Res_MWh!$D$4:$D$68,$A52,Res_MWh!AL$4:AL$68)/G_A!X$6 -> 0 | V52: =SUMIF(Res_MWh!$D$4:$D$68,$A52,Res_MWh!AM$4:AM$68)/G_A!Y$6 -> 0 | W52: =SUMIF(Res_MWh!$D$4:$D$68,$A52,Res_MWh!AN$4:AN$68)/G_A!Z$6 -> 0 | X52: =SUMIF(Res_MWh!$D$4:$D$68,$A52,Res_MWh!AO$4:AO$68)/G_A!AA$6 -> 0 | Y52: =SUMIF(Res_MWh!$D$4:$D$68,$A52,Res_MWh!AP$4:AP$68)/G_A!AB$6 -> 0 | Z52: =SUMIF(Res_MWh!$D$4:$D$68,$A52,Res_MWh!AQ$4:AQ$68)/G_A!AC$6 -> 0 | AA52: =SUMIF(Res_MWh!$D$4:$D$68,$A52,Res_MWh!AR$4:AR$68)/G_A!AD$6 -> 0 | AB52: =SUMIF(Res_MWh!$D$4:$D$68,$A52,Res_MWh!AS$4:AS$68)/G_A!AE$6 -> 0 | AC52: =SUMIF(Res_MWh!$D$4:$D$68,$A52,Res_MWh!AT$4:AT$68)/G_A!AF$6 -> 0 | AD52: =SUMIF(Res_MWh!$D$4:$D$68,$A52,Res_MWh!AU$4:AU$68)/G_A!AG$6 -> 0 | AE52: =SUMIF(Res_MWh!$D$4:$D$68,$A52,Res_MWh!AV$4:AV$68)/G_A!AH$6 -> 0 | AF52: =SUMIF(Res_MWh!$D$4:$D$68,$A52,Res_MWh!AW$4:AW$68)/G_A!AI$6 -> 12.07822073 | AG52: =SUMIF(Res_MWh!$D$4:$D$68,$A52,Res_MWh!AX$4:AX$68)/G_A!AJ$6 -> 12.07700803 | AH52: =SUMIF(Res_MWh!$D$4:$D$68,$A52,Res_MWh!AY$4:AY$68)/G_A!AK$6 -> 12.07960029 | AI52: =SUMIF(Res_MWh!$D$4:$D$68,$A52,Res_MWh!AZ$4:AZ$68)/G_A!AL$6 -> 12.07912016 | AJ52: =SUMIF(Res_MWh!$D$4:$D$68,$A52,Res_MWh!BA$4:BA$68)/G_A!AM$6 -> 12.07960029 | AL52: =SUMIF(Res_MWh!$D$4:$D$68,$A52,Res_MWh!BC$4:BC$68)/G_A!AO$6 -> 0 | AM52: =SUMIF(Res_MWh!$D$4:$D$68,$A52,Res_MWh!BD$4:BD$68)/G_A!AP$6 -> 0 | AN52: =SUMIF(Res_MWh!$D$4:$D$68,$A52,Res_MWh!BE$4:BE$68)/G_A!AQ$6 -> 0 | AO52: =SUMIF(Res_MWh!$D$4:$D$68,$A52,Res_MWh!BF$4:BF$68)/G_A!AR$6 -> 0 | AP52: =SUMIF(Res_MWh!$D$4:$D$68,$A52,Res_MWh!BG$4:BG$68)/G_A!AS$6 -> 0 | AQ52: =SUMIF(Res_MWh!$D$4:$D$68,$A52,Res_MWh!BH$4:BH$68)/G_A!AT$6 -> 0 | AR52: =SUMIF(Res_MWh!$D$4:$D$68,$A52,Res_MWh!BI$4:BI$68)/G_A!AU$6 -> 0 | AS52: =SUMIF(Res_MWh!$D$4:$D$68,$A52,Res_MWh!BJ$4:BJ$68)/G_A!AV$6 -> 0 | AT52: =SUMIF(Res_MWh!$D$4:$D$68,$A52,Res_MWh!BK$4:BK$68)/G_A!AW$6 -> 0 | AU52: =SUMIF(Res_MWh!$D$4:$D$68,$A52,Res_MWh!BL$4:BL$68)/G_A!AX$6 -> 0 | AV52: =SUMIF(Res_MWh!$D$4:$D$68,$A52,Res_MWh!BM$4:BM$68)/G_A!AY$6 -> 0 | AW52: =SUMIF(Res_MWh!$D$4:$D$68,$A52,Res_MWh!BN$4:BN$68)/G_A!AZ$6 -> 0 | AX52: =SUMIF(Res_MWh!$D$4:$D$68,$A52,Res_MWh!BO$4:BO$68)/G_A!BA$6 -> 0 | AY52: =SUMIF(Res_MWh!$D$4:$D$68,$A52,Res_MWh!BP$4:BP$68)/G_A!BB$6 -> 0 | AZ52: =SUMIF(Res_MWh!$D$4:$D$68,$A52,Res_MWh!BQ$4:BQ$68)/G_A!BC$6 -> 0 | BA52: =SUMIF(Res_MWh!$D$4:$D$68,$A52,Res_MWh!BR$4:BR$68)/G_A!BD$6 -> 0 | BB52: =SUMIF(Res_MWh!$D$4:$D$68,$A52,Res_MWh!BS$4:BS$68)/G_A!BE$6 -> 0 | BC52: =SUMIF(Res_MWh!$D$4:$D$68,$A52,Res_MWh!BT$4:BT$68)/G_A!BF$6 -> 0 | BD52: =SUMIF(Res_MWh!$D$4:$D$68,$A52,Res_MWh!BU$4:BU$68)/G_A!BG$6 -> 0 | BE52: =SUMIF(Res_MWh!$D$4:$D$68,$A52,Res_MWh!BV$4:BV$68)/G_A!BH$6 -> 6.319678325 | BF52: =SUMIF(Res_MWh!$D$4:$D$68,$A52,Res_MWh!BW$4:BW$68)/G_A!BI$6 -> 6.319043805 | BG52: =SUMIF(Res_MWh!$D$4:$D$68,$A52,Res_MWh!BX$4:BX$68)/G_A!BJ$6 -> 6.3031313 | BH52: =SUMIF(Res_MWh!$D$4:$D$68,$A52,Res_MWh!BY$4:BY$68)/G_A!BK$6 -> 6.337464409 | BI52: =SUMIF(Res_MWh!$D$4:$D$68,$A52,Res_MWh!BZ$4:BZ$68)/G_A!BL$6 -> 6.320400153 | BK52: 0 | BL52: 0 | BM52: 0 | BN52: 0 | BO52: 0 | BP52: 0 | BQ52: 0 | BR52: 0 | BS52: 0 | BT52: 0 | BU52: 0 | BV52: 0 | BW52: 0 | BX52: 0 | BY52: 0 | BZ52: 0 | CA52: 0 | CB52: 0 | CC52: 0 | CD52: 18.39789905 | CE52: 18.39605183 | CF52: 18.38273159 | CG52: 18.41658457 | CH52: 18.40000045
A53: 150 | B53: Wood Biomass | C53: 0 | D53: 0 | E53: 0 | F53: 0 | G53: 0 | H53: 0 | M53: =SUMIF(Res_MWh!$D$4:$D$68,$A53,Res_MWh!AD$4:AD$68)/G_A!P$6 -> 0 | N53: =SUMIF(Res_MWh!$D$4:$D$68,$A53,Res_MWh!AE$4:AE$68)/G_A!Q$6 -> 0 | O53: =SUMIF(Res_MWh!$D$4:$D$68,$A53,Res_MWh!AF$4:AF$68)/G_A!R$6 -> 0 | P53: =SUMIF(Res_MWh!$D$4:$D$68,$A53,Res_MWh!AG$4:AG$68)/G_A!S$6 -> 0 | Q53: =SUMIF(Res_MWh!$D$4:$D$68,$A53,Res_MWh!AH$4:AH$68)/G_A!T$6 -> 0 | R53: =SUMIF(Res_MWh!$D$4:$D$68,$A53,Res_MWh!AI$4:AI$68)/G_A!U$6 -> 0 | S53: =SUMIF(Res_MWh!$D$4:$D$68,$A53,Res_MWh!AJ$4:AJ$68)/G_A!V$6 -> 0 | T53: =SUMIF(Res_MWh!$D$4:$D$68,$A53,Res_MWh!AK$4:AK$68)/G_A!W$6 -> 0 | U53: =SUMIF(Res_MWh!$D$4:$D$68,$A53,Res_MWh!AL$4:AL$68)/G_A!X$6 -> 0 | V53: =SUMIF(Res_MWh!$D$4:$D$68,$A53,Res_MWh!AM$4:AM$68)/G_A!Y$6 -> 0 | W53: =SUMIF(Res_MWh!$D$4:$D$68,$A53,Res_MWh!AN$4:AN$68)/G_A!Z$6 -> 0 | X53: =SUMIF(Res_MWh!$D$4:$D$68,$A53,Res_MWh!AO$4:AO$68)/G_A!AA$6 -> 0 | Y53: =SUMIF(Res_MWh!$D$4:$D$68,$A53,Res_MWh!AP$4:AP$68)/G_A!AB$6 -> 0 | Z53: =SUMIF(Res_MWh!$D$4:$D$68,$A53,Res_MWh!AQ$4:AQ$68)/G_A!AC$6 -> 0 | AA53: =SUMIF(Res_MWh!$D$4:$D$68,$A53,Res_MWh!AR$4:AR$68)/G_A!AD$6 -> 0 | AB53: =SUMIF(Res_MWh!$D$4:$D$68,$A53,Res_MWh!AS$4:AS$68)/G_A!AE$6 -> 0 | AC53: =SUMIF(Res_MWh!$D$4:$D$68,$A53,Res_MWh!AT$4:AT$68)/G_A!AF$6 -> 0 | AD53: =SUMIF(Res_MWh!$D$4:$D$68,$A53,Res_MWh!AU$4:AU$68)/G_A!AG$6 -> 0 | AE53: =SUMIF(Res_MWh!$D$4:$D$68,$A53,Res_MWh!AV$4:AV$68)/G_A!AH$6 -> 0 | AF53: =SUMIF(Res_MWh!$D$4:$D$68,$A53,Res_MWh!AW$4:AW$68)/G_A!AI$6 -> 0 | AG53: =SUMIF(Res_MWh!$D$4:$D$68,$A53,Res_MWh!AX$4:AX$68)/G_A!AJ$6 -> 0 | AH53: =SUMIF(Res_MWh!$D$4:$D$68,$A53,Res_MWh!AY$4:AY$68)/G_A!AK$6 -> 0 | AI53: =SUMIF(Res_MWh!$D$4:$D$68,$A53,Res_MWh!AZ$4:AZ$68)/G_A!AL$6 -> 0 | AJ53: =SUMIF(Res_MWh!$D$4:$D$68,$A53,Res_MWh!BA$4:BA$68)/G_A!AM$6 -> 0 | AL53: =SUMIF(Res_MWh!$D$4:$D$68,$A53,Res_MWh!BC$4:BC$68)/G_A!AO$6 -> 0 | AM53: =SUMIF(Res_MWh!$D$4:$D$68,$A53,Res_MWh!BD$4:BD$68)/G_A!AP$6 -> 0 | AN53: =SUMIF(Res_MWh!$D$4:$D$68,$A53,Res_MWh!BE$4:BE$68)/G_A!AQ$6 -> 0 | AO53: =SUMIF(Res_MWh!$D$4:$D$68,$A53,Res_MWh!BF$4:BF$68)/G_A!AR$6 -> 0 | AP53: =SUMIF(Res_MWh!$D$4:$D$68,$A53,Res_MWh!BG$4:BG$68)/G_A!AS$6 -> 0 | AQ53: =SUMIF(Res_MWh!$D$4:$D$68,$A53,Res_MWh!BH$4:BH$68)/G_A!AT$6 -> 0 | AR53: =SUMIF(Res_MWh!$D$4:$D$68,$A53,Res_MWh!BI$4:BI$68)/G_A!AU$6 -> 0 | AS53: =SUMIF(Res_MWh!$D$4:$D$68,$A53,Res_MWh!BJ$4:BJ$68)/G_A!AV$6 -> 0 | AT53: =SUMIF(Res_MWh!$D$4:$D$68,$A53,Res_MWh!BK$4:BK$68)/G_A!AW$6 -> 0 | AU53: =SUMIF(Res_MWh!$D$4:$D$68,$A53,Res_MWh!BL$4:BL$68)/G_A!AX$6 -> 0 | AV53: =SUMIF(Res_MWh!$D$4:$D$68,$A53,Res_MWh!BM$4:BM$68)/G_A!AY$6 -> 0 | AW53: =SUMIF(Res_MWh!$D$4:$D$68,$A53,Res_MWh!BN$4:BN$68)/G_A!AZ$6 -> 0 | AX53: =SUMIF(Res_MWh!$D$4:$D$68,$A53,Res_MWh!BO$4:BO$68)/G_A!BA$6 -> 0 | AY53: =SUMIF(Res_MWh!$D$4:$D$68,$A53,Res_MWh!BP$4:BP$68)/G_A!BB$6 -> 0 | AZ53: =SUMIF(Res_MWh!$D$4:$D$68,$A53,Res_MWh!BQ$4:BQ$68)/G_A!BC$6 -> 0 | BA53: =SUMIF(Res_MWh!$D$4:$D$68,$A53,Res_MWh!BR$4:BR$68)/G_A!BD$6 -> 0 | BB53: =SUMIF(Res_MWh!$D$4:$D$68,$A53,Res_MWh!BS$4:BS$68)/G_A!BE$6 -> 0 | BC53: =SUMIF(Res_MWh!$D$4:$D$68,$A53,Res_MWh!BT$4:BT$68)/G_A!BF$6 -> 0 | BD53: =SUMIF(Res_MWh!$D$4:$D$68,$A53,Res_MWh!BU$4:BU$68)/G_A!BG$6 -> 0 | BE53: =SUMIF(Res_MWh!$D$4:$D$68,$A53,Res_MWh!BV$4:BV$68)/G_A!BH$6 -> 0 | BF53: =SUMIF(Res_MWh!$D$4:$D$68,$A53,Res_MWh!BW$4:BW$68)/G_A!BI$6 -> 0 | BG53: =SUMIF(Res_MWh!$D$4:$D$68,$A53,Res_MWh!BX$4:BX$68)/G_A!BJ$6 -> 0 | BH53: =SUMIF(Res_MWh!$D$4:$D$68,$A53,Res_MWh!BY$4:BY$68)/G_A!BK$6 -> 0 | BI53: =SUMIF(Res_MWh!$D$4:$D$68,$A53,Res_MWh!BZ$4:BZ$68)/G_A!BL$6 -> 0 | BK53: 0 | BL53: 0 | BM53: 0 | BN53: 0 | BO53: 0 | BP53: 0 | BQ53: 0 | BR53: 0 | BS53: 0 | BT53: 0 | BU53: 0 | BV53: 0 | BW53: 0 | BX53: 0 | BY53: 0 | BZ53: 0 | CA53: 0 | CB53: 0 | CC53: 0 | CD53: 0 | CE53: 0 | CF53: 0 | CG53: 0 | CH53: 0
A54: 151 | B54: Kettle Falls Turbine Generator Upgrade | C54: 0 | D54: 5.864260333 | E54: 5.622030877 | F54: 5.491765576 | G54: 5.132815147 | H54: 4.779094925 | M54: =SUMIF(Res_MWh!$D$4:$D$68,$A54,Res_MWh!AD$4:AD$68)/G_A!P$6 -> 0 | N54: =SUMIF(Res_MWh!$D$4:$D$68,$A54,Res_MWh!AE$4:AE$68)/G_A!Q$6 -> 0 | O54: =SUMIF(Res_MWh!$D$4:$D$68,$A54,Res_MWh!AF$4:AF$68)/G_A!R$6 -> 0 | P54: =SUMIF(Res_MWh!$D$4:$D$68,$A54,Res_MWh!AG$4:AG$68)/G_A!S$6 -> 0 | Q54: =SUMIF(Res_MWh!$D$4:$D$68,$A54,Res_MWh!AH$4:AH$68)/G_A!T$6 -> 5.956817107 | R54: =SUMIF(Res_MWh!$D$4:$D$68,$A54,Res_MWh!AI$4:AI$68)/G_A!U$6 -> 5.886559435 | S54: =SUMIF(Res_MWh!$D$4:$D$68,$A54,Res_MWh!AJ$4:AJ$68)/G_A!V$6 -> 5.86698266 | T54: =SUMIF(Res_MWh!$D$4:$D$68,$A54,Res_MWh!AK$4:AK$68)/G_A!W$6 -> 5.74668213 | U54: =SUMIF(Res_MWh!$D$4:$D$68,$A54,Res_MWh!AL$4:AL$68)/G_A!X$6 -> 5.64082774 | V54: =SUMIF(Res_MWh!$D$4:$D$68,$A54,Res_MWh!AM$4:AM$68)/G_A!Y$6 -> 5.631616347 | W54: =SUMIF(Res_MWh!$D$4:$D$68,$A54,Res_MWh!AN$4:AN$68)/G_A!Z$6 -> 5.622168474 | X54: =SUMIF(Res_MWh!$D$4:$D$68,$A54,Res_MWh!AO$4:AO$68)/G_A!AA$6 -> 5.593510945 | Y54: =SUMIF(Res_MWh!$D$4:$D$68,$A54,Res_MWh!AP$4:AP$68)/G_A!AB$6 -> 5.544827613 | Z54: =SUMIF(Res_MWh!$D$4:$D$68,$A54,Res_MWh!AQ$4:AQ$68)/G_A!AC$6 -> 5.513142126 | AA54: =SUMIF(Res_MWh!$D$4:$D$68,$A54,Res_MWh!AR$4:AR$68)/G_A!AD$6 -> 5.483650344 | AB54: =SUMIF(Res_MWh!$D$4:$D$68,$A54,Res_MWh!AS$4:AS$68)/G_A!AE$6 -> 5.42544222 | AC54: =SUMIF(Res_MWh!$D$4:$D$68,$A54,Res_MWh!AT$4:AT$68)/G_A!AF$6 -> 5.356135679 | AD54: =SUMIF(Res_MWh!$D$4:$D$68,$A54,Res_MWh!AU$4:AU$68)/G_A!AG$6 -> 5.174934671 | AE54: =SUMIF(Res_MWh!$D$4:$D$68,$A54,Res_MWh!AV$4:AV$68)/G_A!AH$6 -> 5.002486506 | AF54: =SUMIF(Res_MWh!$D$4:$D$68,$A54,Res_MWh!AW$4:AW$68)/G_A!AI$6 -> 4.997703734 | AG54: =SUMIF(Res_MWh!$D$4:$D$68,$A54,Res_MWh!AX$4:AX$68)/G_A!AJ$6 -> 4.886030144 | AH54: =SUMIF(Res_MWh!$D$4:$D$68,$A54,Res_MWh!AY$4:AY$68)/G_A!AK$6 -> 4.643693715 | AI54: =SUMIF(Res_MWh!$D$4:$D$68,$A54,Res_MWh!AZ$4:AZ$68)/G_A!AL$6 -> 4.807560917 | AJ54: =SUMIF(Res_MWh!$D$4:$D$68,$A54,Res_MWh!BA$4:BA$68)/G_A!AM$6 -> 4.418221639 | AL54: =SUMIF(Res_MWh!$D$4:$D$68,$A54,Res_MWh!BC$4:BC$68)/G_A!AO$6 -> 0 | AM54: =SUMIF(Res_MWh!$D$4:$D$68,$A54,Res_MWh!BD$4:BD$68)/G_A!AP$6 -> 0 | AN54: =SUMIF(Res_MWh!$D$4:$D$68,$A54,Res_MWh!BE$4:BE$68)/G_A!AQ$6 -> 0 | AO54: =SUMIF(Res_MWh!$D$4:$D$68,$A54,Res_MWh!BF$4:BF$68)/G_A!AR$6 -> 0 | AP54: =SUMIF(Res_MWh!$D$4:$D$68,$A54,Res_MWh!BG$4:BG$68)/G_A!AS$6 -> 3.116780924 | AQ54: =SUMIF(Res_MWh!$D$4:$D$68,$A54,Res_MWh!BH$4:BH$68)/G_A!AT$6 -> 3.071604699 | AR54: =SUMIF(Res_MWh!$D$4:$D$68,$A54,Res_MWh!BI$4:BI$68)/G_A!AU$6 -> 3.078187261 | AS54: =SUMIF(Res_MWh!$D$4:$D$68,$A54,Res_MWh!BJ$4:BJ$68)/G_A!AV$6 -> 3.006832158 | AT54: =SUMIF(Res_MWh!$D$4:$D$68,$A54,Res_MWh!BK$4:BK$68)/G_A!AW$6 -> 2.951446045 | AU54: =SUMIF(Res_MWh!$D$4:$D$68,$A54,Res_MWh!BL$4:BL$68)/G_A!AX$6 -> 2.938575483 | AV54: =SUMIF(Res_MWh!$D$4:$D$68,$A54,Res_MWh!BM$4:BM$68)/G_A!AY$6 -> 2.949742377 | AW54: =SUMIF(Res_MWh!$D$4:$D$68,$A54,Res_MWh!BN$4:BN$68)/G_A!AZ$6 -> 2.926688514 | AX54: =SUMIF(Res_MWh!$D$4:$D$68,$A54,Res_MWh!BO$4:BO$68)/G_A!BA$6 -> 2.901215971 | AY54: =SUMIF(Res_MWh!$D$4:$D$68,$A54,Res_MWh!BP$4:BP$68)/G_A!BB$6 -> 2.876755675 | AZ54: =SUMIF(Res_MWh!$D$4:$D$68,$A54,Res_MWh!BQ$4:BQ$68)/G_A!BC$6 -> 2.877067074 | BA54: =SUMIF(Res_MWh!$D$4:$D$68,$A54,Res_MWh!BR$4:BR$68)/G_A!BD$6 -> 2.838750042 | BB54: =SUMIF(Res_MWh!$D$4:$D$68,$A54,Res_MWh!BS$4:BS$68)/G_A!BE$6 -> 2.802486833 | BC54: =SUMIF(Res_MWh!$D$4:$D$68,$A54,Res_MWh!BT$4:BT$68)/G_A!BF$6 -> 2.700279141 | BD54: =SUMIF(Res_MWh!$D$4:$D$68,$A54,Res_MWh!BU$4:BU$68)/G_A!BG$6 -> 2.624618331 | BE54: =SUMIF(Res_MWh!$D$4:$D$68,$A54,Res_MWh!BV$4:BV$68)/G_A!BH$6 -> 2.614944757 | BF54: =SUMIF(Res_MWh!$D$4:$D$68,$A54,Res_MWh!BW$4:BW$68)/G_A!BI$6 -> 2.556513868 | BG54: =SUMIF(Res_MWh!$D$4:$D$68,$A54,Res_MWh!BX$4:BX$68)/G_A!BJ$6 -> 2.423077792 | BH54: =SUMIF(Res_MWh!$D$4:$D$68,$A54,Res_MWh!BY$4:BY$68)/G_A!BK$6 -> 2.522348136 | BI54: =SUMIF(Res_MWh!$D$4:$D$68,$A54,Res_MWh!BZ$4:BZ$68)/G_A!BL$6 -> 2.311742777 | BK54: 0 | BL54: 0 | BM54: 0 | BN54: 0 | BO54: 9.073598031 | BP54: 8.958164134 | BQ54: 8.945169921 | BR54: 8.753514287 | BS54: 8.592273785 | BT54: 8.570191831 | BU54: 8.571910851 | BV54: 8.52019946 | BW54: 8.446043584 | BX54: 8.389897801 | BY54: 8.360717418 | BZ54: 8.264192262 | CA54: 8.158622512 | CB54: 7.875213811 | CC54: 7.627104837 | CD54: 7.612648491 | CE54: 7.442544012 | CF54: 7.066771507 | CG54: 7.329909053 | CH54: 6.729964416
A55: 155 | B55: Cabinet Gorge 2nd Powerhouse | C55: 0 | D55: 0 | E55: 0 | F55: 0 | G55: 0 | H55: 0 | M55: =SUMIF(Res_MWh!$D$4:$D$68,$A55,Res_MWh!AD$4:AD$68)/G_A!P$6 -> 0 | N55: =SUMIF(Res_MWh!$D$4:$D$68,$A55,Res_MWh!AE$4:AE$68)/G_A!Q$6 -> 0 | O55: =SUMIF(Res_MWh!$D$4:$D$68,$A55,Res_MWh!AF$4:AF$68)/G_A!R$6 -> 0 | P55: =SUMIF(Res_MWh!$D$4:$D$68,$A55,Res_MWh!AG$4:AG$68)/G_A!S$6 -> 0 | Q55: =SUMIF(Res_MWh!$D$4:$D$68,$A55,Res_MWh!AH$4:AH$68)/G_A!T$6 -> 0 | R55: =SUMIF(Res_MWh!$D$4:$D$68,$A55,Res_MWh!AI$4:AI$68)/G_A!U$6 -> 0 | S55: =SUMIF(Res_MWh!$D$4:$D$68,$A55,Res_MWh!AJ$4:AJ$68)/G_A!V$6 -> 0 | T55: =SUMIF(Res_MWh!$D$4:$D$68,$A55,Res_MWh!AK$4:AK$68)/G_A!W$6 -> 0 | U55: =SUMIF(Res_MWh!$D$4:$D$68,$A55,Res_MWh!AL$4:AL$68)/G_A!X$6 -> 0 | V55: =SUMIF(Res_MWh!$D$4:$D$68,$A55,Res_MWh!AM$4:AM$68)/G_A!Y$6 -> 0 | W55: =SUMIF(Res_MWh!$D$4:$D$68,$A55,Res_MWh!AN$4:AN$68)/G_A!Z$6 -> 0 | X55: =SUMIF(Res_MWh!$D$4:$D$68,$A55,Res_MWh!AO$4:AO$68)/G_A!AA$6 -> 0 | Y55: =SUMIF(Res_MWh!$D$4:$D$68,$A55,Res_MWh!AP$4:AP$68)/G_A!AB$6 -> 0 | Z55: =SUMIF(Res_MWh!$D$4:$D$68,$A55,Res_MWh!AQ$4:AQ$68)/G_A!AC$6 -> 0 | AA55: =SUMIF(Res_MWh!$D$4:$D$68,$A55,Res_MWh!AR$4:AR$68)/G_A!AD$6 -> 0 | AB55: =SUMIF(Res_MWh!$D$4:$D$68,$A55,Res_MWh!AS$4:AS$68)/G_A!AE$6 -> 0 | AC55: =SUMIF(Res_MWh!$D$4:$D$68,$A55,Res_MWh!AT$4:AT$68)/G_A!AF$6 -> 0 | AD55: =SUMIF(Res_MWh!$D$4:$D$68,$A55,Res_MWh!AU$4:AU$68)/G_A!AG$6 -> 0 | AE55: =SUMIF(Res_MWh!$D$4:$D$68,$A55,Res_MWh!AV$4:AV$68)/G_A!AH$6 -> 0 | AF55: =SUMIF(Res_MWh!$D$4:$D$68,$A55,Res_MWh!AW$4:AW$68)/G_A!AI$6 -> 0 | AG55: =SUMIF(Res_MWh!$D$4:$D$68,$A55,Res_MWh!AX$4:AX$68)/G_A!AJ$6 -> 0 | AH55: =SUMIF(Res_MWh!$D$4:$D$68,$A55,Res_MWh!AY$4:AY$68)/G_A!AK$6 -> 0 | AI55: =SUMIF(Res_MWh!$D$4:$D$68,$A55,Res_MWh!AZ$4:AZ$68)/G_A!AL$6 -> 0 | AJ55: =SUMIF(Res_MWh!$D$4:$D$68,$A55,Res_MWh!BA$4:BA$68)/G_A!AM$6 -> 0 | AL55: =SUMIF(Res_MWh!$D$4:$D$68,$A55,Res_MWh!BC$4:BC$68)/G_A!AO$6 -> 0 | AM55: =SUMIF(Res_MWh!$D$4:$D$68,$A55,Res_MWh!BD$4:BD$68)/G_A!AP$6 -> 0 | AN55: =SUMIF(Res_MWh!$D$4:$D$68,$A55,Res_MWh!BE$4:BE$68)/G_A!AQ$6 -> 0 | AO55: =SUMIF(Res_MWh!$D$4:$D$68,$A55,Res_MWh!BF$4:BF$68)/G_A!AR$6 -> 0 | AP55: =SUMIF(Res_MWh!$D$4:$D$68,$A55,Res_MWh!BG$4:BG$68)/G_A!AS$6 -> 0 | AQ55: =SUMIF(Res_MWh!$D$4:$D$68,$A55,Res_MWh!BH$4:BH$68)/G_A!AT$6 -> 0 | AR55: =SUMIF(Res_MWh!$D$4:$D$68,$A55,Res_MWh!BI$4:BI$68)/G_A!AU$6 -> 0 | AS55: =SUMIF(Res_MWh!$D$4:$D$68,$A55,Res_MWh!BJ$4:BJ$68)/G_A!AV$6 -> 0 | AT55: =SUMIF(Res_MWh!$D$4:$D$68,$A55,Res_MWh!BK$4:BK$68)/G_A!AW$6 -> 0 | AU55: =SUMIF(Res_MWh!$D$4:$D$68,$A55,Res_MWh!BL$4:BL$68)/G_A!AX$6 -> 0 | AV55: =SUMIF(Res_MWh!$D$4:$D$68,$A55,Res_MWh!BM$4:BM$68)/G_A!AY$6 -> 0 | AW55: =SUMIF(Res_MWh!$D$4:$D$68,$A55,Res_MWh!BN$4:BN$68)/G_A!AZ$6 -> 0 | AX55: =SUMIF(Res_MWh!$D$4:$D$68,$A55,Res_MWh!BO$4:BO$68)/G_A!BA$6 -> 0 | AY55: =SUMIF(Res_MWh!$D$4:$D$68,$A55,Res_MWh!BP$4:BP$68)/G_A!BB$6 -> 0 | AZ55: =SUMIF(Res_MWh!$D$4:$D$68,$A55,Res_MWh!BQ$4:BQ$68)/G_A!BC$6 -> 0 | BA55: =SUMIF(Res_MWh!$D$4:$D$68,$A55,Res_MWh!BR$4:BR$68)/G_A!BD$6 -> 0 | BB55: =SUMIF(Res_MWh!$D$4:$D$68,$A55,Res_MWh!BS$4:BS$68)/G_A!BE$6 -> 0 | BC55: =SUMIF(Res_MWh!$D$4:$D$68,$A55,Res_MWh!BT$4:BT$68)/G_A!BF$6 -> 0 | BD55: =SUMIF(Res_MWh!$D$4:$D$68,$A55,Res_MWh!BU$4:BU$68)/G_A!BG$6 -> 0 | BE55: =SUMIF(Res_MWh!$D$4:$D$68,$A55,Res_MWh!BV$4:BV$68)/G_A!BH$6 -> 0 | BF55: =SUMIF(Res_MWh!$D$4:$D$68,$A55,Res_MWh!BW$4:BW$68)/G_A!BI$6 -> 0 | BG55: =SUMIF(Res_MWh!$D$4:$D$68,$A55,Res_MWh!BX$4:BX$68)/G_A!BJ$6 -> 0 | BH55: =SUMIF(Res_MWh!$D$4:$D$68,$A55,Res_MWh!BY$4:BY$68)/G_A!BK$6 -> 0 | BI55: =SUMIF(Res_MWh!$D$4:$D$68,$A55,Res_MWh!BZ$4:BZ$68)/G_A!BL$6 -> 0 | BK55: 0 | BL55: 0 | BM55: 0 | BN55: 0 | BO55: 0 | BP55: 0 | BQ55: 0 | BR55: 0 | BS55: 0 | BT55: 0 | BU55: 0 | BV55: 0 | BW55: 0 | BX55: 0 | BY55: 0 | BZ55: 0 | CA55: 0 | CB55: 0 | CC55: 0 | CD55: 0 | CE55: 0 | CF55: 0 | CG55: 0 | CH55: 0
A56: 156 | B56: Long Lake 2nd Powerhouse | C56: 0 | D56: 0 | E56: 0 | F56: 0 | G56: 0 | H56: 0 | M56: =SUMIF(Res_MWh!$D$4:$D$68,$A56,Res_MWh!AD$4:AD$68)/G_A!P$6 -> 0 | N56: =SUMIF(Res_MWh!$D$4:$D$68,$A56,Res_MWh!AE$4:AE$68)/G_A!Q$6 -> 0 | O56: =SUMIF(Res_MWh!$D$4:$D$68,$A56,Res_MWh!AF$4:AF$68)/G_A!R$6 -> 0 | P56: =SUMIF(Res_MWh!$D$4:$D$68,$A56,Res_MWh!AG$4:AG$68)/G_A!S$6 -> 0 | Q56: =SUMIF(Res_MWh!$D$4:$D$68,$A56,Res_MWh!AH$4:AH$68)/G_A!T$6 -> 0 | R56: =SUMIF(Res_MWh!$D$4:$D$68,$A56,Res_MWh!AI$4:AI$68)/G_A!U$6 -> 0 | S56: =SUMIF(Res_MWh!$D$4:$D$68,$A56,Res_MWh!AJ$4:AJ$68)/G_A!V$6 -> 0 | T56: =SUMIF(Res_MWh!$D$4:$D$68,$A56,Res_MWh!AK$4:AK$68)/G_A!W$6 -> 0 | U56: =SUMIF(Res_MWh!$D$4:$D$68,$A56,Res_MWh!AL$4:AL$68)/G_A!X$6 -> 0 | V56: =SUMIF(Res_MWh!$D$4:$D$68,$A56,Res_MWh!AM$4:AM$68)/G_A!Y$6 -> 0 | W56: =SUMIF(Res_MWh!$D$4:$D$68,$A56,Res_MWh!AN$4:AN$68)/G_A!Z$6 -> 0 | X56: =SUMIF(Res_MWh!$D$4:$D$68,$A56,Res_MWh!AO$4:AO$68)/G_A!AA$6 -> 0 | Y56: =SUMIF(Res_MWh!$D$4:$D$68,$A56,Res_MWh!AP$4:AP$68)/G_A!AB$6 -> 0 | Z56: =SUMIF(Res_MWh!$D$4:$D$68,$A56,Res_MWh!AQ$4:AQ$68)/G_A!AC$6 -> 0 | AA56: =SUMIF(Res_MWh!$D$4:$D$68,$A56,Res_MWh!AR$4:AR$68)/G_A!AD$6 -> 0 | AB56: =SUMIF(Res_MWh!$D$4:$D$68,$A56,Res_MWh!AS$4:AS$68)/G_A!AE$6 -> 0 | AC56: =SUMIF(Res_MWh!$D$4:$D$68,$A56,Res_MWh!AT$4:AT$68)/G_A!AF$6 -> 0 | AD56: =SUMIF(Res_MWh!$D$4:$D$68,$A56,Res_MWh!AU$4:AU$68)/G_A!AG$6 -> 0 | AE56: =SUMIF(Res_MWh!$D$4:$D$68,$A56,Res_MWh!AV$4:AV$68)/G_A!AH$6 -> 0 | AF56: =SUMIF(Res_MWh!$D$4:$D$68,$A56,Res_MWh!AW$4:AW$68)/G_A!AI$6 -> 0 | AG56: =SUMIF(Res_MWh!$D$4:$D$68,$A56,Res_MWh!AX$4:AX$68)/G_A!AJ$6 -> 0 | AH56: =SUMIF(Res_MWh!$D$4:$D$68,$A56,Res_MWh!AY$4:AY$68)/G_A!AK$6 -> 0 | AI56: =SUMIF(Res_MWh!$D$4:$D$68,$A56,Res_MWh!AZ$4:AZ$68)/G_A!AL$6 -> 0 | AJ56: =SUMIF(Res_MWh!$D$4:$D$68,$A56,Res_MWh!BA$4:BA$68)/G_A!AM$6 -> 0 | AL56: =SUMIF(Res_MWh!$D$4:$D$68,$A56,Res_MWh!BC$4:BC$68)/G_A!AO$6 -> 0 | AM56: =SUMIF(Res_MWh!$D$4:$D$68,$A56,Res_MWh!BD$4:BD$68)/G_A!AP$6 -> 0 | AN56: =SUMIF(Res_MWh!$D$4:$D$68,$A56,Res_MWh!BE$4:BE$68)/G_A!AQ$6 -> 0 | AO56: =SUMIF(Res_MWh!$D$4:$D$68,$A56,Res_MWh!BF$4:BF$68)/G_A!AR$6 -> 0 | AP56: =SUMIF(Res_MWh!$D$4:$D$68,$A56,Res_MWh!BG$4:BG$68)/G_A!AS$6 -> 0 | AQ56: =SUMIF(Res_MWh!$D$4:$D$68,$A56,Res_MWh!BH$4:BH$68)/G_A!AT$6 -> 0 | AR56: =SUMIF(Res_MWh!$D$4:$D$68,$A56,Res_MWh!BI$4:BI$68)/G_A!AU$6 -> 0 | AS56: =SUMIF(Res_MWh!$D$4:$D$68,$A56,Res_MWh!BJ$4:BJ$68)/G_A!AV$6 -> 0 | AT56: =SUMIF(Res_MWh!$D$4:$D$68,$A56,Res_MWh!BK$4:BK$68)/G_A!AW$6 -> 0 | AU56: =SUMIF(Res_MWh!$D$4:$D$68,$A56,Res_MWh!BL$4:BL$68)/G_A!AX$6 -> 0 | AV56: =SUMIF(Res_MWh!$D$4:$D$68,$A56,Res_MWh!BM$4:BM$68)/G_A!AY$6 -> 0 | AW56: =SUMIF(Res_MWh!$D$4:$D$68,$A56,Res_MWh!BN$4:BN$68)/G_A!AZ$6 -> 0 | AX56: =SUMIF(Res_MWh!$D$4:$D$68,$A56,Res_MWh!BO$4:BO$68)/G_A!BA$6 -> 0 | AY56: =SUMIF(Res_MWh!$D$4:$D$68,$A56,Res_MWh!BP$4:BP$68)/G_A!BB$6 -> 0 | AZ56: =SUMIF(Res_MWh!$D$4:$D$68,$A56,Res_MWh!BQ$4:BQ$68)/G_A!BC$6 -> 0 | BA56: =SUMIF(Res_MWh!$D$4:$D$68,$A56,Res_MWh!BR$4:BR$68)/G_A!BD$6 -> 0 | BB56: =SUMIF(Res_MWh!$D$4:$D$68,$A56,Res_MWh!BS$4:BS$68)/G_A!BE$6 -> 0 | BC56: =SUMIF(Res_MWh!$D$4:$D$68,$A56,Res_MWh!BT$4:BT$68)/G_A!BF$6 -> 0 | BD56: =SUMIF(Res_MWh!$D$4:$D$68,$A56,Res_MWh!BU$4:BU$68)/G_A!BG$6 -> 0 | BE56: =SUMIF(Res_MWh!$D$4:$D$68,$A56,Res_MWh!BV$4:BV$68)/G_A!BH$6 -> 0 | BF56: =SUMIF(Res_MWh!$D$4:$D$68,$A56,Res_MWh!BW$4:BW$68)/G_A!BI$6 -> 0 | BG56: =SUMIF(Res_MWh!$D$4:$D$68,$A56,Res_MWh!BX$4:BX$68)/G_A!BJ$6 -> 0 | BH56: =SUMIF(Res_MWh!$D$4:$D$68,$A56,Res_MWh!BY$4:BY$68)/G_A!BK$6 -> 0 | BI56: =SUMIF(Res_MWh!$D$4:$D$68,$A56,Res_MWh!BZ$4:BZ$68)/G_A!BL$6 -> 0 | BK56: 0 | BL56: 0 | BM56: 0 | BN56: 0 | BO56: 0 | BP56: 0 | BQ56: 0 | BR56: 0 | BS56: 0 | BT56: 0 | BU56: 0 | BV56: 0 | BW56: 0 | BX56: 0 | BY56: 0 | BZ56: 0 | CA56: 0 | CB56: 0 | CC56: 0 | CD56: 0 | CE56: 0 | CF56: 0 | CG56: 0 | CH56: 0
A57: 157 | B57: NW Hydro Slice | C57: 0 | D57: 0 | E57: 23.50749543 | F57: 31.34305605 | G57: 31.34305605 | H57: 31.34332723 | M57: =SUMIF(Res_MWh!$D$4:$D$68,$A57,Res_MWh!AD$4:AD$68)/G_A!P$6 -> 0 | N57: =SUMIF(Res_MWh!$D$4:$D$68,$A57,Res_MWh!AE$4:AE$68)/G_A!Q$6 -> 0 | O57: =SUMIF(Res_MWh!$D$4:$D$68,$A57,Res_MWh!AF$4:AF$68)/G_A!R$6 -> 0 | P57: =SUMIF(Res_MWh!$D$4:$D$68,$A57,Res_MWh!AG$4:AG$68)/G_A!S$6 -> 0 | Q57: =SUMIF(Res_MWh!$D$4:$D$68,$A57,Res_MWh!AH$4:AH$68)/G_A!T$6 -> 0 | R57: =SUMIF(Res_MWh!$D$4:$D$68,$A57,Res_MWh!AI$4:AI$68)/G_A!U$6 -> 0 | S57: =SUMIF(Res_MWh!$D$4:$D$68,$A57,Res_MWh!AJ$4:AJ$68)/G_A!V$6 -> 0 | T57: =SUMIF(Res_MWh!$D$4:$D$68,$A57,Res_MWh!AK$4:AK$68)/G_A!W$6 -> 0 | U57: =SUMIF(Res_MWh!$D$4:$D$68,$A57,Res_MWh!AL$4:AL$68)/G_A!X$6 -> 0 | V57: =SUMIF(Res_MWh!$D$4:$D$68,$A57,Res_MWh!AM$4:AM$68)/G_A!Y$6 -> 31.34224252 | W57: =SUMIF(Res_MWh!$D$4:$D$68,$A57,Res_MWh!AN$4:AN$68)/G_A!Z$6 -> 31.34549667 | X57: =SUMIF(Res_MWh!$D$4:$D$68,$A57,Res_MWh!AO$4:AO$68)/G_A!AA$6 -> 31.34224252 | Y57: =SUMIF(Res_MWh!$D$4:$D$68,$A57,Res_MWh!AP$4:AP$68)/G_A!AB$6 -> 31.34224252 | Z57: =SUMIF(Res_MWh!$D$4:$D$68,$A57,Res_MWh!AQ$4:AQ$68)/G_A!AC$6 -> 31.34224252 | AA57: =SUMIF(Res_MWh!$D$4:$D$68,$A57,Res_MWh!AR$4:AR$68)/G_A!AD$6 -> 31.34549667 | AB57: =SUMIF(Res_MWh!$D$4:$D$68,$A57,Res_MWh!AS$4:AS$68)/G_A!AE$6 -> 31.34224252 | AC57: =SUMIF(Res_MWh!$D$4:$D$68,$A57,Res_MWh!AT$4:AT$68)/G_A!AF$6 -> 31.34224252 | AD57: =SUMIF(Res_MWh!$D$4:$D$68,$A57,Res_MWh!AU$4:AU$68)/G_A!AG$6 -> 31.34224252 | AE57: =SUMIF(Res_MWh!$D$4:$D$68,$A57,Res_MWh!AV$4:AV$68)/G_A!AH$6 -> 31.34549667 | AF57: =SUMIF(Res_MWh!$D$4:$D$68,$A57,Res_MWh!AW$4:AW$68)/G_A!AI$6 -> 31.34224252 | AG57: =SUMIF(Res_MWh!$D$4:$D$68,$A57,Res_MWh!AX$4:AX$68)/G_A!AJ$6 -> 31.34224252 | AH57: =SUMIF(Res_MWh!$D$4:$D$68,$A57,Res_MWh!AY$4:AY$68)/G_A!AK$6 -> 31.34224252 | AI57: =SUMIF(Res_MWh!$D$4:$D$68,$A57,Res_MWh!AZ$4:AZ$68)/G_A!AL$6 -> 31.34549667 | AJ57: =SUMIF(Res_MWh!$D$4:$D$68,$A57,Res_MWh!BA$4:BA$68)/G_A!AM$6 -> 31.34224252 | AL57: =SUMIF(Res_MWh!$D$4:$D$68,$A57,Res_MWh!BC$4:BC$68)/G_A!AO$6 -> 0 | AM57: =SUMIF(Res_MWh!$D$4:$D$68,$A57,Res_MWh!BD$4:BD$68)/G_A!AP$6 -> 0 | AN57: =SUMIF(Res_MWh!$D$4:$D$68,$A57,Res_MWh!BE$4:BE$68)/G_A!AQ$6 -> 0 | AO57: =SUMIF(Res_MWh!$D$4:$D$68,$A57,Res_MWh!BF$4:BF$68)/G_A!AR$6 -> 0 | AP57: =SUMIF(Res_MWh!$D$4:$D$68,$A57,Res_MWh!BG$4:BG$68)/G_A!AS$6 -> 0 | AQ57: =SUMIF(Res_MWh!$D$4:$D$68,$A57,Res_MWh!BH$4:BH$68)/G_A!AT$6 -> 0 | AR57: =SUMIF(Res_MWh!$D$4:$D$68,$A57,Res_MWh!BI$4:BI$68)/G_A!AU$6 -> 0 | AS57: =SUMIF(Res_MWh!$D$4:$D$68,$A57,Res_MWh!BJ$4:BJ$68)/G_A!AV$6 -> 0 | AT57: =SUMIF(Res_MWh!$D$4:$D$68,$A57,Res_MWh!BK$4:BK$68)/G_A!AW$6 -> 0 | AU57: =SUMIF(Res_MWh!$D$4:$D$68,$A57,Res_MWh!BL$4:BL$68)/G_A!AX$6 -> 0 | AV57: =SUMIF(Res_MWh!$D$4:$D$68,$A57,Res_MWh!BM$4:BM$68)/G_A!AY$6 -> 0 | AW57: =SUMIF(Res_MWh!$D$4:$D$68,$A57,Res_MWh!BN$4:BN$68)/G_A!AZ$6 -> 0 | AX57: =SUMIF(Res_MWh!$D$4:$D$68,$A57,Res_MWh!BO$4:BO$68)/G_A!BA$6 -> 0 | AY57: =SUMIF(Res_MWh!$D$4:$D$68,$A57,Res_MWh!BP$4:BP$68)/G_A!BB$6 -> 0 | AZ57: =SUMIF(Res_MWh!$D$4:$D$68,$A57,Res_MWh!BQ$4:BQ$68)/G_A!BC$6 -> 0 | BA57: =SUMIF(Res_MWh!$D$4:$D$68,$A57,Res_MWh!BR$4:BR$68)/G_A!BD$6 -> 0 | BB57: =SUMIF(Res_MWh!$D$4:$D$68,$A57,Res_MWh!BS$4:BS$68)/G_A!BE$6 -> 0 | BC57: =SUMIF(Res_MWh!$D$4:$D$68,$A57,Res_MWh!BT$4:BT$68)/G_A!BF$6 -> 0 | BD57: =SUMIF(Res_MWh!$D$4:$D$68,$A57,Res_MWh!BU$4:BU$68)/G_A!BG$6 -> 0 | BE57: =SUMIF(Res_MWh!$D$4:$D$68,$A57,Res_MWh!BV$4:BV$68)/G_A!BH$6 -> 0 | BF57: =SUMIF(Res_MWh!$D$4:$D$68,$A57,Res_MWh!BW$4:BW$68)/G_A!BI$6 -> 0 | BG57: =SUMIF(Res_MWh!$D$4:$D$68,$A57,Res_MWh!BX$4:BX$68)/G_A!BJ$6 -> 0 | BH57: =SUMIF(Res_MWh!$D$4:$D$68,$A57,Res_MWh!BY$4:BY$68)/G_A!BK$6 -> 0 | BI57: =SUMIF(Res_MWh!$D$4:$D$68,$A57,Res_MWh!BZ$4:BZ$68)/G_A!BL$6 -> 0 | BK57: 0 | BL57: 0 | BM57: 0 | BN57: 0 | BO57: 0 | BP57: 0 | BQ57: 0 | BR57: 0 | BS57: 0 | BT57: 31.34224252 | BU57: 31.34549667 | BV57: 31.34224252 | BW57: 31.34224252 | BX57: 31.34224252 | BY57: 31.34549667 | BZ57: 31.34224252 | CA57: 31.34224252 | CB57: 31.34224252 | CC57: 31.34549667 | CD57: 31.34224252 | CE57: 31.34224252 | CF57: 31.34224252 | CG57: 31.34549667 | CH57: 31.34224252
B59: Total New Clean Resource Selection | C59: =SUM(C41:C57) -> 48.50341018 | D59: 175.6249045 | E59: 234.893927 | F59: 246.5333809 | G59: 270.6358822 | H59: 322.7791812 | M59: =SUM(M41:M57) -> 0 | N59: =SUM(N41:N57) -> 48.50599315 | O59: 48.49566128 | P59: 97.0119863 | Q59: 102.9688034 | R59: 199.910532 | S59: 199.8496278 | T59: =SUM(T41:T57) -> 199.7706547 | U59: 199.6648003 | V59: 246.7005913 | W59: 246.5770962 | X59: 246.6332204 | Y59: 246.6095365 | Z59: 246.6419189 | AA59: 246.4925187 | AB59: 246.3895497 | AC59: 261.9588106 | AD59: 261.9156749 | AE59: 261.7969411 | AF59: 296.8721021 | AG59: 312.0980701 | AH59: 327.9026141 | AI59: 328.3368594 | AJ59: 332.5061463 | AL59: =SUM(AL41:AL57) -> 0 | AM59: =SUM(AM41:AM57) -> 60.49965118 | AN59: 60.71782022 | AO59: 60.66540365 | AP59: 91.31705363 | AQ59: 118.5130591 | AR59: 119.0571997 | AS59: 118.8814172 | AT59: 118.8091794 | AU59: 126.4974202 | AV59: 127.0644395 | AW59: 126.8572628 | AX59: 126.892329 | AY59: 126.6573381 | AZ59: 126.8990075 | BA59: 126.6674087 | BB59: 134.8996521 | BC59: 134.4492194 | BD59: 135.1629032 | BE59: 153.2393373 | BF59: 161.0659867 | BG59: 168.8825649 | BH59: 169.9182778 | BI59: 169.5633458 | BK59: =SUM(BK41:BK57) -> 0 | BL59: =SUM(BL41:BL57) -> 109.0056443 | BM59: 109.2134815 | BN59: 157.6773899 | BO59: 194.285857 | BP59: 318.4235911 | BQ59: 318.9068275 | BR59: 318.652072 | BS59: 318.4739797 | BT59: 373.1980115 | BU59: 373.6415357 | BV59: 373.4904832 | BW59: 373.5018655 | BX59: 373.299257 | BY59: 373.3915262 | BZ59: 373.0569584 | CA59: 396.8584627 | CB59: 396.3648943 | CC59: 396.9598443 | CD59: 450.1114394 | CE59: 473.1640568 | CF59: 496.7851791 | CG59: 498.2551372 | CH59: 502.0694921
B62: Total Clean Resources | C62: =C36+C59 -> 506.070824 | D62: 620.9038672 | E62: 646.1604383 | F62: 647.5540133 | G62: 657.4946965 | H62: 664.3073746 | M62: =M36+M59 -> 474.133738 | N62: =N36+N59 -> 515.540327 | O62: =O36+O59 -> 499.4668694 | P62: 535.1423615 | Q62: 566.9676797 | R62: 634.4463802 | S62: 642.246741 | T62: =T36+T59 -> 639.9546681 | U62: =U36+U59 -> 641.4072815 | V62: =V36+V59 -> 647.4929295 | W62: 648.7428105 | X62: 646.9987315 | Y62: 648.3298396 | Z62: 647.4931493 | AA62: 645.26004 | AB62: =AB36+AB59 -> 649.1330242 | AC62: 662.5496557 | AD62: 655.7407236 | AE62: 656.451128 | AF62: 655.2372787 | AG62: 669.6374772 | AH62: 661.8521798 | AI62: 661.4324668 | AJ62: 667.7031065 | AL62: =AL36+AL59 -> 248.0806382 | AM62: =AM36+AM59 -> 304.8656735 | AN62: 274.8183349 | AO62: 280.9112833 | AP62: 297.5614303 | AQ62: 345.8749232 | AR62: 347.6323871 | AS62: 337.1121972 | AT62: 340.8967533 | AU62: 333.3042727 | AV62: 334.5918825 | AW62: 333.4432588 | AX62: 334.1931376 | AY62: 333.498707 | AZ62: 331.8021703 | BA62: 334.3679227 | BB62: 341.6095684 | BC62: 340.5100027 | BD62: 341.6575159 | BE62: 336.9313975 | BF62: 348.1410611 | BG62: 340.6288511 | BH62: 343.2708642 | BI62: 344.9481985 | BK62: =BK36+BK59 -> 727.7812468 | BL62: =BL36+BL59 -> 825.9733032 | BM62: 779.8353094 | BN62: 821.6109888 | BO62: 870.0927197 | BP62: 985.8799262 | BQ62: 989.8791281 | BR62: 977.0668653 | BS62: 982.3040348 | BT62: 980.7972022 | BU62: 983.3346931 | BV62: 980.4419903 | BW62: 982.5229772 | BX62: 980.9918563 | BY62: 977.0622102 | BZ62: 983.5009469 | CA62: 1004.159224 | CB62: 996.2507262 | CC62: 998.1086439 | CD62: 992.1686762 | CE62: 1017.778538 | CF62: 1002.481031 | CG62: 1004.703331 | CH62: 1012.651305
B63: Clean Percent of Retail Sales | C63: =C62/C11 -> 0.8125810373 | D63: 0.9823784682 | E63: 1.012834501 | F63: 1.010357717 | G63: 1.017854405 | H63: 1.016504391 | M63: =M62/M11 -> 0.7656743168 | N63: =N62/N11 -> 0.8285193876 | O63: =O62/O11 -> 0.8018527434 | P63: 0.8537602639 | Q63: 0.9027234255 | R63: 1.008455349 | S63: 1.012975948 | T63: 1.00470869 | U63: 1.006048446 | V63: 1.014693389 | W63: 1.018633476 | X63: 1.011969624 | Y63: 1.012913587 | Z63: 1.01039833 | AA63: 1.008312312 | AB63: 1.009808564 | AC63: 1.028780588 | AD63: 1.015879283 | AE63: 1.017291982 | AF63: 1.009536418 | AG63: 1.028033162 | AH63: 1.011954571 | AI63: 1.009584112 | AJ63: 1.0106254 | AL63: =AL62/AL11 -> 0.7237805601 | AM63: 0.8873684209 | AN63: 0.8009515586 | AO63: 0.8150130096 | AP63: 0.8633839163 | AQ63: 1.00352839 | AR63: 1.011727451 | AS63: 0.9779198619 | AT63: 0.9894807097 | AU63: 0.9679223948 | AV63: 0.9750589526 | AW63: 0.9687774138 | AX63: 0.9708997268 | AY63: 0.9685828703 | AZ63: 0.9661816948 | BA63: 0.9697075954 | BB63: 0.9895209145 | BC63: 0.9840967105 | BD63: 0.9887536191 | BE63: 0.9694706284 | BF63: 0.9983251919 | BG63: 0.9729185106 | BH63: 0.9789125832 | BI63: 0.9752571312 | BK63: =BK62/BK11 -> 0.7521817172 | BL63: 0.8503163455 | BM63: 0.8026664158 | BN63: 0.8409231065 | BO63: 0.8894173423 | BP63: 1.006673422 | BQ63: 1.012537141 | BR63: 0.995301599 | BS63: 1.000236315 | BT63: 0.9983003692 | BU63: 1.00337611 | BV63: 0.9968544478 | BW63: 0.9982209516 | BX63: 0.9957835002 | BY63: 0.9935991096 | BZ63: 0.9958081919 | CA63: 1.015079682 | CB63: 1.00478787 | CC63: 1.007339532 | CD63: 0.9955642335 | CE63: 1.017674308 | CF63: 0.9983440418 | CG63: 0.9988908882 | CH63: 0.9982930265
B65: Clean Goal aMW | C65: =SUM(C47:C63) -> 555.3868152 | D65: 876.1292343 | E65: 1008.202451 | F65: 1028.930573 | G65: 1065.641898 | H65: 1133.309157 | M65: =M66*M11 -> 495.3894653 | N65: =N66*N11 -> 497.7943398 | O65: 529.457363 | P65: 532.7854042 | Q65: =Q66*Q11 -> 565.2571954 | R65: 566.2142033 | S65: 602.3187473 | T65: 605.1076705 | U65: 637.5510885 | V65: 638.1168309 | W65: 636.8756041 | X65: 639.3460003 | Y65: 640.0643135 | Z65: 640.8295915 | AA65: 639.9406533 | AB65: =AB66*AB11 -> 642.8278064 | AC65: 644.0145388 | AD65: 645.4907924 | AE65: 645.2927378 | AF65: 649.0476889 | AG65: 651.3773116 | AH65: 654.03349 | AI65: 655.153403 | AJ65: =AJ66*AJ11 -> 660.6830847
B66: Clean Goal | M66: 0.8 | N66: 0.8 | O66: 0.85 | P66: 0.85 | Q66: 0.9 | R66: 0.9 | S66: 0.95 | T66: 0.95 | U66: 1 | V66: 1 | W66: 1 | X66: 1 | Y66: 1 | Z66: 1 | AA66: 1 | AB66: 1 | AC66: 1 | AD66: 1 | AE66: 1 | AF66: 1 | AG66: 1 | AH66: 1 | AI66: 1 | AJ66: 1
B67: Constraint | M67: =[1]!WB(M62,">=",M65) -> Not >= | N67: =[1]!WB(N62,">=",N65) -> >= | O67: Not >= | P67: >= | Q67: >= | R67: >= | S67: >= | T67: >= | U67: >= | V67: >= | W67: >= | X67: >= | Y67: >= | Z67: >= | AA67: >= | AB67: >= | AC67: >= | AD67: >= | AE67: >= | AF67: >= | AG67: >= | AH67: >= | AI67: >= | AJ67: >=
B69: Offset Limit (Percent) | M69: 0 | N69: 0 | O69: 0 | P69: 0 | Q69: 0 | R69: 0 | S69: 0 | T69: 0 | U69: 0.2 | V69: 0.2 | W69: 0.2 | X69: 0.2 | Y69: 0.15 | Z69: 0.15 | AA69: 0.15 | AB69: 0.15 | AC69: 0.1 | AD69: 0.1 | AE69: 0.1 | AF69: 0.1 | AG69: 0.05 | AH69: 0.05 | AI69: 0.05 | AJ69: 0
B70: Total Offset Limit (aMW) | M70: =M69*M11 -> 0 | N70: =N69*N11 -> 0 | O70: 0 | P70: 0 | Q70: 0 | R70: 0 | S70: 0 | T70: =T69*T11 -> 0 | U70: =U69*U11 -> 127.5102177 | V70: =V69*V11 -> 127.6233662 | W70: 127.3751208 | X70: 127.8692001 | Y70: 96.00964702 | Z70: 96.12443872 | AA70: =AA69*AA11 -> 95.991098 | AB70: 96.42417095 | AC70: 64.40145388 | AD70: 64.54907924 | AE70: 64.52927378 | AF70: 64.90476889 | AG70: 32.56886558 | AH70: 32.7016745 | AI70: 32.75767015 | AJ70: 0
B71: Constraint | M71: =[1]!WB(M33,"<=",M70) -> =<= | N71: =[1]!WB(N33,"<=",N70) -> =<= | O71: =[1]!WB(O33,"<=",O70) -> =<= | P71: =<= | Q71: =<= | R71: =<= | S71: =<= | T71: =[1]!WB(T33,"<=",T70) -> =<= | U71: =[1]!WB(SUM(U32:U33),"<=",U70) -> <= | V71: =[1]!WB(SUM(V32:V33),"<=",V70) -> <= | W71: =[1]!WB(SUM(W32:W33),"<=",W70) -> <= | X71: <= | Y71: <= | Z71: <= | AA71: =[1]!WB(SUM(AA32:AA33),"<=",AA70) -> <= | AB71: <= | AC71: =[1]!WB(SUM(AC32:AC33),"<=",AC70) -> <= | AD71: <= | AE71: <= | AF71: <= | AG71: <= | AH71: <= | AI71: <= | AJ71: =<=
B72: Non-Hydro Offset Limit (aMW) | M72: =SUM(AL20:AL25) -> 44.72465158 | N72: =SUM(AM20:AM25) -> 44.0367574 | O72: 43.66225031 | P72: 42.80420781 | Q72: 43.43825161 | R72: 42.66407108 | S72: 43.10607945 | T72: 42.37624819 | U72: 42.66769173 | V72: 42.04170487 | W72: 42.72078031 | X72: 41.85282412 | Y72: 42.33639051 | Z72: 41.74741788 | AA72: 42.16773449 | AB72: 41.43093165 | AC72: 41.79362878 | AD72: 40.87490819 | AE72: 41.02651275 | AF72: 21.72616485 | AG72: 21.96167961 | AH72: 8.467765767 | AI72: 9.250722822 | AJ72: =SUM(BI20:BI25) -> 8.078319333
B73: Constraint | M73: =[1]!WB(M32,"<=",M72) -> <= | N73: =[1]!WB(N32,"<=",N72) -> <= | O73: =[1]!WB(O32,"<=",O72) -> <= | P73: =[1]!WB(P32,"<=",P72) -> <= | Q73: =[1]!WB(Q32,"<=",Q72) -> <= | R73: =[1]!WB(R32,"<=",R72) -> <= | S73: =[1]!WB(S32,"<=",S72) -> <= | T73: =[1]!WB(T32,"<=",T72) -> <= | U73: =[1]!WB(U32,"<=",U72) -> <= | V73: =[1]!WB(V32,"<=",V72) -> <= | W73: =[1]!WB(W32,"<=",W72) -> <= | X73: =[1]!WB(X32,"<=",X72) -> <= | Y73: =[1]!WB(Y32,"<=",Y72) -> <= | Z73: =[1]!WB(Z32,"<=",Z72) -> <= | AA73: =[1]!WB(AA32,"<=",AA72) -> <= | AB73: =[1]!WB(AB32,"<=",AB72) -> <= | AC73: =[1]!WB(AC32,"<=",AC72) -> <= | AD73: =[1]!WB(AD32,"<=",AD72) -> <= | AE73: =[1]!WB(AE32,"<=",AE72) -> <= | AF73: =[1]!WB(AF32,"<=",AF72) -> <= | AG73: =[1]!WB(AG32,"<=",AG72) -> <= | AH73: =[1]!WB(AH32,"<=",AH72) -> <= | AI73: =[1]!WB(AI32,"<=",AI72) -> <= | AJ73: =[1]!WB(AJ32,"<=",AJ72) -> <=

Sheet LR
C1: Total System | AB1: Washington | BA1: Idaho | BZ1: 2022 | CA1: 2023 | CB1: 2024 | CC1: 2025 | CD1: 2026 | CE1: 2027 | CF1: 2028 | CG1: 2029 | CH1: 2030 | CI1: 2031 | CJ1: 2032 | CK1: 2033 | CL1: 2034 | CM1: 2035 | CN1: 2036 | CO1: 2037 | CP1: 2038 | CQ1: 2039 | CR1: 2040 | CS1: 2041 | CT1: 2042 | CU1: 2043 | CV1: 2044 | CW1: 2045
A2: WINTER PEAK
A3: Load Type | B3: Item | C3: 2022 | D3: 2023 | E3: 2024 | F3: 2025 | G3: 2026 | H3: 2027 | I3: 2028 | J3: 2029 | K3: 2030 | L3: 2031 | M3: 2032 | N3: 2033 | O3: 2034 | P3: 2035 | Q3: 2036 | R3: 2037 | S3: 2038 | T3: 2039 | U3: 2040 | V3: 2041 | W3: 2042 | X3: 2043 | Y3: 2044 | Z3: 2045 | AB3: 2022 | AC3: 2023 | AD3: 2024 | AE3: 2025 | AF3: 2026 | AG3: 2027 | AH3: 2028 | AI3: 2029 | AJ3: 2030 | AK3: 2031 | AL3: 2032 | AM3: 2033 | AN3: 2034 | AO3: 2035 | AP3: 2036 | AQ3: 2037 | AR3: 2038 | AS3: 2039 | AT3: 2040 | AU3: 2041 | AV3: 2042 | AW3: 2043 | AX3: 2044 | AY3: 2045 | BA3: 2022 | BB3: 2023 | BC3: 2024 | BD3: 2025 | BE3: 2026 | BF3: 2027 | BG3: 2028 | BH3: 2029 | BI3: 2030 | BJ3: 2031 | BK3: 2032 | BL3: 2033 | BM3: 2034 | BN3: 2035 | BO3: 2036 | BP3: 2037 | BQ3: 2038 | BR3: 2039 | BS3: 2040 | BT3: 2041 | BU3: 2042 | BV3: 2043 | BW3: 2044 | BX3: 2045
A5: Winter Peak | B5: Baseline Load Forecast | C5: =AB5+BA5 -> 1719 | D5: =AC5+BB5 -> 1725 | E5: 1729 | F5: 1733 | G5: 1738 | H5: 1742 | I5: 1746 | J5: 1751 | K5: 1756 | L5: 1761 | M5: =AL5+BK5 -> 1766 | N5: 1771 | O5: 1777 | P5: 1783 | Q5: 1789 | R5: 1796 | S5: 1804 | T5: 1812 | U5: 1821 | V5: 1830 | W5: =AV5+BU5 -> 1841 | X5: 1853 | Y5: 1867 | Z5: 1882 | AB5: 1093.748357 | AC5: 1097.687357 | AD5: 1100.313357 | AE5: 1102.939357 | AF5: 1106.221857 | AG5: 1108.847857 | AH5: 1111.473857 | AI5: 1114.756357 | AJ5: 1118.038857 | AK5: 1121.321357 | AL5: 1124.603857 | AM5: 1127.886357 | AN5: 1131.825357 | AO5: 1135.764357 | AP5: 1139.703357 | AQ5: 1144.298857 | AR5: 1149.550857 | AS5: 1154.802857 | AT5: 1160.711357 | AU5: 1166.619857 | AV5: 1173.841357 | AW5: 1181.719357 | AX5: 1190.910357 | AY5: 1200.757857 | BA5: 625.2516428 | BB5: 627.3126428 | BC5: 628.6866428 | BD5: 630.0606428 | BE5: 631.7781428 | BF5: 633.1521428 | BG5: 634.5261428 | BH5: 636.2436428 | BI5: 637.9611428 | BJ5: 639.6786428 | BK5: 641.3961428 | BL5: 643.1136428 | BM5: 645.1746428 | BN5: 647.2356428 | BO5: 649.2966428 | BP5: 651.7011428 | BQ5: 654.4491428 | BR5: 657.1971428 | BS5: 660.2886428 | BT5: 663.3801428 | BU5: 667.1586428 | BV5: 671.2806428 | BW5: 676.0896428 | BX5: 681.2421428
A6: Winter Peak | B6: Embedded EE (added back) | C6: 4.967228852 | D6: 11.01649658 | E6: 17.88112355 | F6: 25.93027909 | G6: 35.19304747 | H6: 45.34377799 | I6: 55.9073126 | J6: 66.19722179 | K6: 75.72004277 | L6: 83.99944158 | M6: 90.73849705 | N6: 96.15236128 | O6: 100.4594359 | P6: 103.9106126 | Q6: 106.6761296 | R6: 108.8587558 | S6: 110.7975029 | T6: 112.4706806 | U6: 113.931204 | V6: 114.7627436 | W6: 115.4034113 | X6: 115.5750421 | Y6: 115.4675689 | Z6: 115.1777638 | AB6: 3.594525783 | AC6: 8.019566575 | AD6: 13.12536024 | AE6: 19.20388927 | AF6: 26.24640461 | AG6: 34.01520589 | AH6: 42.15521458 | AI6: 50.14691135 | AJ6: 57.61562229 | AK6: 64.20338396 | AL6: 69.69094111 | AM6: 74.18428645 | AN6: 77.83303526 | AO6: 80.79211506 | AP6: 83.17832258 | AQ6: 85.06816863 | AR6: 86.7657822 | AS6: 88.20451865 | AT6: 89.43752819 | AU6: 90.17051535 | AV6: 90.71867278 | AW6: 90.79362845 | AX6: 90.56966974 | AY6: 90.19780538 | BA6: 1.372703069 | BB6: 2.99693 | BC6: 4.755763305 | BD6: 6.726389821 | BE6: 8.946642861 | BF6: 11.3285721 | BG6: 13.75209802 | BH6: 16.05031044 | BI6: 18.10442048 | BJ6: 19.79605762 | BK6: 21.04755595 | BL6: 21.96807483 | BM6: 22.62640066 | BN6: 23.11849754 | BO6: 23.49780702 | BP6: 23.79058716 | BQ6: 24.0317207 | BR6: 24.2661619 | BS6: 24.49367578 | BT6: 24.59222828 | BU6: 24.68473852 | BV6: 24.78141365 | BW6: 24.8978992 | BX6: 24.97995844
A7: Winter Peak | B7: Load Forecast w/o EE | C7: 1723.967229 | D7: 1736.016497 | E7: 1746.881124 | F7: 1758.930279 | G7: 1773.193047 | H7: 1787.343778 | I7: 1801.907313 | J7: 1817.197222 | K7: 1831.720043 | L7: 1844.999442 | M7: 1856.738497 | N7: 1867.152361 | O7: 1877.459436 | P7: 1886.910613 | Q7: 1895.67613 | R7: 1904.858756 | S7: 1914.797503 | T7: 1924.470681 | U7: 1934.931204 | V7: 1944.762744 | W7: 1956.403411 | X7: 1968.575042 | Y7: 1982.467569 | Z7: 1997.177764 | AB7: =AB5+AB6 -> 1097.342883 | AC7: 1105.706924 | AD7: 1113.438717 | AE7: 1122.143246 | AF7: 1132.468262 | AG7: 1142.863063 | AH7: 1153.629072 | AI7: 1164.903269 | AJ7: 1175.654479 | AK7: 1185.524741 | AL7: 1194.294798 | AM7: 1202.070644 | AN7: 1209.658392 | AO7: 1216.556472 | AP7: 1222.88168 | AQ7: 1229.367026 | AR7: 1236.316639 | AS7: 1243.007376 | AT7: 1250.148885 | AU7: 1256.790373 | AV7: 1264.56003 | AW7: 1272.512986 | AX7: 1281.480027 | AY7: 1290.955663 | BA7: =BA5+BA6 -> 626.6243459 | BB7: =BB5+BB6 -> 630.3095728 | BC7: 633.4424061 | BD7: 636.7870326 | BE7: 640.7247857 | BF7: 644.4807149 | BG7: 648.2782408 | BH7: 652.2939533 | BI7: 656.0655633 | BJ7: 659.4747004 | BK7: 662.4436988 | BL7: 665.0817176 | BM7: 667.8010435 | BN7: 670.3541404 | BO7: 672.7944498 | BP7: 675.49173 | BQ7: 678.4808635 | BR7: 681.4633047 | BS7: 684.7823186 | BT7: 687.9723711 | BU7: 691.8433813 | BV7: 696.0620565 | BW7: 700.987542 | BX7: 706.2221013
A8: Winter Peak | B8: Selected EE | C8: 5.158311657 | D8: 11.47078148 | E8: 18.70197429 | F8: 27.23261817 | G8: 37.10153075 | H8: 47.98265144 | I8: 59.39026489 | J8: 70.61823185 | K8: 81.14309923 | L8: 90.47303072 | M8: 98.26738043 | N8: 104.7106626 | O8: 109.9833416 | P8: 114.2874327 | Q8: 117.7867134 | R8: 120.5456407 | S8: 122.9979956 | T8: 125.0476403 | U8: 126.7808677 | V8: 127.7174451 | W8: 128.2756833 | X8: 128.3299382 | Y8: 128.0294976 | Z8: 127.535696 | AB8: =EE_Selection!EK13 -> 3.672975147 | AC8: =EE_Selection!EL13 -> 8.20240865 | AD8: =EE_Selection!EM13 -> 13.44113249 | AE8: =EE_Selection!EN13 -> 19.68950349 | AF8: =EE_Selection!EO13 -> 26.9471696 | AG8: =EE_Selection!EP13 -> 34.97577277 | AH8: =EE_Selection!EQ13 -> 43.41436849 | AI8: =EE_Selection!ER13 -> 51.73520627 | AJ8: =EE_Selection!ES13 -> 59.55260711 | AK8: =EE_Selection!ET13 -> 66.49807274 | AL8: =EE_Selection!EU13 -> 72.33951315 | AM8: =EE_Selection!EV13 -> 77.17332462 | AN8: =EE_Selection!EW13 -> 81.13705934 | AO8: =EE_Selection!EX13 -> 84.37518132 | AP8: =EE_Selection!EY13 -> 86.99782775 | AQ8: =EE_Selection!EZ13 -> 89.07469978 | AR8: =EE_Selection!FA13 -> 90.90884501 | AS8: =EE_Selection!FB13 -> 92.44148188 | AT8: =EE_Selection!FC13 -> 93.73946323 | AU8: =EE_Selection!FD13 -> 94.49461547 | AV8: =EE_Selection!FE13 -> 95.06806413 | AW8: =EE_Selection!FF13 -> 95.16528538 | AX8: =EE_Selection!FG13 -> 94.96801439 | AY8: =EE_Selection!FH13 -> 94.62758329 | BA8: =EE_Selection!EK14 -> 1.48533651 | BB8: =EE_Selection!EL14 -> 3.268372834 | BC8: =EE_Selection!EM14 -> 5.260841805 | BD8: =EE_Selection!EN14 -> 7.543114685 | BE8: =EE_Selection!EO14 -> 10.15436115 | BF8: =EE_Selection!EP14 -> 13.00687867 | BG8: =EE_Selection!EQ14 -> 15.97589639 | BH8: =EE_Selection!ER14 -> 18.88302558 | BI8: =EE_Selection!ES14 -> 21.59049212 | BJ8: =EE_Selection!ET14 -> 23.97495797 | BK8: =EE_Selection!EU14 -> 25.92786728 | BL8: =EE_Selection!EV14 -> 27.537338 | BM8: =EE_Selection!EW14 -> 28.84628227 | BN8: =EE_Selection!EX14 -> 29.91225139 | BO8: =EE_Selection!EY14 -> 30.78888561 | BP8: =EE_Selection!EZ14 -> 31.47094096 | BQ8: =EE_Selection!FA14 -> 32.0891506 | BR8: =EE_Selection!FB14 -> 32.60615847 | BS8: =EE_Selection!FC14 -> 33.0414045 | BT8: =EE_Selection!FD14 -> 33.22282968 | BU8: =EE_Selection!FE14 -> 33.20761916 | BV8: =EE_Selection!FF14 -> 33.1646528 | BW8: =EE_Selection!FG14 -> 33.06148317 | BX8: =EE_Selection!FH14 -> 32.9081127
